Workbook

Sheet xMenuBar (hidden)
B3: DLP Logo | H3: 14.4
H4: 14.4
H5: 14.4
H6: 14.4
H7: 14.4
H8: 7
B9: Button | H9: 14.4
H10: 14.4
H11: 9
B14: Button | H14: 14.4
H15: 14.4
H16: 9
B17: Button | H17: 14.4
H18: 14.4
H19: 9
B20: Button | H20: 14.4
H21: 14.4
H22: 9
B25: Button | H25: 14.4
H26: 14.4
H27: 9
B28: Button | H28: 14.4
H29: 14.4
H30: 9
B31: Button | H31: 14.4
H32: 14.4
H33: 9
B34: Button | H34: 14.4
H35: 14.4
H36: 9
B38: Button | H38: 14.4
H39: 14.4
H40: 9
B41: Button | H41: 14.4
H42: 14.4
H43: 9
B44: Button | H44: 14.4
H45: 14.4
H46: 9
B47: Button | H47: 14.4
H48: 14.4
H49: 9
B50: Button | H50: 14.4
H51: 14.4
H52: 9
B53: Button | H53: 14.4
H54: 14.4
H55: 9

Sheet xMenuElements (hidden)

Sheet xMenuBarCfg (hidden)
C2: Menu Bar Shapes
C4: 1 | D4: 2 | E4: 3 | F4: 4 | G4: 5 | H4: 6 | I4: 7
L5: App | R5: Target | X5: Diff | AF5: Original Shapes (unselected) | AL5: Original Shapes (selected) | AR5: Welcome | AX5: App | BD5: Target
C6: Index | D6: Shape Name | E6: Width | F6: Height | G6: Left | H6: Top | L6: Shape Name | M6: Width | N6: Height | O6: Left | P6: Top | R6: Shape Name | S6: Width | T6: Height | U6: Left | V6: Top | X6: Shape Name | Y6: Width | Z6: Height | AA6: Left | AB6: Top | AF6: Shape Name | AG6: Width | AH6: Height | AI6: Left | AJ6: Top | AL6: Shape Name | AM6: Width | AN6: Height | AO6: Left | AP6: Top | AR6: Shape Name | AS6: Width | AT6: Height | AU6: Left | AV6: Top | AX6: Shape Name | AY6: Width | AZ6: Height | BA6: Left | BB6: Top | BD6: Shape Name | BE6: Width | BF6: Height | BG6: Left | BH6: Top
C7: =MAX(C8:C30) -> 22
C8: 1 | D8: DLPLogo | E8: 148 | F8: 66 | G8: 10 | H8: 11 | L8: DLPLogo | M8: 149 | N8: 66 | O8: 11 | P8: 11 | R8: DLPLogo | S8: 151 | T8: 71 | U8: 9 | V8: 11 | X8: DLPLogo | Y8: =M8-S8 -> -2 | Z8: =N8-T8 -> -5 | AA8: =O8-U8 -> 2 | AB8: =P8-V8 -> 0 | AF8: DLPLogo | AG8: 150 | AH8: 73 | AI8: 167 | AJ8: 29 | AL8: DLPLogo | AM8: 150 | AN8: 71 | AO8: 383 | AP8: 29 | AR8: DLPLogo | AS8: 151 | AT8: 71 | AU8: 9 | AV8: 11 | AX8: DLPLogo | AY8: 149 | AZ8: 66 | BA8: 11 | BB8: 11 | BD8: DLPLogo | BE8: 150 | BF8: 66 | BG8: 10 | BH8: 11
C9: 2 | D9: WelcomeButton | E9: 136 | F9: 31 | G9: 18 | H9: 90 | L9: WelcomButton | M9: 133 | N9: 29 | O9: 10 | P9: 89 | R9: WelcomeButton | S9: 86 | T9: 32 | U9: 565 | V9: 261 | X9: WelcomeButton | Y9: =M9-S9 -> 47 | Z9: =N9-T9 -> -3 | AA9: =O9-U9 -> -555 | AB9: =P9-V9 -> -172 | AF9: WelcomeButton | AG9: 133 | AH9: 29 | AI9: 167 | AJ9: 108 | AL9: WelcomeButton | AM9: 133 | AN9: 29 | AO9: 383 | AP9: 107 | AR9: WelcomeButton | AS9: 86 | AT9: 32 | AU9: 565 | AV9: 261 | AX9: WelcomeButton | AY9: 133 | AZ9: 29 | BA9: 10 | BB9: 89 | BD9: WelcomeButton | BE9: 133 | BF9: 29 | BG9: 10 | BH9: 89
C10: 3 | D10: InputHeader | E10: 99 | F10: 20 | G10: 43 | H10: 130 | L10: InputHeader | M10: 133 | N10: 28 | O10: 10 | P10: 122 | R10: InputHeader | S10: 133 | T10: 28 | U10: 10 | V10: 120 | X10: InputHeader | Y10: 0 | Z10: 0 | AA10: 0 | AB10: 2 | AF10: InputHeader | AG10: 133 | AH10: 29 | AI10: 167 | AJ10: 139 | AL10: InputHeader | AR10: InputHeader | AS10: 133 | AT10: 28 | AU10: 10 | AV10: 120 | AX10: InputHeader | AY10: 133 | AZ10: 28 | BA10: 10 | BB10: 122 | BD10: InputHeader | BE10: 133 | BF10: 29 | BG10: 10 | BH10: 119
C11: 4 | D11: AppButton | E11: 132 | F11: 27 | G11: 10 | H11: 152 | L11: AppButton | M11: 134 | N11: 30 | O11: 10 | P11: 149 | R11: AppButton | S11: 133 | T11: 29 | U11: 10 | V11: 148 | X11: AppButton | Y11: 1 | Z11: 1 | AA11: 0 | AB11: 1 | AF11: AppButton | AG11: 133 | AH11: 29 | AI11: 167 | AJ11: 168 | AL11: AppButton | AM11: 133 | AN11: 29 | AO11: 383 | AP11: 164 | AR11: AppButton | AS11: 133 | AT11: 29 | AU11: 10 | AV11: 148 | AX11: AppButton | AY11: 134 | AZ11: 30 | BA11: 10 | BB11: 149 | BD11: AppButton | BE11: 133 | BF11: 29 | BG11: 10 | BH11: 148
C12: 5 | D12: TargetButton | E12: 132 | F12: 29 | G12: 10 | H12: 189 | L12: TargetButton | M12: 133 | N12: 30 | O12: 10 | P12: 186 | R12: TargetButton | S12: 133 | T12: 29 | U12: 10 | V12: 186 | X12: TargetButton | Y12: 0 | Z12: 1 | AA12: 0 | AB12: 0 | AF12: TargetButton | AG12: 134 | AH12: 29 | AI12: 167 | AJ12: 205 | AL12: TargetButton | AM12: 134 | AN12: 29 | AO12: 382 | AP12: 201 | AR12: TargetButton | AS12: 133 | AT12: 29 | AU12: 10 | AV12: 186 | AX12: TargetButton | AY12: 133 | AZ12: 30 | BA12: 10 | BB12: 186 | BD12: TargetButton | BE12: 134 | BF12: 29 | BG12: 10 | BH12: 186
C13: 6 | D13: SummaryButton | E13: 132 | F13: 30 | G13: 10 | H13: 227 | L13: SummaryButton | M13: 133 | N13: 28 | O13: 10 | P13: 226 | R13: SummaryButton | S13: 133 | T13: 29 | U13: 10 | V13: 223 | X13: SummaryButton | Y13: 0 | Z13: -1 | AA13: 0 | AB13: 3 | AF13: SummaryButton | AG13: 133 | AH13: 29 | AI13: 167 | AJ13: 242 | AL13: SummaryButton | AM13: 133 | AN13: 29 | AO13: 383 | AP13: 239 | AR13: SummaryButton | AS13: 133 | AT13: 29 | AU13: 10 | AV13: 223 | AX13: SummaryButton | AY13: 133 | AZ13: 28 | BA13: 10 | BB13: 226 | BD13: SummaryButton | BE13: 133 | BF13: 29 | BG13: 10 | BH13: 223
C14: 7 | D14: OutputHeader | E14: 99 | F14: 20 | G14: 43 | H14: 267 | L14: OutputHeader | M14: 134 | N14: 29 | O14: 10 | P14: 257 | R14: OutputHeader | S14: 134 | T14: 28 | U14: 9 | V14: 254 | X14: OutputHeader | Y14: 0 | Z14: 1 | AA14: 1 | AB14: 3 | AF14: OutputHeader | AG14: 134 | AH14: 29 | AI14: 167 | AJ14: 274 | AL14: OutputHeader | AR14: OutputHeader | AS14: 134 | AT14: 28 | AU14: 9 | AV14: 254 | AX14: OutputHeader | AY14: 134 | AZ14: 29 | BA14: 10 | BB14: 257 | BD14: OutputHeader | BE14: 134 | BF14: 29 | BG14: 10 | BH14: 254
C15: 8 | D15: MapButton | E15: 132 | F15: 29 | G15: 10 | H15: 287 | L15: MapButton | M15: 133 | N15: 29 | O15: 10 | P15: 284 | R15: MapButton | S15: 133 | T15: 29 | U15: 10 | V15: 283 | X15: MapButton | Y15: 0 | Z15: 0 | AA15: 0 | AB15: 1 | AF15: MapButton | AG15: 134 | AH15: 29 | AI15: 167 | AJ15: 301 | AL15: MapButton | AM15: 133 | AN15: 28 | AO15: 383 | AP15: 298 | AR15: MapButton | AS15: 133 | AT15: 29 | AU15: 10 | AV15: 283 | AX15: MapButton | AY15: 133 | AZ15: 29 | BA15: 10 | BB15: 284 | BD15: MapButton | BE15: 134 | BF15: 29 | BG15: 10 | BH15: 282
C16: 9 | D16: GuideButton | E16: 132 | F16: 30 | G16: 10 | H16: 326 | L16: GuideButton | M16: 133 | N16: 29 | O16: 10 | P16: 323 | R16: GuideButton | S16: 133 | T16: 29 | U16: 10 | V16: 320 | X16: GuideButton | Y16: 0 | Z16: 0 | AA16: 0 | AB16: 3 | AF16: GuideButton | AG16: 134 | AH16: 29 | AI16: 167 | AJ16: 339 | AL16: GuideButton | AM16: 133 | AN16: 29 | AO16: 383 | AP16: 334 | AR16: GuideButton | AS16: 133 | AT16: 29 | AU16: 10 | AV16: 320 | AX16: GuideButton | AY16: 133 | AZ16: 29 | BA16: 10 | BB16: 323 | BD16: GuideButton | BE16: 134 | BF16: 29 | BG16: 10 | BH16: 320
C17: 10 | D17: EngineButton | E17: 132 | F17: 29 | G17: 10 | H17: 363 | L17: EngineButton | M17: 133 | N17: 30 | O17: 10 | P17: 361 | R17: EngineButton | S17: 133 | T17: 29 | U17: 10 | V17: 358 | X17: EngineButton | Y17: 0 | Z17: 1 | AA17: 0 | AB17: 3 | AF17: EngineButton | AG17: 133 | AH17: 29 | AI17: 167 | AJ17: 376 | AL17: EngineButton | AM17: 133 | AN17: 29 | AO17: 383 | AP17: 372 | AR17: EngineButton | AS17: 133 | AT17: 29 | AU17: 10 | AV17: 358 | AX17: EngineButton | AY17: 133 | AZ17: 30 | BA17: 10 | BB17: 361 | BD17: EngineButton | BE17: 133 | BF17: 29 | BG17: 10 | BH17: 357
C18: 11 | D18: SupportButton | E18: 132 | F18: 29 | G18: 10 | H18: 402 | L18: SupportButton | M18: 133 | N18: 29 | O18: 10 | P18: 398 | R18: SupportButton | S18: 133 | T18: 29 | U18: 10 | V18: 395 | X18: SupportButton | Y18: 0 | Z18: 0 | AA18: 0 | AB18: 3 | AF18: SupportButton | AG18: 134 | AH18: 29 | AI18: 167 | AJ18: 414 | AL18: SupportButton | AM18: 133 | AN18: 29 | AO18: 383 | AP18: 409 | AR18: SupportButton | AS18: 133 | AT18: 29 | AU18: 10 | AV18: 395 | AX18: SupportButton | AY18: 133 | AZ18: 29 | BA18: 10 | BB18: 398 | BD18: SupportButton | BE18: 134 | BF18: 29 | BG18: 10 | BH18: 395
C19: 12 | D19: TrackerBar | E19: 4 | F19: 317 | G19: 24 | H19: 102 | L19: TrackerBar | M19: 4 | N19: 313 | O19: 25 | P19: 101 | R19: TrackerBar | S19: 4 | T19: 310 | U19: 25 | V19: 100 | X19: TrackerBar | Y19: 0 | Z19: 3 | AA19: 0 | AB19: 1 | AF19: TrackerBar | AG19: 4 | AH19: 312 | AI19: 182 | AJ19: 119 | AL19: TrackerBar | AR19: TrackerBar | AS19: 4 | AT19: 310 | AU19: 25 | AV19: 100 | AX19: TrackerBar | AY19: 4 | AZ19: 313 | BA19: 25 | BB19: 101 | BD19: TrackerBar | BE19: 4 | BF19: 312 | BG19: 25 | BH19: 100
C20: 13 | D20: PrintButton | E20: 115 | F20: 29 | G20: 26 | H20: 454 | L20: PrintButton | M20: 117 | N20: 29 | O20: 27 | P20: 450 | R20: PrintButton | S20: 117 | T20: 29 | U20: 26 | V20: 447 | X20: PrintButton | Y20: 0 | Z20: 0 | AA20: 1 | AB20: 3 | AF20: PrintButton | AG20: 117 | AH20: 29 | AI20: 184 | AJ20: 466 | AL20: PrintButton | AR20: PrintButton | AS20: 117 | AT20: 29 | AU20: 26 | AV20: 447 | AX20: PrintButton | AY20: 117 | AZ20: 29 | BA20: 27 | BB20: 450 | BD20: PrintButton | BE20: 117 | BF20: 29 | BG20: 27 | BH20: 446
C21: 14 | D21: ResetButton | E21: 115 | F21: 28 | G21: 26 | H21: 492 | L21: ResetButton | M21: 116 | N21: 28 | O21: 27 | P21: 489 | R21: ResetButton | S21: 117 | T21: 29 | U21: 27 | V21: 485 | X21: ResetButton | Y21: -1 | Z21: -1 | AA21: 0 | AB21: 4 | AF21: ResetButton | AG21: 117 | AH21: 29 | AI21: 184 | AJ21: 504 | AL21: ResetButton | AR21: ResetButton | AS21: 117 | AT21: 29 | AU21: 27 | AV21: 485 | AX21: ResetButton | AY21: 116 | AZ21: 28 | BA21: 27 | BB21: 489 | BD21: ResetButton | BE21: 117 | BF21: 29 | BG21: 27 | BH21: 484
C22: 15 | D22: SaveButton | E22: 49 | F22: 28 | G22: 26 | H22: 532 | L22: SaveButton | M22: 49 | N22: 30 | O22: 27 | P22: 525 | R22: SaveButton | S22: 50 | T22: 29 | U22: 26 | V22: 523 | X22: SaveButton | Y22: -1 | Z22: 1 | AA22: 1 | AB22: 2 | AF22: SaveButton | AG22: 50 | AH22: 29 | AI22: 184 | AJ22: 541 | AL22: SaveButton | AR22: SaveButton | AS22: 50 | AT22: 29 | AU22: 26 | AV22: 523 | AX22: SaveButton | AY22: 49 | AZ22: 30 | BA22: 27 | BB22: 525 | BD22: SaveButton | BE22: 50 | BF22: 29 | BG22: 27 | BH22: 522
C23: 16 | D23: SaveAsButton | E23: 50 | F23: 29 | G23: 92 | H23: 531 | L23: SaveAsButton | M23: 51 | N23: 30 | O23: 92 | P23: 525 | R23: SaveAsButton | S23: 51 | T23: 29 | U23: 93 | V23: 523 | X23: SaveAsButton | Y23: 0 | Z23: 1 | AA23: -1 | AB23: 2 | AF23: SaveAsButton | AG23: 50 | AH23: 29 | AI23: 250 | AJ23: 541 | AL23: SaveAsButton | AR23: SaveAsButton | AS23: 51 | AT23: 29 | AU23: 93 | AV23: 523 | AX23: SaveAsButton | AY23: 51 | AZ23: 30 | BA23: 92 | BB23: 525 | BD23: SaveAsButton | BE23: 50 | BF23: 29 | BG23: 94 | BH23: 522
C24: 17 | D24: ExitButton | E24: 116 | F24: 29 | G24: 26 | H24: 569 | L24: ExitButton | M24: 118 | N24: 28 | O24: 26 | P24: 564 | R24: ExitButton | S24: 117 | T24: 29 | U24: 26 | V24: 561 | X24: ExitButton | Y24: 1 | Z24: -1 | AA24: 0 | AB24: 3 | AF24: ExitButton | AG24: 117 | AH24: 29 | AI24: 184 | AJ24: 579 | AL24: ExitButton | AR24: ExitButton | AS24: 117 | AT24: 29 | AU24: 26 | AV24: 561 | AX24: ExitButton | AY24: 118 | AZ24: 28 | BA24: 26 | BB24: 564 | BD24: ExitButton | BE24: 117 | BF24: 29 | BG24: 27 | BH24: 560
C25: 18 | D25: OptionsButton | E25: 115 | F25: 28 | G25: 26 | H25: 607 | L25: OptionsButton | M25: 117 | N25: 29 | O25: 27 | P25: 602 | R25: OptionsButton | S25: 117 | T25: 28 | U25: 26 | V25: 598 | X25: OptionsButton | Y25: 0 | Z25: 1 | AA25: 1 | AB25: 4 | AF25: OptionsButton | AG25: 117 | AH25: 29 | AI25: 184 | AJ25: 617 | AL25: OptionsButton | AR25: OptionsButton | AS25: 117 | AT25: 28 | AU25: 26 | AV25: 598 | AX25: OptionsButton | AY25: 117 | AZ25: 29 | BA25: 27 | BB25: 602 | BD25: OptionsButton | BE25: 117 | BF25: 29 | BG25: 27 | BH25: 598
C26: 19 | D26: ZoomLabel | E26: 38 | F26: 26 | G26: 32 | H26: 646 | L26: ZoomLabel | M26: 38 | N26: 25 | O26: 33 | P26: 642 | R26: ZoomLabel | S26: 38 | T26: 25 | U26: 33 | V26: 638 | X26: ZoomLabel | Y26: 0 | Z26: 0 | AA26: 0 | AB26: 4 | AF26: ZoomLabel | AG26: 38 | AH26: 25 | AI26: 190 | AJ26: 656 | AL26: ZoomLabel | AR26: ZoomLabel | AS26: 38 | AT26: 25 | AU26: 33 | AV26: 638 | AX26: ZoomLabel | AY26: 38 | AZ26: 25 | BA26: 33 | BB26: 642 | BD26: ZoomLabel | BE26: 38 | BF26: 25 | BG26: 33 | BH26: 637
C27: 20 | D27: ZoomPlusButton | E27: 17 | F27: 17 | G27: 84 | H27: 650 | L27: ZoomPlusButton | M27: 17 | N27: 17 | O27: 85 | P27: 645 | R27: ZoomPlusButton | S27: 17 | T27: 18 | U27: 85 | V27: 642 | X27: ZoomPlusButton | Y27: 0 | Z27: -1 | AA27: 0 | AB27: 3 | AF27: ZoomPlusButton | AG27: 17 | AH27: 17 | AI27: 242 | AJ27: 660 | AL27: ZoomPlusButton | AR27: ZoomPlusButton | AS27: 17 | AT27: 18 | AU27: 85 | AV27: 642 | AX27: ZoomPlusButton | AY27: 17 | AZ27: 17 | BA27: 85 | BB27: 645 | BD27: ZoomPlusButton | BE27: 17 | BF27: 17 | BG27: 85 | BH27: 641
C28: 21 | D28: ZoomMinusButton | E28: 17 | F28: 17 | G28: 117 | H28: 650 | L28: ZoomMinusButton | M28: 16 | N28: 17 | O28: 119 | P28: 645 | R28: ZoomMinusButton | S28: 16 | T28: 17 | U28: 119 | V28: 642 | X28: ZoomMinusButton | Y28: 0 | Z28: 0 | AA28: 0 | AB28: 3 | AF28: ZoomMinusButton | AG28: 16 | AH28: 17 | AI28: 275 | AJ28: 660 | AL28: ZoomMinusButton | AR28: ZoomMinusButton | AS28: 16 | AT28: 17 | AU28: 119 | AV28: 642 | AX28: ZoomMinusButton | AY28: 16 | AZ28: 17 | BA28: 119 | BB28: 645 | BD28: ZoomMinusButton | BE28: 16 | BF28: 17 | BG28: 119 | BH28: 641
C29: 22 | D29: Copyright | E29: 115 | F29: 42 | G29: 26 | H29: 686 | L29: Copyright | M29: 116 | N29: 45 | O29: 27 | P29: 678 | R29: Copyright | S29: 117 | T29: 43 | U29: 27 | V29: 673 | X29: Copyright | Y29: -1 | Z29: 2 | AA29: 0 | AB29: 5 | AF29: Copyright | AG29: 117 | AH29: 44 | AI29: 184 | AJ29: 695 | AL29: Copyright | AR29: Copyright | AS29: 117 | AT29: 43 | AU29: 27 | AV29: 673 | AX29: Copyright | AY29: 116 | AZ29: 45 | BA29: 27 | BB29: 678 | BD29: Copyright | BE29: 117 | BF29: 43 | BG29: 27 | BH29: 676

Sheet NoMacros

Sheet Placard

Sheet Welcome (hidden)
Q34: Have feedback or questions about this tool? Contact us at: | AJ34: dlpdisplay_smartselect@list.ti.com
Q36: Couldn't find what you were looking for? Ask a question at: | AJ36: TI E2E™ design support forums
L39: Important Notice
L42: The products and services of Texas Instruments Incorporated and its subsidiaries described herein are sold subject to TI’s standard terms and conditions of sale. Customers are advised to obtain the most current and complete information about TI products and services before placing orders. TI assumes no liability for applications assistance, customer’s applications or product designs, software performance, or infringement of patents. The publication of information regarding any other company’s products or services does not constitute TI’s approval, warranty or endorsement thereof.
L50: Disclaimer
L53: Certain information and resources (including links to non-TI sites) may be provided by a third-party partner, and is included here merely for your convenience. TI is not the provider of, and is not responsible for, the content of such information and resources, and you should evaluate them carefully for your intended uses and on your own behalf. The inclusion of such information and resources here does not imply endorsement of any third-party company by TI, and shall not be construed as a warranty or representation regarding the suitability of any third-party products or services, either alone or in combination with any TI product or service.

Sheet xControls (hidden)
B2: Base Version | C2: [[Prod]]
B3: Full Version | C3: [[Prod]] (Smarta2xOPENv3)
B9: Display Cmd Parser Timer | E9: True or False (?)
B11: Rename Flag | E11: blank or not-blank
B12: New Name

Sheet App (hidden)
BC5: Future applications
M8: Resolution | W8: Image Size | AK8: Brightness | AT8: # of Matching
L9: Max: | M9: =Display_ResolutionSimple_Max -> -- x -- | Q9: =Display_Mpx_Max -> -- Mpx | V9: Max: | W9: =CONCATENATE( "W: ", Display_ImageWidth_Max, " x H: ", Display_ImageHeight_Max, " ( D: ", Display_ImageDiag_Max, " )" ) -> W: -- in x H: -- in ( D: -- in ) | AJ9: Max: | AK9: =Display_Lumens_Max -> -- lm | AO9: =Display_Nits_Max -> -- nits | AT9: Chipsets
L10: Min: | M10: =Display_ResolutionSimple_Min -> -- x -- | Q10: =Display_Mpx_Min -> -- Mpx | V10: Min: | W10: =CONCATENATE( "W: ", Display_ImageWidth_Min, " x H: ", Display_ImageHeight_Min, " ( D: ", Display_ImageDiag_Min, " )" ) -> W: -- in x H: -- in ( D: -- in ) | AJ10: Min: | AK10: =Display_Lumens_Min -> -- lm | AO10: =Display_Nits_Min -> -- nits | AT10: =Index_Chipset_Max -> 0
BC12: Machine vision/scanning
L13: Pre-Defined End-Product Applications | BC13: 3D print
BC14: Light control
M15: If shown, select your end-product application …
BC17: automotive
N19: Select your End-Application …
N21: Pre-Defined Applications | V21: ( if your application is not shown, follow the Steps on the Application Parameter screen )
BE22: 0
Q23: =xLists!C6 -> Laser TV | AF23: =xLists!C17 -> Digital Signage | BF23: 1 | BH23: 12
Q24: =xLists!C7 -> Mobile Smart TV (Smart Projector) | AF24: =xLists!C18 -> Interactive Kiosk | BF24: 2 | BH24: 13
Q25: =xLists!C8 -> Mobile Projector | AF25: =xLists!C19 -> Electronic Gaming Machines | BF25: 3 | BH25: 14
Q26: =xLists!C9 -> Enterprise Data Projector | AF26: =xLists!C20 -> Collaborative Robots | BF26: 4 | BH26: 15
Q27: =xLists!C10 -> Education Projector | AF27: =xLists!C21 -> Appliances | BF27: 5 | BH27: 16
AF28: =xLists!C22 -> Toy | BH28: 17
Q29: =xLists!C11 -> Smart Display | BF29: 6
Q30: =xLists!C12 -> Tablet (embedded) | AF30: =xLists!C23 -> Other | BF30: 7 | BH30: 18
Q31: =xLists!C13 -> Smartphone (embedded) | BF31: 8
Q32: =xLists!C14 -> Smartphone Companion | BF32: 9 | BH32: 19 | BL32: =xLists!C24 -> [19]
Q33: =xLists!C15 -> Augmented Reality Headset | BF33: 10 | BH33: 20 | BL33: =xLists!C25 -> [20]
Q34: =xLists!C16 -> High-Performance Augmented Reality | BF34: 11 | BH34: 21 | BL34: =xLists!C26 -> [21]
O37: =CONCATENATE( IF( Index_App>0, CONCATENATE( Display_Application, " - "), ""), "Application Details" ) -> Application Details
O40: =AppDef_App_Comment -> 
O49: =HYPERLINK( AppDef_Hyperlink_Address, AppDef_Hyperlink_Text ) -> 
O52: =CONCATENATE( IF( Index_App>0, CONCATENATE( Display_Application, " - "), ""), "Default Use-Case Parameters" ) -> Default Use-Case Parameters
O55: =VLOOKUP( $BF55, Table_AppDefaultSummary, $BG55 ) ->  | W55: =VLOOKUP( $BF55, Table_AppDefaultSummary, $BH55 ) ->  | AB55: =VLOOKUP( $BF55, Table_AppDefaultSummary, $BI55 ) ->  | AD55: =VLOOKUP( $BF55, Table_AppDefaultSummary, $BJ55 ) ->  | BF55: 1 | BG55: 3 | BH55: 4 | BI55: 5 | BJ55: 6
W56: =VLOOKUP( $BF56, Table_AppDefaultSummary, $BH56 ) ->  | AD56: =VLOOKUP( $BF56, Table_AppDefaultSummary, $BJ56 ) ->  | BF56: 2 | BG56: 3 | BH56: 4 | BI56: 5 | BJ56: 6
BF57: 3 | BG57: 3 | BH57: 4 | BI57: 5 | BJ57: 6
BF58: 4 | BG58: 3 | BH58: 4 | BI58: 5 | BJ58: 6
BF59: 5 | BG59: 3 | BH59: 4 | BI59: 5 | BJ59: 6
BF60: 6 | BG60: 3 | BH60: 4 | BI60: 5 | BJ60: 6
BF61: 7 | BG61: 3 | BH61: 4 | BI61: 5 | BJ61: 6
BF62: 8 | BG62: 3 | BH62: 4 | BI62: 5 | BJ62: 6
P64: =CONCATENATE( IF( Index_App>0, CONCATENATE( Display_Application, " - "), ""), BI70, "Matching Chipsets" ) -> Matching Chipsets | BO64: =Table_ChipsetEngine_Count -> 
P65: =IF( BJ65<>"--", BJ65, "" ) ->  | U65: =BT65 ->  | AZ65: refine on the map page | BF65: 1 | BG65: =IFERROR( MATCH( BF65, Array_Chipset_Index, 0 ), 0 ) -> 0 | BI65: 2 | BJ65: =IF(BG65>0,INDEX(Table_Chipsets, BI65,BG65+2),"--") -> -- | BN65: =INDEX(Table_Chipsets, BI65+1,BG65+2) -> DMD | BR65: =VLOOKUP(BN65, Table_ChipsetEngine_Count, 2 ) -> 0 | BT65: =IF( BG65<>0, IF( BR65>0, CONCATENATE( "( ", BR65, " off-the-shelf optical engines available )" ), "( no off-the-shelf optical engines available )" ), "" ) -> 
P66: =IF( BJ66<>"--", BJ66, "" ) ->  | U66: =BT66 ->  | BF66: 2 | BG66: =IFERROR( MATCH( BF66, Array_Chipset_Index, 0 ), 0 ) -> 0 | BI66: 2 | BJ66: =IF(BG66>0,INDEX(Table_Chipsets, BI66,BG66+2),"--") -> -- | BN66: =INDEX(Table_Chipsets, BI66+1,BG66+2) -> DMD | BR66: =VLOOKUP(BN66, Table_ChipsetEngine_Count, 2 ) -> 0 | BT66: =IF( BG66<>0, IF( BR66>0, CONCATENATE( "( ", BR66, " off-the-shelf optical engines available )" ), "( no off-the-shelf optical engines available )" ), "" ) -> 
P67: =IF( BJ67<>"--", BJ67, "" ) ->  | U67: =BT67 ->  | BF67: 3 | BG67: =IFERROR( MATCH( BF67, Array_Chipset_Index, 0 ), 0 ) -> 0 | BI67: 2 | BJ67: =IF(BG67>0,INDEX(Table_Chipsets, BI67,BG67+2),"--") -> -- | BN67: =INDEX(Table_Chipsets, BI67+1,BG67+2) -> DMD | BR67: =VLOOKUP(BN67, Table_ChipsetEngine_Count, 2 ) -> 0 | BT67: =IF( BG67<>0, IF( BR67>0, CONCATENATE( "( ", BR67, " off-the-shelf optical engines available )" ), "( no off-the-shelf optical engines available )" ), "" ) -> 
P68: =IF( BJ68<>"--", BJ68, "" ) ->  | U68: =BT68 ->  | BA68: adding omm stuff for all 12 chipsets | BF68: 4 | BG68: =IFERROR( MATCH( BF68, Array_Chipset_Index, 0 ), 0 ) -> 0 | BI68: 2 | BJ68: =IF(BG68>0,INDEX(Table_Chipsets, BI68,BG68+2),"--") -> -- | BN68: =INDEX(Table_Chipsets, BI68+1,BG68+2) -> DMD | BR68: =VLOOKUP(BN68, Table_ChipsetEngine_Count, 2 ) -> 0 | BT68: =IF( BG68<>0, IF( BR68>0, CONCATENATE( "( ", BR68, " off-the-shelf optical engines available )" ), "( no off-the-shelf optical engines available )" ), "" ) -> 
P69: =IF( BJ69<>"--", BJ69, "" ) ->  | U69: =BT69 ->  | BF69: 5 | BG69: =IFERROR( MATCH( BF69, Array_Chipset_Index, 0 ), 0 ) -> 0 | BI69: 2 | BJ69: =IF(BG69>0,INDEX(Table_Chipsets, BI69,BG69+2),"--") -> -- | BN69: =INDEX(Table_Chipsets, BI69+1,BG69+2) -> DMD | BR69: =VLOOKUP(BN69, Table_ChipsetEngine_Count, 2 ) -> 0 | BT69: =IF( BG69<>0, IF( BR69>0, CONCATENATE( "( ", BR69, " off-the-shelf optical engines available )" ), "( no off-the-shelf optical engines available )" ), "" ) -> 
BG70: =COUNTIF( BG65:BG69, "<>0") -> 0 | BI70: =IF( Index_Chipset_Max=0, " ", IF( Index_Chipset_Max<=5, CONCATENATE( BG70, " " ), CONCATENATE( "First ", BG70, " of ", Index_Chipset_Max, " " ) ) ) -> 
V71: Additional Resources: | W71: =HYPERLINK("https://www.ti.com/lit/an/dlpa059g/dlpa059g.pdf?ts=1690835631401", "Getting Started with TI DLP® Display Technology") -> Getting Started with TI DLP® Display Technology
W72: =HYPERLINK("https://training.ti.com/ti-dlp-pico-product-selection", "TI DLP® Pico™ product selection video") -> TI DLP® Pico™ product selection video
W73: =HYPERLINK("https://www.ti.com/video/series/precision-labs/ti-precision-labs-dlp-labs-display.html", "DLP® Labs video training series") -> DLP® Labs video training series
AL75: =CONCATENATE( "Ver. ", App_FullVersion ) -> Ver. [[Prod]] (Smarta2xOPENv3)
O77: Have feedback or questions about this tool? Contact us at . . . . . . . . . . . . . . . . . . . . . . . . . . . . . . | AL77: dlpdisplay_smartselect@list.ti.com
O79: Couldn't find what you were looking for? Ask a question in the TI E2E™ Community . . . . . | AL79: =HYPERLINK("e2e.ti.com", "e2e.ti.com" ) -> e2e.ti.com
BB80: =ROW(BB80) -> 80
BB112: =ROW(BB112) -> 112
BD120: ● | BE120: These default Application Use-Case Parameters
BE121: are used to calcuate the range of required
BE122: display resolutions and screen lumens.
BD124: ● | BE124: The display resolution and lumens are then used
BE125: to match the appropriate DLP Chipsets.
BD127: ● | BE127: The Use-Case Parameters can be customized
BE128: on the "Application Parameter" screen.
BD132: ● | BE132: Further details can be found on the
BE133: "Chipset Map" and "Chipset List" screens.

Sheet xAppDefaults (hidden)
B1: 1
E2: User Ambient Light Level | G2: Image Nits | I2: Projected Lumens | K2: Screen Efficiency | M2: Projected Image Width | O2: Projected Image Height | Q2: Projected Image Diagonal | S2: Image Aspect Ratio | W2: Viewing Distance | Y2: Horizontal Image FOV | AA2: Pixels Per Degree | AC2: Pixels per inch | AE2: Pixels per mm | AG2: Text Row Height | AI2: Text Arcmin | AK2: Rows of Text | AM2: Min Text Points | AO2: Points-toPx Conv Factor | AQ2: Std Resolution | AS2: Manual Resolution | AW2: Comment | BA2: Matching Tolerance
E3: Min | F3: Max | G3: Min | H3: Max | I3: Min | J3: Max | K3: Min | L3: Max | M3: Min | N3: Max | O3: Min | P3: Max | Q3: Min | R3: Max | S3: Num Min | T3: Demon Min | U3: Num Max | V3: Demon Max | W3: Min | X3: Max | Y3: Min | Z3: Max | AA3: Min | AB3: Max | AC3: Min | AD3: Max | AE3: Min | AF3: Max | AG3: Min | AH3: Max | AI3: Min | AJ3: Max | AK3: Min | AL3: Max | AM3: Min | AN3: Max | AO3: Min | AP3: Max | AQ3: Min | AR3: Max | AS3: MinCol | AT3: MinRow | AU3: MaxCol | AV3: MaxRow | BA3: Enable | BB3: Nom | BC3: Top | BD3: Bottom | BE3: Left | BF3: Right
B4: 1 | C4: =Index_App -> 0 | E4: =IF( $B$4=1, E5, "--" ) -> -- | F4: =IF( $B$4=1, F5, "--" ) -> -- | G4: =IF( $B$4=1, G5, "--" ) -> -- | H4: -- | I4: -- | J4: -- | K4: -- | L4: -- | M4: -- | N4: -- | O4: -- | P4: -- | Q4: -- | R4: -- | S4: -- | T4: -- | U4: -- | V4: -- | W4: -- | X4: -- | Y4: -- | Z4: -- | AA4: -- | AB4: -- | AC4: -- | AD4: -- | AE4: -- | AF4: -- | AG4: -- | AH4: -- | AI4: -- | AJ4: -- | AK4: -- | AL4: -- | AM4: -- | AN4: -- | AO4: -- | AP4: -- | AQ4: -- | AR4: -- | AS4: -- | AT4: -- | AU4: -- | AV4: -- | AX4: =IF( $B$4=1, AX5, "" ) ->  | AY4: =IF( $B$4=1, AY5, "" ) ->  | AZ4: =AZ5 ->  | BA4: 0 | BB4: 0 | BC4: 0 | BD4: 0 | BE4: 0 | BF4: 0 | BG4: --
E5: =INDEX(E6:E31, $C4+1 ) -> -- | F5: =INDEX(F6:F31, $C4+1 ) -> -- | G5: -- | H5: -- | I5: -- | J5: -- | K5: -- | L5: -- | M5: -- | N5: -- | O5: -- | P5: -- | Q5: -- | R5: -- | S5: -- | T5: -- | U5: -- | V5: -- | W5: -- | X5: -- | Y5: -- | Z5: -- | AA5: -- | AB5: -- | AC5: -- | AD5: -- | AE5: -- | AF5: -- | AG5: -- | AH5: -- | AI5: -- | AJ5: -- | AK5: =INDEX(AK6:AK31, $C4+1 ) -> -- | AL5: -- | AM5: -- | AN5: -- | AO5: -- | AP5: -- | AQ5: -- | AR5: -- | AS5: -- | AT5: -- | AU5: -- | AV5: -- | AZ5: =INDEX(AZ6:AZ31, $C4+1 ) ->  | BA5: 0 | BB5: 0 | BC5: 0 | BD5: 0 | BE5: 0 | BF5: 0 | BG5: --
E6: -- | F6: -- | G6: -- | H6: -- | I6: -- | J6: -- | K6: -- | L6: -- | M6: -- | N6: -- | O6: -- | P6: -- | Q6: -- | R6: -- | S6: -- | T6: -- | U6: -- | V6: -- | W6: -- | X6: -- | Y6: -- | Z6: -- | AA6: -- | AB6: -- | AC6: -- | AD6: -- | AE6: -- | AF6: -- | AG6: -- | AH6: -- | AI6: -- | AJ6: -- | AK6: -- | AL6: -- | AM6: -- | AN6: -- | AO6: -- | AP6: -- | AQ6: -- | AR6: -- | AS6: -- | AT6: -- | AU6: -- | AV6: -- | BA6: 0 | BB6: 0 | BC6: 0 | BD6: 0 | BE6: 0 | BF6: 0 | BG6: --
B7: Laser TV | C7: 1 | D7: =IF( ISERROR( INDEX(List_Apps, C7+1 ) ), "(null)", INDEX(List_Apps, C7+1 ) ) -> Laser TV | E7: 1 | F7: 3 | G7: -- | H7: -- | I7: -- | J7: -- | K7: 0.8 | L7: 0.8 | M7: -- | N7: -- | O7: -- | P7: -- | Q7: 65 | R7: 120 | S7: 16 | T7: 9 | U7: 16 | V7: 9 | W7: 48 | X7: 144 | Y7: -- | Z7: -- | AA7: 120 | AB7: 45 | AC7: -- | AD7: -- | AE7: -- | AF7: -- | AG7: -- | AH7: -- | AI7: -- | AJ7: -- | AK7: -- | AL7: -- | AM7: -- | AN7: -- | AO7: -- | AP7: -- | AQ7: -- | AR7: -- | AS7: -- | AT7: -- | AU7: -- | AV7: -- | AW7: Laser TVs combine DLP technology with ultra-short throw optics and laser illumination to create very large projected images from just inches away from a wall or screen. Laser TVs are convenient alternatives to ≥80” diagonal flat-panel televisions. Laser TV's are typically used for Home Theater applications, which are characterized by large images, with high image quality, in relatively dark enviroments, and projected onto dedicated, high-quality (high efficiency) screens. | AX7: https://www.ti.com/lit/wp/dlpc105a/dlpc105a.pdf | AY7: Click here to download the DLP Technology Laser TV white paper. | BA7: 0 | BB7: 0.2 | BC7: 0 | BD7: 0 | BE7: 0 | BF7: 0 | BG7: -- | BJ7: https://www.ti.com/general/docs/lit/getliterature.tsp?baseLiteratureNumber=dlpc105a&fileType=pdf&HQS=dlp-cine-ecd-lasertv-dlpblog-20170420-wp-wwe
B8: Mobile Smart TV | C8: 2 | D8: Mobile Smart TV (Smart Projector) | E8: 1 | F8: 4 | G8: -- | H8: -- | I8: -- | J8: -- | K8: 0.6 | L8: 0.8 | M8: -- | N8: -- | O8: -- | P8: -- | Q8: 55 | R8: 75 | S8: 16 | T8: 9 | U8: 16 | V8: 9 | W8: 36 | X8: 120 | Y8: -- | Z8: -- | AA8: 60 | AB8: 30 | AC8: -- | AD8: -- | AE8: -- | AF8: -- | AG8: -- | AH8: -- | AI8: -- | AJ8: -- | AK8: -- | AL8: -- | AM8: -- | AN8: -- | AO8: -- | AP8: -- | AQ8: -- | AR8: -- | AS8: -- | AT8: -- | AU8: -- | AV8: -- | AW8: Mobile Smart TVs are mobile projectors with built-in smart TV operating systems and wireless connectivity, which enable large projected streaming video content on virtually any surface. Mobile Smart TV's are designed to accomodate medium-size screens, in a broad range of ambient lighting conditions, with high image quality. | AX8: https://www.ti.com/lit/wp/dlpa061b/dlpa061b.pdf | AY8: Click here to download the DLP Technology Mobile Projector white paper. | BA8: 0 | BB8: 0.15 | BC8: 0 | BD8: 0 | BE8: 0 | BF8: 0 | BG8: --
B9: Mobile Projector (video) | C9: 3 | D9: Mobile Projector | E9: 1 | F9: 4 | G9: -- | H9: -- | I9: -- | J9: -- | K9: 0.6 | L9: 0.8 | M9: -- | N9: -- | O9: -- | P9: -- | Q9: 24 | R9: 60 | S9: 16 | T9: 9 | U9: 16 | V9: 9 | W9: 12 | X9: 180 | Y9: -- | Z9: -- | AA9: 60 | AB9: 20 | AC9: -- | AD9: -- | AE9: -- | AF9: -- | AG9: -- | AH9: -- | AI9: -- | AJ9: -- | AK9: -- | AL9: -- | AM9: -- | AN9: -- | AO9: -- | AP9: -- | AQ9: -- | AR9: -- | AS9: -- | AT9: -- | AU9: -- | AV9: -- | AW9: Mobile projectors are small enough to be taken place to place but also capable of creating big screens on virtually any surface. They typically have HDMI and/or USB-C video input and are designed to be connected to an external device such as a streaming device or game console. Mobile Projectors is a general category which can encompass a broad spectrum of use cases. This results in use-case parameter values which each cover a wide range, and conquently matches a large number of possibly DLP Chipsets. | AX9: https://www.ti.com/lit/sg/dlpt029/dlpt029.pdf | AY9: Click here to download the DLP Technology Enterprise Projector white paper. | BA9: 0 | BB9: 0.15 | BC9: 0 | BD9: 0 | BE9: 0 | BF9: 0 | BG9: -- | BI9: "Click here to read the DLP Technology Laser TV white paper."
B10: Enterprise Data Projector / Education | C10: 4 | D10: Enterprise Data Projector | E10: 1 | F10: 4 | G10: -- | H10: -- | I10: -- | J10: -- | K10: 0.7 | L10: 0.9 | M10: -- | N10: -- | O10: -- | P10: -- | Q10: 24 | R10: 90 | S10: 16 | T10: 9 | U10: 16 | V10: 9 | W10: 12 | X10: 180 | Y10: -- | Z10: -- | AA10: 60 | AB10: 30 | AC10: -- | AD10: -- | AE10: -- | AF10: -- | AG10: -- | AH10: -- | AI10: -- | AJ10: -- | AK10: -- | AL10: -- | AM10: -- | AN10: -- | AO10: -- | AP10: -- | AQ10: -- | AR10: -- | AS10: -- | AT10: -- | AU10: -- | AV10: -- | AW10: Mobile enterprise are used primarily to project presentations and other computer-generated documents while traveling or while presenting in a temporary location. Enterprise Data Projectors are designed to accomodate a wide range of screen sizes, in a broad range of ambient lighting conditions. When the intent is to display highly-detailed graphics, then the image quailtiy requirements are high. When the intent is to just display text, the image quality requirements can be relaxed. | BA10: 0 | BB10: 0.15 | BC10: 0 | BD10: 0 | BE10: 0 | BF10: 0 | BG10: --
B11: Smart Display | C11: 5 | D11: Education Projector | E11: 3 | F11: 4 | G11: -- | H11: -- | I11: -- | J11: -- | K11: 0.8 | L11: 0.9 | M11: -- | N11: -- | O11: -- | P11: -- | Q11: 40 | R11: 100 | S11: 16 | T11: 9 | U11: 16 | V11: 9 | W11: =5*12 -> 60 | X11: =10*12 -> 120 | Y11: -- | Z11: -- | AA11: -- | AB11: -- | AC11: -- | AD11: -- | AE11: -- | AF11: -- | AG11: -- | AH11: -- | AI11: -- | AJ11: -- | AK11: -- | AL11: -- | AM11: -- | AN11: -- | AO11: 0.5 | AP11: 0.82 | AQ11: -- | AR11: -- | AS11: -- | AT11: -- | AU11: -- | AV11: -- | AW11: Education projectors are used primarily to project presentations and other computer-generated documents in classroom settings. Education Projectors are designed specifically for displaying text, on large screens, with a narrow range of viewing distances. | BA11: 0 | BB11: 0.15 | BC11: 0 | BD11: 0 | BE11: 0 | BF11: 0 | BG11: --
B12: Tablet (embedded) | C12: 6 | D12: Smart Display | E12: 1 | F12: 5 | G12: -- | H12: -- | I12: -- | J12: -- | K12: 0.5 | L12: 0.5 | M12: -- | N12: -- | O12: -- | P12: -- | Q12: 12 | R12: 24 | S12: 16 | T12: 9 | U12: 16 | V12: 9 | W12: 60 | X12: 20 | Y12: -- | Z12: -- | AA12: 60 | AB12: 60 | AC12: -- | AD12: -- | AE12: -- | AF12: -- | AG12: -- | AH12: -- | AI12: -- | AJ12: -- | AK12: -- | AL12: -- | AM12: -- | AN12: -- | AO12: -- | AP12: -- | AQ12: -- | AR12: -- | AS12: -- | AT12: -- | AU12: -- | AV12: -- | AW12: Smart displays are enabled by a combination of voice assistants and compact displays that can be located virtually anywhere in the home. A user interacts with the smart display via voice, and receives both auditory and visual feedback. Smart displays with projection can create a large screen on a nearby wall or tabletop. | AX12: https://www.ti.com/lit/an/dlpa120/dlpa120.pdf | AY12: Click here to download the DLP Technology Enterprise Tablet Projector white paper. | BA12: 0 | BB12: 0.15 | BC12: 0 | BD12: 0 | BE12: 0 | BF12: 0 | BG12: --
B13: Smartphone Companion | C13: 7 | D13: Tablet (embedded) | E13: 1 | F13: 5 | G13: -- | H13: -- | I13: -- | J13: -- | K13: 0.5 | L13: 0.5 | M13: -- | N13: -- | O13: -- | P13: -- | Q13: 12 | R13: 20 | S13: 16 | T13: 9 | U13: 16 | V13: 9 | W13: 12 | X13: 24 | Y13: -- | Z13: -- | AA13: 40 | AB13: 15 | AC13: -- | AD13: -- | AE13: -- | AF13: -- | AG13: -- | AH13: -- | AI13: -- | AJ13: -- | AK13: -- | AL13: -- | AM13: -- | AN13: -- | AO13: -- | AP13: -- | AQ13: -- | AR13: -- | AS13: -- | AT13: -- | AU13: -- | AV13: -- | AW13: Tablets have limited screen sizes because of their portable nature, but an embedded projector can help them create large projected displays on virtually any surface. The embedded projector may either mirror the device’s screen, or act as a secondary display. | BA13: 0 | BB13: 0.15 | BC13: 0 | BD13: 0 | BE13: 0 | BF13: 0 | BG13: --
B14: High-End Smartphone (embedded) | C14: 8 | D14: Smartphone (embedded) | E14: 1 | F14: 5 | G14: -- | H14: -- | I14: -- | J14: -- | K14: 0.5 | L14: 0.5 | M14: -- | N14: -- | O14: -- | P14: -- | Q14: 12 | R14: 20 | S14: 16 | T14: 9 | U14: 16 | V14: 9 | W14: 12 | X14: 24 | Y14: -- | Z14: -- | AA14: 40 | AB14: 15 | AC14: -- | AD14: -- | AE14: -- | AF14: -- | AG14: -- | AH14: -- | AI14: -- | AJ14: -- | AK14: -- | AL14: -- | AM14: -- | AN14: -- | AO14: -- | AP14: -- | AQ14: -- | AR14: -- | AS14: -- | AT14: -- | AU14: -- | AV14: -- | AW14: Smartphones have limited screen sizes because of their portable nature, but an embedded projector can help them create large projected displays on virtually any surface. The embedded projector may either mirror the device’s screen, or act as a secondary display. | BA14: 0 | BB14: 0.15 | BC14: 0 | BD14: 0 | BE14: 0 | BF14: 0 | BG14: --
B15: AR - Notifications | C15: 9 | D15: Smartphone Companion | E15: 1 | F15: 5 | G15: -- | H15: -- | I15: -- | J15: -- | K15: 0.5 | L15: 0.5 | M15: -- | N15: -- | O15: -- | P15: -- | Q15: 12 | R15: 20 | S15: 16 | T15: 9 | U15: 16 | V15: 9 | W15: 12 | X15: 24 | Y15: -- | Z15: -- | AA15: 40 | AB15: 15 | AC15: -- | AD15: -- | AE15: -- | AF15: -- | AG15: -- | AH15: -- | AI15: -- | AJ15: -- | AK15: -- | AL15: -- | AM15: -- | AN15: -- | AO15: -- | AP15: -- | AQ15: -- | AR15: -- | AS15: -- | AT15: -- | AU15: -- | AV15: -- | AW15: Smartphone companion projectors are mobile projectors specifically designed to use smartphones as the video source. Mobility and battery power are critical requirements, and features such as wireless screen mirroring and USB-C connectivity allow for faster and easier connections to smartphones. | AX15: https://www.ti.com/lit/wp/dlpy011/dlpy011.pdf | AY15: Click here to download the DLP Technology Smartphone Companion Projector white paper. | BA15: 1 | BB15: 0.15 | BC15: 0 | BD15: 0 | BE15: 0 | BF15: 0 | BG15: --
B16: AR - Industrial | C16: 10 | D16: Augmented Reality Headset | E16: -- | F16: -- | G16: -- | H16: -- | I16: 1 | J16: 20 | K16: -- | L16: -- | M16: -- | N16: -- | O16: -- | P16: -- | Q16: -- | R16: -- | S16: -- | T16: -- | U16: -- | V16: -- | W16: -- | X16: -- | Y16: -- | Z16: -- | AA16: -- | AB16: -- | AC16: -- | AD16: -- | AE16: -- | AF16: -- | AG16: -- | AH16: -- | AI16: -- | AJ16: -- | AK16: -- | AL16: -- | AM16: -- | AN16: -- | AO16: -- | AP16: -- | AQ16: 25 | AR16: 17 | AW16: AR Glasses are wearable near-to-eye products that create a virtual image that is visible only to the user. Potential applications include smartphone notifications, enterprise and industrial use cases, and gaming. | AX16: https://www.ti.com/lit/an/dlpa051a/dlpa051a.pdf | AY16: Click here to download the DLP Technology AR white paper. | BA16: 0 | BB16: 0.15 | BC16: 10 | BD16: 0 | BE16: 0 | BF16: 0 | BG16: --
B17: AR - Gaming | C17: 11 | D17: High-Performance Augmented Reality | E17: -- | F17: -- | G17: -- | H17: -- | I17: 1 | J17: 50 | K17: -- | L17: -- | M17: -- | N17: -- | O17: -- | P17: -- | Q17: -- | R17: -- | S17: -- | T17: -- | U17: -- | V17: -- | W17: -- | X17: -- | Y17: -- | Z17: -- | AA17: -- | AB17: -- | AC17: -- | AD17: -- | AE17: -- | AF17: -- | AG17: -- | AH17: -- | AI17: -- | AJ17: -- | AK17: -- | AL17: -- | AM17: -- | AN17: -- | AO17: -- | AP17: -- | AQ17: 17 | AR17: 9 | AW17: High performance AR Headsets are wearable near-to-eye products that create a virtual image that is visible only to the user. High performance specifications include higher resolutions and a larger field of view. | AX17: https://www.ti.com/lit/an/dlpa051a/dlpa051a.pdf | AY17: Click here to download the DLP Technology AR white paper. | BA17: 0 | BB17: 0.15 | BC17: 50 | BD17: 0 | BE17: 0 | BF17: 0 | BG17: --
B18: Signage | C18: 12 | D18: Digital Signage | E18: 3 | F18: 5 | G18: -- | H18: -- | I18: -- | J18: -- | K18: 0.8 | L18: 0.8 | M18: -- | N18: -- | O18: -- | P18: -- | Q18: 18 | R18: 55 | S18: 16 | T18: 9 | U18: 16 | V18: 9 | W18: 12 | X18: 120 | Y18: -- | Z18: -- | AA18: 60 | AB18: 60 | AC18: -- | AD18: -- | AE18: -- | AF18: -- | AG18: -- | AH18: -- | AI18: -- | AJ18: -- | AK18: -- | AL18: -- | AM18: -- | AN18: -- | AO18: -- | AP18: -- | AQ18: -- | AR18: -- | AS18: -- | AT18: -- | AU18: -- | AV18: -- | AW18: Digital Signage includes a wide variety of digital displays that are designed to communicate marketing, safety, and other information to people in public spaces. Projected digital signage can create visually engaging displays on virtually any surface. | AX18: https://www.ti.com/lit/wp/dlpy001a/dlpy001a.pdf | AY18: Click here to download the DLP Technology Digital Signage white paper. | BA18: 0 | BB18: 0.15 | BC18: 0 | BD18: 0 | BE18: 0 | BF18: 0 | BG18: --
B19: Interactive Kiosk | C19: 13 | D19: Interactive Kiosk | E19: 2 | F19: 5 | G19: -- | H19: -- | I19: -- | J19: -- | K19: 0.3 | L19: 0.8 | M19: -- | N19: -- | O19: -- | P19: -- | Q19: 10 | R19: 55 | S19: 16 | T19: 9 | U19: 16 | V19: 9 | W19: 24 | X19: 24 | Y19: -- | Z19: -- | AA19: 60 | AB19: 60 | AC19: -- | AD19: -- | AE19: -- | AF19: -- | AG19: -- | AH19: -- | AI19: -- | AJ19: -- | AK19: -- | AL19: -- | AM19: -- | AN19: -- | AO19: -- | AP19: -- | AQ19: -- | AR19: -- | AS19: -- | AT19: -- | AU19: -- | AV19: -- | AW19: Customers in retail, dining, and hospitality environments often use interactive kiosks with displays to find information, purchase tickets, or place an order. Projected interactive kiosks can enable displays on a wide variety of surfaces such as tables or walls. After use, the display can disappear or display ambient content that blends into the environment. | BA19: 0 | BB19: 0.15 | BC19: 0 | BD19: 0 | BE19: 0 | BF19: 0 | BG19: --
B20: Gaming Machines | C20: 14 | D20: Electronic Gaming Machines | E20: 2 | F20: 5 | G20: -- | H20: -- | I20: -- | J20: -- | K20: 0.8 | L20: 0.8 | M20: -- | N20: -- | O20: -- | P20: -- | Q20: 10 | R20: 55 | S20: 16 | T20: 9 | U20: 16 | V20: 9 | W20: 24 | X20: 24 | Y20: -- | Z20: -- | AA20: 60 | AB20: 60 | AC20: -- | AD20: -- | AE20: -- | AF20: -- | AG20: -- | AH20: -- | AI20: -- | AJ20: -- | AK20: -- | AL20: -- | AM20: -- | AN20: -- | AO20: -- | AP20: -- | AQ20: -- | AR20: -- | AS20: -- | AT20: -- | AU20: -- | AV20: -- | AW20: Electronic gaming machines for casinos and other entertainment venues have evolved from simple mechanical slot machines to much more complex devices with multiple displays, interactive touch screens, and lighting effects designed to attract and engage players. A projected display can enable uniquely shaped and three-dimensional effects that can take a gaming machine to the next level of player engagement. | BA20: 0 | BB20: 0.15 | BC20: 0 | BD20: 0 | BE20: 0 | BF20: 0 | BG20: --
B21: Humanoids | C21: 15 | D21: Collaborative Robots | E21: 3 | F21: 4 | G21: -- | H21: -- | I21: -- | J21: -- | K21: -- | L21: -- | M21: -- | N21: -- | O21: -- | P21: -- | Q21: 30 | R21: 60 | S21: 16 | T21: 9 | U21: 16 | V21: 9 | W21: -- | X21: -- | Y21: -- | Z21: -- | AA21: -- | AB21: -- | AC21: -- | AD21: -- | AE21: -- | AF21: -- | AG21: -- | AH21: -- | AI21: -- | AJ21: -- | AK21: -- | AL21: -- | AM21: -- | AN21: -- | AO21: -- | AP21: -- | AQ21: 25 | AR21: 15 | AS21: -- | AT21: -- | AU21: -- | AV21: -- | AW21: Robots designed to collaborate with humans need to communicate in a variety of ways, including audio and visual communication. A projected display can enable a few different use cases in a collaborative robot, including a rear-projected “face” and displays on floors or walls to communicate with nearby humans. | AX21: https://www.ti.com/lit/an/dlpa126/dlpa126.pdf | AY21: Click here to download the DLP Technology Collaborative Robot Projector white paper. | BA21: 0 | BB21: 0.15 | BC21: 0 | BD21: 0 | BE21: 0 | BF21: 0 | BG21: --
B22: Appliances | C22: 16 | D22: Appliances | E22: 1 | F22: 5 | G22: -- | H22: -- | I22: -- | J22: -- | K22: 0.15 | L22: 0.15 | M22: -- | N22: -- | O22: -- | P22: -- | Q22: 2 | R22: 8 | S22: 4 | T22: 1 | U22: 1 | V22: 1 | W22: 18 | X22: 36 | Y22: -- | Z22: -- | AA22: -- | AB22: -- | AC22: -- | AD22: -- | AE22: -- | AF22: -- | AG22: -- | AH22: -- | AI22: -- | AJ22: -- | AK22: -- | AL22: -- | AM22: -- | AN22: -- | AO22: 2 | AP22: 3 | AQ22: -- | AR22: -- | AS22: -- | AT22: -- | AU22: -- | AV22: -- | AW22: Appliance displays have traditionally been limited to monochrome alphanumeric displays, like those on microwaves and ovens. Some newer appliances integrate displays with higher resolutions and full color. Appliance manufacturers seeking to differentiate their products should consider projection displays that can create an image on virtually any surface, ranging from countertops to floors. | AX22: https://www.ti.com/lit/wp/dlpc101b/dlpc101b.pdf | AY22: Click here to download the DLP Technology Appliance Projector white paper. | BA22: 0 | BB22: 0.15 | BC22: 0 | BD22: 0 | BE22: 0 | BF22: 0 | BG22: --
B23: Toy | C23: 17 | D23: Toy | E23: -- | F23: -- | G23: -- | H23: -- | I23: 50 | J23: 300 | K23: -- | L23: -- | M23: -- | N23: -- | O23: -- | P23: -- | Q23: -- | R23: -- | S23: -- | T23: -- | U23: -- | V23: -- | W23: -- | X23: -- | Y23: -- | Z23: -- | AA23: -- | AB23: -- | AC23: -- | AD23: -- | AE23: -- | AF23: -- | AG23: -- | AH23: -- | AI23: -- | AJ23: -- | AK23: -- | AL23: -- | AM23: -- | AN23: -- | AO23: -- | AP23: -- | AQ23: 25 | AR23: 20 | AS23: -- | AT23: -- | AU23: -- | AV23: -- | AW23: Modern toys are integrating technology more than ever before, from sound and lights, to even basic displays. A low cost projection display can enable new toys with engaging use cases, from augmented reality projection onto objects and surfaces, to basic children’s movie projection. | BA23: 0 | BB23: 0.15 | BC23: 0 | BD23: 0 | BE23: 0 | BF23: 0 | BG23: --
B24: Other | C24: 18 | D24: Other | E24: -- | F24: -- | G24: -- | H24: -- | I24: -- | J24: -- | K24: -- | L24: -- | M24: -- | N24: -- | O24: -- | P24: -- | Q24: -- | R24: -- | S24: -- | T24: -- | U24: -- | V24: -- | W24: -- | X24: -- | Y24: -- | Z24: -- | AA24: -- | AB24: -- | AC24: -- | AD24: -- | AE24: -- | AF24: -- | AG24: -- | AH24: -- | AI24: -- | AJ24: -- | AK24: -- | AL24: -- | AM24: -- | AN24: -- | AO24: -- | AP24: -- | AQ24: -- | AR24: -- | AS24: -- | AT24: -- | AU24: -- | AV24: -- | AW24: If you have a product concept that doesn’t fit into one of these categories, please feel free to adjust the projection display requirements to find the right DLP Pico chipset for your application. | BA24: 0 | BB24: 0.15 | BC24: 0 | BD24: 0 | BE24: 0 | BF24: 0 | BG24: --
C25: 19 | D25: [19] | E25: -- | F25: -- | G25: -- | H25: -- | I25: -- | J25: -- | K25: -- | L25: -- | M25: -- | N25: -- | O25: -- | P25: -- | Q25: -- | R25: -- | S25: -- | T25: -- | U25: -- | V25: -- | W25: -- | X25: -- | Y25: -- | Z25: -- | AA25: -- | AB25: -- | AC25: -- | AD25: -- | AE25: -- | AF25: -- | AG25: -- | AH25: -- | AI25: -- | AJ25: -- | AK25: -- | AL25: -- | AM25: -- | AN25: -- | AO25: -- | AP25: -- | AQ25: -- | AR25: -- | AS25: -- | AT25: -- | AU25: -- | AV25: -- | BA25: 0 | BB25: 0.15 | BC25: 0 | BD25: 0 | BE25: 0 | BF25: 0 | BG25: --
C26: 20 | D26: [20] | E26: -- | F26: -- | G26: -- | H26: -- | I26: -- | J26: -- | K26: -- | L26: -- | M26: -- | N26: -- | O26: -- | P26: -- | Q26: -- | R26: -- | S26: -- | T26: -- | U26: -- | V26: -- | W26: -- | X26: -- | Y26: -- | Z26: -- | AA26: -- | AB26: -- | AC26: -- | AD26: -- | AE26: -- | AF26: -- | AG26: -- | AH26: -- | AI26: -- | AJ26: -- | AK26: -- | AL26: -- | AM26: -- | AN26: -- | AO26: -- | AP26: -- | AQ26: -- | AR26: -- | AS26: -- | AT26: -- | AU26: -- | AV26: -- | BA26: 0 | BB26: 0.15 | BC26: 0 | BD26: 0 | BE26: 0 | BF26: 0 | BG26: --
C27: 21 | D27: [21] | E27: -- | F27: -- | G27: -- | H27: -- | I27: -- | J27: -- | K27: -- | L27: -- | M27: -- | N27: -- | O27: -- | P27: -- | Q27: -- | R27: -- | S27: -- | T27: -- | U27: -- | V27: -- | W27: -- | X27: -- | Y27: -- | Z27: -- | AA27: -- | AB27: -- | AC27: -- | AD27: -- | AE27: -- | AF27: -- | AG27: -- | AH27: -- | AI27: -- | AJ27: -- | AK27: -- | AL27: -- | AM27: -- | AN27: -- | AO27: -- | AP27: -- | AQ27: -- | AR27: -- | AS27: -- | AT27: -- | AU27: -- | AV27: -- | BA27: 0 | BB27: 0.15 | BC27: 0 | BD27: 0 | BE27: 0 | BF27: 0 | BG27: --
C28: 22 | D28: [22] | E28: -- | F28: -- | G28: -- | H28: -- | I28: -- | J28: -- | K28: -- | L28: -- | M28: -- | N28: -- | O28: -- | P28: -- | Q28: -- | R28: -- | S28: -- | T28: -- | U28: -- | V28: -- | W28: -- | X28: -- | Y28: -- | Z28: -- | AA28: -- | AB28: -- | AC28: -- | AD28: -- | AE28: -- | AF28: -- | AG28: -- | AH28: -- | AI28: -- | AJ28: -- | AK28: -- | AL28: -- | AM28: -- | AN28: -- | AO28: -- | AP28: -- | AQ28: -- | AR28: -- | AS28: -- | AT28: -- | AU28: -- | AV28: -- | BA28: 0 | BB28: 0.15 | BC28: 0 | BD28: 0 | BE28: 0 | BF28: 0 | BG28: --
C29: 23 | D29: [23] | E29: -- | F29: -- | G29: -- | H29: -- | I29: -- | J29: -- | K29: -- | L29: -- | M29: -- | N29: -- | O29: -- | P29: -- | Q29: -- | R29: -- | S29: -- | T29: -- | U29: -- | V29: -- | W29: -- | X29: -- | Y29: -- | Z29: -- | AA29: -- | AB29: -- | AC29: -- | AD29: -- | AE29: -- | AF29: -- | AG29: -- | AH29: -- | AI29: -- | AJ29: -- | AK29: -- | AL29: -- | AM29: -- | AN29: -- | AO29: -- | AP29: -- | AQ29: -- | AR29: -- | AS29: -- | AT29: -- | AU29: -- | AV29: -- | BA29: 0 | BB29: 0.15 | BC29: 0 | BD29: 0 | BE29: 0 | BF29: 0 | BG29: --
C30: 24 | D30: [24] | E30: -- | F30: -- | G30: -- | H30: -- | I30: -- | J30: -- | K30: -- | L30: -- | M30: -- | N30: -- | O30: -- | P30: -- | Q30: -- | R30: -- | S30: -- | T30: -- | U30: -- | V30: -- | W30: -- | X30: -- | Y30: -- | Z30: -- | AA30: -- | AB30: -- | AC30: -- | AD30: -- | AE30: -- | AF30: -- | AG30: -- | AH30: -- | AI30: -- | AJ30: -- | AK30: -- | AL30: -- | AM30: -- | AN30: -- | AO30: -- | AP30: -- | AQ30: -- | AR30: -- | AS30: -- | AT30: -- | AU30: -- | AV30: -- | BA30: 0 | BB30: 0.15 | BC30: 0 | BD30: 0 | BE30: 0 | BF30: 0 | BG30: --
C31: 25 | D31: [25] | E31: 1 | F31: 2 | G31: 3 | H31: 4 | I31: 5 | J31: 6 | K31: 7 | L31: 8 | M31: 9 | N31: 10 | O31: 11 | P31: 12 | Q31: 13 | R31: 14 | S31: 15 | T31: 16 | U31: 17 | V31: 18 | W31: 19 | X31: 20 | Y31: 21 | Z31: 22 | AA31: 23 | AB31: 24 | AC31: 25 | AD31: 26 | AE31: 27 | AF31: 28 | AG31: 29 | AH31: 30 | AI31: 31 | AJ31: 32 | AK31: 33 | AL31: 34 | AM31: 35 | AN31: 36 | AO31: 37 | AP31: 38 | AQ31: 39 | AR31: 40 | AS31: 41 | AT31: 42 | AU31: 43 | AV31: 44 | AW31: 45 | AX31: 46 | AY31: 47 | BA31: 0 | BB31: 0.19 | BC31: 0.5 | BD31: 0.51 | BE31: 0.52 | BF31: 0.53 | BG31: 54

Sheet Target (hidden)
C2: qwe89+
C3: SaveParametersButton | BQ3: Somehow specify that all Pico chips are <= 0.47 in diag
BR5: Somehow make it clear that this page only needs to be filled out if users do not agree with application defaults
BB7: =ROW(BB7) -> 7
M8: Resolution | W8: Image Size | AK8: Brightness | AT8: # of Matching
L9: Max: | M9: =Display_ResolutionSimple_Max -> -- x -- | Q9: =Display_Mpx_Max -> -- Mpx | V9: Max: | W9: =CONCATENATE( "W: ", Display_ImageWidth_Max, " x H: ", Display_ImageHeight_Max, " ( D: ", Display_ImageDiag_Max, " )" ) -> W: -- in x H: -- in ( D: -- in ) | AJ9: Max: | AK9: =Display_Lumens_Max -> -- lm | AO9: =Display_Nits_Max -> -- nits | AT9: Chipsets
L10: Min: | M10: =Display_ResolutionSimple_Min -> -- x -- | Q10: =Display_Mpx_Min -> -- Mpx | V10: Min: | W10: =CONCATENATE( "W: ", Display_ImageWidth_Min, " x H: ", Display_ImageHeight_Min, " ( D: ", Display_ImageDiag_Min, " )" ) -> W: -- in x H: -- in ( D: -- in ) | AJ10: Min: | AK10: =Display_Lumens_Min -> -- lm | AO10: =Display_Nits_Min -> -- nits | AT10: =Index_Chipset_Max -> 0
BB11: =ROW(BB11) -> 11
BQ12: Make info buttons more visible
L13: Customized Application Use-Case Parameters | BQ13: Use bolder text throughout the entire program
M16: Follow the steps below to customize the Application Use-Case Parameters.
N18: Refer to the "Detailed Inputs" section of the "Parameter Summary" screen to see how the custom parameters are being applied.
N24: Select ONE of the following … | BB24: =ROW(BB24) -> 24
S27: If you know the luminous intensity your device must emit, select Projected Lumens
S29: If you know the required brightness of your projection surface, select Image Nits
S31: If you know the typical outside light levels the projection surface will be exposed to,
S32: select Ambient Light Level
S34: Otherwise, continue to step 2 in order to use TI’s suggested default values
BC37: =ROW(BC37) -> 37
BC39: =ROW(BC39) -> 39
R40: Select the minimum and maximum Ambient Light Levels that this product will be used in … | BC40: =ROW(BC40) -> 40
AA43: Minimum | AI43: Maximum
T45: Ambient Light Level | BJ45: 0 | BM45: 0
AA46: << | AC46: Dark | AF46: >> | AI46: << | AK46: Dark | AN46: >> | BK46: 1 | BN46: 1 | BQ46: =IF( AppDef_AmbientIndex_Min = BK46, 1, 0 ) -> 0 | BS46: =IF( AppDef_AmbientIndex_Max = BN46, 1, 0 ) -> 0
AA47: << | AC47: Dim | AF47: >> | AI47: << | AK47: Dim | AN47: >> | BK47: 2 | BN47: 2 | BQ47: =IF( AppDef_AmbientIndex_Min = BK47, 1, 0 ) -> 0 | BS47: =IF( AppDef_AmbientIndex_Max = BN47, 1, 0 ) -> 0
AA48: << | AC48: Moderate | AF48: >> | AI48: << | AK48: Moderate | AN48: >> | BK48: 3 | BN48: 3 | BQ48: =IF( AppDef_AmbientIndex_Min = BK48, 1, 0 ) -> 0 | BS48: =IF( AppDef_AmbientIndex_Max = BN48, 1, 0 ) -> 0
AA49: << | AC49: Bright | AF49: >> | AI49: << | AK49: Bright | AN49: >> | BK49: 4 | BN49: 4 | BQ49: =IF( AppDef_AmbientIndex_Min = BK49, 1, 0 ) -> 0 | BS49: =IF( AppDef_AmbientIndex_Max = BN49, 1, 0 ) -> 0
AA50: << | AC50: Outside | AF50: >> | AI50: << | AK50: Outside | AN50: >> | BK50: 5 | BN50: 5 | BQ50: =IF( AppDef_AmbientIndex_Min = BK50, 1, 0 ) -> 0 | BS50: =IF( AppDef_AmbientIndex_Max = BN50, 1, 0 ) -> 0
BD53: =ROW(BD53) -> 53
T55: The brighter the ambient light level, the brighter the projected image must be in order to be visible.
W57: Light Level | AA57: Description
W58: Dark | AA58: A room at night, with all lights turned off.
W59: Dim | AA59: A room at night, with soft lighting.
W60: Moderate | AA60: A well-lit office conference room, with no daylight.
W61: Bright | AA61: A well-lit office conference room, with indirect daylight.
W62: Outside | AA62: Outdoors, with indirect sunlight.
T64: Further details can be found in the following application note:
T65: "TI DLP® System Design: Brightness Requirements and Tradeoffs"
BD68: =ROW(BD68) -> 68
BC70: =ROW(BC70) -> 70
O72: OR … | BC72: =ROW(BC72) -> 72
BC73: =ROW(BC73) -> 73
R74: Enter the minimum and maximum Image Nits that this application requires … | BC74: =ROW(BC74) -> 74
AA77: Minimum | AI77: Maximum
T80: Image Nits | AD80: nits | AL80: nits | BJ80: =IF(AB80>0, 1, 0 ) -> 0 | BL80: =IF(AJ80>0, 1, 0 ) -> 0
AA81: =IF( ISNUMBER(AppDef_Nits_Min), CONCATENATE( " << ", AppDef_Nits_Min, " >>"), "" ) ->  | AI81: =IF( ISNUMBER(AppDef_Nits_Max), CONCATENATE( " << ", AppDef_Nits_Max, " >>"), "" ) -> 
BD83: =ROW(BD83) -> 83
T84: "Nits" are a unit of measurement for luminance, and are equal to candela/meter2, and
T85: lumens / ( steradian * meter2). They are used to measure the exact brightness of the
T86: projection your device will produce.
T88: Based upon experimental data, TI has determined the minimum image brightness (expressed
T89: in nits) that is required, across a variety of ambient light conditions (as shown in the table below).
AA91: Light Level | AF91: Min Image Nits
AA92: Dark | AF92: 50
AA93: Dim | AF93: 100
AA94: Moderate | AF94: 200
AA95: Bright | AF95: 300
AA96: Outside | AF96: 600
T99: Further details can be found in the following application note:
T100: "TI DLP® System Design: Brightness Requirements and Tradeoffs"
BD103: =ROW(BD103) -> 103
BC104: =ROW(BC104) -> 104
O106: OR … | BC106: =ROW(BC106) -> 106
BC107: =ROW(BC107) -> 107
R108: Enter the minimum and maximum Projector Output Lumens that this application requires … | BC108: =ROW(BC108) -> 108
AA111: Minimum | AI111: Maximum
T114: Projected Lumens | AD114: lm | AL114: lm
AA115: =IF( ISNUMBER(AppDef_Lumens_Min), CONCATENATE( " << ", AppDef_Lumens_Min, " >>"), "" ) ->  | AI115: =IF( ISNUMBER(AppDef_Lumens_Max), CONCATENATE( " << ", AppDef_Lumens_Max, " >>"), "" ) -> 
BD117: =ROW(BD117) -> 117
T119: Lumens (abbreviated "lm") are a measure of luminance, which is "luminous intensity per unit area".
T120: They are used the measure the amount of light leaving your projector at any given instant.
T122: Note that on-screen lumens is a function of many factors, including:
U124: 1) Illumination light source capability
U125: 2) Projector optical efficiency
U126: 3) Projector white point
U127: 4) DLP Controller software configuration
U128: 5) Maximum DMD operating temperature
BD131: =ROW(BD131) -> 131
BC133: =ROW(BC133) -> 133
N135: Enter the estimate Projection Surface Optical Efficiency ( 0% to 100% ) …
AA138: Minimum | AI138: Maximum
P141: Projection Surface Optical Efficiency | AD141: % | AL141: %
AA142: =IF( ISNUMBER(AppDef_ScreenEff_Min), CONCATENATE( " << ", AppDef_ScreenEff_Min*100, "% >>"), "" ) ->  | AI142: =IF( ISNUMBER(AppDef_ScreenEff_Max), CONCATENATE( " << ", AppDef_ScreenEff_Max*100, "% >>"), "" ) -> 
BD144: =ROW(BD144) -> 144
Q146: Certain surfaces reflect or transmit light better than others. Projecting onto a surface with low optical efficiency
Q147: requires a higher brightness for the projected image to remain visible.
Q149: The table below provides the reflection efficiency for a range of common materials/surfaces:
Q151: Category | W151: Material | AJ151: Min | AM151: Typ | AP151: Max | AS151: Ref
Q155: =VLOOKUP($BG155, Table_SurfaceEff_Extra, 3 ) -> Building Material | W155: =VLOOKUP($BG155,Table_SurfaceEff_Extra,4) -> Silver - Highly polished | AJ155: =VLOOKUP($BG155, Table_SurfaceEff_Extra, 5 ) -> 0.9 | AM155: =VLOOKUP($BG155, Table_SurfaceEff_Extra, 6 ) -> 0.91 | AP155: =VLOOKUP($BG155, Table_SurfaceEff_Extra, 7) -> 0.92 | AS155: =VLOOKUP($BG155,Table_SurfaceEff_Extra,8) -> 2 | BG155: 1
Q156: Natural Material | W156: Snow - Fresh | AJ156: 0 | AM156: 0.85 | AP156: 0 | AS156: 2 | BG156: 2
Q157: Building Material | W157: Aluminum - Pure, Highly polished | AJ157: 0.8 | AM157: 0.84 | AP157: 0.87 | AS157: 2 | BG157: 3
Q158: Building Material | W158: Mirror - Silvered behind glass | AJ158: 0.8 | AM158: 0.84 | AP158: 0.88 | AS158: 2 | BG158: 4
Q159: Building Material | W159: Aluminum - Aanodized, Matte | AJ159: 0.8 | AM159: 0.83 | AP159: 0.85 | AS159: 2 | BG159: 5
Q160: Painted Surface | W160: Lacquer - Pure white | AJ160: 0.8 | AM160: 0.83 | AP160: 0.85 | AS160: 2 | BG160: 6
Q161: General | W161: White Screen | AJ161: 0.75 | AM161: 0.8 | AP161: 0.85 | AS161: 2 | BG161: 7
Q162: Painted Surface | W162: Paint - White | AJ162: 0.75 | AM162: 0.8 | AP162: 0.85 | AS162: 2 | BG162: 8
Q163: Painted Surface | W163: White Paint on Plain Plasterboard | AJ163: 0 | AM163: 0.8 | AP163: 0 | AS163: 1 | BG163: 9
Q164: Painted Surface | W164: White Paint on Plasterboard, Tiles | AJ164: 0 | AM164: 0.8 | AP164: 0 | AS164: 1 | BG164: 10
Q165: Building Material | W165: Paper - White | AJ165: 0.7 | AM165: 0.75 | AP165: 0.8 | AS165: 2 | BG165: 11
Q166: Building Material | W166: Copper - Highly polished | AJ166: 0.7 | AM166: 0.73 | AP166: 0.75 | AS166: 2 | BG166: 12
Q167: Building Material | W167: Aluminum - Polished | AJ167: 0.65 | AM167: 0.7 | AP167: 0.75 | AS167: 2 | BG167: 13
Q168: Building Material | W168: Porcelain enamel - White | AJ168: 0.65 | AM168: 0.7 | AP168: 0.75 | AS168: 2 | BG168: 14
Q169: Painted Surface | W169: White Paint on Acoustic Tile | AJ169: 0 | AM169: 0.7 | AP169: 0 | AS169: 1 | BG169: 15
Q170: Building Material | W170: Aluminum - Matte | AJ170: 0.55 | AM170: 0.65 | AP170: 0.75 | AS170: 2 | BG170: 16
Q171: Building Material | W171: Chrome - Polished | AJ171: 0.6 | AM171: 0.65 | AP171: 0.7 | AS171: 2 | BG171: 17
Q172: Painted Surface | W172: Paint - Light yellow | AJ172: 0.6 | AM172: 0.65 | AP172: 0.7 | AS172: 2 | BG172: 18
Q173: Natural Material | W173: Beach Sand | AJ173: 0 | AM173: 0.6 | AP173: 0 | AS173: 1 | BG173: 19
Q174: Painted Surface | W174: White Paint on Non-fines Concrete | AJ174: 0 | AM174: 0.6 | AP174: 0 | AS174: 1 | BG174: 20
Q175: Building Material | W175: Aluminum Coatings - Matte | AJ175: 0.55 | AM175: 0.56 | AP175: 0.56 | AS175: 2 | BG175: 21
Q176: Building Material | W176: Nickel - Highly polished | AJ176: 0.5 | AM176: 0.55 | AP176: 0.6 | AS176: 2 | BG176: 22
Q177: Building Material | W177: Marble - Polished | AJ177: 0.3 | AM177: 0.5 | AP177: 0.7 | AS177: 2 | BG177: 23
Q178: Building Material | W178: Stainless Steel | AJ178: 0 | AM178: 0.5 | AP178: 0 | AS178: 2 | BG178: 24
Q179: Painted Surface | W179: Paint - Light green | AJ179: 0.45 | AM179: 0.5 | AP179: 0.55 | AS179: 2 | BG179: 25
Q180: Building Material | W180: Carpet - Light Grey | AJ180: 0 | AM180: 0.45 | AP180: 0 | AS180: 1 | BG180: 26
Q181: Building Material | W181: Limestone | AJ181: 0.35 | AM181: 0.45 | AP181: 0.55 | AS181: 2 | BG181: 27
Q182: Building Material | W182: PVC Tiles - Cream | AJ182: 0 | AM182: 0.45 | AP182: 0 | AS182: 1 | BG182: 28
Q183: Natural Material | W183: Snow - Old | AJ183: 0 | AM183: 0.45 | AP183: 0 | AS183: 2 | BG183: 29
Q184: Building Material | W184: Plaster - Light | AJ184: 0.4 | AM184: 0.43 | AP184: 0.45 | AS184: 2 | BG184: 30
Q185: Building Material | W185: Concrete - Light Grey, Smooth | AJ185: 0 | AM185: 0.4 | AP185: 0 | AS185: 1 | BG185: 31
Q186: Building Material | W186: White Fibre Cement | AJ186: 0 | AM186: 0.4 | AP186: 0 | AS186: 1 | BG186: 32
Q187: =VLOOKUP($BG187, Table_SurfaceEff_Extra, 3 ) -> Natural Material | W187: =VLOOKUP($BG187,Table_SurfaceEff_Extra,4) -> Sand - Dry | AJ187: =VLOOKUP($BG187, Table_SurfaceEff_Extra, 5 ) -> 0.38 | AM187: =VLOOKUP($BG187, Table_SurfaceEff_Extra, 6 ) -> 0.4 | AP187: =VLOOKUP($BG187, Table_SurfaceEff_Extra, 7) -> 0.42 | AS187: =VLOOKUP($BG187,Table_SurfaceEff_Extra,8) -> 2 | BG187: 33
Q188: Building Material | W188: Synthetic Grass | AJ188: 0 | AM188: 0.35 | AP188: 0 | AS188: 1 | BG188: 34
Q189: Building Material | W189: Timber - Light | AJ189: 0 | AM189: 0.35 | AP189: 0 | AS189: 1 | BG189: 35
Q190: Natural Material | W190: Ice | AJ190: 0.32 | AM190: 0.35 | AP190: 0.38 | AS190: 2 | BG190: 36
Q191: Building Material | W191: Plywood - Rough | AJ191: 0.25 | AM191: 0.33 | AP191: 0.4 | AS191: 2 | BG191: 37
Q192: Building Material | W192: Oak - Light polished | AJ192: 0.25 | AM192: 0.3 | AP192: 0.35 | AS192: 2 | BG192: 38
Q193: Building Material | W193: Sandstone | AJ193: 0.2 | AM193: 0.3 | AP193: 0.4 | AS193: 2 | BG193: 39
Q194: Painted Surface | W194: Paint - Medium grey | AJ194: 0.25 | AM194: 0.3 | AP194: 0.35 | AS194: 2 | BG194: 40
Q195: Natural Material | W195: Gravel | AJ195: 0 | AM195: 0.29 | AP195: 0 | AS195: -- | BG195: 41
Q196: Natural Material | W196: Soil - Dry | AJ196: 0.22 | AM196: 0.28 | AP196: 0.34 | AS196: 2 | BG196: 42
Q197: Building Material | W197: Carpet - Green | AJ197: 0 | AM197: 0.25 | AP197: 0 | AS197: 1 | BG197: 43
Q198: Building Material | W198: Concrete - Light Grey | AJ198: 0 | AM198: 0.25 | AP198: 0 | AS198: 1 | BG198: 44
Q199: Building Material | W199: Concrete - Rough | AJ199: 0.2 | AM199: 0.25 | AP199: 0.3 | AS199: 2 | BG199: 45
Q200: Building Material | W200: PVC Tiles - Brown, marbled | AJ200: 0 | AM200: 0.25 | AP200: 0 | AS200: 1 | BG200: 46
Q201: Building Material | W201: Timber - Medium | AJ201: 0 | AM201: 0.25 | AP201: 0 | AS201: 1 | BG201: 47
Q202: Building Material | W202: Timber Panelling - Light oak, Mahogany | AJ202: 0 | AM202: 0.25 | AP202: 0 | AS202: 1 | BG202: 48
Q203: Natural Material | W203: Grass | AJ203: 0 | AM203: 0.25 | AP203: 0 | AS203: 1 | BG203: 49
Q204: Natural Material | W204: Sand - Wet | AJ204: 0.22 | AM204: 0.25 | AP204: 0.28 | AS204: 2 | BG204: 50
Q205: Painted Surface | W205: Paint - Brown | AJ205: 0.2 | AM205: 0.25 | AP205: 0.3 | AS205: 2 | BG205: 51
Q206: Building Material | W206: Brick - Common | AJ206: 0.15 | AM206: 0.23 | AP206: 0.3 | AS206: 1 | BG206: 52
Q207: Building Material | W207: Granite | AJ207: 0.2 | AM207: 0.23 | AP207: 0.25 | AS207: 2 | BG207: 53
Q208: Building Material | W208: Plaster - Dark | AJ208: 0.15 | AM208: 0.2 | AP208: 0.25 | AS208: 2 | BG208: 54
Q209: Building Material | W209: Timber - Dark | AJ209: 0 | AM209: 0.2 | AP209: 0 | AS209: 1 | BG209: 55
Q210: Building Material | W210: Timber Panelling - Dark | AJ210: 0 | AM210: 0.2 | AP210: 0 | AS210: 1 | BG210: 56
Q211: Natural Material | W211: Crops | AJ211: 0.15 | AM211: 0.2 | AP211: 0.24 | AS211: 2 | BG211: 57
Q212: Painted Surface | W212: Paint - Dark blue | AJ212: 0.15 | AM212: 0.18 | AP212: 0.2 | AS212: 2 | BG212: 58
Q213: Painted Surface | W213: Paint - Dark green | AJ213: 0.15 | AM213: 0.18 | AP213: 0.2 | AS213: 2 | BG213: 59
Q214: Painted Surface | W214: Paint - Dark red | AJ214: 0.15 | AM214: 0.18 | AP214: 0.2 | AS214: 2 | BG214: 60
Q215: Sports | W215: Colored Court - Dark/Light Blue | AJ215: 0.1 | AM215: 0.15 | AP215: 0.2 | AS215: 1 | BG215: 61
Q216: Sports | W216: Colored Court - Dark/Light Green | AJ216: 0.1 | AM216: 0.15 | AP216: 0.2 | AS216: 1 | BG216: 62
Q217: Building Material | W217: Brick - Red | AJ217: 0.1 | AM217: 0.13 | AP217: 0.15 | AS217: 2 | BG217: 63
Q218: Natural Material | W218: Forrest | AJ218: 0.07 | AM218: 0.11 | AP218: 0.14 | AS218: 2 | BG218: 64
Q219: =VLOOKUP($BG219, Table_SurfaceEff_Extra, 3 ) -> Natural Material | W219: =VLOOKUP($BG219,Table_SurfaceEff_Extra,4) -> Soil - Dark wet | AJ219: =VLOOKUP($BG219, Table_SurfaceEff_Extra, 5 ) -> 0.07 | AM219: =VLOOKUP($BG219, Table_SurfaceEff_Extra, 6 ) -> 0.11 | AP219: =VLOOKUP($BG219, Table_SurfaceEff_Extra, 7) -> 0.14 | AS219: =VLOOKUP($BG219,Table_SurfaceEff_Extra,8) -> 2 | BG219: 65
Q220: Building Material | W220: Carpet - Dark | AJ220: 0 | AM220: 0.1 | AP220: 0 | AS220: 1 | BG220: 66
Q221: Building Material | W221: Tiles - Red | AJ221: 0 | AM221: 0.1 | AP221: 0 | AS221: 1 | BG221: 67
Q222: Natural Material | W222: Asphalt | AJ222: 0 | AM222: 0.1 | AP222: 0 | AS222: 1 | BG222: 68
Q223: Sports | W223: Colored Court - Brown, Sand, Tan, Clay | AJ223: 0.05 | AM223: 0.1 | AP223: 0.15 | AS223: 1 | BG223: 69
Q224: Natural Material | W224: Water | AJ224: 0.07 | AM224: 0.08 | AP224: 0.09 | AS224: 2 | BG224: 70
Q225: Building Material | W225: Black Chalkboard | AJ225: 0 | AM225: 0.05 | AP225: 0 | AS225: 1 | BG225: 71
Q226: General | W226: Body where all light is reflected | AJ226: 0 | AM226: 0 | AP226: 1 | AS226: -- | BG226: 72
Q228: References:
R229: 1 | S229: https://decrolux.com.au/learning-centre/2018/approximate-reflectance-values-of-typical-building-finishes
R230: 2 | S230: https://www.engineeringtoolbox.com/light-material-reflecting-factor-d_1842.html
BD232: =ROW(BD232) -> 232
BB234: =ROW(BB234) -> 234
BB237: =ROW(BB237) -> 237
N239: Enter the Min and Max for any TWO of the following parameters … | BB239: =ROW(BB239) -> 239
AA242: Minimum | AI242: Maximum
R245: Projected Image Width | BB245: =ROW(BB245) -> 245 | BJ245: 2 | BK245: =INDEX( Table_UnitConvert, TSize_WidthUnitsIndex, Value_SystemUnitsIndex ) -> 1 | BN245: =TSize_ImageWidth_xMin*BK245 -> 0 | BP245: =TSize_ImageWidth_xMax*BK245 -> 0 | BR245: =INDEX( Array_SystemUnits, 1, Value_SystemUnitsIndex) -> 
AA246: =IF( ISNUMBER(AppDef_ImageWidth_Min), CONCATENATE("<< ", AppDef_ImageWidth_Min, " >>"), "" ) ->  | AI246: =IF( ISNUMBER(AppDef_ImageWidth_Max), CONCATENATE("<< ", AppDef_ImageWidth_Max, " >>"), "" ) -> 
R248: Projected Image Height | BB248: =ROW(BB248) -> 248 | BK248: =INDEX( Table_UnitConvert, TSize_SizeUnitsIndex, Value_SystemUnitsIndex ) -> 1 | BN248: =TSize_ImageHeight_xMin*BK248 -> 0 | BP248: =TSize_ImageHeight_xMax*BK248 -> 0 | BR248: =INDEX( Array_SystemUnits, 0, Value_SystemUnitsIndex) -> 
AA249: =IF( ISNUMBER(AppDef_ImageHeight_Min), CONCATENATE("<< ", AppDef_ImageHeight_Min, " >>"), "" ) ->  | AI249: =IF( ISNUMBER(AppDef_ImageHeight_Max), CONCATENATE("<< ", AppDef_ImageHeight_Max, " >>"), "" ) -> 
R251: Projected Image Diagonal | BB251: =ROW(BB251) -> 251 | BK251: =INDEX( Table_UnitConvert, TSize_SizeUnitsIndex, Value_SystemUnitsIndex ) -> 1 | BN251: =TSize_ImageDiag_xMin*BK251 -> 0 | BP251: =TSize_ImageDiag_xMax*BK251 -> 0 | BR251: =INDEX( Array_SystemUnits, 0, Value_SystemUnitsIndex) -> 
AA252: =IF( ISNUMBER(AppDef_ImageDiag_Min), CONCATENATE("<< ", AppDef_ImageDiag_Min, " >>"), "" ) ->  | AI252: =IF( ISNUMBER(AppDef_ImageDiag_Max), CONCATENATE("<< ", AppDef_ImageDiag_Max, " >>"), "" ) -> 
R254: Aspect Ratio | AD254: : | AL254: : | BB254: =ROW(BB254) -> 254
AB255: =IF( ISNUMBER(AppDef_ImageARNum_Min), CONCATENATE( " << ", AppDef_ImageARNum_Min), "" ) ->  | AD255: =IF( AND( ISNUMBER(AppDef_ImageARNum_Min), ISNUMBER(AppDef_ImageARDenom_Min)), ":", "" ) ->  | AF255: =IF( ISNUMBER(AppDef_ImageARDenom_Min), CONCATENATE( AppDef_ImageARDenom_Min, " >>"), "" ) ->  | AJ255: =IF( ISNUMBER(AppDef_ImageARNum_Max), CONCATENATE( " << ", AppDef_ImageARNum_Max), "" ) ->  | AL255: =IF( AND( ISNUMBER(AppDef_ImageARNum_Max), ISNUMBER(AppDef_ImageARDenom_Max)), ":", "" ) ->  | AN255: =IF( ISNUMBER(AppDef_ImageARDenom_Max), CONCATENATE( AppDef_ImageARDenom_Max, " >>"), "" ) -> 
BC256: =ROW(BC256) -> 256
P258: The diagram below illustrates the Image Width, Image Height, and Image Diagonal.
BC272: =ROW(BC273) -> 273
BC274: =ROW(BC274) -> 274
P275: The Image Aspect Ratio is equal to the Image Width divided by the Image Height.
BC287: =ROW(BC287) -> 287
BB288: =ROW(BB288) -> 288
BB291: =ROW(BB291) -> 291
N293: Select ONE of the following … | BB293: =ROW(BB293) -> 293 | BF293: TRes_Start
BB295: =ROW(BB295) -> 295
S296: If you know the exact range of resolutions for your display, select Manual Screen Resolution
S298: If you know the range of resolutions by standard terms, select Industry Standard
S300: If you know the typical viewing location of your display, select Fundamental Parameters
S302: Otherwise, continue to Parameter Summary to use TI's suggested default values
BB303: =ROW(BB303) -> 303
BC305: =ROW(BC305) -> 305
BC307: =ROW(BC307) -> 307
R308: Enter the minimum and maximum of either parameter … | BC308: =ROW(BC308) -> 308 | BF308: TRes_Fundamental_Start
AF311: Minimum | AM311: Maximum
U314: Viewing Distance | BB314: =ROW(BB314) -> 314 | BJ314: 2 | BK314: =INDEX( Table_UnitConvert, TRes_ViewDistUnitsIndex, Value_SystemUnitsIndex ) -> 1 | BN314: =TRes_ViewDist_xMin*BK314 -> 0 | BP314: =TRes_ViewDist_xMax*BK314 -> 0 | BR314: =INDEX( Array_SystemUnits, 0, Value_SystemUnitsIndex ) -> 
AF315: =IF( ISNUMBER(AppDef_ViewDist_Min), CONCATENATE("<< ", AppDef_ViewDist_Min, " >>"), "" ) ->  | AM315: =IF( ISNUMBER(AppDef_ViewDist_Max), CONCATENATE("<< ", AppDef_ViewDist_Max, " >>"), "" ) -> 
S317: OR … | U317: Field-of-View | AJ317: deg | AQ317: deg | BB317: =ROW(BB317) -> 317
AF318: =IF( ISNUMBER(AppDef_FOV_Min), CONCATENATE( " << ", AppDef_FOV_Min, " >>"), "" ) ->  | AM318: =IF( ISNUMBER(AppDef_FOV_Max), CONCATENATE( " << ", AppDef_FOV_Max, " >>"), "" ) -> 
BD319: =ROW(BD319) -> 319 | BE319: =ROW(BE319) -> 319
... 92 more rows

Sheet xSurfaceEff (hidden)
B7: 1 | C7: 33 | D7: Building Material | E7: Silver - Highly polished | F7: 0.9 | G7: 0.91 | H7: 0.92 | I7: 2
B8: 2 | C8: 52 | D8: Natural Material | E8: Snow - Fresh | G8: 0.85 | I8: 2
B9: 3 | C9: 6 | D9: Building Material | E9: Aluminum - Pure, Highly polished | F9: 0.8 | G9: 0.84 | H9: 0.87 | I9: 2
B10: 4 | C10: 22 | D10: Building Material | E10: Mirror - Silvered behind glass | F10: 0.8 | G10: 0.84 | H10: 0.88 | I10: 2
B11: 5 | C11: 3 | D11: Building Material | E11: Aluminum - Aanodized, Matte | F11: 0.8 | G11: 0.83 | H11: 0.85 | I11: 2
B12: 6 | C12: 57 | D12: Painted Surface | E12: Lacquer - Pure white | F12: 0.8 | G12: 0.83 | H12: 0.85 | I12: 2
B13: 7 | C13: 43 | D13: General | E13: White Screen | F13: 0.75 | G13: 0.8 | H13: 0.85 | I13: 2
B14: 8 | C14: 65 | D14: Painted Surface | E14: Paint - White | F14: 0.75 | G14: 0.8 | H14: 0.85 | I14: 2
B15: 9 | C15: 68 | D15: Painted Surface | E15: White Paint on Plain Plasterboard | G15: 0.8 | I15: 1
B16: 10 | C16: 69 | D16: Painted Surface | E16: White Paint on Plasterboard, Tiles | G16: 0.8 | I16: 1
B17: 11 | C17: 25 | D17: Building Material | E17: Paper - White | F17: 0.7 | G17: 0.75 | H17: 0.8 | I17: 2
B18: 12 | C18: 18 | D18: Building Material | E18: Copper - Highly polished | F18: 0.7 | G18: 0.73 | H18: 0.75 | I18: 2
B19: 13 | C19: 5 | D19: Building Material | E19: Aluminum - Polished | F19: 0.65 | G19: 0.7 | H19: 0.75 | I19: 2
B20: 14 | C20: 29 | D20: Building Material | E20: Porcelain enamel - White | F20: 0.65 | G20: 0.7 | H20: 0.75 | I20: 2
B21: 15 | C21: 66 | D21: Painted Surface | E21: White Paint on Acoustic Tile | G21: 0.7 | I21: 1
B22: 16 | C22: 4 | D22: Building Material | E22: Aluminum - Matte | F22: 0.55 | G22: 0.65 | H22: 0.75 | I22: 2
B23: 17 | C23: 14 | D23: Building Material | E23: Chrome - Polished | F23: 0.6 | G23: 0.65 | H23: 0.7 | I23: 2
B24: 18 | C24: 63 | D24: Painted Surface | E24: Paint - Light yellow | F24: 0.6 | G24: 0.65 | H24: 0.7 | I24: 2
B25: 19 | C25: 44 | D25: Natural Material | E25: Beach Sand | G25: 0.6 | I25: 1
B26: 20 | C26: 67 | D26: Painted Surface | E26: White Paint on Non-fines Concrete | G26: 0.6 | I26: 1
B27: 21 | C27: 7 | D27: Building Material | E27: Aluminum Coatings - Matte | F27: 0.55 | G27: 0.56 | H27: 0.56 | I27: 2
B28: 22 | C28: 23 | D28: Building Material | E28: Nickel - Highly polished | F28: 0.5 | G28: 0.55 | H28: 0.6 | I28: 2
B29: 23 | C29: 21 | D29: Building Material | E29: Marble - Polished | F29: 0.3 | G29: 0.5 | H29: 0.7 | I29: 2
B30: 24 | C30: 34 | D30: Building Material | E30: Stainless Steel | G30: 0.5 | I30: 2
B31: 25 | C31: 62 | D31: Painted Surface | E31: Paint - Light green | F31: 0.45 | G31: 0.5 | H31: 0.55 | I31: 2
B32: 26 | C32: 13 | D32: Building Material | E32: Carpet - Light Grey | G32: 0.45 | I32: 1
B33: 27 | C33: 20 | D33: Building Material | E33: Limestone | F33: 0.35 | G33: 0.45 | H33: 0.55 | I33: 2
B34: 28 | C34: 31 | D34: Building Material | E34: PVC Tiles - Cream | G34: 0.45 | I34: 1
B35: 29 | C35: 53 | D35: Natural Material | E35: Snow - Old | G35: 0.45 | I35: 2
B36: 30 | C36: 27 | D36: Building Material | E36: Plaster - Light | F36: 0.4 | G36: 0.43 | H36: 0.45 | I36: 2
B37: 31 | C37: 16 | D37: Building Material | E37: Concrete - Light Grey, Smooth | G37: 0.4 | I37: 1
B38: 32 | C38: 42 | D38: Building Material | E38: White Fibre Cement | G38: 0.4 | I38: 1
B39: 33 | C39: 50 | D39: Natural Material | E39: Sand - Dry | F39: 0.38 | G39: 0.4 | H39: 0.42 | I39: 2
B40: 34 | C40: 35 | D40: Building Material | E40: Synthetic Grass | G40: 0.35 | I40: 1
B41: 35 | C41: 38 | D41: Building Material | E41: Timber - Light | G41: 0.35 | I41: 1
B42: 36 | C42: 49 | D42: Natural Material | E42: Ice | F42: 0.32 | G42: 0.35 | H42: 0.38 | I42: 2
B43: 37 | C43: 28 | D43: Building Material | E43: Plywood - Rough | F43: 0.25 | G43: 0.33 | H43: 0.4 | I43: 2
B44: 38 | C44: 24 | D44: Building Material | E44: Oak - Light polished | F44: 0.25 | G44: 0.3 | H44: 0.35 | I44: 2
B45: 39 | C45: 32 | D45: Building Material | E45: Sandstone | F45: 0.2 | G45: 0.3 | H45: 0.4 | I45: 2
B46: 40 | C46: 64 | D46: Painted Surface | E46: Paint - Medium grey | F46: 0.25 | G46: 0.3 | H46: 0.35 | I46: 2
B47: 41 | C47: 48 | D47: Natural Material | E47: Gravel | G47: 0.29 | I47: --
B48: 42 | C48: 55 | D48: Natural Material | E48: Soil - Dry | F48: 0.22 | G48: 0.28 | H48: 0.34 | I48: 2
B49: 43 | C49: 12 | D49: Building Material | E49: Carpet - Green | G49: 0.25 | I49: 1
B50: 44 | C50: 15 | D50: Building Material | E50: Concrete - Light Grey | G50: 0.25 | I50: 1
B51: 45 | C51: 17 | D51: Building Material | E51: Concrete - Rough | F51: 0.2 | G51: 0.25 | H51: 0.3 | I51: 2
B52: 46 | C52: 30 | D52: Building Material | E52: PVC Tiles - Brown, marbled | G52: 0.25 | I52: 1
B53: 47 | C53: 39 | D53: Building Material | E53: Timber - Medium | G53: 0.25 | I53: 1
B54: 48 | C54: 41 | D54: Building Material | E54: Timber Panelling - Light oak, Mahogany | G54: 0.25 | I54: 1
B55: 49 | C55: 47 | D55: Natural Material | E55: Grass | G55: 0.25 | I55: 1
B56: 50 | C56: 51 | D56: Natural Material | E56: Sand - Wet | F56: 0.22 | G56: 0.25 | H56: 0.28 | I56: 2
B57: 51 | C57: 58 | D57: Painted Surface | E57: Paint - Brown | F57: 0.2 | G57: 0.25 | H57: 0.3 | I57: 2
B58: 52 | C58: 9 | D58: Building Material | E58: Brick - Common | F58: 0.15 | G58: 0.23 | H58: 0.3 | I58: 1
B59: 53 | C59: 19 | D59: Building Material | E59: Granite | F59: 0.2 | G59: 0.23 | H59: 0.25 | I59: 2
B60: 54 | C60: 26 | D60: Building Material | E60: Plaster - Dark | F60: 0.15 | G60: 0.2 | H60: 0.25 | I60: 2
B61: 55 | C61: 37 | D61: Building Material | E61: Timber - Dark | G61: 0.2 | I61: 1
B62: 56 | C62: 40 | D62: Building Material | E62: Timber Panelling - Dark | G62: 0.2 | I62: 1
B63: 57 | C63: 45 | D63: Natural Material | E63: Crops | F63: 0.15 | G63: 0.2 | H63: 0.24 | I63: 2
B64: 58 | C64: 59 | D64: Painted Surface | E64: Paint - Dark blue | F64: 0.15 | G64: 0.18 | H64: 0.2 | I64: 2
B65: 59 | C65: 60 | D65: Painted Surface | E65: Paint - Dark green | F65: 0.15 | G65: 0.18 | H65: 0.2 | I65: 2
B66: 60 | C66: 61 | D66: Painted Surface | E66: Paint - Dark red | F66: 0.15 | G66: 0.18 | H66: 0.2 | I66: 2
B67: 61 | C67: 71 | D67: Sports | E67: Colored Court - Dark/Light Blue | F67: 0.1 | G67: 0.15 | H67: 0.2 | I67: 1
B68: 62 | C68: 72 | D68: Sports | E68: Colored Court - Dark/Light Green | F68: 0.1 | G68: 0.15 | H68: 0.2 | I68: 1
B69: 63 | C69: 10 | D69: Building Material | E69: Brick - Red | F69: 0.1 | G69: 0.13 | H69: 0.15 | I69: 2
B70: 64 | C70: 46 | D70: Natural Material | E70: Forrest | F70: 0.07 | G70: 0.11 | H70: 0.14 | I70: 2
B71: 65 | C71: 54 | D71: Natural Material | E71: Soil - Dark wet | F71: 0.07 | G71: 0.11 | H71: 0.14 | I71: 2
B72: 66 | C72: 11 | D72: Building Material | E72: Carpet - Dark | G72: 0.1 | I72: 1
B73: 67 | C73: 36 | D73: Building Material | E73: Tiles - Red | G73: 0.1 | I73: 1
B74: 68 | C74: 43 | D74: Natural Material | E74: Asphalt | G74: 0.1 | I74: 1
B75: 69 | C75: 70 | D75: Sports | E75: Colored Court - Brown, Sand, Tan, Clay | F75: 0.05 | G75: 0.1 | H75: 0.15 | I75: 1
B76: 70 | C76: 56 | D76: Natural Material | E76: Water | F76: 0.07 | G76: 0.08 | H76: 0.09 | I76: 2
B77: 71 | C77: 8 | D77: Building Material | E77: Black Chalkboard | G77: 0.05 | I77: 1
B78: 72 | C78: 1 | D78: General | E78: Body where all light is reflected | H78: 1 | I78: --
B79: 73 | C79: 2 | D79: General | E79: Body where no light is reflected (Black body) | H79: 0 | I79: --

Sheet xParamSave (hidden)
B3: =MAX(B5:B50) -> 41 | C3: Parameter … | D3: From … | E3: To … | F3: Value … | G3: OOM Group | H3: Unit Shape Name
B4: 1 | C4: Application | D4: App_Select | E4: Save_App_Select | F4: 15 | G4: 5
B5: 2 | C5: Sysetm Units | D5: Tunits | E5: Save_Tunits | F5: 1 | G5: 8
B6: 3 | C6: Ambient Light Level | D6: TBright_Ambient_MinSelect | E6: Save_Ambient_MinSelect | F6: 0 | G6: 1
B7: 4 | D7: TBright_Ambient_MaxSelect | E7: Save_Ambient_MaxSelect | F7: 0 | G7: 2
B8: 5 | C8: Image Nits | D8: TBright_Nits_Min | E8: Save_Nits_Min
B9: 6 | D9: TBright_Nits_Max | E9: Save_Nits_Max
B10: 7 | C10: Projected Lumens | D10: TBright_Lumens_Min | E10: Save_Lumens_Min
B11: 8 | D11: TBright_Lumens_Max | E11: Save_Lumens_Max
B12: 9 | C12: Screen Eff | D12: TBright_ScreenEff_Min | E12: Save_ScreenEff_Min
B13: 10 | D13: TBright_ScreenEff_Max | E13: Save_ScreenEff_Max
B14: 11 | C14: Projected Width | D14: TSize_ImageWidth_xMin | E14: Save_ImageWidth_xMin
B15: 12 | D15: TSize_ImageWidth_xMax | E15: Save_ImageWidth_xMax
B16: 13 | C16: Projected Width Units | D16: TSize_SizeUnitsIndex | E16: Save_SizeUnitsIndex | F16: 6 | H16: TSize_WidthUnitButton1
B17: 14 | C17: Projected Height | D17: TSize_ImageHeight_xMin | E17: Save_ImageHeight_xMin
B18: 15 | D18: TSize_ImageHeight_xMax | E18: Save_ImageHeight_xMax
B19: 16 | C19: Projected Height Units | D19: TSize_SizeUnitsIndex | E19: Save_SizeUnitsIndex | F19: 5
B20: 17 | C20: Projected Diag | D20: TSize_ImageDiag_xMin | E20: Save_ImageDiag_xMin
B21: 18 | D21: TSize_ImageDiag_xMax | E21: Save_ImageDiag_xMax
B22: 19 | C22: Projected Diag Units | D22: TSize_SizeUnitsIndex | E22: Save_SizeUnitsIndex | F22: 5
B23: 20 | C23: Aspect Ratio | D23: TSize_ImageARNum_Min | E23: Save_ImageARNum_Min
B24: 21 | D24: TSize_ImageARDenom_Min | E24: Save_ImageARDenom_Min
B25: 22 | D25: TSize_ImageARNum_Max | E25: Save_ImageARNum_Max
B26: 23 | D26: TSize_ImageARDenom_Max | E26: Save_ImageARDenom_Max
B27: 24 | C27: View Dist | D27: TRes_ViewDist_xMin | E27: Save_ViewDist_xMin
B28: 25 | D28: TRes_ViewDist_xMax | E28: Save_ViewDist_xMax
B29: 26 | C29: View Dist Units | D29: TRes_ViewDistUnitsIndex | E29: Save_ViewDistUnitsIndex | F29: 2 | H29: TRes_ViewDistUnitButton1
B30: 27 | C30: FOV | D30: TRes_FOV_Min | E30: Save_FOV_Min
B31: 28 | D31: TRes_FOV_Max | E31: Save_FOV_Max
B32: 29 | C32: PPD | D32: TRes_PxPerDeg_Min | E32: Save_PxPerDeg_Min
B33: 30 | D33: TRes_PxPerDeg_Max | E33: Save_PxPerDeg_Max
B34: 31 | C34: PPI | D34: TRes_PxPerInch_Min | E34: Save_PxPerInch_Min
B35: 32 | D35: TRes_PxPerInch_Max | E35: Save_PxPerInch_Max
B36: 33 | C36: View Dens Units | D36: TRes_ViewDensUnitsIndex | E36: Save_ViewDensUnitsIndex | F36: 6 | H36: TRes_ViewDensUnitButton1
B37: 34 | C37: Text Convert | D37: TRes_PointsToPixelsFactor_Min | E37: Save_PointsToPixelsFactor_Min
B38: 35 | D38: TRes_PointsToPixelsFactor_Max | E38: Save_PointsToPixelsFactor_Max
B39: 36 | C39: Std Resolution | D39: StdRes_Select_Min | E39: Save_StdRes_Select_Min | F39: 0 | G39: 6
B40: 37 | D40: StdRes_Select_Max | E40: Save_StdRes_Select_Max | F40: 0 | G40: 7
B41: 38 | C41: Manual Resolution | D41: TRes_ManResCol_Min | E41: Save_ManResCol_Min
B42: 39 | D42: TRes_ManResRow_Min | E42: Save_ManResRow_Min
B43: 40 | D43: TRes_ManResCol_Max | E43: Save_ManResCol_Max
B44: 41 | D44: TRes_ManResRow_Max | E44: Save_ManResRow_Max | F44: 0
F45: 0
C51: OOM button refresh

Sheet Summary (hidden)
M8: Resolution | W8: Image Size | AK8: Brightness | AT8: # of Matching
L9: Max: | M9: =Display_ResolutionSimple_Max -> -- x -- | Q9: =Display_Mpx_Max -> -- Mpx | V9: Max: | W9: =CONCATENATE( "W: ", Display_ImageWidth_Max, " x H: ", Display_ImageHeight_Max, " ( D: ", Display_ImageDiag_Max, " )" ) -> W: -- in x H: -- in ( D: -- in ) | AJ9: Max: | AK9: =Display_Lumens_Max -> -- lm | AO9: =Display_Nits_Max -> -- nits | AT9: Chipsets
L10: Min: | M10: =Display_ResolutionSimple_Min -> -- x -- | Q10: =Display_Mpx_Min -> -- Mpx | V10: Min: | W10: =CONCATENATE( "W: ", Display_ImageWidth_Min, " x H: ", Display_ImageHeight_Min, " ( D: ", Display_ImageDiag_Min, " )" ) -> W: -- in x H: -- in ( D: -- in ) | AJ10: Min: | AK10: =Display_Lumens_Min -> -- lm | AO10: =Display_Nits_Min -> -- nits | AT10: =Index_Chipset_Max -> 0
BB16: =ROW(BB16) -> 16
Q17: Image Brightness | AC17: Min | AM17: Max | CD17: TRUE
Q18: Ambient Light Level | AC18: =Display_Ambient_Min -> -- | AK18: - to - | AM18: =Display_Ambient_Max -> -- | BF18: =#REF! ->  | BH18: =#REF! ->  | CD18: TRUE
Q19: Image Nits | AC19: =Display_Nits_Min -> -- nits | AK19: - to - | AM19: =Display_Nits_Max -> -- nits | BF19: =#REF! ->  | BH19: =#REF! ->  | CD19: FALSE
Q20: Projected Lumens | AC20: =Display_Lumens_Min -> -- lm | AK20: - to - | AM20: =Display_Lumens_Max -> -- lm | BF20: =#REF! ->  | BH20: =#REF! -> 
Q21: Screen Efficiency | AC21: =Display_ScreenEff_Min -> -- % | AK21: - to - | AM21: =Display_ScreenEff_Max -> -- % | BF21: =#REF! ->  | BH21: =#REF! -> 
Q23: Image Size | AC23: Min | AM23: Max
Q24: Projected Image Width | AC24: =Display_ImageWidth_Min -> -- in | AK24: - to - | AM24: =Display_ImageWidth_Max -> -- in | BF24: =IF( AND(#REF!=1,#REF!= 1,#REF!= 1), 1, 0 ) ->  | BH24: =IF( AND(#REF!=1,#REF!= 1,#REF!= 1), 1, 0 ) -> 
Q25: Projected Image Height | AC25: =Display_ImageHeight_Min -> -- in | AK25: - to - | AM25: =Display_ImageHeight_Max -> -- in | BF25: =IF( AND(#REF!=1,#REF!= 1,#REF!= 1), 1, 0 ) ->  | BH25: =IF( AND(#REF!=1,#REF!= 1,#REF!= 1), 1, 0 ) -> 
Q26: Projected Image Diagonal | AC26: =Display_ImageDiag_Min -> -- in | AK26: - to - | AM26: =Display_ImageDiag_Max -> -- in | BF26: =IF( AND(#REF!=1,#REF!= 1,#REF!= 1), 1, 0 ) ->  | BH26: =IF( AND(#REF!=1,#REF!= 1,#REF!= 1), 1, 0 ) -> 
Q27: Image Aspect Ratio | AC27: =IF(Display_AspectRatio_Min=AppDef_AR_Min,DisplayApp_AR_Min,IF(Display_AspectRatio_Min=UserDef_AR_Min,DisplayUser_AR_Min,Display_AspectRatio_Min)) -> -- | AK27: - to - | AM27: =IF(Display_AspectRatio_Max=AppDef_AR_Max,DisplayApp_AR_Max,IF(Display_AspectRatio_Max=UserDef_AR_Max,DisplayUser_AR_Max,Display_AspectRatio_Max)) -> -- | BF27: =IF( AND(#REF!=1,#REF!= 1,#REF!= 1), 1, 0 ) ->  | BH27: =IF( AND(#REF!=1,#REF!= 1,#REF!= 1), 1, 0 ) -> 
Q29: Image Resolution | AC29: Min | AM29: Max
Q30: Viewing Distance | AC30: =IF(OR(DisplayDefaults_Toggle,DisplayUser_ViewDist_Min="--"), DisplayApp_ViewDist_Min, DisplayUser_ViewDist_Min) -> -- | AK30: - to - | AM30: =IF(OR(DisplayDefaults_Toggle,DisplayUser_ViewDist_Max="--"), DisplayApp_ViewDist_Max, DisplayUser_ViewDist_Max) -> -- | BF30: =IF( AND(#REF!=1,#REF!= 1), 1, 0 ) ->  | BH30: =IF( AND(#REF!=1,#REF!= 1), 1, 0 ) -> 
Q31: Horizontal Image FOV | AC31: =IF(OR(DisplayDefaults_Toggle,DisplayUser_FOV_Min="--"), DisplayApp_FOV_Min, DisplayUser_FOV_Min) -> -- | AK31: - to - | AM31: =IF(OR(DisplayDefaults_Toggle,DisplayUser_FOV_Max="--"), DisplayApp_FOV_Max, DisplayUser_FOV_Max) -> -- | BF31: =IF( AND(#REF!=1,#REF!= 1), 1, 0 ) ->  | BH31: =IF( AND(#REF!=1,#REF!= 1), 1, 0 ) -> 
Q32: Pixels Per Degree | AC32: =IF(OR(DisplayDefaults_Toggle,DisplayUser_PxPerDeg_Min="--"), IF(AppDef_PxPerDeg_Min<AppDef_PxPerDeg_Max, DisplayApp_PxPerDeg_Min, DisplayApp_PxPerDeg_Max), DisplayUser_PxPerDeg_Min) -> -- | AK32: - to - | AM32: =IF(OR(DisplayDefaults_Toggle,DisplayUser_PxPerDeg_Max="--"), IF(AppDef_PxPerDeg_Min<AppDef_PxPerDeg_Max, DisplayApp_PxPerDeg_Max, DisplayApp_PxPerDeg_Min), DisplayUser_PxPerDeg_Max) -> -- | BF32: =IF( AND(#REF!= 1,#REF!= 1), 1, 0 ) ->  | BH32: =IF( AND(#REF!= 1,#REF!= 1), 1, 0 ) -> 
Q33: Pixels Per Length | AC33: =IF(OR(DisplayDefaults_Toggle,DisplayUser_PxPerIn_Min="--"), DisplayApp_PxPerIn_Min, DisplayUser_PxPerIn_Min) -> -- | AK33: - to - | AM33: =IF(OR(DisplayDefaults_Toggle,DisplayUser_PxPerIn_Max="--"), DisplayApp_PxPerIn_Max, DisplayUser_PxPerIn_Max) -> -- | BF33: =IF( AND(#REF!= 1,#REF!= 1), 1, 0 ) ->  | BH33: =IF( AND(#REF!= 1,#REF!= 1), 1, 0 ) -> 
Q34: Pixels per Point | AC34: =IF(OR(DisplayDefaults_Toggle,DisplayUser_TextFactor_Min="--"), DisplayApp_TextFactor_Min, DisplayUser_TextFactor_Min) -> -- | AK34: - to - | AM34: =IF(OR(DisplayDefaults_Toggle,DisplayUser_TextFactor_Max="--"), DisplayApp_TextFactor_Max, DisplayUser_TextFactor_Max) -> -- | BF34: =IF( AND(#REF!= 1,#REF!= 1), 1, 0 ) ->  | BH34: =IF( AND(#REF!= 1,#REF!= 1), 1, 0 ) -> 
Q35: Standard Resolution | AC35: =IF(Display_Mpx_Max>=Display_Mpx_Min,Display_ResolutionName_Min,Display_ResolutionName_Max) -> -- | AK35: - to - | AM35: =IF(Display_Mpx_Max>=Display_Mpx_Min,Display_ResolutionName_Max,Display_ResolutionName_Min) -> -- | BF35: =IF( AND(#REF!= 1,#REF!= 1), 1, 0 ) ->  | BH35: =IF( AND(#REF!= 1,#REF!= 1), 1, 0 ) -> 
AC36: =IF(AC35 = "--", "--", IF(Display_Mpx_Max>=Display_Mpx_Min,Display_ResolutionSimple_Min,Display_ResolutionSimple_Max)) -> -- | AM36: =IF(AM35 = "--", "--", IF(Display_Mpx_Max>=Display_Mpx_Min,Display_ResolutionSimple_Max,Display_ResolutionSimple_Min)) -> -- | BF36: =BF75 -> 0 | BH36: =BH75 -> 0
Q37: Manual Resolution | AC37: =IF(AC35 <> "--", "--", IF(Display_Mpx_Max>=Display_Mpx_Min,Display_ResolutionSimple_Min,Display_ResolutionSimple_Max)) -> -- x -- | AK37: - to - | AM37: =IF(AM35 <> "--", "--", IF(Display_Mpx_Max>=Display_Mpx_Min,Display_ResolutionSimple_Max,Display_ResolutionSimple_Min)) -> -- x -- | BF37: =IF( AND(#REF!= 1,#REF!= 1), 1, 0 ) ->  | BH37: =IF( AND(#REF!= 1,#REF!= 1), 1, 0 ) -> 
BB38: =ROW(BB38) -> 38
BB43: =ROW(BB43) -> 43
N44: Display Units | BI44: 0
R45: inches | W45: • All calculation results are shown in these units | BJ45: 1
R46: feet | BJ46: 2
R47: meters | BJ47: 3
BB51: =ROW(BB51) -> 51
AN54: =CONCATENATE( "Ver. ", App_FullVersion ) -> Ver. [[Prod]] (Smarta2xOPENv3)
BB58: =ROW(BB58) -> 58
CD59: Image Brightness
CD60: Ambient Light Level | CL60: =#NAME? ->  | CQ60: - to - | CS60: =#NAME? ->  | CX60: =#NAME? ->  | DC60: - to - | DE60: =#NAME? ->  | DJ60: =#NAME? -> 
CD61: Image Nits | CL61: =#NAME? ->  | CQ61: - to - | CS61: =#NAME? ->  | CX61: =#NAME? ->  | DC61: - to - | DE61: =#NAME? ->  | DJ61: =#NAME? -> 
CD62: Projected Lumens | CL62: =#NAME? ->  | CQ62: - to - | CS62: =#NAME? ->  | CX62: =#NAME? ->  | DC62: - to - | DE62: =#NAME? ->  | DJ62: =#NAME? -> 
CD63: Screen Efficiency | CL63: =#NAME? ->  | CQ63: - to - | CS63: =#NAME? ->  | CX63: =#REF! ->  | DC63: - to - | DE63: =#REF! ->  | DJ63: =#NAME? -> 
CD65: Image Size
CD66: Projected Image Width | CL66: =#NAME? ->  | CQ66: - to - | CS66: =#NAME? ->  | CX66: =#NAME? ->  | DC66: - to - | DE66: =#NAME? ->  | DJ66: =#REF! -> 
CD67: Projected Image Height | CL67: =#NAME? ->  | CQ67: - to - | CS67: =#NAME? ->  | CX67: =#NAME? ->  | DC67: - to - | DE67: =#NAME? ->  | DJ67: =#REF! -> 
CD68: Projected Image Diagonal | CL68: =#NAME? ->  | CQ68: - to - | CS68: =#NAME? ->  | CX68: =#NAME? ->  | DC68: - to - | DE68: =#NAME? ->  | DJ68: =#REF! -> 
CD69: Image Aspect Ratio | CL69: =#NAME? ->  | CQ69: - to - | CS69: =#NAME? ->  | CX69: =#NAME? ->  | DC69: - to - | DE69: =#NAME? ->  | DJ69: =#REF! -> 
CD71: Image Resolution
CD72: Viewing Distance | CL72: =#NAME? ->  | CQ72: - to - | CS72: =#NAME? ->  | CX72: =#NAME? ->  | DC72: - to - | DE72: =#NAME? ->  | DJ72: =#REF! -> 
CD73: Horizontal Image FOV | CL73: =#NAME? ->  | CQ73: - to - | CS73: =#NAME? ->  | CX73: =#NAME? ->  | DC73: - to - | DE73: =#NAME? ->  | DJ73: =#REF! -> 
CD74: Pixels Per Degree | CL74: =#NAME? ->  | CQ74: - to - | CS74: =#NAME? ->  | CX74: =#NAME? ->  | DC74: - to - | DE74: =#NAME? ->  | DJ74: =#REF! -> 
CD75: Pixel Density | CL75: =#NAME? ->  | CQ75: - to - | CS75: =#NAME? ->  | CX75: =#NAME? ->  | DC75: - to - | DE75: =#NAME? ->  | DJ75: =#REF! -> 
CD76: Pixels per Point | CL76: =#NAME? ->  | CQ76: - to - | CS76: =#NAME? ->  | CX76: =#NAME? ->  | DC76: - to - | DE76: =#NAME? ->  | DJ76: =#REF! -> 
CD77: Standard Resolution | CL77: =#NAME? ->  | CQ77: - to - | CS77: =#NAME? ->  | CX77: =#NAME? ->  | DC77: - to - | DE77: =#NAME? ->  | DJ77: =#REF! -> 
CL78: =#NAME? ->  | CS78: =#NAME? ->  | CX78: =#NAME? ->  | DE78: =#NAME? -> 
CD79: Manual Resolution | CL79: =#NAME? ->  | CQ79: - to - | CS79: =#NAME? ->  | CX79: =#NAME? ->  | DC79: - to - | DE79: =#NAME? ->  | DJ79: =#REF! -> 
CE81: Calculation Results: Find way to visualize and use in future release
CF85: Target Application | CP85: =IF( #NAME?=0, "( No Application Selected )", #NAME? ) ->  | DF85: =CONCATENATE( "( ", #NAME?, " matching chipsets )" ) -> 
CP87: Minimum | CY87: Maximum | DF87: Data Source
CF88: Resolution Standard | CP88: =#NAME? ->  | CW88: - to - | CY88: =#NAME? -> 
CF89: Resolution | CP89: =#NAME? ->  | CW89: - to - | CY89: =#NAME? ->  | DF89: =#REF! -> 
CF90: Resolution Megapixels | CP90: =#NAME? ->  | CW90: - to - | CY90: =#NAME? -> 
CF92: Ambient Conditions | DF92: =DF95 -> 
CF95: Image Nits | CP95: =#NAME? ->  | CW95: - to - | CY95: =#NAME? ->  | DF95: =#REF! -> 
CF96: Projected Lumens | CP96: =#NAME? ->  | CW96: - to - | CY96: =#NAME? ->  | DF96: =#REF! -> 
CF98: Projected Image Width | CP98: =#NAME? ->  | CW98: - to - | CY98: =#NAME? ->  | DF98: =#REF! -> 
CF99: Projected Image Height | CP99: =#NAME? ->  | CW99: - to - | CY99: =#NAME? ->  | DF99: =#REF! -> 
CF100: Projected Image Diagonal | CP100: =#NAME? ->  | CW100: - to - | CY100: =#NAME? ->  | DF100: =#REF! -> 
CF101: Projected Image Aspect Ratio | CP101: =#NAME? ->  | CW101: - to - | CY101: =#NAME? ->  | DF101: =#REF! -> 
CF102: Projected Image Area | CP102: =#NAME? ->  | CW102: - to - | CY102: =#NAME? ->  | DF102: =#REF! -> 
CF104: Viewing Distance | CP104: =#NAME? ->  | CW104: - to - | CY104: =#NAME? ->  | DF104: =#REF! -> 
CF105: Horizontal Image FOV | CP105: =#NAME? ->  | CW105: - to - | CY105: =#NAME? ->  | DF105: =#REF! -> 
CF107: Pixels Per Degree | CP107: =#NAME? ->  | CW107: - to - | CY107: =#NAME? ->  | DF107: =#REF! -> 
CF108: Pixels Per inch | CP108: =#NAME? ->  | CW108: - to - | CY108: =#NAME? ->  | DF108: =#REF! -> 
CF109: Pixels per mm | CP109: =#NAME? ->  | CW109: - to - | CY109: =#NAME? ->  | DF109: =#REF! -> 
CF111: Text Height | CP111: =Target!#REF! ->  | CW111: - to - | CY111: =Target!#REF! ->  | DF111: Values are from the Text Size Calculator on the Application Parameters screen.
CF112: Vert ArcMin per Character | CP112: =CONCATENATE( Target!#REF!, " arc-min" ) ->  | CW112: - to - | CY112: =CONCATENATE( Target!#REF!, " arc-min" ) -> 
CF113: Text Size | CP113: =CONCATENATE( Target!#REF!, " points" ) ->  | CW113: - to - | CY113: =CONCATENATE( Target!#REF!, " points" ) -> 
CF114: Rows of Text ( at given point size ) | CP114: =CONCATENATE( Target!#REF!, " rows" ) ->  | CW114: - to - | CY114: =CONCATENATE( Target!#REF!, " rows" ) -> 
BB161: =ROW(BB161) -> 161

Sheet xSummaryMap (hidden)
I2: App Def | AK2: User Input | BD2: Reverse Calcuated | BR2: 1 | BS2: =IF( Flag_ApplyUserInputs=0, 1, 0 ) -> 0 | BV2: Resolved
D4: Screen Efficiency | AG4: Screen Efficiency | AW4: Screen Efficiency | BO4: Screen Efficiency
BS6: =IsPriority( Resolved_ScreenEff_Min, Resolved_ScreenEff_Max, SetPrecision(BV6), SetPrecision(BZ6) ) -> 0 | BT6: user screen eff | BV6: =( TBright_ScreenEff_Min/100 ) -> 0 | BZ6: =( TBright_ScreenEff_Max/100 ) -> 0 | CB6: =InputErrorVerbose("App","Value",BV6,BZ6) -> 4 | CC6: =InputErrorVerbose("App","Desc",BV6,BZ6) -> Value is zero | CD6: User Input
BT7: user screen eff ( filtered ) | BV7: =Flag_ApplyUserInputs * BV6 -> 0 | BZ7: =Flag_ApplyUserInputs * BZ6 -> 0 | CB7: =InputErrorVerbose("App","Value",BV7,BZ7) -> 4 | CC7: =InputErrorVerbose("App","Desc",BV7,BZ7) -> Value is zero | CD7: User Input
BS8: =IsPriority( Resolved_ScreenEff_Min, Resolved_ScreenEff_Max, SetPrecision(BV8), SetPrecision(BZ8) ) -> 0 | BT8: app screen eff | BV8: =AppDef_ScreenEff_Min -> -- | BZ8: =AppDef_ScreenEff_Max -> -- | CB8: =InputErrorVerbose("App","Value",BV8,BZ8) -> 1 | CC8: =InputErrorVerbose("App","Desc",BV8,BZ8) -> No Default App Value | CD8: App Default
BT9: resolved screen eff | BV9: =SetPrecision( ResolvePriority("Min",BV7:BV8,BZ7:BZ8,CB7:CB8) ) -> 0 | BZ9: =SetPrecision( ResolvePriority("Max",BV7:BV8,BZ7:BZ8,CB7:CB8) ) -> 0 | CB9: =InputErrorVerbose("App","Value",BV9,BZ9) -> 4 | CC9: Value is zero | CD9: =ResolvePriority("Min",CD2:CD8,CD2:CD8,CB2:CB8) -> 0
BT11: display user screen eff | BV11: =IF( OR($CB6=0, $CB6=3), CONCATENATE( BV6*100, "%"), "--" ) -> -- | BZ11: =IF( OR($CB6=0, $CB6=3), CONCATENATE( BZ6*100, "%"), "--" ) -> -- | CB11: =CB6 -> 4 | CC11: =IF( CE11=1, CD11, "" ) ->  | CD11: =SanitizedErrorMsg(CB11) ->  | CE11: =IF( LEFT(CD11) = "(", 0, 1 ) -> 1
BT12: display app screen eff | BV12: =IF( AND($CB9=0, $CB8=0), CONCATENATE( BV8*100, "%"), "--" ) -> -- | BZ12: =IF( AND($CB9=0, $CB8=0), CONCATENATE( BZ8*100, "%"), "--" ) -> -- | CB12: =CB8 -> 1 | CC12: =IF( CE12=1, CD12, "" ) ->  | CD12: =SanitizedErrorMsg(CB12) ->  | CE12: =IF( LEFT(CD12) = "(", 0, 1 ) -> 1
BT13: display resolved eff | BV13: =IF( $CB9=0, CONCATENATE( BV9*100, "%"), "-- %" ) -> -- % | BZ13: =IF( $CB9=0, CONCATENATE( BZ9*100, "%"), "-- %" ) -> -- % | CB13: 4 | CC13: =IF( CE13=1, CD13, "" ) ->  | CE13: =IF( LEFT(CD13) = "(", 0, 1 ) -> 1
D15: Lumens | AG15: Lumens | AW15: Lumens | BO15: Lumens
B16: Inputs
G17: app ambient index | I17: =Value_AppDefAmbient_Min -> 0 | M17: =Value_AppDefAmbient_Max -> 0 | O17: =InputErrorVerbose("App","Value",I17,M17) -> 4 | P17: =InputErrorVerbose("App","Desc",I17,M17) -> Value is zero | U17: -- .vs. err | AI17: user ambient index | AK17: =xLists!G33 -> 0 | AO17: =xLists!G32 -> 0 | AQ17: =InputErrorVerbose("User","Value",AK17,AO17) -> 4 | AR17: =InputErrorVerbose("User","Desc",AK17,AO17) -> Value is zero
G18: app ambient desc | I18: =Value2_AppDefAmbient_Min -> Very Dark | M18: =Value2_AppDefAmbient_Max -> Very Dark | O18: -- | P18: -- | AI18: user ambient desc | AK18: =Value_Ambient_Min -> Very Dark | AO18: =Value_Ambient_Max -> Very Dark | AQ18: -- | AR18: --
G19: app ambient nits | I19: =Value_AppDefNitsFromAmbient_Min -> 0 | M19: =Value_AppDefNitsFromAmbient_Max -> 0 | O19: =InputErrorVerbose("App","Value",I19,M19) -> 4 | P19: =InputErrorVerbose("App","Desc",I19,M19) -> Value is zero | AI19: user ambient nits | AK19: =Value_NitsFromAmbient_Min -> 0 | AO19: =Value_NitsFromAmbient_Max -> 0 | AQ19: =InputErrorVerbose("User","Value",AK19,AO19) -> 4 | AR19: =InputErrorVerbose("User","Desc",AK19,AO19) -> Value is zero
G20: app nits | I20: =AppDef_Nits_Min -> -- | M20: =AppDef_Nits_Max -> -- | O20: =InputErrorVerbose("App","Value",I20,M20) -> 1 | P20: =InputErrorVerbose("App","Desc",I20,M20) -> No Default App Value | U20: -- .vs. err | AI20: user nits | AK20: =TBright_Nits_Min -> 0 | AO20: =TBright_Nits_Max -> 0 | AQ20: =InputErrorVerbose("User","Value",AK20,AO20) -> 4 | AR20: =InputErrorVerbose("User","Desc",AK20,AO20) -> Value is zero
G21: app lumens | I21: =AppDef_Lumens_Min -> -- | M21: =AppDef_Lumens_Max -> -- | O21: =InputErrorVerbose("App","Value",I21,M21) -> 1 | P21: =InputErrorVerbose("App","Desc",I21,M21) -> No Default App Value | U21: -- .vs. err | AI21: user lumens | AK21: =TBright_Lumens_Min -> 0 | AO21: =TBright_Lumens_Max -> 0 | AQ21: =InputErrorVerbose("User","Value",AK21,AO21) -> 4 | AR21: =InputErrorVerbose("User","Desc",AK21,AO21) -> Value is zero
B23: Calc
G24: area | I24: =$BV24 ->  | M24: =$BZ24 ->  | O24: =InputErrorVerbose("App","Value",I24,M24) -> 2 | P24: =InputErrorVerbose("App","Desc",I24,M24) -> Error with input value | AI24: area | AK24: =$BV24 ->  | AO24: =$BZ24 ->  | AQ24: =InputErrorVerbose("User","Value",AK24,AO24) -> 2 | AR24: =InputErrorVerbose("User","Desc",AK24,AO24) -> Error with input value | BT24: area | BV24: =BV85 ->  | BZ24: =BZ85 ->  | CB24: =InputErrorVerbose("App","Value",BV24,BZ24) -> 2 | CC24: =InputErrorVerbose("App","Desc",BV24,BZ24) -> Error with input value | CD24: -- | CE24: --
G25: app lumens | I25: =SetPrecision( I21 ) ->  | M25: =SetPrecision( M21 ) ->  | O25: =InputErrorVerbose("App","Value",I25,M25) -> 2 | P25: =InputErrorVerbose("App","Desc",I25,M25) -> Error with input value | U25: in .vs. calc .vs. error | AI25: user lumens | AK25: =SetPrecision( AK21 ) -> 0 | AO25: =SetPrecision( AO21 ) -> 0 | AQ25: =InputErrorVerbose("User","Value",AK25,AO25) -> 4 | AR25: =InputErrorVerbose("User","Desc",AK25,AO25) -> Value is zero | BK25: 1.75 | BL25: mm | BS25: =IsPriority( Resolved_Lumens_Min, Resolved_Lumens_Max, SetPrecision(BV25 / IF( $CB$9=0, Resolved_ScreenEff_Min, 1 )), SetPrecision(BZ25 / IF( $CB$9=0, Resolved_ScreenEff_Max, 1 )) ) -> 0 | BT25: user lumens | BV25: =Flag_ApplyUserInputs * ( AK25 ) * IF( $CB$9=0, Resolved_ScreenEff_Min, 1 ) -> 0 | BZ25: =Flag_ApplyUserInputs * ( AO25 ) * IF( $CB$9=0, Resolved_ScreenEff_Max, 1 ) -> 0 | CB25: =InputErrorVerbose("App","Value",BV25,BZ25) -> 4 | CC25: =InputErrorVerbose("App","Desc",BV25,BZ25) -> Value is zero | CD25: User Input ( Lumens ) | CE25: type_1
G26: app lumens from nits | I26: =SetPrecision( I20*I24*PI() ) ->  | M26: =SetPrecision( M20*M24*PI() ) ->  | O26: =InputErrorVerbose("App","Value",I26,M26) -> 2 | P26: =InputErrorVerbose("App","Desc",I26,M26) -> Error with input value | U26: in .vs. calc .vs. error | AI26: user lumens from nits | AK26: =SetPrecision( AK20*AK24*PI() ) ->  | AO26: =SetPrecision( AO20*AO24*PI() ) ->  | AQ26: =InputErrorVerbose("User","Value",AK26,AO26) -> 2 | AR26: =InputErrorVerbose("User","Desc",AK26,AO26) -> Error with input value | BK26: =BK25/6000 -> 0.0002916666667 | BL26: ratio | BS26: =IsPriority( Resolved_Lumens_Min, Resolved_Lumens_Max, SetPrecision(BV26 / IF( $CB$9=0, Resolved_ScreenEff_Min, 1 )), SetPrecision(BZ26 / IF( $CB$9=0, Resolved_ScreenEff_Max, 1 )) ) -> 0 | BT26: user lumens from nits | BV26: =Flag_ApplyUserInputs * SetPrecision( AK26 ) ->  | BZ26: =Flag_ApplyUserInputs * SetPrecision( AO26 ) ->  | CB26: =InputErrorVerbose("App","Value",BV26,BZ26) -> 2 | CC26: =InputErrorVerbose("App","Desc",BV26,BZ26) -> Error with input value | CD26: derived from User Input - Nits | CE26: type_2
G27: app lumens from ambient | I27: =SetPrecision( I19*I24*PI() ) ->  | M27: =SetPrecision( M19*M24*PI() ) ->  | O27: =InputErrorVerbose("App","Value",I27,M27) -> 2 | P27: =InputErrorVerbose("App","Desc",I27,M27) -> Error with input value | U27: in .vs. calc .vs. error | AI27: user lumens from ambient | AK27: =SetPrecision( AK19*AK24*PI() ) ->  | AO27: =SetPrecision( AO19*AO24*PI() ) ->  | AQ27: =InputErrorVerbose("User","Value",AK27,AO27) -> 2 | AR27: =InputErrorVerbose("User","Desc",AK27,AO27) -> Error with input value | BK27: =ATAN(BK26) -> 0.0002916666584 | BL27: atan | BS27: =IsPriority( Resolved_Lumens_Min, Resolved_Lumens_Max, SetPrecision(BV27 / IF( $CB$9=0, Resolved_ScreenEff_Min, 1 )), SetPrecision(BZ27 / IF( $CB$9=0, Resolved_ScreenEff_Max, 1 )) ) -> 0 | BT27: user lumens from ambient | BV27: =Flag_ApplyUserInputs * SetPrecision( AK27 ) ->  | BZ27: =Flag_ApplyUserInputs * SetPrecision( AO27 ) ->  | CB27: =InputErrorVerbose("App","Value",BV27,BZ27) -> 2 | CC27: =InputErrorVerbose("App","Desc",BV27,BZ27) -> Error with input value | CD27: derived from User Input - Ambient Light Level | CE27: type_3
G28: resolved lumens | I28: =SetPrecision( ResolvePriority("Min",I25:I27,M25:M27,O25:O27) ) -> 0 | M28: =SetPrecision( ResolvePriority("Max",I25:I27,M25:M27,O25:O27) ) -> 0 | O28: =InputErrorVerbose("App","Value",I28,M28) -> 4 | P28: =InputErrorVerbose("App","Desc",I28,M28) -> Value is zero | U28: from … | AI28: resolved lumens | AK28: =SetPrecision( ResolvePriority("Min",AK25:AK27,AO25:AO27,AQ25:AQ27) ) -> 0 | AO28: =SetPrecision( ResolvePriority("Max",AK25:AK27,AO25:AO27,AQ25:AQ27) ) -> 0 | AQ28: =InputErrorVerbose("User","Value",AK28,AO28) + Flag_ApplyUserInputs_Inv -> 4 | AR28: =InputErrorVerbose("User","Desc",AK28,AO28) -> Value is zero | BK28: =DEGREES(BK27) -> 0.01671126855 | BL28: deg | BS28: =IsPriority( Resolved_Lumens_Min, Resolved_Lumens_Max, SetPrecision(BV28 / IF( $CB$9=0, Resolved_ScreenEff_Min, 1 )), SetPrecision(BZ28 / IF( $CB$9=0, Resolved_ScreenEff_Max, 1 )) ) -> 0 | BT28: app lumens | BV28: =I25 ->  | BZ28: =M25 ->  | CB28: =InputErrorVerbose("App","Value",BV28,BZ28) -> 2 | CC28: =InputErrorVerbose("App","Desc",BV28,BZ28) -> Error with input value | CD28: App Default ( Lumens ) | CE28: type_1
BK29: =BK28*60 -> 1.002676113 | BL29: arcmin | BS29: =IsPriority( Resolved_Lumens_Min, Resolved_Lumens_Max, SetPrecision(BV29 / IF( $CB$9=0, Resolved_ScreenEff_Min, 1 )), SetPrecision(BZ29 / IF( $CB$9=0, Resolved_ScreenEff_Max, 1 )) ) -> 0 | BT29: app lumens from nits | BV29: =I26 ->  | BZ29: =M26 ->  | CB29: =InputErrorVerbose("App","Value",BV29,BZ29) -> 2 | CC29: =InputErrorVerbose("App","Desc",BV29,BZ29) -> Error with input value | CD29: derived from App Default - Nits | CE29: type_2
AO30: 1000000000 | BS30: =IsPriority( Resolved_Lumens_Min, Resolved_Lumens_Max, SetPrecision(BV30 / IF( $CB$9=0, Resolved_ScreenEff_Min, 1 )), SetPrecision(BZ30 / IF( $CB$9=0, Resolved_ScreenEff_Max, 1 )) ) -> 0 | BT30: app lumens from ambient | BV30: =I27 ->  | BZ30: =M27 ->  | CB30: =InputErrorVerbose("App","Value",BV30,BZ30) -> 2 | CC30: =InputErrorVerbose("App","Desc",BV30,BZ30) -> Error with input value | CD30: derived from App Default - Ambient Light Level | CE30: type_3
BK31: https://en.wikipedia.org/wiki/Visual_acuity#Definition | BT31: Insufficient Inputs | BV31: -- | BW31: -- | BZ31: -- | CA31: -- | CB31: 0 | CC31: -- | CD31: Insufficient inputs | CE31: type_4
BT32: resolved lumens | BV32: =SetPrecision( ResolvePriority("Min",BV25:BV30,BZ25:BZ30,CB25:CB30) / IF( $CB$9=0, Resolved_ScreenEff_Min, 1 ) ) -> 0 | BZ32: =SetPrecision( ResolvePriority("Max",BV25:BV30,BZ25:BZ30,CB25:CB30) / IF( $CB$9=0, Resolved_ScreenEff_Max, 1 ) ) -> 0 | CB32: =InputErrorVerbose("App","Value",BV32,BZ32) -> 4 | CC32: =InputErrorVerbose("App","Desc",BV32,BZ32) -> Value is zero | CD32: =ResolvePriority("Min",CD25:CD31,CD25:CD31,CB25:CB31) -> Insufficient inputs | CE32: =ResolvePriority("Min",CE25:CE31,CE25:CE31,CB25:CB31) -> type_4
B34: Display
G35: display app ambient | I35: =IF( O$19=0, I18, "--" ) -> -- | M35: =IF( O$19=0, M18, "--" ) -> -- | O35: =O25 -> 2 | P35: Error with input value | U35: in .vs. calc_from | AI35: display user ambient | AK35: =IF( AK17>0, AK18, "--" ) -> -- | AO35: =IF( AO17>0, AO18, "--" ) -> -- | AQ35: =AQ19 -> 4 | AR35: =IF( AT35=1, AS35, "" ) ->  | AS35: =SanitizedErrorMsg(AQ35) ->  | AT35: =IF( LEFT(AS35) = "(", 0, 1 ) -> 1 | BT35: display final ambient | BV35: =IF( $CB32=0, INDEX(List_AmbientLightLevel, MATCH((BV32*Resolved_ScreenEff_Min)/(BV24*PI()), List_AmbientLightNitValue ), 0 ), "--" ) -> -- | BZ35: =IF( $CB32=0, INDEX(List_AmbientLightLevel, MATCH((BZ32*Resolved_ScreenEff_Max)/(BZ24*PI()), List_AmbientLightNitValue ), 0 ), "--" ) -> --
G36: display app nits | I36: =IF( O$20=0, CONCATENATE( I20, " nits" ), "--" ) -> -- | M36: =IF( O$20=0, CONCATENATE( M20, " nits" ), "--" ) -> -- | O36: 2 | P36: Error with input value | U36: in .vs. calc_from | AI36: display user nits | AK36: =IF( OR(AQ$20=0, AQ$20=3), CONCATENATE( AK20, " nits" ), "--" ) -> -- | AO36: =IF( OR(AQ$20=0, AQ$20=3), CONCATENATE( AO20, " nits" ), "--" ) -> -- | AQ36: =AQ20 -> 4 | AR36: =IF( AT36=1, AS36, "" ) ->  | AS36: =SanitizedErrorMsg(AQ36) ->  | AT36: =IF( LEFT(AS36) = "(", 0, 1 ) -> 1 | BT36: display final nits | BV36: =IF( AND($CB32=0, $CB24=0), CONCATENATE( SetPrecision( (BV32*Resolved_ScreenEff_Min)/(BV24*PI()) ), " nits" ), "-- nits" ) -> -- nits | BZ36: =IF( AND($CB32=0, $CB24=0), CONCATENATE( SetPrecision( (BZ32*Resolved_ScreenEff_Max)/(BZ24*PI()) ), " nits" ), "-- nits" ) -> -- nits | CC36: =IF( CB32=0, IF( CE32="type_1", IF( CB24=0, "derived from lumens value", "insufficient inputs"), IF( CE32="type_2", CD32, IF( CE32="type_3", IF( CB24=0, CD32, "insufficient inputs" ) ) ) ), "insufficient inputs" ) -> insufficient inputs
G37: display app lumens | I37: =IF( O$21=0, CONCATENATE( I21, " lm" ), "--" ) -> -- | M37: =IF( O$21=0, CONCATENATE( M21, " lm" ), "--" ) -> -- | O37: 2 | P37: Error with input value | U37: in .vs. calc_from | AI37: display user lumens | AK37: =IF( OR(AQ$21=0, AQ$21=3), CONCATENATE( AK21, " lm" ), "--" ) -> -- | AO37: =IF( OR(AQ$21=0, AQ$21=3), CONCATENATE( AO21, " lm" ), "--" ) -> -- | AQ37: =AQ21 -> 4 | AR37: =IF( AT37=1, AS37, "" ) ->  | AT37: =IF( LEFT(AS37) = "(", 0, 1 ) -> 1 | BT37: display final lumens | BV37: =IF( $CB32=0, CONCATENATE( BV32, " lm" ), "-- lm" ) -> -- lm | BZ37: =IF( $CB32=0, CONCATENATE( BZ32, " lm" ), "-- lm" ) -> -- lm | CC37: =IF( CB32=0, IF( CE32="type_1", CD32, IF( CE32="type_2", "derived from nits value", IF( CE32="type_3", CD32, "insufficient inputs" ) ) ), "insufficient inputs" ) -> insufficient inputs
I38: lumens = nits * area * pi() | AK38: lumens = nits * area * pi() | BV38: =IF( AND($CB32=0, $CB24=0), SetPrecision( (BV32 * IF( $CB$9=0, Resolved_ScreenEff_Min, 1 ))/(BV24*PI()) ), 0 ) -> 0 | BZ38: =IF( AND($CB32=0, $CB24=0), SetPrecision( (BZ32*IF( $CB$9=0, Resolved_ScreenEff_Max, 1 ))/(BZ24*PI()) ), 0 ) -> 0
BV39: lumens = nits * area * pi()
D40: Image Size | AG40: Image Size | AW40: Image Size | BO40: Image Size
B41: Inputs
G42: app def width | I42: =AppDef_ImageWidth_Min -> -- | M42: =AppDef_ImageWidth_Max -> -- | O42: =InputErrorVerbose("App","Value",I42,M42) -> 1 | P42: =InputErrorVerbose("App","Desc",I42,M42) -> No Default App Value | U42: -- .vs. err | AI42: user width | AK42: =TSize_ImageWidth_Min -> 0 | AO42: =TSize_ImageWidth_Max -> 0 | AQ42: =InputErrorVerbose("User","Value",AK42,AO42) -> 4 | AR42: =InputErrorVerbose("User","Desc",AK42,AO42) -> Value is zero
G43: app def height | I43: =AppDef_ImageHeight_Min -> -- | M43: =AppDef_ImageHeight_Max -> -- | O43: 1 | P43: No Default App Value | U43: -- .vs. err | AI43: user height | AK43: =TSize_ImageHeight_Min -> 0 | AO43: =TSize_ImageHeight_Max -> 0 | AQ43: =InputErrorVerbose("User","Value",AK43,AO43) -> 4 | AR43: =InputErrorVerbose("User","Desc",AK43,AO43) -> Value is zero
G44: app def diag | I44: =AppDef_ImageDiag_Min -> -- | M44: =AppDef_ImageDiag_Max -> -- | O44: =InputErrorVerbose("App","Value",I44,M44) -> 1 | P44: =InputErrorVerbose("App","Desc",I44,M44) -> No Default App Value | U44: -- .vs. err | AI44: user diag | AK44: =TSize_ImageDiag_Min -> 0 | AO44: =TSize_ImageDiag_Max -> 0 | AQ44: =InputErrorVerbose("User","Value",AK44,AO44) -> 4 | AR44: =InputErrorVerbose("User","Desc",AK44,AO44) -> Value is zero
G45: app def AR num | I45: =AppDef_ImageARNum_Min -> -- | M45: =AppDef_ImageARNum_Max -> -- | O45: 1 | P45: No Default App Value | U45: -- .vs. err | AI45: user AR num | AK45: =TSize_ImageARNum_Min -> 0 | AO45: =TSize_ImageARNum_Max -> 0 | AQ45: =InputErrorVerbose("User","Value",AK45,AO45) -> 4 | AR45: =InputErrorVerbose("User","Desc",AK45,AO45) -> Value is zero
G46: app def AR den | I46: =AppDef_ImageARDenom_Min -> -- | M46: =AppDef_ImageARDenom_Max -> -- | O46: 1 | P46: No Default App Value | AI46: user AR den | AK46: =TSize_ImageARDenom_Min -> 0 | AO46: =TSize_ImageARDenom_Max -> 0 | AQ46: =InputErrorVerbose("User","Value",AK46,AO46) -> 4 | AR46: Value is zero
G47: app def AR | I47: =SetPrecision( I45/I46 ) ->  | M47: =SetPrecision( M45/M46 ) ->  | O47: 2 | P47: Error with input value | AI47: user AR | AK47: =AK45/AK46 ->  | AO47: =AO45/AO46 ->  | AQ47: =InputErrorVerbose("User","Value",AK47,AO47) -> 2 | AR47: Error with input value
B56: Calc
G57: calc app width | I57: =SetPrecision( CalcImageSize( "W", "Val", I$42,I$43,I$44,I$45,I$46 ) ) -> 0 | M57: =SetPrecision( CalcImageSize( "W", "Val", M$42,M$43,M$44,M$45,M$46 ) ) -> 0 | O57: =InputErrorVerbose("App","Value",I57,M57) -> 4 | P57: =InputErrorVerbose("App","Desc",I57,M57) -> Value is zero | Q57: =CalcImageSize( "W", "Src", I$42,I$43,I$44,I$45,I$46 ) -> -- | U57: in .vs. calc .vs. error | AI57: calc user width | AK57: =SetPrecision( CalcImageSize( "W", "Val", AK$42,AK$43,AK$44,AK$45,AK$46 ) ) -> 0 | AO57: =SetPrecision( CalcImageSize( "W", "Val", AO$42,AO$43,AO$44,AO$45,AO$46 ) ) -> 0 | AQ57: =InputErrorVerbose("User","Value",AK57,AO57) -> 4 | AR57: =InputErrorVerbose("User","Desc",AK57,AO57) -> Value is zero | AS57: =CalcImageSize( "W", "Src", AK$42,AK$43,AK$44,AK$45,AK$46 ) -> -- | BP57: =IsPriority( BV57, 1, I57, 1 ) -> 0 | BQ57: =IsPriority( BZ57, 1, M57, 1 ) -> 0 | BR57: =IsPriority( BV57, 1, AK57, 1 ) -> 0 | BS57: =IsPriority( BZ57, 1, AO57, 1 ) -> 0 | BT57: resolved width | BV57: =IF( $AQ$62=0, Flag_ApplyUserInputs * AK57, IF( $O$62=0, I57, "--" ) ) -> -- | BZ57: =IF( $AQ$62=0, Flag_ApplyUserInputs * AO57, IF( $O$62=0, M57, "--" ) ) -> -- | CB57: =InputErrorVerbose("App","Value",BV57,BZ57) -> 1 | CC57: =InputErrorVerbose("App","Desc",BV57,BZ57) -> No Default App Value | CD57: =IF( AND( $AQ$62=0, AQ57=0 ), IF( AS57="", AS$62, CONCATENATE( "User Input") ), IF( AND( $O$62=0, O57=0 ), IF( Q57="", Q$62, CONCATENATE( "App Default value") ), "insufficient inputs" ) ) -> insufficient inputs
G58: calc app height | I58: =SetPrecision( CalcImageSize( "H", "Val", I$42,I$43,I$44,I$45,I$46 ) ) -> 0 | M58: =SetPrecision( CalcImageSize( "H", "Val", M$42,M$43,M$44,M$45,M$46 ) ) -> 0 | O58: =InputErrorVerbose("App","Value",I58,M58) -> 4 | P58: =InputErrorVerbose("App","Desc",I58,M58) -> Value is zero | Q58: =CalcImageSize( "H", "Src", I$42,I$43,I$44,I$45,I$46 ) -> -- | U58: in .vs. calc .vs. error | AI58: calc user height | AK58: =SetPrecision( CalcImageSize( "H", "Val", AK$42,AK$43,AK$44,AK$45,AK$46 ) ) -> 0 | AO58: =SetPrecision( CalcImageSize( "H", "Val", AO$42,AO$43,AO$44,AO$45,AO$46 ) ) -> 0 | AQ58: =InputErrorVerbose("User","Value",AK58,AO58) -> 4 | AR58: =InputErrorVerbose("User","Desc",AK58,AO58) -> Value is zero | AS58: =CalcImageSize( "H", "Src", AK$42,AK$43,AK$44,AK$45,AK$46 ) -> -- | BP58: =IsPriority( BV58, 1, I58, 1 ) -> 0 | BQ58: =IsPriority( BZ58, 1, M58, 1 ) -> 0 | BR58: =IsPriority( BV58, 1, AK58, 1 ) -> 0 | BS58: =IsPriority( BZ58, 1, AO58, 1 ) -> 0 | BT58: resolved height | BV58: =IF( $AQ$62=0, Flag_ApplyUserInputs * AK58, IF( $O$62=0, I58, "--" ) ) -> -- | BZ58: =IF( $AQ$62=0, Flag_ApplyUserInputs * AO58, IF( $O$62=0, M58, "--" ) ) -> -- | CB58: =InputErrorVerbose("App","Value",BV58,BZ58) -> 1 | CC58: =InputErrorVerbose("App","Desc",BV58,BZ58) -> No Default App Value | CD58: =IF( AND( $AQ$62=0, AQ58=0 ), IF( AS58="", AS$62, CONCATENATE( "User Input") ), IF( AND( $O$62=0, O58=0 ), IF( Q58="", Q$62, CONCATENATE( "App Default value") ), "insufficient inputs" ) ) -> insufficient inputs
G59: calc app diag | I59: =SetPrecision( CalcImageSize( "D", "Val", I$42,I$43,I$44,I$45,I$46 ) ) -> 0 | M59: =SetPrecision( CalcImageSize( "D", "Val", M$42,M$43,M$44,M$45,M$46 ) ) -> 0 | O59: =InputErrorVerbose("App","Value",I59,M59) -> 4 | P59: =InputErrorVerbose("App","Desc",I59,M59) -> Value is zero | Q59: =CalcImageSize( "D", "Src", I$42,I$43,I$44,I$45,I$46 ) -> -- | U59: in .vs. calc .vs. error | AI59: calc user diag | AK59: =SetPrecision( CalcImageSize( "D", "Val", AK$42,AK$43,AK$44,AK$45,AK$46 ) ) -> 0 | AO59: =SetPrecision( CalcImageSize( "D", "Val", AO$42,AO$43,AO$44,AO$45,AO$46 ) ) -> 0 | AQ59: =InputErrorVerbose("User","Value",AK59,AO59) -> 4 | AR59: =InputErrorVerbose("User","Desc",AK59,AO59) -> Value is zero | AS59: =CalcImageSize( "D", "Src", AK$42,AK$43,AK$44,AK$45,AK$46 ) -> -- | BP59: =IsPriority( BV59, 1, I59, 1 ) -> 0 | BQ59: =IsPriority( BZ59, 1, M59, 1 ) -> 0 | BR59: =IsPriority( BV59, 1, AK59, 1 ) -> 0 | BS59: =IsPriority( BZ59, 1, AO59, 1 ) -> 0 | BT59: resolved diag | BV59: =IF( $AQ$62=0, Flag_ApplyUserInputs * AK59, IF( $O$62=0, I59, "--" ) ) -> -- | BZ59: =IF( $AQ$62=0, Flag_ApplyUserInputs * AO59, IF( $O$62=0, M59, "--" ) ) -> -- | CB59: =InputErrorVerbose("App","Value",BV59,BZ59) -> 1 | CC59: =InputErrorVerbose("App","Desc",BV59,BZ59) -> No Default App Value | CD59: =IF( AND( $AQ$62=0, AQ59=0 ), IF( AS59="", AS$62, CONCATENATE( "User Input") ), IF( AND( $O$62=0, O59=0 ), IF( Q59="", Q$62, CONCATENATE( "App Default value") ), "insufficient inputs" ) ) -> insufficient inputs
G60: calc app AR | I60: =SetPrecision( CalcImageSize( "AR", "Val", I$42,I$43,I$44,I$45,I$46 ) ) -> 0 | M60: =SetPrecision( CalcImageSize( "AR", "Val", M$42,M$43,M$44,M$45,M$46 ) ) -> 0 | O60: =InputErrorVerbose("App","Value",I60,M60) -> 4 | P60: =InputErrorVerbose("App","Desc",I60,M60) -> Value is zero | Q60: =CalcImageSize( "AR", "Src", I$42,I$43,I$44,I$45,I$46 ) -> -- | U60: in .vs. calc .vs. error | AI60: calc user AR | AK60: =SetPrecision( CalcImageSize( "AR", "Val", AK$42,AK$43,AK$44,AK$45,AK$46 ) ) -> 0 | AO60: =SetPrecision( CalcImageSize( "AR", "Val", AO$42,AO$43,AO$44,AO$45,AO$46 ) ) -> 0 | AQ60: =InputErrorVerbose("User","Value",AK60,AO60) -> 4 | AR60: =InputErrorVerbose("User","Desc",AK60,AO60) -> Value is zero | AS60: =CalcImageSize( "AR", "Src", AK$42,AK$43,AK$44,AK$45,AK$46 ) -> -- | BP60: =IsPriority( BV60, 1, I60, 1 ) -> 0 | BQ60: =IsPriority( BZ60, 1, M60, 1 ) -> 0 | BR60: =IsPriority( BV60, 1, AK60, 1 ) -> 0 | BS60: =IsPriority( BZ60, 1, AO60, 1 ) -> 0 | BT60: resolved AR | BV60: =IF( $AQ$62=0, Flag_ApplyUserInputs * AK60, IF( $O$62=0, I60, "--" ) ) -> -- | BZ60: =IF( $AQ$62=0, Flag_ApplyUserInputs * AO60, IF( $O$62=0, M60, "--" ) ) -> -- | CB60: =InputErrorVerbose("App","Value",BV60,BZ60) -> 1 | CC60: =InputErrorVerbose("App","Desc",BV60,BZ60) -> No Default App Value | CD60: =IF( AND( $AQ$62=0, AQ60=0 ), IF( AS60="", AS$62, CONCATENATE( "User Input") ), IF( AND( $O$62=0, O60=0 ), IF( Q60="", Q$62, CONCATENATE( "App Default value") ), "insufficient inputs" ) ) -> insufficient inputs
G61: calc app area | I61: =SetPrecision( I57*I58 ) -> 0 | M61: =SetPrecision( M57*M58 ) -> 0 | O61: =InputErrorVerbose("App","Value",I61,M61) -> 4 | P61: =InputErrorVerbose("App","Desc",I61,M61) -> Value is zero | U61: from … | AI61: calc user area | AK61: =SetPrecision( AK57*AK58 ) -> 0 | AO61: =SetPrecision( AO57*AO58 ) -> 0 | AQ61: =InputErrorVerbose("User","Value",AK61,AO61) -> 4 | AR61: =InputErrorVerbose("User","Desc",AK61,AO61) -> Value is zero | BP61: =IsPriority( BV61, 1, I61, 1 ) -> 0 | BQ61: =IsPriority( BZ61, 1, M61, 1 ) -> 0 | BR61: =IsPriority( BV61, 1, AK61, 1 ) -> 0 | BS61: =IsPriority( BZ61, 1, AO61, 1 ) -> 0 | BT61: resolved area | BV61: =IF( $AQ$62=0, AK61, IF( $O$62=0, I61, "--" ) ) -> -- | BZ61: =IF( $AQ$62=0, AO61, IF( $O$62=0, M61, "--" ) ) -> -- | CB61: =InputErrorVerbose("App","Value",BV61,BZ61) -> 1 | CC61: =InputErrorVerbose("App","Desc",BV61,BZ61) -> No Default App Value | CD61: =IF( AND( $AQ$62=0, AQ61=0 ), IF( AS61="", AS$62, CONCATENATE( "User Input") ), IF( AND( $O$62=0, O61=0 ), IF( Q61="", Q$62, CONCATENATE( "App Default value") ), "insufficient inputs" ) ) -> insufficient inputs
G62: total app error | O62: =SUM(O57:O61) -> 20 | Q62: =CONCATENATE( "derived from ", BuildComment( Q57, Q58, Q59, Q60 ) ) -> derived from -- & ------ | AI62: total user error | AQ62: =SUM(AQ57:AQ61) + Flag_ApplyUserInputs_Inv -> 20 | AS62: =CONCATENATE( "derived from ", BuildComment( AS57, AS58, AS59, AS60 ) ) -> derived from -- & ------ | BT62: Insufficient Inputs | BV62: -- | BW62: -- | BZ62: -- | CA62: -- | CB62: 0 | CC62: -- | CD62: Insufficient inputs
BT63: total resolved error | CB63: =SUM(CB57:CB61) -> 5
B65: Display
BT66: Multiplying Factor | BV66: 1 | BZ66: 1 | CD66: =IF( Value_UnitsOfMeasure_Short = " in", 1, IF( Value_UnitsOfMeasure_Short=" ft", 12, IF( Value_UnitsOfMeasure_Short=" m", 39.37008, 0 ) ) ) -> 1
BT67: Width for calculations (inch) | BV67: =BV$66*BV57 ->  | BZ67: =BZ$66*BZ57 -> 
BT68: Height for calculations (inch) | BV68: =BV$66*BV58 ->  | BZ68: =BZ$66*BZ58 -> 
BT69: Diag for calculations (inch) | BV69: =BV$66*BV59 ->  | BZ69: =BZ$66*BZ59 -> 
BT70: AR for calculations (inch) | BV70: =BV$60 -> -- | BZ70: =BZ$60 -> --
BT71: Area for calculations (inch) | BV71: =BV67*BV68 ->  | BZ71: =BZ67*BZ68 -> 
BT73: Multiplying Factor | BV73: =1/12 -> 0.08333333333 | BZ73: =1/12 -> 0.08333333333
BT74: Width for calculations (ft) | BV74: =SetPrecision( BV$73*BV57 ) ->  | BZ74: =SetPrecision( BZ$73*BZ57 ) -> 
BT75: Height for calculations (ft) | BV75: =SetPrecision( BV$73*BV58 ) ->  | BZ75: =SetPrecision( BZ$73*BZ58 ) -> 
BT76: Diag for calculations (ft) | BV76: =SetPrecision( BV$73*BV59 ) ->  | BZ76: =SetPrecision( BZ$73*BZ59 ) -> 
BT77: AR for calculations (ft) | BV77: =BV$60 -> -- | BZ77: =BZ$60 -> --
BT78: Area for calculations (ft) | BV78: =SetPrecision( BV74*BV75 ) ->  | BZ78: =SetPrecision( BZ74*BZ75 ) -> 
BT80: Multiplying Factor | BV80: =1/39.37008 -> 0.02539999919 | BZ80: =1/39.37008 -> 0.02539999919
BT81: Width for calculations (m) | BV81: =SetPrecision( BV$80*BV57 ) ->  | BZ81: =SetPrecision( BZ$80*BZ57 ) -> 
BT82: Height for calculations (m) | BV82: =SetPrecision( BV$80*BV58 ) ->  | BZ82: =SetPrecision( BZ$80*BZ58 ) -> 
BT83: Diag for calculations (m) | BV83: =SetPrecision( BV$80*BV59 ) ->  | BZ83: =SetPrecision( BZ$80*BZ59 ) -> 
BT84: AR for calculations (m) | BV84: =BV$60 -> -- | BZ84: =BZ$60 -> --
BT85: Area for calculations (m) | BV85: =SetPrecision( BV81*BV82 ) ->  | BZ85: =SetPrecision( BZ81*BZ82 ) -> 
F88: =IsPriority( SetPrecision(I$57), SetPrecision(M$57), SetPrecision(I$42), SetPrecision(M$42) ) -> 0 | G88: display app width | I88: =IF( $O42=0, CONCATENATE( SetPrecision(I42 * Value_UnitsOfMeasure_Convert), Value_UnitsOfMeasure_Short ), "--" ) -> -- | M88: =IF( $O42=0, CONCATENATE( SetPrecision(M42 * Value_UnitsOfMeasure_Convert), Value_UnitsOfMeasure_Short ), "--" ) -> -- | AH88: =IsPriority( SetPrecision(AK$57), SetPrecision(AO$57), SetPrecision(AK$42), SetPrecision(AO$42) ) -> 0 | AI88: display user width | AK88: =IF( OR( $AQ42=0, $AQ42=3), CONCATENATE( SetPrecision(AK42 * Value_UnitsOfMeasure_Convert), Value_UnitsOfMeasure_Short ), "--" ) -> -- | AO88: =IF( OR($AQ42=0, $AQ42=3), CONCATENATE( SetPrecision(AO42 * Value_UnitsOfMeasure_Convert), Value_UnitsOfMeasure_Short ), "--" ) -> -- | AQ88: =AQ42 -> 4 | AR88: =IF( AT88=1, AS88, "" ) ->  | AS88: =SanitizedErrorMsg(AQ88) ->  | AT88: =IF( LEFT(AS88) = "(", 0, 1 ) -> 1 | BT88: display final width | BV88: =IF( $CB$63=0, IF( Value_UnitsOfMeasure_Short = " in", CONCATENATE( BV67, Value_UnitsOfMeasure_Short ), IF( Value_UnitsOfMeasure_Short=" ft", CONCATENATE( BV74, Value_UnitsOfMeasure_Short ), IF( Value_UnitsOfMeasure_Short=" m", CONCATENATE( BV81, Value_UnitsOfMeasure_Short ), Value_UnitsOfMeasure_Null ) ) ), Value_UnitsOfMeasure_Null ) -> -- in | BZ88: =IF( $CB$63=0, IF( Value_UnitsOfMeasure_Short = " in", CONCATENATE( BZ67, Value_UnitsOfMeasure_Short ), IF( Value_UnitsOfMeasure_Short=" ft", CONCATENATE( BZ74, Value_UnitsOfMeasure_Short ), IF( Value_UnitsOfMeasure_Short=" m", CONCATENATE( BZ81, Value_UnitsOfMeasure_Short ), Value_UnitsOfMeasure_Null ) ) ), Value_UnitsOfMeasure_Null ) -> -- in
F89: =IsPriority( SetPrecision(I$58), SetPrecision(M$58), SetPrecision(I$43), SetPrecision(M$43) ) -> 0 | G89: display app height | I89: =IF( $O43=0, CONCATENATE( SetPrecision(I43 * Value_UnitsOfMeasure_Convert), Value_UnitsOfMeasure_Short ), "--" ) -> -- | M89: =IF( $O43=0, CONCATENATE( SetPrecision(M43 * Value_UnitsOfMeasure_Convert), Value_UnitsOfMeasure_Short ), "--" ) -> -- | AH89: =IsPriority( SetPrecision(AK$58), SetPrecision(AO$58), SetPrecision(AK$43), SetPrecision(AO$43) ) -> 0 | AI89: display user height | AK89: =IF( OR($AQ43=0, $AQ43=3), CONCATENATE( SetPrecision(AK43 * Value_UnitsOfMeasure_Convert), Value_UnitsOfMeasure_Short ), "--" ) -> -- | AO89: =IF( OR( $AQ43=0, $AQ43=3), CONCATENATE( SetPrecision(AO43 * Value_UnitsOfMeasure_Convert), Value_UnitsOfMeasure_Short ), "--" ) -> -- | AQ89: =AQ43 -> 4 | AR89: =IF( AT89=1, AS89, "" ) ->  | AS89: =SanitizedErrorMsg(AQ89) ->  | AT89: =IF( LEFT(AS89) = "(", 0, 1 ) -> 1 | BT89: display final height | BV89: =IF( $CB$63=0, IF( Value_UnitsOfMeasure_Short = " in", CONCATENATE( BV68, Value_UnitsOfMeasure_Short ), IF( Value_UnitsOfMeasure_Short=" ft", CONCATENATE( BV75, Value_UnitsOfMeasure_Short ), IF( Value_UnitsOfMeasure_Short=" m", CONCATENATE( BV82, Value_UnitsOfMeasure_Short ), Value_UnitsOfMeasure_Null ) ) ), Value_UnitsOfMeasure_Null ) -> -- in | BZ89: =IF( $CB$63=0, IF( Value_UnitsOfMeasure_Short = " in", CONCATENATE( BZ68, Value_UnitsOfMeasure_Short ), IF( Value_UnitsOfMeasure_Short=" ft", CONCATENATE( BZ75, Value_UnitsOfMeasure_Short ), IF( Value_UnitsOfMeasure_Short=" m", CONCATENATE( BZ82, Value_UnitsOfMeasure_Short ), Value_UnitsOfMeasure_Null ) ) ), Value_UnitsOfMeasure_Null ) -> -- in
F90: =IsPriority( SetPrecision(I$59), SetPrecision(M$59), SetPrecision(I$44), SetPrecision(M$44) ) -> 0 | G90: display app diag | I90: =IF( $O44=0, CONCATENATE( SetPrecision(I44 * Value_UnitsOfMeasure_Convert), Value_UnitsOfMeasure_Short ), "--" ) -> -- | M90: =IF( $O44=0, CONCATENATE( SetPrecision(M44 * Value_UnitsOfMeasure_Convert), Value_UnitsOfMeasure_Short ), "--" ) -> -- | AH90: =IsPriority( SetPrecision(AK$59), SetPrecision(AO$59), SetPrecision(AK$44), SetPrecision(AO$44) ) -> 0 | AI90: display user diag | AK90: =IF( OR( $AQ44=0, $AQ44=3), CONCATENATE( SetPrecision(AK44 * Value_UnitsOfMeasure_Convert), Value_UnitsOfMeasure_Short ), "--" ) -> -- | AO90: =IF( OR( $AQ44=0, $AQ44=3), CONCATENATE( SetPrecision(AO44 * Value_UnitsOfMeasure_Convert), Value_UnitsOfMeasure_Short ), "--" ) -> -- | AQ90: =MAX( AQ44, AQ59) -> 4 | AR90: =IF( AT90=1, AS90, "" ) ->  | AS90: =SanitizedErrorMsg(AQ90) ->  | AT90: =IF( LEFT(AS90) = "(", 0, 1 ) -> 1 | BT90: display final diag | BV90: =IF( $CB$63=0, IF( Value_UnitsOfMeasure_Short = " in", CONCATENATE( BV69, Value_UnitsOfMeasure_Short ), IF( Value_UnitsOfMeasure_Short=" ft", CONCATENATE( BV76, Value_UnitsOfMeasure_Short ), IF( Value_UnitsOfMeasure_Short=" m", CONCATENATE( BV83, Value_UnitsOfMeasure_Short ), Value_UnitsOfMeasure_Null ) ) ), Value_UnitsOfMeasure_Null ) -> -- in | BZ90: =IF( $CB$63=0, IF( Value_UnitsOfMeasure_Short = " in", CONCATENATE( BZ69, Value_UnitsOfMeasure_Short ), IF( Value_UnitsOfMeasure_Short=" ft", CONCATENATE( BZ76, Value_UnitsOfMeasure_Short ), IF( Value_UnitsOfMeasure_Short=" m", CONCATENATE( BZ83, Value_UnitsOfMeasure_Short ), Value_UnitsOfMeasure_Null ) ) ), Value_UnitsOfMeasure_Null ) -> -- in
F91: =IsPriority( SetPrecision(I$60), SetPrecision(M$60), SetPrecision(I$47), SetPrecision(M$47) ) -> 0 | G91: display app AR | I91: =IF( SUM($O45:$O47)=0, CONCATENATE( I45, ":", I46, " ( ", SetPrecision(I47), " )"), "--" ) -> -- | M91: =IF( SUM($O45:$O47)=0, CONCATENATE( M45, ":", M46, " ( ", SetPrecision(M47), " )"), "--" ) -> -- | AH91: =IsPriority( SetPrecision(AK$60), SetPrecision(AO$60), SetPrecision(AK$47), SetPrecision(AO$47) ) -> 0 | AI91: display user AR | AK91: =IF( SUM($AQ45:$AQ47)=0, CONCATENATE( AK45, ":", AK46, " ( ", SetPrecision(AK47), " )"), "--" ) -> -- | AO91: =IF( SUM($AQ45:$AQ47)=0, CONCATENATE( AO45, ":", AO46, " ( ", SetPrecision(AO47), " )"), "--" ) -> -- | AQ91: =IF( OR( AQ45=3, AQ46=3), 3, MAX(AQ45:AQ46) ) -> 4 | AR91: =IF( AT91=1, AS91, "" ) ->  | AS91: =SanitizedErrorMsg(AQ91) ->  | AT91: =IF( LEFT(AS91) = "(", 0, 1 ) -> 1 | BT91: display final AR | BV91: =IF( $CB$63=0, IF( Value_UnitsOfMeasure_Short = " in", BV70, IF( Value_UnitsOfMeasure_Short=" ft", BV77, IF( Value_UnitsOfMeasure_Short=" m", BV84, "--" ) ) ), "--" ) -> -- | BZ91: =IF( $CB$63=0, IF( Value_UnitsOfMeasure_Short = " in", BZ70, IF( Value_UnitsOfMeasure_Short=" ft", BZ77, IF( Value_UnitsOfMeasure_Short=" m", BZ84, "--" ) ) ), "--" ) -> --
G92: display app area | I92: =IF( $O$62=0, CONCATENATE( SetPrecision(I61), Value_UnitsOfMeasure_AreaShort ), "--" ) -> -- | M92: =IF( $O$62=0, CONCATENATE( SetPrecision(M61), Value_UnitsOfMeasure_AreaShort ), "--" ) -> -- | AI92: display user area | AK92: =IF( $O$62=0, CONCATENATE( SetPrecision(AK61), Value_UnitsOfMeasure_AreaShort ), "--" ) -> -- | AO92: =IF( $AQ$62=0, CONCATENATE( SetPrecision(AO61), Value_UnitsOfMeasure_AreaShort ), "--" ) -> -- | AQ92: =AQ61 -> 4 | AR92: =IF( AT92=1, AS92, "" ) ->  | AS92: =SanitizedErrorMsg(AQ92) ->  | AT92: =IF( LEFT(AS92) = "(", 0, 1 ) -> 1 | BT92: display final area | BV92: =IF( $CB$63=0, IF( Value_UnitsOfMeasure_Short = " in", CONCATENATE( SetPrecision(BV71), Value_UnitsOfMeasure_AreaShort ), IF( Value_UnitsOfMeasure_Short=" ft", CONCATENATE( BV78, Value_UnitsOfMeasure_AreaShort ), IF( Value_UnitsOfMeasure_Short=" m", CONCATENATE( BV85, Value_UnitsOfMeasure_AreaShort ), Value_UnitsOfMeasure_AreaNull ) ) ), Value_UnitsOfMeasure_AreaNull ) -> -- sqr in | BZ92: =IF( $CB$63=0, IF( Value_UnitsOfMeasure_Short = " in", CONCATENATE( SetPrecision(BZ71), Value_UnitsOfMeasure_AreaShort ), IF( Value_UnitsOfMeasure_Short=" ft", CONCATENATE( BZ78, Value_UnitsOfMeasure_AreaShort ), IF( Value_UnitsOfMeasure_Short=" m", CONCATENATE( BZ85, Value_UnitsOfMeasure_AreaShort ), Value_UnitsOfMeasure_AreaNull ) ) ), Value_UnitsOfMeasure_AreaNull ) -> -- sqr in
D94: Resolution | AG94: Resolution | AW94: Resolution | BO94: Resolution
B95: Input
BT96: Resolved Source | BV96: =IF( AND( Flag_ApplyUserInputs=1, ( (MIN(AQ98:AQ99) + MIN(AQ105:AQ112)) = 0) ), "User", IF( (MIN(O98:O99) + MIN(O105:O112)) = 0, "AppDef", "--" ) ) -> --
G98: App Viewing Distance | I98: =AppDef_ViewDist_Min -> -- | M98: =AppDef_ViewDist_Max -> -- | O98: =InputErrorVerbose("App","Value",I98,M98) -> 1 | P98: =InputErrorVerbose("App","Desc",I98,M98) -> No Default App Value | AI98: User Viewing Distance | AK98: =TRes_ViewDist_xMin -> 0 | AO98: =TRes_ViewDist_xMax -> 0 | AQ98: =InputErrorVerbose("User","Value",AK98,AO98) -> 4 | AR98: =InputErrorVerbose("User","Desc",AK98,AO98) -> Value is zero
G99: App Horizontal Image FOV | I99: =AppDef_FOV_Min -> -- | M99: =AppDef_FOV_Max -> -- | O99: =InputErrorVerbose("App","Value",I99,M99) -> 1 | P99: =InputErrorVerbose("App","Desc",I99,M99) -> No Default App Value | AI99: User Horizontal Image FOV | AK99: =TRes_FOV_Min -> 0 | AO99: =TRes_FOV_Max -> 0 | AQ99: =InputErrorVerbose("User","Value",AK99,AO99) -> 4 | AR99: =InputErrorVerbose("User","Desc",AK99,AO99) -> Value is zero
F101: =IsPriority( SetPrecision(I101), SetPrecision(M101), SetPrecision(I98), SetPrecision(M98) ) -> 0 | G101: Calc Viewing Distance | I101: =SetPrecision( CalcVDistFOV( "VDist", "Val", I98, I99, I133 ) ) -> 0 | M101: =SetPrecision( CalcVDistFOV( "VDist", "Val", M98, M99, M133 ) ) -> 0 | O101: =InputErrorVerbose("App","Value",I101,M101) -> 4 | P101: =InputErrorVerbose("App","Desc",I101,M101) -> Value is zero | Q101: =CalcVDistFOV( "VDist", "Src", I98, I99, I133 ) -> -- | AH101: =IsPriority( SetPrecision(AK101), SetPrecision(AO101), SetPrecision(AK98), SetPrecision(AO98) ) -> 0 | AI101: Calc Viewing Distance | AK101: =SetPrecision( CalcVDistFOV( "VDist", "Val", AK98, AK99, AK133 ) ) -> 0 | AO101: =SetPrecision( CalcVDistFOV( "VDist", "Val", AO98, AO99, AO133 ) ) -> 0 | AQ101: =InputErrorVerbose("User","Value",AK101,AO101) -> 4 | AR101: =InputErrorVerbose("User","Desc",AK101,AO101) -> Value is zero | AS101: =CalcVDistFOV( "VDist", "Src", AK98, AK99, AK133 ) -> -- | BT101: Resolved Viewing Distance | BV101: =IF( $BV$96="User", AK101, IF( $BV$96="AppDef", I101, "--") ) -> -- | BZ101: =IF( $BV$96="User", AO101, IF( $BV$96="AppDef", M101, "--") ) -> -- | CB101: =InputErrorVerbose("App","Value",BV101,BZ101) -> 1 | CC101: =InputErrorVerbose("App","Desc",BV101,BZ101) -> No Default App Value
F102: =IsPriority( SetPrecision(I102), SetPrecision(M102), SetPrecision(I99), SetPrecision(M99) ) -> 0 | G102: Calc Horizontal Image FOV | I102: =SetPrecision( CalcVDistFOV( "FOV", "Val", I98, I99, I133 ) ) -> 0 | M102: =SetPrecision( CalcVDistFOV( "FOV", "Val", M98, M99, M133 ) ) -> 0 | O102: =InputErrorVerbose("App","Value",I102,M102) -> 4 | P102: =InputErrorVerbose("App","Desc",I102,M102) -> Value is zero | Q102: =CalcVDistFOV( "FOV", "Src", I98, I99, I133 ) -> -- | AH102: =IsPriority( SetPrecision(AK102), SetPrecision(AO102), SetPrecision(AK99), SetPrecision(AO99) ) -> 0 | AI102: Calc Horizontal Image FOV | AK102: =SetPrecision( CalcVDistFOV( "FOV", "Val", AK98, AK99, AK133 ) ) -> 0 | AO102: =SetPrecision( CalcVDistFOV( "FOV", "Val", AO98, AO99, AO133 ) ) -> 0 | AQ102: =InputErrorVerbose("User","Value",AK102,AO102) -> 4 | AR102: =InputErrorVerbose("User","Desc",AK102,AO102) -> Value is zero | AS102: =CalcVDistFOV( "FOV", "Src", AK98, AK99, AK133 ) -> -- | BT102: Resolved Horizontal Image FOV | BV102: =IF( $BV$96="User", AK102, IF( $BV$96="AppDef", I102, "--") ) -> -- | BZ102: =IF( $BV$96="User", AO102, IF( $BV$96="AppDef", M102, "--") ) -> -- | CB102: =InputErrorVerbose("App","Value",BV102,BZ102) -> 1 | CC102: =InputErrorVerbose("App","Desc",BV102,BZ102) -> No Default App Value
B104: Calc
G105: App Pixels Per Degree | I105: =AppDef_PxPerDeg_Min -> -- | M105: =AppDef_PxPerDeg_Max -> -- | O105: =InputErrorVerbose("App","Value",I105,M105) -> 1 | P105: =InputErrorVerbose("App","Desc",I105,M105) -> No Default App Value | AI105: User Pixels Per Degree | AK105: =TRes_PxPerDeg_Min -> 0 | AO105: =TRes_PxPerDeg_Max -> 0 | AQ105: =InputErrorVerbose("User","Value",AK105,AO105) -> 4 | AR105: =InputErrorVerbose("User","Desc",AK105,AO105) -> Value is zero | BT105: Resolved Pixels Per Degree | BV105: =IF( $BV$96="User", AK105, IF( $BV$96="AppDef", I105, "--") ) -> -- | BZ105: =IF( $BV$96="User", AO105, IF( $BV$96="AppDef", M105, "--") ) -> -- | CB105: =InputErrorVerbose("App","Value",BV105,BZ105) -> 1 | CC105: =InputErrorVerbose("App","Desc",BV105,BZ105) -> No Default App Value
G106: App Pixels per inch | I106: =AppDef_PxPerInch_Min -> -- | M106: =AppDef_PxPerInch_Max -> -- | O106: =InputErrorVerbose("App","Value",I106,M106) -> 1 | P106: =InputErrorVerbose("App","Desc",I106,M106) -> No Default App Value | AI106: User Pixels per inch | AK106: =TRes_PxDens_Min -> 0 | AO106: =TRes_PxDens_Max -> 0 | AQ106: =InputErrorVerbose("User","Value",AK106,AO106) -> 4 | AR106: =InputErrorVerbose("User","Desc",AK106,AO106) -> Value is zero | BT106: Resolved Pixels per inch | BV106: =IF( $BV$96="User", AK106, IF( $BV$96="AppDef", I106, "--") ) -> -- | BZ106: =IF( $BV$96="User", AO106, IF( $BV$96="AppDef", M106, "--") ) -> -- | CB106: =InputErrorVerbose("App","Value",BV106,BZ106) -> 1 | CC106: =InputErrorVerbose("App","Desc",BV106,BZ106) -> No Default App Value
G107: App Pixels per mm | I107: =AppDef_PxPerMM_Min -> -- | M107: =AppDef_PxPerMM_Max -> -- | O107: =InputErrorVerbose("App","Value",I107,M107) -> 1 | P107: =InputErrorVerbose("App","Desc",I107,M107) -> No Default App Value | AI107: User Pixels per mm | BT107: Resolved Pixels per mm | BV107: =IF( $BV$96="User", AK107, IF( $BV$96="AppDef", I107, "--") ) -> -- | BZ107: =IF( $BV$96="User", AO107, IF( $BV$96="AppDef", M107, "--") ) -> -- | CB107: =InputErrorVerbose("App","Value",BV107,BZ107) -> 1 | CC107: =InputErrorVerbose("App","Desc",BV107,BZ107) -> No Default App Value
B109: Input
G110: App Text Height | I110: 1 | M110: 1 | O110: =InputErrorVerbose("App","Value",I110,M110) -> 0 | P110: =InputErrorVerbose("App","Desc",I110,M110) -> No Error | AI110: User Text Height
G111: App Text Arcmin | I111: =AppDef_TextArcmin_Min -> -- | M111: =AppDef_TextArcmin_Max -> -- | O111: 1 | P111: No Default App Value | AI111: User Text Arcmin
G112: App Points-to-Px Conv Factor | I112: =AppDef_PointsToPixelsFactor_Min -> -- | M112: =AppDef_PointsToPixelsFactor_Max -> -- | O112: =InputErrorVerbose("App","Value",I112,M112) -> 1 | P112: =InputErrorVerbose("App","Desc",I112,M112) -> No Default App Value | AI112: User Points-to-Px Conv Factor | AK112: =TRes_PointsToPixelsFactor_Min -> 0 | AO112: =TRes_PointsToPixelsFactor_Max -> 0 | AQ112: =InputErrorVerbose("User","Value",AK112,AO112) -> 4 | AR112: =InputErrorVerbose("User","Desc",AK112,AO112) -> Value is zero
G113: total app error | O113: =MIN(O98:O99) + MIN(O105:O111) + O112 + Flag_ApplyUserInputs_Inv -> 2 | AI113: total app error | AQ113: =MIN(AQ98:AQ99) + MIN(AQ105:AQ107) + MIN(AQ110:AQ111) + AQ112 + Flag_ApplyUserInputs_Inv -> 12
B115: Calc
G116: Resolved Viewing Distance ( selected units ) | I116: =BV101 -> -- | M116: =BZ101 -> -- | O116: =InputErrorVerbose("App","Value",I116,M116) -> 1 | P116: =InputErrorVerbose("App","Desc",I116,M116) -> No Default App Value | AI116: Resolved Viewing Distance ( selected units ) | AK116: =BV101 -> -- | AO116: =BZ101 -> -- | AQ116: =InputErrorVerbose("App","Value",AK116,AO116) -> 1 | AR116: =InputErrorVerbose("App","Desc",AK116,AO116) -> No Default App Value
G117: Calc Text Height | I117: =SetPrecision( CalcTextHeightArcmin( "THeight", "Val", I116, I110, I111 ) ) -> 0 | M117: =SetPrecision( CalcTextHeightArcmin( "THeight", "Val", M116, M110, M111 ) ) -> 0 | O117: =InputErrorVerbose("App","Value",I117,M117) -> 4 | P117: =InputErrorVerbose("App","Desc",I117,M117) -> Value is zero | Q117: =CalcTextHeightArcmin( "THeight", "Src", I116, I110, I111 ) -> -- | AI117: Calc Text Height | AK117: =SetPrecision( CalcTextHeightArcmin( "THeight", "Val", AK116, AK110, AK111 ) ) -> 0 | AO117: =SetPrecision( CalcTextHeightArcmin( "THeight", "Val", AO116, AO110, AO111 ) ) -> 0 | AQ117: =InputErrorVerbose("User","Value",AK117,AO117) -> 4 | AR117: =InputErrorVerbose("User","Desc",AK117,AO117) -> Value is zero | AS117: =CalcTextHeightArcmin( "THeight", "Src", AK116, AK110, AK111 ) -> -- | BT117: Resolved Text Height | BV117: =IF( $BV$96="User", AK117, IF( $BV$96="AppDef", I117, "--") ) -> -- | BZ117: =IF( $BV$96="User", AO117, IF( $BV$96="AppDef", M117, "--") ) -> -- | CB117: =InputErrorVerbose("App","Value",BV117,BZ117) -> 1 | CC117: =InputErrorVerbose("App","Desc",BV117,BZ117) -> No Default App Value | CD117: =IF( AND( $AQ$120=0, AQ117=0 ), IF( AS117="", AS$120, CONCATENATE( "User Input") ), IF( AND( $O$120=0, O117=0 ), IF( Q117="", Q$120, CONCATENATE( "App Default value") ), "( only valid when specifying text size )" ) ) -> ( only valid when specifying text size )
G118: Calc Text Arcmin | I118: =SetPrecision( CalcTextHeightArcmin( "TArcmin", "Val", I116, I110, I111 ) ) -> 0 | M118: =SetPrecision( CalcTextHeightArcmin( "TArcmin", "Val", M116, M110, M111 ) ) -> 0 | O118: =InputErrorVerbose("App","Value",I118,M118) -> 4 | P118: =InputErrorVerbose("App","Desc",I118,M118) -> Value is zero | Q118: =CalcTextHeightArcmin( "TArcmin", "Src", I116, I110, I111 ) -> -- | AI118: Calc Text Arcmin | AK118: =SetPrecision( CalcTextHeightArcmin( "TArcmin", "Val", AK116, AK110, AK111 ) ) -> 0 | AO118: =SetPrecision( CalcTextHeightArcmin( "TArcmin", "Val", AO116, AO110, AO111 ) ) -> 0 | AQ118: =InputErrorVerbose("User","Value",AK118,AO118) -> 4 | AR118: =InputErrorVerbose("User","Desc",AK118,AO118) -> Value is zero | AS118: =CalcTextHeightArcmin( "TArcmin", "Src", AK116, AK110, AK111 ) -> -- | BT118: Resolved Text Arcmin | BV118: =IF( $BV$96="User", AK118, IF( $BV$96="AppDef", I118, "--") ) -> -- | BZ118: =IF( $BV$96="User", AO118, IF( $BV$96="AppDef", M118, "--") ) -> -- | CB118: =InputErrorVerbose("App","Value",BV118,BZ118) -> 1 | CC118: =InputErrorVerbose("App","Desc",BV118,BZ118) -> No Default App Value | CD118: =IF( AND( $AQ$120=0, AQ118=0 ), IF( AS118="", AS$120, CONCATENATE( "User Input") ), IF( AND( $O$120=0, O118=0 ), IF( Q118="", Q$120, CONCATENATE( "App Default value") ), "( only valid when specifying text size )" ) ) -> ( only valid when specifying text size )
G119: Calc Points-to-Px Conv Factor | I119: =IF( O112=0, I112, "--" ) -> -- | M119: =IF( S112=0, M112, "--" ) -> -- | O119: =InputErrorVerbose("App","Value",I119,M119) -> 1 | P119: =InputErrorVerbose("App","Desc",I119,M119) -> No Default App Value | AI119: Calc Points-to-Px Conv Factor | AK119: =IF( AQ112=0, AK112, "--" ) -> -- | AO119: =IF( AU112=0, AO112, "--" ) -> 0 | AQ119: =InputErrorVerbose("User","Value",AK119,AO119) -> 2 | AR119: =InputErrorVerbose("User","Desc",AK119,AO119) -> Invalid value | BT119: Resolved Points-to-Px Conv Factor | BV119: =IF( $BV$96="User", AK119, IF( $BV$96="AppDef", I119, "--") ) -> -- | BZ119: =IF( $BV$96="User", AO119, IF( $BV$96="AppDef", M119, "--") ) -> -- | CB119: =InputErrorVerbose("App","Value",BV119,BZ119) -> 1 | CC119: =InputErrorVerbose("App","Desc",BV119,BZ119) -> No Default App Value | CD119: =IF( AND( $AQ$120=0, AQ119=0 ), "User Input", IF( AND( $O$120=0, O119=0 ), "App Default value", "--" ) ) -> --
G120: total app error | O120: =MIN(O98:O99) + MIN(O105:O111) + O112 -> 2 | Q120: =CONCATENATE( "derived from ", IF( Q117<>"--", Q117, ""), IF( Q118<>"--", Q118, "") ) -> derived from | AI120: total app error | AQ120: =MIN(AQ98:AQ99) + MIN(AQ105:AQ111) + AQ112 + Flag_ApplyUserInputs_Inv -> 12 | AS120: =CONCATENATE( "derived from ", IF( AS117<>"--", AS117, ""), IF( AS118<>"--", AS118, "") ) -> derived from
B122: Calc
G123: Multiplying Factor | I123: 1 | M123: 1 | AI123: Multiplying Factor | AK123: 1 | AO123: 1
G124: Text Height for calculations (inch) | I124: =SetPrecision( I117*I123 ) -> 0 | M124: =SetPrecision( M117*M123 ) -> 0 | O124: =InputErrorVerbose("App","Value",I124,M124) -> 4 | P124: =InputErrorVerbose("App","Desc",I124,M124) -> Value is zero | AI124: Text Height for calculations (inch) | AK124: 1 | AO124: 1 | AQ124: =InputErrorVerbose("User","Value",AK124,AO124) -> 0 | AR124: =InputErrorVerbose("User","Desc",AK124,AO124) -> No Error
G126: Multiplying Factor | I126: =1/12 -> 0.08333333333 | M126: =1/12 -> 0.08333333333 | AI126: Multiplying Factor | AK126: =1/12 -> 0.08333333333 | AO126: =1/12 -> 0.08333333333
G127: Text Height for calculations (ft) | I127: =SetPrecision( I117*I126 ) -> 0 | M127: =SetPrecision( M117*M126 ) -> 0 | O127: =InputErrorVerbose("App","Value",I127,M127) -> 4 | P127: =InputErrorVerbose("App","Desc",I127,M127) -> Value is zero | AI127: Text Height for calculations (ft) | AK127: =SetPrecision( AK117*AK126 ) -> 0 | AO127: =SetPrecision( AO117*AO126 ) -> 0 | AQ127: =InputErrorVerbose("User","Value",AK127,AO127) -> 4 | AR127: =InputErrorVerbose("User","Desc",AK127,AO127) -> Value is zero
G129: Multiplying Factor | I129: =1/39.37008 -> 0.02539999919 | M129: =1/39.37008 -> 0.02539999919 | AI129: Multiplying Factor | AK129: =1/39.37008 -> 0.02539999919 | AO129: =1/39.37008 -> 0.02539999919
G130: Text Height for calculations (m) | I130: =SetPrecision( I117*I129 ) -> 0 | M130: =SetPrecision( M117*M129 ) -> 0 | O130: =InputErrorVerbose("App","Value",I130,M130) -> 4 | P130: =InputErrorVerbose("App","Desc",I130,M130) -> Value is zero | AI130: Text Height for calculations (m) | AK130: =SetPrecision( AK117*AK129 ) -> 0 | AO130: =SetPrecision( AO117*AO129 ) -> 0 | AQ130: =InputErrorVerbose("User","Value",AK130,AO130) -> 4 | AR130: =InputErrorVerbose("User","Desc",AK130,AO130) -> Value is zero
G132: Image Height (in) | I132: =IF( $CB$63=0, BV68, "--" ) -> -- | M132: =IF( $CB$63=0, BZ68, "--" ) -> -- | O132: =InputErrorVerbose("App","Value",I132,M132) -> 1 | P132: =InputErrorVerbose("App","Desc",I132,M132) -> No Default App Value | AI132: Image Height (in) | AK132: =IF( $CB$63=0, BV68, "--" ) -> -- | AO132: =IF( $CB$63=0, BZ68, "--" ) -> -- | AQ132: =InputErrorVerbose("User","Value",AK132,AO132) -> 1 | AR132: =InputErrorVerbose("User","Desc",AK132,AO132) -> No User Input
G133: Image Width (in) | I133: =IF( $CB$63=0, BV67, "--" ) -> -- | M133: =IF( $CB$63=0, BZ67, "--" ) -> -- | O133: 1 | P133: No Default App Value | AI133: Image Width (in) | AK133: =IF( $CB$63=0, IF( Value_UnitsOfMeasure_Short = " in", BV67, IF( Value_UnitsOfMeasure_Short=" ft", BV74, IF( Value_UnitsOfMeasure_Short=" m", BV81, "--" ) ) ), "--" ) -> -- | AO133: =IF( $CB$63=0, BZ67, "--" ) -> -- | AQ133: =InputErrorVerbose("User","Value",AK133,AO133) -> 1 | AR133: =InputErrorVerbose("User","Desc",AK133,AO133) -> No User Input
G134: Image Width (m) | I134: =SetPrecision( I133*0.0254 ) ->  | M134: =SetPrecision( M133*0.0254 ) ->  | O134: 2 | P134: Error with input value | AI134: Image Width (m) | AK134: =SetPrecision( AK133*0.0254 ) ->  | AO134: =SetPrecision( AO133*0.0254 ) ->  | AQ134: =InputErrorVerbose("User","Value",AK134,AO134) -> 2 | AR134: =InputErrorVerbose("User","Desc",AK134,AO134) -> Error with input value
G135: Aspect Ratio | I135: =BV60 -> -- | M135: =BZ60 -> -- | O135: 1 | P135: No Default App Value | AI135: Aspect Ratio | AK135: =BV60 -> -- | AO135: =BZ60 -> -- | AQ135: =InputErrorVerbose("User","Value",AK135,AO135) -> 1 | AR135: =InputErrorVerbose("User","Desc",AK135,AO135) -> No User Input
G136: TextPoints from TextHeight | I136: =IF( O124=0, SetPrecision( I124*72.727 ), "--") -> -- | M136: =IF( O124=0, SetPrecision( M124*72.727 ), "--") -> -- | O136: 1 | P136: No Default App Value | AI136: TextPoints from TextHeight | AK136: =IF( AQ124=0, SetPrecision( AK124*72.727 ), "--") -> 72.73 | AO136: =IF( AQ124=0, SetPrecision( AO124*72.727 ), "--") -> 72.73 | AQ136: =InputErrorVerbose("User","Value",AK136,AO136) -> 0 | AR136: =InputErrorVerbose("User","Desc",AK136,AO136) -> No Error
G137: TextPixels from Pixels per Point | I137: =IF( AND( O119=0, O136=0 ), ROUNDUP(SetPrecision((I119*I136)+0.2606),0), "--" ) -> -- | M137: =IF( AND( O119=0, O136=0 ), ROUNDUP(SetPrecision((M119*M136)+0.2606),0), "--" ) -> -- | O137: 1 | P137: No Default App Value | AI137: TextPixels from Pixels per Point | AK137: =IF( AND( AQ119=0, AQ136=0 ), ROUNDUP(SetPrecision((AK119*AK136)+0.2606),0), "--" ) -> -- | AO137: =IF( AND( AQ119=0, AQ136=0 ), ROUNDUP(SetPrecision((AO119*AO136)+0.2606),0), "--" ) -> -- | AQ137: 1 | AR137: No User Input
G138: TextRows from TextHeight | I138: =IF( AND( O132=0, O124=0 ), SetPrecision( I132/I124 ), "--" ) -> -- | M138: =IF( AND( O132=0, O124=0 ), SetPrecision( M132/M124 ), "--" ) -> -- | O138: 1 | P138: No Default App Value | AI138: TextRows from TextHeight | AK138: =IF( AND( AQ132=0, AQ124=0 ), SetPrecision( AK132/AK124 ), "--" ) -> -- | AO138: =IF( AND( AQ132=0, AQ124=0 ), SetPrecision( AO132/AO124 ), "--" ) -> -- | AQ138: =InputErrorVerbose("User","Value",AK138,AO138) -> 1 | AR138: =InputErrorVerbose("User","Desc",AK138,AO138) -> No User Input
G139: TextHeight from TextArcmin | I139: -- | M139: -- | O139: =InputErrorVerbose("App","Value",I139,M139) -> 1 | P139: =InputErrorVerbose("App","Desc",I139,M139) -> No Default App Value | AI139: TextHeight from TextArcmin | AK139: -- | AO139: -- | AQ139: 1 | AR139: No User Input
G140: TextPoints from TextArcmin | I140: =IF( O139=0, SetPrecision( I139*72.727 ), "--") -> -- | M140: =IF( O139=0, SetPrecision( M139*72.727 ), "--") -> -- | O140: 1 | P140: No Default App Value | AI140: TextPoints from TextArcmin | AK140: =IF( AQ139=0, SetPrecision( AK139*72.727 ), "--") -> -- | AO140: =IF( AQ139=0, SetPrecision( AO139*72.727 ), "--") -> -- | AQ140: 1 | AR140: No User Input
G141: TextPixels from TextArcmin | I141: =IF( AND( O119=0, O140=0 ), ROUNDUP(SetPrecision((I119*I140)+0.2606),0), "--" ) -> -- | M141: =IF( AND( O119=0, O140=0 ), ROUNDUP(SetPrecision((M119*M140)+0.2606),0), "--" ) -> -- | O141: 1 | P141: No Default App Value | AI141: TextPixels from TextArcmin | AK141: =IF( AND( AQ119=0, AQ140=0 ), ROUNDUP(SetPrecision((AK119*AK140)+0.2606),0), "--" ) -> -- | AO141: =IF( AND( AQ119=0, AQ140=0 ), ROUNDUP(SetPrecision((AO119*AO140)+0.2606),0), "--" ) -> -- | AQ141: 1 | AR141: No User Input
G142: TextRows from TextArcmin | I142: =IF( AND( O132=0, O139=0 ), SetPrecision( I132/I139 ), "--" ) -> -- | M142: =IF( AND( O132=0, O139=0 ), SetPrecision( M132/M139 ), "--" ) -> -- | O142: =InputErrorVerbose("App","Value",I142,M142) -> 1 | P142: =InputErrorVerbose("App","Desc",I142,M142) -> No Default App Value | AI142: TextRows from TextArcmin | AK142: =IF( AND( AQ132=0, AQ139=0 ), SetPrecision( AK132/AK139 ), "--" ) -> -- | AO142: =IF( AND( AQ132=0, AQ139=0 ), SetPrecision( AO132/AO139 ), "--" ) -> -- | AQ142: =InputErrorVerbose("User","Value",AK142,AO142) -> 1 | AR142: =InputErrorVerbose("User","Desc",AK142,AO142) -> No User Input
G144: Calc Resolution from Pixels Per Degree | I144: =IF( ISNUMBER( I105 ), SetPrecision( I102*I105 ), "--" ) -> -- | J144: =IF( ISNUMBER(I144), SetPrecision(I144/$I$135), "--" ) -> -- | M144: =IF( ISNUMBER( M105 ), SetPrecision( M102*M105 ), "--" ) -> -- | N144: =IF( ISNUMBER(M144), SetPrecision(M144/$M$135), "--" ) -> -- | O144: =InputErrorVerbose("App","Value",I144,M144) + InputErrorVerbose("App","Value",J144,N144) -> 2 | P144: =InputErrorVerbose("App","Desc",I144,M144) -> No Default App Value | Q144: blah blah blah | AI144: Calc Resolution from Pixels Per Degree | AK144: =IF( ISNUMBER( AK105 ), SetPrecision( AK102*AK105 ), "--" ) -> 0 | AL144: =IF( ISNUMBER(AK144), SetPrecision(AK144/$AK$135), "--" ) ->  | AO144: =IF( ISNUMBER( AO105 ), SetPrecision( AO102*AO105 ), "--" ) -> 0 | AP144: =IF( ISNUMBER(AO144), SetPrecision(AO144/$AO$135), "--" ) ->  | AQ144: =InputErrorVerbose("User","Value",AK144,AO144) + InputErrorVerbose("User","Value",AL144,AP144) -> 6 | AR144: =InputErrorVerbose("User","Desc",AK144,AO144) -> Value is zero
G145: Calc Resolution from Pixels per inch | I145: =IF( ISNUMBER( I106 ), SetPrecision( I133*I106 ), "--" ) -> -- | J145: =IF( ISNUMBER(I145), SetPrecision(I145/$I$135), "--" ) -> -- | M145: =IF( ISNUMBER( M106 ), SetPrecision( M133*M106 ), "--" ) -> -- | N145: =IF( ISNUMBER(M145), SetPrecision(M145/$M$135), "--" ) -> -- | O145: =InputErrorVerbose("App","Value",I145,M145) + InputErrorVerbose("App","Value",J145,N145) -> 2 | P145: No Default App Value | AI145: Calc Resolution from Pixels per inch | AK145: =IF( ISNUMBER( AK106 ), SetPrecision( AK133*AK106 ), "--" ) ->  | AL145: =IF( ISNUMBER(AK145), SetPrecision(AK145/$AK$135), "--" ) -> -- | AO145: =IF( ISNUMBER( AO106 ), SetPrecision( AO133*AO106 ), "--" ) ->  | AP145: =IF( ISNUMBER(AO145), SetPrecision(AO145/$AO$135), "--" ) -> -- | AQ145: =InputErrorVerbose("User","Value",AK145,AO145) + InputErrorVerbose("User","Value",AL145,AP145) -> 3 | AR145: =InputErrorVerbose("User","Desc",AK145,AO145) -> Error with input value
G146: Calc Resolution from Pixels per mm | I146: =IF( ISNUMBER( I107 ), SetPrecision( I134*1000*I107 ), "--" ) -> -- | J146: =IF( ISNUMBER(I146), SetPrecision(I146/$I$135), "--" ) -> -- | M146: =IF( ISNUMBER( M107 ), SetPrecision( M134*1000*M107 ), "--" ) -> -- | N146: =IF( ISNUMBER(M146), SetPrecision(M146/$M$135), "--" ) -> -- | O146: =InputErrorVerbose("App","Value",I146,M146) + InputErrorVerbose("App","Value",J146,N146) -> 2 | P146: No Default App Value | AI146: Calc Resolution from Pixels per mm | AK146: =IF( ISNUMBER( AK107 ), SetPrecision( AK134*1000*AK107 ), "--" ) -> -- | AL146: =IF( ISNUMBER(AK146), SetPrecision(AK146/$AK$135), "--" ) -> -- | AO146: =IF( ISNUMBER( AO107 ), SetPrecision( AO134*1000*AO107 ), "--" ) -> -- | AP146: =IF( ISNUMBER(AO146), SetPrecision(AO146/$AO$135), "--" ) -> -- | AQ146: =InputErrorVerbose("User","Value",AK146,AO146) + InputErrorVerbose("User","Value",AL146,AP146) -> 2 | AR146: =InputErrorVerbose("User","Desc",AK146,AO146) -> No User Input
G147: Calc Resolution from Pixels per Point | I147: =IF( AND( O135=0, ISNUMBER(J147) ), ROUND( J147*I135, 0 ), "--" ) -> -- | J147: =IF( AND( O137=0, O138=0 ), I138*I137, "--" ) -> -- | M147: =IF( AND( O135=0, ISNUMBER(N147) ), ROUND( N147*M135, 0 ), "--" ) -> -- | N147: =IF( AND( O137=0, O138=0 ), M138*M137, "--" ) -> -- | O147: =InputErrorVerbose("App","Value",I147,M147) + InputErrorVerbose("App","Value",J147,N147) -> 2 | P147: =InputErrorVerbose("App","Desc",I147,M147) -> No Default App Value | AI147: Calc Resolution from Pixels per Point | AK147: =IF( AND( AQ135=0, ISNUMBER(AL147) ), ROUND( AL147*AK135, 0 ), "--" ) -> -- | AL147: =IF( AND( AQ110=0, AQ137=0, AQ138=0 ), AK138*AK137, "--" ) -> -- | AO147: =IF( AND( AQ135=0, ISNUMBER(AP147) ), ROUND( AP147*AO135, 0 ), "--" ) -> -- | AP147: =IF( AND( AQ110=0, AQ137=0, AQ138=0 ), AO138*AO137, "--" ) -> -- | AQ147: =InputErrorVerbose("User","Value",AK147,AO147) + InputErrorVerbose("User","Value",AL147,AP147) -> 2 | AR147: =InputErrorVerbose("User","Desc",AK147,AO147) -> No User Input
G148: Calc Resolution from TextArcmin | I148: =IF( AND( O135=0, ISNUMBER(J148) ), ROUND( J148*I135, 0 ), "--" ) -> -- | J148: =IF( AND( O142=0, O141=0 ), ROUND( I141*I142, 0 ), "--" ) -> -- | M148: =IF( AND( O135=0, ISNUMBER(N148) ), ROUND( N148*M135, 0 ), "--" ) -> -- | N148: =IF( AND( O142=0, O141=0 ), ROUND( M141*M142, 0 ), "--" ) -> -- | O148: =InputErrorVerbose("App","Value",I148,M148) + InputErrorVerbose("App","Value",J148,N148) -> 2 | P148: =InputErrorVerbose("App","Desc",I148,M148) -> No Default App Value | AI148: Calc Resolution from TextArcmin | AK148: =IF( AND( AQ135=0, ISNUMBER(AL148) ), ROUND( AL148*AK135, 0 ), "--" ) -> -- | AL148: =IF( AND( AQ111=0, AQ142=0, AQ141=0 ), ROUND( AK141*AK142, 0 ), "--" ) -> -- | AO148: =IF( AND( AQ135=0, ISNUMBER(AP148) ), ROUND( AP148*AO135, 0 ), "--" ) -> -- | AP148: =IF( AND( AQ111=0, AQ142=0, AQ141=0 ), ROUND( AO141*AO142, 0 ), "--" ) -> -- | AQ148: =InputErrorVerbose("User","Value",AK148,AO148) + InputErrorVerbose("User","Value",AL148,AP148) -> 2 | AR148: =InputErrorVerbose("User","Desc",AK148,AO148) -> No User Input
G149: total app error | O149: =MIN(O144:O148) -> 2 | AI149: total user error | AQ149: =MIN(AQ144:AQ148) + Flag_ApplyUserInputs_Inv -> 2
B151: Calc
BB152: Resolved Resolution | BD152: =BV219 -> 0 | BE152: =BW219 -> 0 | BH152: =BZ219 -> 0 | BI152: =CA219 -> 0 | BJ152: =InputErrorVerbose("App","Value",BD152,BH152) + InputErrorVerbose("App","Value",BE152,BI152) -> 8 | BK152: =InputErrorVerbose("App","Desc",BD152,BH152) -> Value is zero
BB153: Resolved Image Width (in) | BD153: =$BV$67 ->  | BH153: =$BZ$67 ->  | BJ153: =InputErrorVerbose("App","Value",BD153,BH153) -> 2 | BK153: =InputErrorVerbose("App","Desc",BD153,BH153) -> Error with input value
BB154: Resolved Image Width (m) | BD154: =BV81 ->  | BH154: =BZ81 ->  | BJ154: =InputErrorVerbose("App","Value",BD154,BH154) -> 2 | BK154: =InputErrorVerbose("App","Desc",BD154,BH154) -> Error with input value
BB155: Resolved Image Height (in) | BD155: =BV68 ->  | BH155: =BZ68 ->  | BJ155: =InputErrorVerbose("App","Value",BD155,BH155) -> 2 | BK155: =InputErrorVerbose("App","Desc",BD155,BH155) -> Error with input value
BB156: Resolved Image Height (selected units) | BD156: =BV58 -> -- | BH156: =BZ58 -> --
BB157: Resovled Aspect Ratio | BD157: =BV60 -> -- | BH157: =BZ60 -> -- | BJ157: =InputErrorVerbose("App","Value",BD157,BH157) -> 1 | BK157: =InputErrorVerbose("App","Desc",BD157,BH157) -> No Default App Value
BB158: Viewing Distance ( in ) | BD158: =BV135 -> 0 | BH158: =BZ135 -> 0 | BJ158: 4 | BK158: Value is zero
AX159: =IsPriority( BD159, 1, I98, 1 ) -> 0 | AY159: =IsPriority( BH159, 1, M98, 1 ) -> 0 | AZ159: =IsPriority( BD159, 1, AK98, 1 ) -> 0 | BA159: =IsPriority( BH159, 1, AO98, 1 ) -> 0 | BB159: Resolved Viewing Distance ( selected units ) | BD159: =BV101 -> -- | BH159: =BZ101 -> -- | BJ159: 1 | BK159: No Default App Value | BL159: =IF( AND( $AQ$149=0, AQ101=0), IF( AS101="", "derived from FOV (and image size)", "User Input" ), IF( AND( $O$149=0, O101=0 ), IF( Q101="", "derived from FOV (and image size)", "App Default value" ), "insufficient input" ) ) -> insufficient input
AX160: =IsPriority( BD160, 1, I99, 1 ) -> 0 | AY160: =IsPriority( BH160, 1, M99, 1 ) -> 0 | AZ160: =IsPriority( BD160, 1, AK99, 1 ) -> 0 | BA160: =IsPriority( BH160, 1, AO99, 1 ) -> 0 | BB160: Resolved Horizontal Image FOV | BD160: =BV102 -> -- | BH160: =BZ102 -> -- | BJ160: 1 | BK160: No Default App Value | BL160: =IF( AND( $AQ$149=0, AQ102=0), IF( AS102="", "derived from Viewing Distance (and image size)", "User Input" ), IF( AND( $O$149=0, O102=0 ), IF( Q102="", "derived from Viewing Distance (and image size)", "App Default value" ), "insufficient input" ) ) -> insufficient input
BB161: Calc Pixels Per Degree | BD161: =IF( AND( $BJ152=0, $BJ160=0), SetPrecision( BD152/BD160, 0.1 ), "--" ) -> -- | BH161: =IF( AND( $BJ152=0, $BJ160=0), SetPrecision( BH152/BH160, 0.1 ), "--" ) -> -- | BJ161: 1 | BK161: No Default App Value | BL161: =IF( $AQ$144=0, "User Input", IF( $O$144=0, "App Default value", IF( BJ161=0, "derived from other inputs", "insufficient input" ) ) ) -> insufficient input
BB162: Calc Pixels per inch | BD162: =IF( AND( $BJ152=0, $BJ153=0), SetPrecision( BD152/BD153, 0.1 ), "--" ) -> -- | BH162: =IF( AND( $BJ152=0, $BJ153=0), SetPrecision( BH152/BH153, 0.1 ), "--" ) -> -- | BJ162: 1 | BK162: No Default App Value | BL162: =IF( $AQ$145=0, "User Input", IF( $O$145=0, "App Default value", IF( BJ162=0, "derived from other inputs", "insufficient input" ) ) ) -> insufficient input
BB163: Calc Pixels per mm | BD163: =IF( AND( $BJ152=0, $BJ154=0 ), SetPrecision( BD152/(BD154*1000), 0.1 ), "--" ) -> -- | BH163: =IF( AND( $BJ152=0, $BJ154=0 ), SetPrecision( BH152/(BH154*1000), 0.1 ), "--" ) -> -- | BJ163: 1 | BK163: No Default App Value | BL163: =IF( $AQ$146=0, "User Input", IF( $O$146=0, "App Default value", IF( BJ163=0, "derived from other inputs", "insufficient input" ) ) ) -> insufficient input
BB165: Calc Text Height | BD165: =SetPrecision( CalcTextHeightArcmin( "THeight", "Val", BD159, BV117, BV118 ), 0.1 ) -> 0 | BH165: =SetPrecision( CalcTextHeightArcmin( "THeight", "Val", BH159, BZ117, BZ118 ), 0.1 ) -> 0 | BJ165: =InputErrorVerbose("App","Value",BD165,BH165) -> 4 | BK165: =InputErrorVerbose("App","Desc",BD165,BH165) -> Value is zero | BL165: =IF( $AQ$110= 0, "User Input", IF( $O$110= 0, CONCATENATE( "App Default value"), "( only valid when specifying text size )" ) ) -> User Input
BB166: Calc Text Arcmin | BD166: =SetPrecision( CalcTextHeightArcmin( "TArcmin", "Val", BD159, BV117, BV118 ), 0.1 ) -> 0 | BH166: =SetPrecision( CalcTextHeightArcmin( "TArcmin", "Val", BH159, BZ117, BZ118 ), 0.1 ) -> 0 | BJ166: =InputErrorVerbose("App","Value",BD166,BH166) -> 4 | BK166: =InputErrorVerbose("App","Desc",BD166,BH166) -> Value is zero | BL166: =IF( $AQ$111= 0, "User Input", IF( $O$111= 0, CONCATENATE( "App Default value"), "( only valid when specifying text size )" ) ) -> User Input
BB167: Resolved Pixel Points Conversion | BD167: =BV119 -> -- | BH167: =BZ119 -> -- | BJ167: =InputErrorVerbose("App","Value",BD167,BH167) -> 1 | BK167: =InputErrorVerbose("App","Desc",BD167,BH167) -> No Default App Value | BL167: =IF( $AQ$112= 0, "User Input", IF( $O$112= 0, CONCATENATE( "App Default value"), "( only valid when specifying text size )" ) ) -> ( only valid when specifying text size )
BB168: Calc Text Points | BD168: =SetPrecision( (BD165 * 72.727), 0.1 ) -> 0 | BH168: =SetPrecision( (BH165 * 72.727), 0.1 ) -> 0 | BJ168: =InputErrorVerbose("App","Value",BD168,BH168) -> 4 | BK168: =InputErrorVerbose("App","Desc",BD168,BH168) -> Value is zero | BL168: =IF( BJ168=0, "derived value", "( only valid when specifying text size )" ) -> ( only valid when specifying text size )
BB169: Calc Rows of Text | BD169: =ROUND( (BD156/BD165) * 0.75, 0 ) ->  | BH169: =ROUND( (BH156/BH165) * 0.75, 0 ) ->  | BJ169: =InputErrorVerbose("App","Value",BD169,BH169) -> 2 | BK169: =InputErrorVerbose("App","Desc",BD169,BH169) -> Error with input value | BL169: =IF( BJ169=0, "derived value", "( only valid when specifying text size )" ) -> ( only valid when specifying text size )
BB170: total error | BJ170: =MIN(BJ161:BJ163) -> 1
BB172: Multiplying Factor | BD172: 1 | BH172: 1
BB173: View Dist for calculations (inch) | BD173: =SetPrecision( BD$159*BD172 ) ->  | BH173: =SetPrecision( BH$159*BH172 ) -> 
BB175: Multiplying Factor | BD175: =1/12 -> 0.08333333333 | BH175: =1/12 -> 0.08333333333
BB176: View Dist for calculations (ft) | BD176: =SetPrecision( BD$159*BD175 ) ->  | BH176: =SetPrecision( BH$159*BH175 ) -> 
BB178: Multiplying Factor | BD178: =1/39.37008 -> 0.02539999919 | BH178: =1/39.37008 -> 0.02539999919
BB179: Viewing Dist for calculations (m) | BD179: =SetPrecision( BD$159*BD178 ) ->  | BH179: =SetPrecision( BH$159*BH178 ) -> 
B181: Display
G182: display app view distance | I182: =IF( $O98=0, CONCATENATE( SetPrecision(I98 * Value_UnitsOfMeasure_Convert), Value_UnitsOfMeasure_Short ), "--" ) -> -- | M182: =IF( $O98=0, CONCATENATE( SetPrecision(M98 * Value_UnitsOfMeasure_Convert), Value_UnitsOfMeasure_Short ), "--" ) -> -- | AI182: display app view distance | AK182: =IF( $AQ98=0, CONCATENATE( SetPrecision(AK98 * Value_UnitsOfMeasure_Convert), Value_UnitsOfMeasure_Short ), "--" ) -> -- | AO182: =IF( $AQ98=0, CONCATENATE( SetPrecision(AO98 * Value_UnitsOfMeasure_Convert), Value_UnitsOfMeasure_Short ), "--" ) -> -- | AQ182: =AQ98 -> 4 | AR182: =IF( AT182=1, AS182, "" ) ->  | AS182: =SanitizedErrorMsg(AQ182) ->  | AT182: =IF( LEFT(AS182) = "(", 0, 1 ) -> 1 | BB182: display Viewing Dist | BD182: =IF( BJ159=0, IF( Value_UnitsOfMeasure_Short = " in", CONCATENATE( BD173, Value_UnitsOfMeasure_Short ), IF( Value_UnitsOfMeasure_Short=" ft", CONCATENATE( BD176, Value_UnitsOfMeasure_Short ), IF( Value_UnitsOfMeasure_Short=" m", CONCATENATE( BD179, Value_UnitsOfMeasure_Short ), Value_UnitsOfMeasure_Null ) ) ), Value_UnitsOfMeasure_Null ) -> -- in | BH182: =IF( BJ159=0, IF( Value_UnitsOfMeasure_Short = " in", CONCATENATE( BH173, Value_UnitsOfMeasure_Short ), IF( Value_UnitsOfMeasure_Short=" ft", CONCATENATE( BH176, Value_UnitsOfMeasure_Short ), IF( Value_UnitsOfMeasure_Short=" m", CONCATENATE( BH179, Value_UnitsOfMeasure_Short ), Value_UnitsOfMeasure_Null ) ) ), Value_UnitsOfMeasure_Null ) -> -- in
G183: display app FOV | I183: =IF( $O99=0, CONCATENATE( SetPrecision(I99), " deg"), "--" ) -> -- | M183: =IF( $O99=0, CONCATENATE( SetPrecision(M99), " deg"), "--" ) -> -- | AI183: display app FOV | AK183: =IF( $AQ99=0, CONCATENATE( SetPrecision(AK99), " deg"), "--" ) -> -- | AO183: =IF( $AQ99=0, CONCATENATE( SetPrecision(AO99), " deg"), "--" ) -> -- | AQ183: =AQ99 -> 4 | AR183: =IF( AT183=1, AS183, "" ) ->  | AS183: =SanitizedErrorMsg(AQ183) ->  | AT183: =IF( LEFT(AS183) = "(", 0, 1 ) -> 1 | BB183: display FOV | BD183: =IF( BJ160=0, CONCATENATE( SetPrecision(BD160), " deg" ), "--" ) -> -- | BH183: =IF( BJ160=0, CONCATENATE( SetPrecision(BH160), " deg" ), "--" ) -> --
G184: display app ppd | I184: =IF( $O105=0, CONCATENATE( SetPrecision(I105), " px/deg" ), "--" ) -> -- | M184: =IF( $O105=0, CONCATENATE( SetPrecision(M105), " px/deg" ), "--" ) -> -- | AI184: display app ppd | AK184: =IF( $AQ105=0, CONCATENATE( SetPrecision(AK105), " px/deg" ), "--" ) -> -- | AO184: =IF( $AQ105=0, CONCATENATE( SetPrecision(AO105), " px/deg" ), "--" ) -> -- | AQ184: =AQ105 -> 4 | AS184: =SanitizedErrorMsg(AQ184) ->  | AT184: =IF( LEFT(AS184) = "(", 0, 1 ) -> 1 | BB184: display ppd | BD184: =IF( $BJ161=0, CONCATENATE( SetPrecision(BD161), " px/deg" ), "--" ) -> -- | BH184: =IF( $BJ161=0, CONCATENATE( SetPrecision(BH161), " px/deg" ), "--" ) -> --
G185: display app ppin | I185: =IF( $O106=0, CONCATENATE( SetPrecision(I106), " px/in" ), "--" ) -> -- | M185: =IF( $O106=0, CONCATENATE( SetPrecision(M106), " px/in" ), "--" ) -> -- | AI185: display app ppin | AK185: =IF( $AQ106=0, CONCATENATE( SetPrecision(AK106), " px/", Value_UnitsOfMeasure_Short ), "--" ) -> -- | AO185: =IF( $AQ106=0, CONCATENATE( SetPrecision(AO106), " px/",Value_UnitsOfMeasure_Short ), "--" ) -> -- | AQ185: =AQ106 -> 4 | AT185: 1 | BB185: display ppi | BD185: =IF( $BJ162=0, CONCATENATE( SetPrecision(BD162), " px/inch" ), "--" ) -> -- | BH185: =IF( $BJ162=0, CONCATENATE( SetPrecision(BH162), " px/inch" ), "--" ) -> --
G186: display app ppmm | I186: =IF( $O107=0, CONCATENATE( SetPrecision(I107), " px/mm" ), "--" ) -> -- | M186: =IF( $O107=0, CONCATENATE( SetPrecision(M107), " px/mm" ), "--" ) -> -- | AI186: display app ppmm | AK186: =IF( $AQ107=0, CONCATENATE( SetPrecision(AK107), " px/mm" ), "--" ) -> 0 px/mm | AO186: =IF( $AQ107=0, CONCATENATE( SetPrecision(AO107), " px/mm" ), "--" ) -> 0 px/mm | AQ186: =AQ107 -> 0 | AT186: 1 | BB186: display ppmm | BD186: =IF( $BJ163=0, CONCATENATE( SetPrecision(BD163), " px/mm" ), "--" ) -> -- | BH186: =IF( $BJ163=0, CONCATENATE( SetPrecision(BH163), " px/mm" ), "--" ) -> --
G187: display app text height | I187: =IF(O110= 0, CONCATENATE( SetPrecision(I110 * Value_UnitsOfMeasure_Convert), Value_UnitsOfMeasure_Short ), "--" ) -> 1 in | M187: =IF(O110= 0, CONCATENATE( SetPrecision(M110 * Value_UnitsOfMeasure_Convert), Value_UnitsOfMeasure_Short ), "--" ) -> 1 in | AI187: display app text height | AK187: =IF( OR(AQ110= 0, AQ110= 3), CONCATENATE( SetPrecision(AK110 * Value_UnitsOfMeasure_Convert), Value_UnitsOfMeasure_Short ), "--" ) -> 0 in | AO187: =IF( OR(AQ110= 0, AQ110=3), CONCATENATE( SetPrecision(AO110 * Value_UnitsOfMeasure_Convert), Value_UnitsOfMeasure_Short ), "--" ) -> 0 in | AQ187: =AQ110 -> 0 | AS187: =SanitizedErrorMsg(AQ187) ->  | AT187: 1 | BB187: display text height | BD187: =IF( $BJ165=0, CONCATENATE( "~", SetPrecision(BD165 * Value_UnitsOfMeasure_Convert), Value_UnitsOfMeasure_Short ), "--" ) -> -- | BH187: =IF( $BJ165=0, CONCATENATE( "~", SetPrecision(BH165 * Value_UnitsOfMeasure_Convert), Value_UnitsOfMeasure_Short ), "--" ) -> --
G188: display app text archmin | I188: =IF(O111= 0, CONCATENATE( SetPrecision(I111), " arcmin" ), "--" ) -> -- | M188: =IF(O111= 0, CONCATENATE( SetPrecision(M111), " arcmin" ), "--" ) -> -- | AI188: display app text archmin | AK188: =IF( OR(AQ111= 0, AQ111=3), CONCATENATE( SetPrecision(AK111), " arcmin" ), "--" ) -> 0 arcmin | AO188: =IF( OR(AQ111= 0, AQ111= 3), CONCATENATE( SetPrecision(AO111), " arcmin" ), "--" ) -> 0 arcmin | AQ188: =AQ111 -> 0 | AT188: 1 | BB188: display arc-min per text row | BD188: =IF( $BJ166=0, CONCATENATE( "~", BD166, " arcmin" ), "--" ) -> -- | BH188: =IF( $BJ166=0, CONCATENATE( "~", BH166, " arcmin" ), "--" ) -> --
G189: display app convert factor | I189: =IF( $O112=0, CONCATENATE( SetPrecision(I112) ), "--" ) -> -- | M189: =IF( $O112=0, CONCATENATE( SetPrecision(M112) ), "--" ) -> -- | AI189: display app convert factor | AK189: =IF( $AQ112=0, CONCATENATE( SetPrecision(AK112) ), "--" ) -> -- | AO189: =IF( $AQ112=0, CONCATENATE( SetPrecision(AO112) ), "--" ) -> -- | AQ189: =AQ112 -> 4 | AT189: 1 | BB189: display conversion factor | BD189: =IF( $BJ169=0, CONCATENATE( BD167 ), "--" ) -> -- | BH189: =IF( $BJ169=0, CONCATENATE( BH167 ), "--" ) -> --
BB190: display text points | BD190: =IF( $BJ168=0, CONCATENATE( "~", BD168, " points" ), "--" ) -> -- | BH190: =IF( $BJ168=0, CONCATENATE( "~", BH168, " points" ), "--" ) -> --
BB191: display rows of text | BD191: =IF( $BJ169=0, CONCATENATE( "~", BD169, " rows" ), "--" ) -> -- | BH191: =IF( $BJ169=0, CONCATENATE( "~", BH169, " rows" ), "--" ) -> --
B194: Input
G195: Industry Std Res Index | I195: =AppDef_StdRes_Min -> -- | M195: =AppDef_StdRes_Max -> -- | O195: =InputErrorVerbose("App","Value",I195,M195) -> 1 | P195: =InputErrorVerbose("App","Desc",I195,M195) -> No Default App Value | AI195: Industry Std Res Index | AK195: =Value_UserIndyRes_Min -> 0 | AO195: =Value_UserIndyRes_Max -> 0 | AQ195: =InputErrorVerbose("User","Value",AK195,AO195) -> 4 | AR195: =InputErrorVerbose("User","Desc",AK195,AO195) -> Value is zero | BT195: User Industry Std Resolution | BV195: =Flag_ApplyUserInputs * AK196 -> 0 | BW195: =Flag_ApplyUserInputs * AL196 -> 0 | BZ195: =Flag_ApplyUserInputs * AO196 -> 0 | CA195: =Flag_ApplyUserInputs * AP196 -> 0 | CB195: =InputErrorVerbose("App","Value",BV195,BZ195) + InputErrorVerbose("App","Value",BW195,CA195) -> 8 | CC195: =InputErrorVerbose("App","Desc",BV195,BZ195) -> Value is zero
G196: Industry Std Resolution | I196: =Value_AppIndyResCol_Min -> 0 | J196: =Value_AppIndyResRow_Min -> 0 | M196: =Value_AppIndyResCol_Max -> 0 | N196: =Value_AppIndyResRow_Max -> 0 | O196: =InputErrorVerbose("App","Value",I196,M196) + InputErrorVerbose("App","Value",J196,N196) -> 8 | P196: =InputErrorVerbose("App","Desc",I196,M196) -> Value is zero | AI196: Industry Std Resolution | AK196: =xLists!Z33 -> 0 | AL196: =xLists!AA33 -> 0 | AO196: =xLists!Z32 -> 0 | AP196: =xLists!AA32 -> 0 | AQ196: =MAX( InputErrorVerbose("User","Value",AK196,AO196), InputErrorVerbose("User","Value",AL196,AP196) ) -> 4 | AR196: =InputErrorVerbose("User","Desc",AK196,AO196) -> Value is zero | BT196: App Industry Std Resolution | BV196: =I196 -> 0 | BW196: =J196 -> 0 | BZ196: =M196 -> 0 | CA196: =N196 -> 0 | CB196: =InputErrorVerbose("App","Value",BV196,BZ196) + InputErrorVerbose("App","Value",BW196,CA196) -> 8 | CC196: =InputErrorVerbose("App","Desc",BV196,BZ196) -> Value is zero
G197: total app error | O197: =MIN(O195:O196) -> 1 | AI197: total user error | AQ197: =MIN(AQ195:AQ196) + Flag_ApplyUserInputs_Inv -> 4 | BT197: Resolved Resolution | BV197: =SetPrecision( ResolvePriority("Min",BV195:BV196,BZ195:BZ196,CB195:CB196) ) -> 0 | BW197: =SetPrecision( ResolvePriority("Min",BW195:BW196,CA195:CA196,CB195:CB196) ) -> 0 | BZ197: =SetPrecision( ResolvePriority("Max",BV195:BV196,BZ195:BZ196,CB195:CB196) ) -> 0 | CA197: =SetPrecision( ResolvePriority("Max",BW195:BW196,CA195:CA196,CB195:CB196) ) -> 0
G199: Manual Resolution | I199: =AppDef_ManCol_Min -> -- | J199: =AppDef_ManRow_Min -> -- | M199: =AppDef_ManCol_Max -> -- | N199: =AppDef_ManRow_Max -> -- | O199: =InputErrorVerbose("App","Value",I199,M199) + InputErrorVerbose("App","Value",J199,N199) -> 2 | P199: =InputErrorVerbose("App","Desc",I199,M199) -> No Default App Value | AI199: Manual Resolution | AK199: =TRes_ManResCol_Min -> 0 | AL199: =TRes_ManResRow_Min -> 0 | AO199: =TRes_ManResCol_Max -> 0 | AP199: =TRes_ManResRow_Max -> 0 | AQ199: =IF( OR( InputErrorVerbose("User","Value",AK199,AO199)=3, InputErrorVerbose("User","Value",AL199,AP199)=3 ), 3, MAX( InputErrorVerbose("User","Value",AK199,AO199), InputErrorVerbose("User","Value",AL199,AP199) ) ) -> 4 | AR199: =InputErrorVerbose("User","Desc",AK199,AO199) -> Value is zero | BT199: User Manual Resolution | BV199: =Flag_ApplyUserInputs * AK199 -> 0 | BW199: =Flag_ApplyUserInputs * AL199 -> 0 | BZ199: =Flag_ApplyUserInputs * AO199 -> 0 | CA199: =Flag_ApplyUserInputs * AP199 -> 0 | CB199: =InputErrorVerbose("App","Value",BV199,BZ199) + InputErrorVerbose("App","Value",BW199,CA199) -> 8 | CC199: =InputErrorVerbose("App","Desc",BV199,BZ199) -> Value is zero
BT200: App Manual Resolution | BV200: =I199 -> -- | BW200: =J199 -> -- | BZ200: =M199 -> -- | CA200: =N199 -> -- | CB200: =InputErrorVerbose("App","Value",BV200,BZ200) + InputErrorVerbose("App","Value",BW200,CA200) -> 2 | CC200: =InputErrorVerbose("App","Desc",BV200,BZ200) -> No Default App Value
BT201: Resolved Resolution | BV201: =SetPrecision( ResolvePriority("Min",BV199:BV200,BZ199:BZ200,CB199:CB200) ) -> 0 | BW201: =SetPrecision( ResolvePriority("Min",BW199:BW200,CA199:CA200,CB199:CB200) ) -> 0 | BZ201: =SetPrecision( ResolvePriority("Max",BV199:BV200,BZ199:BZ200,CB199:CB200) ) -> 0 | CA201: =SetPrecision( ResolvePriority("Max",BW199:BW200,CA199:CA200,CB199:CB200) ) -> 0
B203: Calc
BR204: =IsPriority( BV$219, BW$219, BV$204, BW$204 ) -> 0 | BS204: =IsPriority( BZ$219, CA$219, BZ$204, CA$204 ) -> 0 | BT204: User Manual Resolution | BV204: =ROUND( Flag_ApplyUserInputs * AK199, 0 ) -> 0 | BW204: =ROUND( Flag_ApplyUserInputs * AL199, 0 ) -> 0 | BZ204: =ROUND( Flag_ApplyUserInputs * AO199, 0 ) -> 0 | CA204: =ROUND( Flag_ApplyUserInputs * AP199, 0 ) -> 0 | CB204: =InputErrorVerbose("App","Value",BV204,BZ204) + InputErrorVerbose("App","Value",BW204,CA204) -> 8 | CC204: =InputErrorVerbose("App","Desc",BV204,BZ204) -> Value is zero | CD204: User Input ( manual resolution )
BR205: =IsPriority( BV$219, BW$219, BV$205, BW$205 ) -> 0 | BS205: =IsPriority( BZ$219, CA$219, BZ$205, CA$205 ) -> 0 | BT205: User Industry Std Resolution | BV205: =ROUND( Flag_ApplyUserInputs * AK196, 0 ) -> 0 | BW205: =ROUND( Flag_ApplyUserInputs * AL196, 0 ) -> 0 | BZ205: =ROUND( Flag_ApplyUserInputs * AO196, 0 ) -> 0 | CA205: =ROUND( Flag_ApplyUserInputs * AP196, 0 ) -> 0 | CB205: =InputErrorVerbose("App","Value",BV205,BZ205) + InputErrorVerbose("App","Value",BW205,CA205) -> 8 | CC205: =InputErrorVerbose("App","Desc",BV205,BZ205) -> Value is zero | CD205: User Input ( industry standard resoluton )
BR206: =IsPriority( BV$219, BW$219, BV$206, BW$206 ) -> 0 | BS206: =IsPriority( BZ$219, CA$219, BZ$206, CA$206 ) -> 0 | BT206: User Res from Pixels Per Degree | BV206: =ROUND( Flag_ApplyUserInputs * AK144, 0 ) -> 0 | BZ206: =ROUND( Flag_ApplyUserInputs * AO144, 0 ) -> 0 | CB206: =InputErrorVerbose("App","Value",BV206,BZ206) + InputErrorVerbose("App","Value",BW206,CA206) -> 6 | CC206: =InputErrorVerbose("App","Desc",BV206,BZ206) -> Value is zero | CD206: derived from User Input - Pixels Per Degree
BR207: =IsPriority( BV$219, BW$219, BV$207, BW$207 ) -> 0 | BS207: =IsPriority( BZ$219, CA$219, BZ$207, CA$207 ) -> 0 | BT207: User Res from Pixels per inch | CB207: =InputErrorVerbose("App","Value",BV207,BZ207) + InputErrorVerbose("App","Value",BW207,CA207) -> 4 | CC207: =InputErrorVerbose("App","Desc",BV207,BZ207) -> Error with input value | CD207: derived from User Input - Pixels Per Inch
BR208: =IsPriority( BV$219, BW$219, BV$208, BW$208 ) -> 0 | BS208: =IsPriority( BZ$219, CA$219, BZ$208, CA$208 ) -> 0 | BT208: User Res from Pixels per mm | CB208: 4 | CC208: =InputErrorVerbose("App","Desc",BV208,BZ208) -> Error with input value | CD208: derived from User Input - Pixels Per mm
BR209: =IsPriority( BV$219, BW$219, BV$209, BW$209 ) -> 0 | BS209: =IsPriority( BZ$219, CA$219, BZ$209, CA$209 ) -> 0 | BT209: User Res from Pixels per Point | CB209: =InputErrorVerbose("App","Value",BV209,BZ209) + InputErrorVerbose("App","Value",BW209,CA209) -> 4 | CC209: =InputErrorVerbose("App","Desc",BV209,BZ209) -> Error with input value | CD209: derived from User Input - Pixels Per mm
BR210: =IsPriority( BV$219, BW$219, BV$210, BW$210 ) -> 0 | BS210: =IsPriority( BZ$219, CA$219, BZ$210, CA$210 ) -> 0 | BT210: User Res from Text Arcmin | BV210: =IF( ISNUMBER(AK148), ROUND( Flag_ApplyUserInputs * AK148, 0 ), 0 ) -> 0 | BW210: =ROUND( Flag_ApplyUserInputs * AL148, 0 ) ->  | CB210: =InputErrorVerbose("App","Value",BV210,BZ210) + InputErrorVerbose("App","Value",BW210,CA210) -> 4 | CC210: =InputErrorVerbose("App","Desc",BV210,BZ210) -> Error with input value | CD210: derived from User Input - Pixels Per mm
BR211: =IsPriority( BV$219, BW$219, BV$211, BW$211 ) -> 0 | BS211: =IsPriority( BZ$219, CA$219, BZ$211, CA$211 ) -> 0 | BT211: App Manual Resolution | BV211: =IF( ISNUMBER(I199), ROUND( I199, 0 ), 0 ) -> 0 | BW211: =IF( ISNUMBER(J199), ROUND( J199, 0 ), 0 ) -> 0 | BZ211: =IF( ISNUMBER(M199), ROUND( M199, 0 ), 0 ) -> 0 | CA211: =IF( ISNUMBER(N199), ROUND( N199, 0 ), 0 ) -> 0 | CB211: 8 | CC211: Value is zero | CD211: App Default ( manual resolution )
BR212: =IsPriority( BV$219, BW$219, BV$212, BW$212 ) -> 0 | BS212: =IsPriority( BZ$219, CA$219, BZ$212, CA$212 ) -> 0 | BT212: App Industry Std Resolution | BV212: =IF( ISNUMBER(I196), ROUND( I196, 0 ), 0 ) -> 0 | BW212: =IF( ISNUMBER(J196), ROUND( J196, 0 ), 0 ) -> 0 | BZ212: =IF( ISNUMBER(M196), ROUND( M196, 0 ), 0 ) -> 0 | CA212: =IF( ISNUMBER(N196), ROUND( N196, 0 ), 0 ) -> 0 | CB212: 8 | CC212: Value is zero | CD212: App Default ( industry standard resoluton )
BR213: =IsPriority( BV$219, BW$219, BV$213, BW$213 ) -> 0 | BS213: =IsPriority( BZ$219, CA$219, BZ$213, CA$213 ) -> 0 | BT213: App Res from Pixels Per Degree | BV213: =IF( ISNUMBER(I144), ROUND( I144, 0 ), 0 ) -> 0 | BW213: =IF( ISNUMBER(J144), ROUND( J144, 0 ), 0 ) -> 0 | BZ213: =IF( ISNUMBER(M144), ROUND( M144, 0 ), 0 ) -> 0 | CA213: 0 | CB213: 8 | CC213: Value is zero | CD213: derived from App Default - Pixels Per Degree
BR214: =IsPriority( BV$219, BW$219, BV$214, BW$214 ) -> 0 | BS214: =IsPriority( BZ$219, CA$219, BZ$214, CA$214 ) -> 0 | BT214: App Res from Pixels per inch | BV214: =IF( ISNUMBER(I145), ROUND( I145, 0 ), 0 ) -> 0 | BW214: =IF( ISNUMBER(J145), ROUND( J145, 0 ), 0 ) -> 0 | BZ214: 0 | CA214: 0 | CB214: 8 | CC214: Value is zero | CD214: derived from App Default - Pixels Per Inch
BR215: =IsPriority( BV$219, BW$219, BV$215, BW$215 ) -> 0 | BS215: =IsPriority( BZ$219, CA$219, BZ$215, CA$215 ) -> 0 | BT215: App Res from Pixels per mm | BV215: =IF( ISNUMBER(I146), ROUND( I146, 0 ), 0 ) -> 0 | BW215: 0 | BZ215: 0 | CA215: 0 | CB215: 8 | CC215: Value is zero | CD215: derived from App Default - Pixels Per mm
BR216: =IsPriority( BV$219, BW$219, BV$216, BW$216 ) -> 0 | BS216: =IsPriority( BZ$219, CA$219, BZ$216, CA$216 ) -> 0 | BT216: App Res from Pixels per Point | BV216: =IF( ISNUMBER(I147), ROUND( I147, 0 ), 0 ) -> 0 | BW216: 0 | BZ216: 0 | CA216: 0 | CB216: =InputErrorVerbose("App","Value",BV216,BZ216) + InputErrorVerbose("App","Value",BW216,CA216) -> 8 | CC216: =InputErrorVerbose("App","Desc",BV216,BZ216) -> Value is zero | CD216: derived from App Default - Pixels Per mm
BR217: =IsPriority( BV$219, BW$219, BV$217, BW$217 ) -> 0 | BS217: =IsPriority( BZ$219, CA$219, BZ$217, CA$217 ) -> 0 | BT217: App Res from Text Arcmin | BV217: =IF( ISNUMBER(I148), ROUND( I148, 0 ), 0 ) -> 0 | BW217: 0 | BZ217: 0 | CA217: 0 | CB217: =InputErrorVerbose("App","Value",BV217,BZ217) + InputErrorVerbose("App","Value",BW217,CA217) -> 8 | CC217: =InputErrorVerbose("App","Desc",BV217,BZ217) -> Value is zero | CD217: derived from App Default - Text Size
BT218: Insufficient Inputs | BV218: -- | BW218: -- | BZ218: -- | CA218: -- | CB218: 0 | CC218: -- | CD218: Insufficient inputs
BT219: Resolved Resolution | BV219: =ROUND( ResolvePriority("Min",BV204:BV217,BZ204:BZ217,CB204:CB217), 0 ) -> 0 | BW219: =ROUND( ResolvePriority("Min",BW204:BW217,CA204:CA217,CB204:CB217), 0 ) -> 0 | BZ219: =SetPrecision( ResolvePriority("Max",BV204:BV217,BZ204:BZ217,CB204:CB217) ) -> 0 | CA219: =SetPrecision( ResolvePriority("Max",BW204:BW217,CA204:CA217,CB204:CB217) ) -> 0 | CB219: =MIN(CB204:CB217) -> 4 | CD219: =ResolvePriority("Min",CD204:CD218,CD204:CD217,CB204:CB218) -> Insufficient inputs
BT220: Resolved Mpx | BV220: =SetPrecision( (BV219*BW219)/1000000 ) -> 0 | BZ220: =SetPrecision( (BZ219*CA219)/1000000 ) -> 0
B222: Display
BT223: Min Resolution Index | BV223: =MATCH(BW223, List_StdRes_ID, 0 ) ->  | BW223: =CONCATENATE("_",BV219, "_", BW219, "_") -> _0_0_ | CB223: =IF( ISERROR(BV223), 1, IF( BV223=0, 1, 0) ) -> 1
BT224: Min Resolution Standard | BV224: =IF( CB223=0, INDEX( List_StdRes, BV223), "--" ) -> --
BT225: Max Resolution Index | BZ225: =MATCH(CA225, List_StdRes_ID, 0 ) ->  | CA225: =CONCATENATE("_",BZ219, "_", CA219, "_") -> _0_0_ | CB225: =IF( ISERROR(BZ225), 1, IF( BZ225=0, 1, 0) ) -> 1
BT226: Max Resolution Standard | BZ226: =IF( CB225=0, INDEX( List_StdRes, BZ225), "--" ) -> --
G227: display app industry std res name | I227: =IF( O195=0, INDEX( List_StdRes, I195+1, 0 ), "--" ) -> -- | M227: =IF( O195=0, INDEX( List_StdRes, M195+1, 0 ), "--" ) -> -- | AI227: display user industry std res name | AK227: =IF( AQ195=0, INDEX( List_StdRes, AK195+1, 0 ), "--" ) -> -- | AO227: =IF( AQ195=0, INDEX( List_StdRes, AO195+1, 0 ), "--" ) -> -- | AQ227: =AQ195 -> 4 | AR227: =IF( AT227=1, AS227, "" ) ->  | AS227: =SanitizedErrorMsg(AQ227) ->  | AT227: =IF( LEFT(AS227) = "(", 0, 1 ) -> 1 | BT227: Final Resolution - Simple | BV227: =IF( $CB219=0, CONCATENATE( BV219, " x ", BW219), "-- x --" ) -> -- x -- | BZ227: =IF( $CB219=0, CONCATENATE( BZ219, " x ", CA219), "-- x --" ) -> -- x -- | CB227: =CB219 -> 4 | CC227: =InputErrorVerbose("App","Desc",BV227,BZ227) -> Invalid value
G228: display app industry std res | I228: =IF( $O196=0, CONCATENATE( I196, " x ", J196), "--" ) -> -- | M228: =IF( $O196=0, CONCATENATE( M196, " x ", N196), "--" ) -> -- | AI228: display user industry std res | AK228: =IF( $AQ196=0, CONCATENATE( AK196, " x ", AL196), "--" ) -> -- | AO228: =IF( $AQ196=0, CONCATENATE( AO196, " x ", AP196), "--" ) -> -- | AQ228: =AQ196 -> 4 | AR228: =IF( AT228=1, AS228, "" ) ->  | AS228: =SanitizedErrorMsg(AQ228) ->  | AT228: =IF( LEFT(AS228) = "(", 0, 1 ) -> 1 | BT228: Final Resolution - Verbose | BV228: =IF( AND( $CB219=0, $CB223=0 ), CONCATENATE( BV227, " ( ", BV224, " ) "), "( -- )" ) -> ( -- ) | BZ228: =IF( AND( $CB219=0, $CB225=0 ), CONCATENATE( BZ227, " ( ", BZ226, " ) "), "( -- )" ) -> ( -- ) | CB228: =CB219+CB223 -> 5 | CC228: =InputErrorVerbose("App","Desc",BV228,BZ228) -> Invalid value
G229: display app manual res | I229: =IF( $O199=0, CONCATENATE( I199, " x ", J199), "--" ) -> -- | M229: =IF( $O199=0, CONCATENATE( M199, " x ", N199), "--" ) -> -- | AI229: display user manual res | AK229: =IF( $AQ199=0, CONCATENATE( AK199, " x ", AL199), "--" ) -> -- | AO229: =IF( $AQ199=0, CONCATENATE( AO199, " x ", AP199), "--" ) -> -- | AQ229: =AQ199 -> 4 | AS229: =SanitizedErrorMsg(AQ229) ->  | AT229: =IF( LEFT(AS229) = "(", 0, 1 ) -> 1 | BT229: Final Mpx | BV229: =IF( $CB219=0, CONCATENATE( BV220, " Mpx"), "-- Mpx" ) -> -- Mpx | BZ229: =IF( $CB219=0, CONCATENATE( BZ220, " Mpx"), "-- Mpx" ) -> -- Mpx | CB229: =InputErrorVerbose("App","Value",BV229,BZ229) + InputErrorVerbose("App","Value",BW229,CA229) -> 6 | CC229: =InputErrorVerbose("App","Desc",BV229,BZ229) -> Invalid value
BT230: Final Resolution - Name | BV230: =IF( AND( $CB219=0, $CB223=0 ), BV224, "--" ) -> -- | BZ230: =IF( AND( $CB219=0, $CB225=0 ), BZ226, "--" ) -> -- | CB230: =CB219 -> 4 | CC230: =InputErrorVerbose("App","Desc",BV227,BZ227) -> Invalid value
I233: app VD
I234: app FOV
I235: app ppd
I236: app ppin
I237: app ppmm
I238: app arcmin
I243: app VD
I244: app rows
I245: app std res
I246: app man res
I249: xxx
I250: app VD
... 19 more rows

Sheet xObjects (hidden)
C4: Click Object Table
C6: 1 | D6: 2 | E6: 3 | F6: 4 | G6: 5 | H6: 6 | I6: 7 | J6: 8 | K6: 9 | L6: 10 | M6: 11 | N6: 12 | O6: 13 | P6: 14 | Q6: 15 | R6: 16 | S6: 17 | T6: 18 | U6: 19 | V6: 20 | W6: 21 | X6: 22 | Y6: 23 | AG6: 29
C7: Index
C8: =MAX(C50:C398) -> 389
C9: 1 | D9: x | E9: Global - Screen Selects
C10: 2 | D10: x | E10: Sheet | F10: Shape | G10: Description | H10: Action | I10: State | J10: Internal Only | K10: Called By | L10: Arg Count | M10: Switch-To Tab Name | N10: Instruction Chapter Number
C11: 3 | E11: Welcome | F11: BeginButton | G11: Instruction Button | H11: Switch_Tabs | I11: (null) | J11: FALSE | K11: User | L11: =COUNTA(M11:AH11) -> 2 | M11: App | N11: 0
C12: 4 | E12: AnySheet | F12: AppButton | G12: Application Button | H12: Switch_Tabs | I12: (null) | J12: FALSE | K12: User | L12: 2 | M12: App | N12: 0
C13: 5 | E13: AnySheet | F13: TargetButton | G13: Target Button | H13: Switch_Tabs | I13: (null) | J13: FALSE | K13: User | L13: 2 | M13: Target | N13: 0
C14: 6 | E14: AnySheet | F14: SummaryButton | G14: Summary Button | H14: Switch_Tabs | I14: (null) | J14: FALSE | K14: User | L14: 2 | M14: Summary | N14: 0
C15: 7 | E15: AnySheet | F15: MapButton | G15: Summary Button | H15: Switch_Tabs | I15: (null) | J15: FALSE | K15: User | L15: 2 | M15: Map | N15: 0
C16: 8 | E16: AnySheet | F16: GuideButton | G16: Summary Button | H16: Switch_Tabs | I16: (null) | J16: FALSE | K16: User | L16: 2 | M16: Chipsets | N16: 0
C17: 9 | E17: AnySheet | F17: EngineButton | G17: Summary Button | H17: Switch_Tabs | I17: (null) | J17: FALSE | K17: User | L17: 2 | M17: Engines | N17: 0
C18: 10 | E18: AnySheet | F18: SupportButton | G18: Summary Button | H18: Switch_Tabs | I18: (null) | J18: FALSE | K18: User | L18: 2 | M18: Support | N18: 0
C19: 11 | E19: AnySheet | F19: WelcomeButton | H19: Switch_Tabs | I19: (null) | J19: FALSE | K19: User | L19: 2 | M19: Welcome | N19: 0
C20: 12 | E20: App | F20: ApptoWelcome | H20: Switch_Tabs | I20: (null) | J20: FALSE | K20: User | L20: 2 | M20: Welcome | N20: 0
C21: 13 | E21: App | F21: ApptoTarget | H21: Switch_Tabs | I21: (null) | J21: FALSE | K21: User | L21: 2 | M21: Target | N21: 0
C22: 14 | E22: Target | F22: TargettoApp | H22: Switch_Tabs | I22: (null) | J22: FALSE | K22: User | L22: 2 | M22: App | N22: 0
C23: 15 | E23: Target | F23: TargettoSummary | H23: Switch_Tabs | I23: (null) | J23: FALSE | K23: User | L23: 2 | M23: Summary | N23: 0
C24: 16 | E24: Summary | F24: SummarytoTarget | H24: Switch_Tabs | I24: (null) | J24: FALSE | K24: User | L24: 2 | M24: Target | N24: 0
C25: 17 | E25: Summary | F25: SummarytoMap | H25: Switch_Tabs | I25: (null) | J25: FALSE | K25: User | L25: 2 | M25: Map | N25: 0
C26: 18 | E26: Map | F26: MaptoSummary | H26: Switch_Tabs | I26: (null) | J26: FALSE | K26: User | L26: 2 | M26: Summary | N26: 0
C27: 19 | E27: Map | F27: MaptoChipsets | H27: Switch_Tabs | I27: (null) | J27: FALSE | K27: User | L27: 2 | M27: Chipsets | N27: 0
C28: 20 | E28: Chipsets | F28: ChipsetstoMap | H28: Switch_Tabs | I28: (null) | J28: FALSE | K28: User | L28: 2 | M28: Map | N28: 0
C29: 21 | E29: Chipsets | F29: ChipsetstoEngines | H29: Switch_Tabs | I29: (null) | J29: FALSE | K29: User | L29: 2 | M29: Engines | N29: 0
C30: 22 | E30: Engines | F30: EnginestoChipsets | H30: Switch_Tabs | I30: (null) | J30: FALSE | K30: User | L30: 2 | M30: Chipsets | N30: 0
C31: 23 | E31: Engines | F31: EnginestoSupport | H31: Switch_Tabs | I31: (null) | J31: FALSE | K31: User | L31: 2 | M31: Support | N31: 0
C32: 24 | E32: Support | F32: SupporttoEngines | H32: Switch_Tabs | I32: (null) | J32: FALSE | K32: User | L32: 2 | M32: Engines | N32: 0
C33: 25 | L33: 0
C34: 26 | E34: AnySheet | F34: OptionsButton | G34: Summary Button | H34: Switch_Tabs | I34: (null) | J34: FALSE | K34: User | L34: 2 | M34: Options | N34: 0
C35: 27 | E35: AnySheet | F35: PrintButton | G35: Summary Button | H35: Print | I35: (null) | J35: FALSE | K35: User | L35: 0
C36: 28 | L36: 0
C37: 29 | E37: AnySheet | F37: ResetUserInputsButton | G37: Do not show | H37: FunctionCall | I37: (null) | J37: FALSE | K37: User | L37: 1 | M37: ResetDiscreteValues
C38: 30 | L38: 0
C39: 31 | D39: x | E39: Target Screen
C40: 32 | D40: x | E40: Sheet | F40: Shape | G40: Description | H40: Action | I40: State | J40: Internal Only | K40: Called By | L40: Arg Count | M40: Shown Shape Color | N40: Hidden Shape Color | O40: Shown Border Color | P40: Hidden Border Color | Q40: Shown Text Color | R40: Hidden Text Color | S40: Shown Text | T40: Hidden Text | U40: First Row | V40: Last Row | W40: Last State | X40: Next Function
C41: 33 | E41: Sheets: App, Target, Summary, Map, Chipsets, Engines, Support, Options | F41: DashboardButton | G41: Dashboard | H41: ShowHide_Rows | I41: Hidden | J41: FALSE | K41: User | L41: =COUNTA(M41:AH41) -> 12 | M41: Black | N41: Black | O41: (null) | P41: (null) | Q41: White | R41: White | S41: ▲ | T41: ▼ | U41: =Dashboard_Start -> 7 | V41: =Dashboard_End -> 11 | W41: Hidden | X41: (null)
C42: 34 | E42: Sheets: App, Target, Summary, Map, Chipsets, Engines, Support, Options | F42: DashboardBanner | G42: Dashboard | H42: Mimic | I42: Hidden | J42: TRUE | K42: User | L42: =COUNTA(M42:AH42) -> 11 | M42: (null) | N42: (null) | O42: (null) | P42: (null) | Q42: (null) | R42: (null) | S42: (null) | T42: (null) | U42: (null) | V42: (null) | W42: Hidden
C43: 35 | E43: Sheets: App, Target, Summary, Map, Chipsets, Engines, Support, Options | F43: DashboardBox | G43: Dashboard | H43: Mimic | I43: Hidden | J43: TRUE | K43: User | L43: =COUNTA(M43:AH43) -> 11 | M43: (null) | N43: (null) | O43: (null) | P43: (null) | Q43: (null) | R43: (null) | S43: (null) | T43: (null) | U43: (null) | V43: (null) | W43: Hidden
C44: 36
C45: 37 | L45: =COUNTA(M45:AH45) -> 0
C46: 38 | E46: Summary | F46: TUnits_Expander | G46: Target Brightness | H46: ShowHide_Rows | I46: Hidden | J46: FALSE | K46: User | L46: 12 | M46: DarkAqua | N46: Black | O46: (null) | P46: (null) | Q46: White | R46: White | S46: - | T46: + | U46: =TUnits_Start -> 43 | V46: =TUnits_End -> 51 | W46: Hidden | X46: (null)
C47: 39 | E47: Summary | F47: TUnits_Banner | G47: Target Brightness | H47: Mimic | I47: Hidden | J47: TRUE | K47: User | L47: 11 | M47: LightAqua | N47: LightGray | O47: (null) | P47: (null) | Q47: (null) | R47: (null) | S47: (null) | T47: (null) | U47: (null) | V47: (null) | W47: Hidden
C48: 40 | L48: 0
C49: 41 | L49: 0
C50: 42 | E50: Target | F50: TBright_Expander | G50: Target Brightness | H50: ShowHide_Rows | I50: Hidden | J50: FALSE | K50: User | L50: 12 | M50: DarkAqua | N50: Black | O50: (null) | P50: (null) | Q50: White | R50: White | S50: - | T50: + | U50: =TBright_Start -> 24 | V50: =TBright_End -> 234 | W50: Hidden | X50: =C126+2 -> 120
C51: 43 | E51: Target | F51: TBright_Banner | G51: Target Brightness | H51: Mimic | I51: Hidden | J51: TRUE | K51: User | L51: 11 | M51: LightAqua | N51: LightGray | O51: (null) | P51: (null) | Q51: (null) | R51: (null) | S51: (null) | T51: (null) | U51: (null) | V51: (null) | W51: Hidden
C52: 44
C53: 45 | E53: Target | F53: TBright_Main_InfoButton1 | H53: ShowHide_Rows | I53: Hidden | J53: FALSE | K53: User | L53: 11 | M53: DarkAqua | N53: LightAqua | O53: (null) | P53: (null) | Q53: LightAqua | R53: DarkAqua | S53: i | T53: i | U53: 26 | V53: 35 | W53: Hidden | X53: (null)
C54: 46 | E54: Target | F54: TBright_Ambient_Expander | G54: Target Brightness | H54: ShowHide_Rows | I54: Hidden | J54: FALSE | K54: User | L54: =COUNTA(M54:AH54) -> 12 | M54: DarkAqua | N54: Black | O54: (null) | P54: (null) | Q54: White | R54: White | S54: - | T54: + | U54: =TBright_Ambient_Start -> 40 | V54: =TBright_Ambient_End -> 70 | W54: Hidden | X54: (null)
C55: 47 | E55: Target | F55: TBright_Ambient_Banner | G55: Target Brightness | H55: ShowHide_Rows | I55: Hidden | J55: TRUE | K55: User | L55: 12 | M55: LightAqua | N55: LightGray | O55: (null) | P55: (null) | Q55: (null) | R55: (null) | S55: (null) | T55: (null) | U55: (null) | V55: (null) | W55: Hidden | X55: (null)
C56: 48 | E56: Target | F56: TBright_Ambient_InfoButton1 | G56: Target Brightness | H56: ShowHide_Rows | I56: Hidden | J56: FALSE | K56: User | L56: 12 | M56: DarkAqua | N56: LightAqua | O56: (null) | P56: (null) | Q56: LightAqua | R56: DarkAqua | S56: i | T56: i | U56: =TBright_Ambient_HelpStart -> 53 | V56: =TBright_Ambient_HelpEnd -> 68 | W56: Hidden | X56: (null)
C57: 49 | L57: 0
C58: 50 | E58: Target | F58: TBright_Nits_Expander | G58: xxx | H58: ShowHide_Rows | I58: Hidden | J58: FALSE | K58: User | L58: 12 | M58: DarkAqua | N58: Black | O58: (null) | P58: (null) | Q58: White | R58: White | S58: - | T58: + | U58: =TBright_Nits_Start -> 74 | V58: =TBright_Nits_End -> 104 | W58: Hidden | X58: (null)
C59: 51 | E59: Target | F59: TBright_Nits_Banner | G59: xxx | H59: ShowHide_Rows | I59: Hidden | J59: TRUE | K59: User | L59: 12 | M59: LightAqua | N59: LightGray | O59: (null) | P59: (null) | Q59: (null) | R59: (null) | S59: (null) | T59: (null) | U59: (null) | V59: (null) | W59: Hidden | X59: (null)
C60: 52 | E60: Target | F60: TBright_Nits_InfoButton1 | G60: xxx | H60: ShowHide_Rows | I60: Hidden | J60: FALSE | K60: User | L60: 12 | M60: DarkAqua | N60: LightAqua | O60: (null) | P60: (null) | Q60: LightAqua | R60: DarkAqua | S60: i | T60: i | U60: =TBright_Nits_HelpStart -> 83 | V60: =TBright_Nits_HelpEnd -> 103 | W60: Hidden | X60: (null)
C61: 53 | L61: 0
C62: 54 | E62: Target | F62: TBright_Lumens_Expander | G62: xxx | H62: ShowHide_Rows | I62: Hidden | J62: FALSE | K62: User | L62: 12 | M62: DarkAqua | N62: Black | O62: (null) | P62: (null) | Q62: White | R62: White | S62: - | T62: + | U62: =TBright_Lumens_Start -> 108 | V62: =TBright_Lumens_End -> 133 | W62: Hidden | X62: (null)
C63: 55 | E63: Target | F63: TBright_Lumens_Banner | G63: xxx | H63: ShowHide_Rows | I63: Hidden | J63: TRUE | K63: User | L63: 12 | M63: LightAqua | N63: LightGray | O63: (null) | P63: (null) | Q63: (null) | R63: (null) | S63: (null) | T63: (null) | U63: (null) | V63: (null) | W63: Hidden | X63: (null)
C64: 56 | E64: Target | F64: TBright_Lumens_InfoButton1 | G64: xxx | H64: ShowHide_Rows | I64: Hidden | J64: FALSE | K64: User | L64: 12 | M64: DarkAqua | N64: LightAqua | O64: (null) | P64: (null) | Q64: LightAqua | R64: DarkAqua | S64: i | T64: i | U64: =TBright_Lumens_HelpStart -> 117 | V64: =TBright_Lumens_HelpEnd -> 131 | W64: Hidden | X64: (null)
C65: 57
C66: 58 | E66: Target | F66: TBright_ScreenEff_InfoButton1 | G66: xxx | H66: ShowHide_Rows | I66: Hidden | J66: FALSE | K66: User | L66: =COUNTA(M66:AH66) -> 12 | M66: DarkAqua | N66: LightAqua | O66: (null) | P66: (null) | Q66: LightAqua | R66: DarkAqua | S66: i | T66: i | U66: =TBright_ScreenEff_HelpStart -> 144 | V66: =TBright_ScreenEff_HelpEnd -> 232 | W66: Hidden | X66: (null)
C67: 59 | D67: x
C68: 60 | D68: x
C69: 61 | E69: Target | F69: TSize_Expander | G69: xxx | H69: ShowHide_Rows | I69: Hidden | J69: FALSE | K69: User | L69: =COUNTA(M69:AH69) -> 12 | M69: DarkAqua | N69: Black | O69: (null) | P69: (null) | Q69: White | R69: White | S69: - | T69: + | U69: =TSize_Start -> 239 | V69: =TSize_End -> 288 | W69: Hidden | X69: =0 -> 0
C70: 62 | E70: Target | F70: TSize_Banner | G70: xxx | H70: ShowHide_Rows | I70: Hidden | J70: TRUE | K70: User | L70: =COUNTA(M70:AH70) -> 12 | M70: LightAqua | N70: LightGray | O70: (null) | P70: (null) | Q70: (null) | R70: (null) | S70: (null) | T70: (null) | U70: (null) | V70: (null) | W70: Hidden | X70: (null)
C71: 63
C72: 64 | E72: Target | F72: TSize_ImageHeight_InfoButton1 | G72: xxx | H72: ShowHide_Rows | I72: Hidden | J72: FALSE | K72: User | L72: =COUNTA(M72:AH72) -> 12 | M72: DarkAqua | N72: LightAqua | O72: (null) | P72: (null) | Q72: LightAqua | R72: DarkAqua | S72: i | T72: i | U72: =TSize_ImageDiag_HelpStart -> 256 | V72: =TSize_ImageDiag_HelpEnd -> 273 | W72: Hidden | X72: (null)
C73: 65 | E73: Target | F73: TSize_ImageWidth_InfoButton1 | G73: xxx | H73: ShowHide_Rows | I73: Hidden | J73: FALSE | K73: User | L73: =COUNTA(M73:AH73) -> 12 | M73: DarkAqua | N73: LightAqua | O73: (null) | P73: (null) | Q73: LightAqua | R73: DarkAqua | S73: i | T73: i | U73: =TSize_ImageDiag_HelpStart -> 256 | V73: =TSize_ImageDiag_HelpEnd -> 273 | W73: Hidden | X73: (null)
C74: 66 | E74: Target | F74: TSize_ImageDiag_InfoButton1 | G74: xxx | H74: ShowHide_Rows | I74: Hidden | J74: FALSE | K74: User | L74: =COUNTA(M74:AH74) -> 12 | M74: DarkAqua | N74: LightAqua | O74: (null) | P74: (null) | Q74: LightAqua | R74: DarkAqua | S74: i | T74: i | U74: =TSize_ImageDiag_HelpStart -> 256 | V74: =TSize_ImageDiag_HelpEnd -> 273 | W74: Hidden | X74: (null)
C75: 67 | E75: Target | F75: TSize_ImageAR_InfoButton1 | G75: xxx | H75: ShowHide_Rows | I75: Hidden | J75: FALSE | K75: User | L75: =COUNTA(M75:AH75) -> 12 | M75: DarkAqua | N75: LightAqua | O75: (null) | P75: (null) | Q75: LightAqua | R75: DarkAqua | S75: i | T75: i | U75: =TSize_ImageAR_HelpStart -> 274 | V75: =TSize_ImageAR_HelpEnd -> 287 | W75: Hidden | X75: (null)
C76: 68
C77: 69 | M77: Linked Cell | N77: Linked Objects
C78: 70 | E78: Target | F78: TSize_WidthUnitButton1 | H78: Cycle_Units | I78: Hidden | J78: FALSE | K78: User | L78: =COUNTA(M78:AH78) -> 2 | M78: TSize_SizeUnitsIndex | N78: TSize_WidthUnitButton1 TSize_WidthUnitButton2 TSize_HeightUnitButton1 TSize_HeightUnitButton2 TSize_DiagUnitButton1 TSize_DiagUnitButton2 END
C79: 71 | E79: Target | F79: TSize_WidthUnitButton2 | H79: Cycle_Units | I79: Hidden | J79: FALSE | K79: User | L79: =COUNTA(M79:AH79) -> 2 | M79: TSize_SizeUnitsIndex | N79: TSize_WidthUnitButton1 TSize_WidthUnitButton2 TSize_HeightUnitButton1 TSize_HeightUnitButton2 TSize_DiagUnitButton1 TSize_DiagUnitButton2 END
C80: 72
C81: 73 | E81: Target | F81: TSize_HeightUnitButton1 | H81: Cycle_Units | I81: Hidden | J81: FALSE | K81: User | L81: =COUNTA(M81:AH81) -> 2 | M81: TSize_SizeUnitsIndex | N81: TSize_WidthUnitButton1 TSize_WidthUnitButton2 TSize_HeightUnitButton1 TSize_HeightUnitButton2 TSize_DiagUnitButton1 TSize_DiagUnitButton2 END
C82: 74 | E82: Target | F82: TSize_HeightUnitButton2 | H82: Cycle_Units | I82: Hidden | J82: FALSE | K82: User | L82: =COUNTA(M82:AH82) -> 2 | M82: TSize_SizeUnitsIndex | N82: TSize_WidthUnitButton1 TSize_WidthUnitButton2 TSize_HeightUnitButton1 TSize_HeightUnitButton2 TSize_DiagUnitButton1 TSize_DiagUnitButton2 END
C83: 75
C84: 76 | E84: Target | F84: TSize_DiagUnitButton1 | H84: Cycle_Units | I84: Hidden | J84: FALSE | K84: User | L84: =COUNTA(M84:AH84) -> 2 | M84: TSize_SizeUnitsIndex | N84: TSize_WidthUnitButton1 TSize_WidthUnitButton2 TSize_HeightUnitButton1 TSize_HeightUnitButton2 TSize_DiagUnitButton1 TSize_DiagUnitButton2 END
C85: 77 | E85: Target | F85: TSize_DiagUnitButton2 | H85: Cycle_Units | I85: Hidden | J85: FALSE | K85: User | L85: =COUNTA(M85:AH85) -> 2 | M85: TSize_SizeUnitsIndex | N85: TSize_WidthUnitButton1 TSize_WidthUnitButton2 TSize_HeightUnitButton1 TSize_HeightUnitButton2 TSize_DiagUnitButton1 TSize_DiagUnitButton2 END
C86: 78 | D86: x
C87: 79 | E87: Target | F87: TRes_ViewDistUnitButton1 | H87: Cycle_Units | I87: Hidden | J87: FALSE | K87: User | L87: =COUNTA(M87:AH87) -> 2 | M87: TRes_ViewDistUnitsIndex | N87: TRes_ViewDistUnitButton2 END
C88: 80 | E88: Target | F88: TRes_ViewDistUnitButton2 | H88: Cycle_Units | I88: Hidden | J88: FALSE | K88: User | L88: =COUNTA(M88:AH88) -> 2 | M88: TRes_ViewDistUnitsIndex | N88: TRes_ViewDistUnitButton1 END
C89: 81 | D89: x
C90: 82 | E90: Target | F90: TRes_ViewDensUnitButton1 | H90: Cycle_Units | I90: Hidden | J90: FALSE | K90: User | L90: =COUNTA(M90:AH90) -> 2 | M90: TRes_ViewDensUnitsIndex | N90: TRes_ViewDensUnitButton2 END
C91: 83 | E91: Target | F91: TRes_ViewDensUnitButton2 | H91: Cycle_Units | I91: Hidden | J91: FALSE | K91: User | L91: =COUNTA(M91:AH91) -> 2 | M91: TRes_ViewDensUnitsIndex | N91: TRes_ViewDensUnitButton1 END
C92: 84 | D92: x
C93: 85 | E93: Target | F93: TRes_TextHeightUnitButton1 | H93: Cycle_Units | I93: Hidden | J93: FALSE | K93: User | L93: =COUNTA(M93:AH93) -> 2 | M93: TRes_TextHeightUnitsIndex | N93: TRes_TextHeightUnitButton2 END
C94: 86 | E94: Target | F94: TRes_TextHeightUnitButton2 | H94: Cycle_Units | I94: Hidden | J94: FALSE | K94: User | L94: =COUNTA(M94:AH94) -> 2 | M94: TRes_TextHeightUnitsIndex | N94: TRes_TextHeightUnitButton1 END
C95: 87
C96: 88 | L96: =COUNTA(M96:AH96) -> 0
C97: 89 | E97: Target | F97: TRes_Expander | G97: Target Brightness | H97: ShowHide_Rows | I97: Hidden | J97: FALSE | K97: User | L97: =COUNTA(M97:AH97) -> 12 | M97: DarkAqua | N97: Black | O97: (null) | P97: (null) | Q97: White | R97: White | S97: - | T97: + | U97: =TRes_Start -> 293 | V97: =TRes_End -> 487 | W97: Hidden | X97: =C198+2 -> 192
C98: 90 | E98: Target | F98: TRes_Banner | G98: Target Brightness | H98: ShowHide_Rows | I98: Hidden | J98: TRUE | K98: User | L98: =COUNTA(M98:AH98) -> 12 | M98: LightAqua | N98: LightGray | O98: (null) | P98: (null) | Q98: (null) | R98: (null) | S98: (null) | T98: (null) | U98: (null) | V98: (null) | W98: Hidden | X98: (null)
C99: 91
C100: 92 | E100: Target | F100: TRes_Fundamental_Expander | G100: Target Brightness | H100: ShowHide_Rows | I100: Hidden | J100: FALSE | K100: User | L100: =COUNTA(M100:AH100) -> 12 | M100: DarkAqua | N100: Black | O100: (null) | P100: (null) | Q100: White | R100: White | S100: - | T100: + | U100: =TRes_Fundamental_Start -> 308 | V100: =TRes_Fundamental_End -> 409 | W100: Hidden | X100: (null)
C101: 93 | E101: Target | F101: TRes_Fundamental_Banner | G101: Target Brightness | H101: ShowHide_Rows | I101: Hidden | J101: TRUE | K101: User | L101: =COUNTA(M101:AH101) -> 12 | M101: LightAqua | N101: LightGray | O101: (null) | P101: (null) | Q101: (null) | R101: (null) | S101: (null) | T101: (null) | U101: (null) | V101: (null) | W101: Hidden | X101: (null)
C102: 94
C103: 95
C104: 96 | E104: Target | F104: TRes_FOV_InfoButton1 | G104: Target Brightness | H104: ShowHide_Rows | I104: Hidden | J104: FALSE | K104: User | L104: =COUNTA(M104:AH104) -> 12 | M104: DarkAqua | N104: LightAqua | O104: (null) | P104: (null) | Q104: LightAqua | R104: DarkAqua | S104: i | T104: i | U104: =TRes_ViewDist_HelpStart -> 319 | V104: 339 | W104: Hidden | X104: (null)
C105: 97 | E105: Target | F105: TRes_ViewDist_InfoButton1 | G105: Target Brightness | H105: ShowHide_Rows | I105: Hidden | J105: FALSE | K105: User | L105: =COUNTA(M105:AH105) -> 12 | M105: DarkAqua | N105: LightAqua | O105: (null) | P105: (null) | Q105: LightAqua | R105: DarkAqua | S105: i | T105: i | U105: =TRes_ViewDist_HelpStart -> 319 | V105: =TRes_ViewDist_HelpEnd -> 341 | W105: Hidden | X105: (null)
C106: 98 | E106: Target | F106: TRes_PxPerDeg_InfoButton1 | G106: Target Brightness | H106: ShowHide_Rows | I106: Hidden | J106: FALSE | K106: User | L106: =COUNTA(M106:AH106) -> 12 | M106: DarkAqua | N106: LightAqua | O106: (null) | P106: (null) | Q106: LightAqua | R106: DarkAqua | S106: i | T106: i | U106: =TRes_PxPerDeg_HelpStart -> 352 | V106: =TRes_PxPerDeg_HelpEnd -> 367 | W106: Hidden | X106: (null)
C107: 99 | E107: Target | F107: TRes_PxPerInch_InfoButton1 | G107: Target Brightness | H107: ShowHide_Rows | I107: Hidden | J107: FALSE | K107: User | L107: =COUNTA(M107:AH107) -> 12 | M107: DarkAqua | N107: LightAqua | O107: (null) | P107: (null) | Q107: LightAqua | R107: DarkAqua | S107: i | T107: i | U107: =TRes_PxPerInch_HelpStart -> 371 | V107: =TRes_PxPerInch_HelpEnd -> 384 | W107: Hidden | X107: (null)
C108: 100
C109: 101
C110: 102 | D110: x | M110: Shown Shape Color | N110: Hidden Shape Color | O110: Shown Border Color | P110: Hidden Border Color | Q110: Shown Text Color | R110: Hidden Text Color | S110: Shown Text | T110: Hidden Text | U110: First Row | V110: Last Row | W110: Last State
C111: 103 | D111: x
C112: 104 | E112: Target | F112: TRes_Main_InfoButton3 | H112: ShowHide_Rows | I112: Hidden | J112: FALSE | K112: User | L112: 11 | M112: DarkAqua | N112: LightAqua | O112: (null) | P112: (null) | Q112: LightAqua | R112: DarkAqua | S112: i | T112: i | U112: =TRes_HelpStart -> 295 | V112: =TRes_HelpEnd -> 303 | W112: Hidden | X112: (null)
C113: 105
C114: 106 | E114: Target | F114: TRes_IndStan_InfoButton | G114: Target Brightness | H114: ShowHide_Rows | I114: Hidden | J114: FALSE | K114: User | L114: =COUNTA(M114:AH114) -> 12 | M114: DarkAqua | N114: LightAqua | O114: (null) | P114: (null) | Q114: LightAqua | R114: DarkAqua | S114: i | T114: i | U114: =TRes_IndStd_HelpStart -> 446 | V114: =TRes_IndStd_HelpEnd -> 464 | W114: Hidden | X114: (null)
C115: 107 | E115: Target | F115: TRes_TextSize_InfoButton3 | G115: Target Brightness | H115: ShowHide_Rows | I115: Hidden | J115: FALSE | K115: User | L115: =COUNTA(M115:AH115) -> 12 | M115: DarkAqua | N115: LightAqua | O115: (null) | P115: (null) | Q115: LightAqua | R115: DarkAqua | S115: i | T115: i | U115: =TRes_TextConvert_HelpStart -> 388 | V115: =TRes_TextConvert_HelpEnd -> 406 | W115: Hidden | X115: (null)
C116: 108
C117: 109 | E117: Target | F117: TRes_IndustryStd_Expander | G117: Target Brightness | H117: ShowHide_Rows | I117: Hidden | J117: FALSE | K117: User | L117: =COUNTA(M117:AH117) -> 12 | M117: DarkAqua | N117: Black | O117: (null) | P117: (null) | Q117: White | R117: White | S117: - | T117: + | U117: =TRes_IndustryStd_Start -> 413 | V117: =TRes_IndustryStd_End -> 467 | W117: Hidden | X117: (null)
C118: 110 | E118: Target | F118: TRes_IndustryStd_Banner | G118: Target Brightness | H118: ShowHide_Rows | I118: Hidden | J118: TRUE | K118: User | L118: =COUNTA(M118:AH118) -> 12 | M118: LightAqua | N118: LightGray | O118: (null) | P118: (null) | Q118: (null) | R118: (null) | S118: (null) | T118: (null) | U118: (null) | V118: (null) | W118: Hidden | X118: (null)
C119: 111
C120: 112 | E120: Target | F120: TRes_ManualRes_Expander | G120: Target Brightness | H120: ShowHide_Rows | I120: Hidden | J120: FALSE | K120: User | L120: =COUNTA(M120:AH120) -> 12 | M120: DarkAqua | N120: Black | O120: (null) | P120: (null) | Q120: White | R120: White | S120: - | T120: + | U120: =TRes_ManualRes_Start -> 471 | V120: =TRes_ManualRes_End -> 485 | W120: Hidden | X120: (null)
A121: x | C121: 113 | E121: Target | F121: TRes_ManualRes_Banner | G121: Target Brightness | H121: ShowHide_Rows | I121: Hidden | J121: TRUE | K121: User | L121: =COUNTA(M121:AH121) -> 12 | M121: LightAqua | N121: LightGray | O121: (null) | P121: (null) | Q121: (null) | R121: (null) | S121: (null) | T121: (null) | U121: (null) | V121: (null) | W121: Hidden | X121: (null)
C122: 114 | E122: Target | F122: TRes_ManualRes_InfoButton1 | G122: Target Brightness | H122: ShowHide_Rows | I122: Hidden | J122: FALSE | K122: User | L122: =COUNTA(M122:AH122) -> 12 | M122: DarkAqua | N122: LightAqua | O122: (null) | P122: (null) | Q122: LightAqua | R122: DarkAqua | S122: i | T122: i | U122: =TRes_ManualRes_HelpStart -> 480 | V122: =TRes_ManualRes_HelpEnd -> 483 | W122: Hidden | X122: (null)
C123: 115 | L123: =COUNTA(M123:AH123) -> 0
C124: 116 | L124: =COUNTA(M124:AH124) -> 0
C125: 117 | D125: x | E125: Sheet | F125: Shape | G125: Description | H125: Action | I125: State | J125: Internal Only | K125: Called By | L125: Arg Count | M125: Group | N125: Item | O125: App Select | P125: Min | Q125: Max | R125: Row Start 1 | S125: Row End 1 | T125: Row Start 2 | U125: Row End 2 | V125: Banner End 1 | W125: Banner End 2 | X125: Adj Item Number | Y125: Other Group
C126: 118 | E126: Target | F126: MinAmbientOption1 | G126: Target Brightness | H126: OneOfMany | I126: NotFull | J126: FALSE | K126: User | L126: =COUNTA(M126:AH126) -> 13 | M126: 1 | N126: 1 | O126: 0 | P126: =TBright_Ambient_MinSelect -> 0 | Q126: =TBright_Ambient_MaxSelect -> 0 | R126: =TBright_Lumens_BannerStart -> 106 | S126: =TBright_Lumens_End -> 133 | T126: =TBright_Nits_BannerStart -> 72 | U126: =TBright_Nits_End -> 104 | V126: =TBright_Lumens_BannerEnd -> 107 | W126: =TBright_Nits_BannerEnd -> 73 | X126: 1 | Y126: 2
C127: 119 | E127: Target | F127: MinAmbientOption2 | G127: Target Brightness | H127: OneOfMany | I127: NotFull | J127: FALSE | K127: User | L127: 13 | M127: 1 | N127: 2 | O127: 0 | P127: =TBright_Ambient_MinSelect -> 0 | Q127: =TBright_Ambient_MaxSelect -> 0 | R127: =TBright_Lumens_BannerStart -> 106 | S127: =TBright_Lumens_End -> 133 | T127: =TBright_Nits_BannerStart -> 72 | U127: =TBright_Nits_End -> 104 | V127: =TBright_Lumens_BannerEnd -> 107 | W127: =TBright_Nits_BannerEnd -> 73 | X127: 2 | Y127: 2
C128: 120 | E128: Target | F128: MinAmbientOption3 | G128: Target Brightness | H128: OneOfMany | I128: NotFull | J128: FALSE | K128: User | L128: 13 | M128: 1 | N128: 3 | O128: 0 | P128: =TBright_Ambient_MinSelect -> 0 | Q128: =TBright_Ambient_MaxSelect -> 0 | R128: =TBright_Lumens_BannerStart -> 106 | S128: =TBright_Lumens_End -> 133 | T128: =TBright_Nits_BannerStart -> 72 | U128: =TBright_Nits_End -> 104 | V128: =TBright_Lumens_BannerEnd -> 107 | W128: =TBright_Nits_BannerEnd -> 73 | X128: 3 | Y128: 2
C129: 121 | E129: Target | F129: MinAmbientOption4 | G129: Target Brightness | H129: OneOfMany | I129: NotFull | J129: FALSE | K129: User | L129: 13 | M129: 1 | N129: 4 | O129: 0 | P129: =TBright_Ambient_MinSelect -> 0 | Q129: =TBright_Ambient_MaxSelect -> 0 | R129: =TBright_Lumens_BannerStart -> 106 | S129: =TBright_Lumens_End -> 133 | T129: =TBright_Nits_BannerStart -> 72 | U129: =TBright_Nits_End -> 104 | V129: =TBright_Lumens_BannerEnd -> 107 | W129: =TBright_Nits_BannerEnd -> 73 | X129: 4 | Y129: 2
C130: 122 | E130: Target | F130: MinAmbientOption5 | G130: Target Brightness | H130: OneOfMany | I130: NotFull | J130: FALSE | K130: User | L130: 13 | M130: 1 | N130: 5 | O130: 0 | P130: =TBright_Ambient_MinSelect -> 0 | Q130: =TBright_Ambient_MaxSelect -> 0 | R130: =TBright_Lumens_BannerStart -> 106 | S130: =TBright_Lumens_End -> 133 | T130: =TBright_Nits_BannerStart -> 72 | U130: =TBright_Nits_End -> 104 | V130: =TBright_Lumens_BannerEnd -> 107 | W130: =TBright_Nits_BannerEnd -> 73 | X130: 5 | Y130: 2
C131: 123 | L131: 0
C132: 124 | E132: Target | F132: MaxAmbientOption1 | G132: Target Brightness | H132: OneOfMany | I132: NotFull | J132: FALSE | K132: User | L132: 13 | M132: 2 | N132: 1 | O132: 0 | P132: =TBright_Ambient_MinSelect -> 0 | Q132: =TBright_Ambient_MaxSelect -> 0 | R132: =TBright_Lumens_BannerStart -> 106 | S132: =TBright_Lumens_End -> 133 | T132: =TBright_Nits_BannerStart -> 72 | U132: =TBright_Nits_End -> 104 | V132: =TBright_Lumens_BannerEnd -> 107 | W132: =TBright_Nits_BannerEnd -> 73 | X132: 1 | Y132: 1
C133: 125 | E133: Target | F133: MaxAmbientOption2 | G133: Target Brightness | H133: OneOfMany | I133: NotFull | J133: FALSE | K133: User | L133: 13 | M133: 2 | N133: 2 | O133: 0 | P133: =TBright_Ambient_MinSelect -> 0 | Q133: =TBright_Ambient_MaxSelect -> 0 | R133: =TBright_Lumens_BannerStart -> 106 | S133: =TBright_Lumens_End -> 133 | T133: =TBright_Nits_BannerStart -> 72 | U133: =TBright_Nits_End -> 104 | V133: =TBright_Lumens_BannerEnd -> 107 | W133: =TBright_Nits_BannerEnd -> 73 | X133: 2 | Y133: 1
C134: 126 | E134: Target | F134: MaxAmbientOption3 | G134: Target Brightness | H134: OneOfMany | I134: NotFull | J134: FALSE | K134: User | L134: 13 | M134: 2 | N134: 3 | O134: 0 | P134: =TBright_Ambient_MinSelect -> 0 | Q134: =TBright_Ambient_MaxSelect -> 0 | R134: =TBright_Lumens_BannerStart -> 106 | S134: =TBright_Lumens_End -> 133 | T134: =TBright_Nits_BannerStart -> 72 | U134: =TBright_Nits_End -> 104 | V134: =TBright_Lumens_BannerEnd -> 107 | W134: =TBright_Nits_BannerEnd -> 73 | X134: 3 | Y134: 1
C135: 127 | E135: Target | F135: MaxAmbientOption4 | G135: Target Brightness | H135: OneOfMany | I135: NotFull | J135: FALSE | K135: User | L135: 13 | M135: 2 | N135: 4 | O135: 0 | P135: =TBright_Ambient_MinSelect -> 0 | Q135: =TBright_Ambient_MaxSelect -> 0 | R135: =TBright_Lumens_BannerStart -> 106 | S135: =TBright_Lumens_End -> 133 | T135: =TBright_Nits_BannerStart -> 72 | U135: =TBright_Nits_End -> 104 | V135: =TBright_Lumens_BannerEnd -> 107 | W135: =TBright_Nits_BannerEnd -> 73 | X135: 4 | Y135: 1
C136: 128 | E136: Target | F136: MaxAmbientOption5 | G136: Target Brightness | H136: OneOfMany | I136: NotFull | J136: FALSE | K136: User | L136: 13 | M136: 2 | N136: 5 | O136: 0 | P136: =TBright_Ambient_MinSelect -> 0 | Q136: =TBright_Ambient_MaxSelect -> 0 | R136: =TBright_Lumens_BannerStart -> 106 | S136: =TBright_Lumens_End -> 133 | T136: =TBright_Nits_BannerStart -> 72 | U136: =TBright_Nits_End -> 104 | V136: =TBright_Lumens_BannerEnd -> 107 | W136: =TBright_Nits_BannerEnd -> 73 | X136: 5 | Y136: 1
C137: 129 | L137: 0
C138: 130 | E138: Summary | F138: TUnit1 | G138: Target Brightness | H138: OneOfMany | I138: Hidden | J138: FALSE | K138: User | L138: 3 | M138: 8 | N138: 1 | O138: 0
C139: 131 | E139: Summary | F139: TUnit2 | G139: Target Brightness | H139: OneOfMany | I139: Hidden | J139: FALSE | K139: User | L139: 3 | M139: 8 | N139: 2 | O139: 0
C140: 132 | E140: Summary | F140: TUnit3 | G140: Target Brightness | H140: OneOfMany | I140: Hidden | J140: FALSE | K140: User | L140: 3 | M140: 8 | N140: 3 | O140: 0
C141: 133 | L141: 0
C142: 134 | E142: Options | F142: Default_TUnit1 | G142: Target Brightness | H142: OneOfMany | I142: Hidden | J142: FALSE | K142: User | L142: 3 | M142: 9 | N142: 1 | O142: 0
C143: 135 | E143: Options | F143: Default_TUnit2 | G143: Target Brightness | H143: OneOfMany | I143: Hidden | J143: FALSE | K143: User | L143: 3 | M143: 9 | N143: 2 | O143: 0
C144: 136 | E144: Options | F144: Default_TUnit3 | G144: Target Brightness | H144: OneOfMany | I144: Hidden | J144: FALSE | K144: User | L144: 3 | M144: 9 | N144: 3 | O144: 0
C145: 137 | L145: 0
C146: 138 | E146: Target | F146: TSize_AR_ViewDistUnit1 | G146: Target Brightness | H146: OneOfMany | I146: Hidden | J146: FALSE | K146: User | L146: 2 | M146: 4 | O146: 0
C147: 139 | E147: Target | F147: TSize_AR_ViewDistUnit2 | G147: Target Brightness | H147: OneOfMany | I147: Hidden | J147: FALSE | K147: User | L147: 2 | M147: 4 | O147: 0
C148: 140 | L148: 0
C149: 141 | L149: 0
C150: 142 | D150: x | E150: Sheet | F150: Shape | G150: Description | H150: Action | I150: State | J150: Internal Only | K150: Called By | L150: Arg Count | M150: Function Name | N150: Arg 1 | O150: Arg 2
C151: 143 | E151: Target | F151: TBright_SurfaceEff_SortReset | H151: FunctionCall | I151: (null) | J151: FALSE | K151: User | L151: =COUNTA(M151:AH151) -> 3 | M151: SortSurfaceEff | N151: Col0 | O151: Up
C152: 144 | L152: 0
C153: 145 | E153: Target | F153: TBright_SurfaceEff_SortUp_Col1 | H153: FunctionCall | I153: (null) | J153: FALSE | K153: User | L153: 3 | M153: SortSurfaceEff | N153: Col1 | O153: Up
C154: 146 | E154: Target | F154: TBright_SurfaceEff_SortDwn_Col1 | H154: FunctionCall | I154: (null) | J154: FALSE | K154: User | L154: 3 | M154: SortSurfaceEff | N154: Col1 | O154: Dwn
C155: 147 | L155: 0
C156: 148 | E156: Target | F156: TBright_SurfaceEff_SortUp_Col2 | H156: FunctionCall | I156: (null) | J156: FALSE | K156: User | L156: 3 | M156: SortSurfaceEff | N156: Col2 | O156: Up
C157: 149 | E157: Target | F157: TBright_SurfaceEff_SortDwn_Col2 | H157: FunctionCall | I157: (null) | J157: FALSE | K157: User | L157: 3 | M157: SortSurfaceEff | N157: Col2 | O157: Dwn
C158: 150 | L158: 0
C159: 151 | E159: Target | F159: TBright_SurfaceEff_SortUp_Col3 | H159: FunctionCall | I159: (null) | J159: FALSE | K159: User | L159: 3 | M159: SortSurfaceEff | N159: Col3 | O159: Up
C160: 152 | E160: Target | F160: TBright_SurfaceEff_SortDwn_Col3 | H160: FunctionCall | I160: (null) | J160: FALSE | K160: User | L160: 3 | M160: SortSurfaceEff | N160: Col3 | O160: Dwn
C161: 153 | L161: 0
C162: 154 | E162: Target | F162: TBright_SurfaceEff_SortUp_Col4 | H162: FunctionCall | I162: (null) | J162: FALSE | K162: User | L162: 3 | M162: SortSurfaceEff | N162: Col4 | O162: Up
C163: 155 | E163: Target | F163: TBright_SurfaceEff_SortDwn_Col4 | H163: FunctionCall | I163: (null) | J163: FALSE | K163: User | L163: 3 | M163: SortSurfaceEff | N163: Col4 | O163: Dwn
C164: 156 | L164: 0
C165: 157 | E165: Target | F165: TBright_SurfaceEff_SortUp_Col5 | H165: FunctionCall | I165: (null) | J165: FALSE | K165: User | L165: 3 | M165: SortSurfaceEff | N165: Col5 | O165: Up
C166: 158 | E166: Target | F166: TBright_SurfaceEff_SortDwn_Col5 | H166: FunctionCall | I166: (null) | J166: FALSE | K166: User | L166: 3 | M166: SortSurfaceEff | N166: Col5 | O166: Dwn
C167: 159
C168: 160
C169: 161 | D169: x | E169: Sheet | F169: Shape | G169: Description | H169: Action | I169: State | J169: Internal Only | K169: Called By | L169: Arg Count | M169: Group | N169: Item | O169: App Select
C170: 162 | E170: App | F170: AppOption1 | G170: App Option | H170: OneOfMany | I170: Hidden | J170: FALSE | K170: User | L170: =COUNTA(M170:AH170) -> 3 | M170: 5 | N170: 1 | O170: 1
C171: 163 | E171: App | F171: AppOption2 | G171: App Option | H171: OneOfMany | I171: Hidden | J171: FALSE | K171: User | L171: 3 | M171: 5 | N171: 2 | O171: 1
C172: 164 | E172: App | F172: AppOption3 | G172: App Option | H172: OneOfMany | I172: Hidden | J172: FALSE | K172: User | L172: 3 | M172: 5 | N172: 3 | O172: 1
C173: 165 | E173: App | F173: AppOption4 | G173: App Option | H173: OneOfMany | I173: Hidden | J173: FALSE | K173: User | L173: 3 | M173: 5 | N173: 4 | O173: 1
C174: 166 | E174: App | F174: AppOption5 | G174: App Option | H174: OneOfMany | I174: Hidden | J174: FALSE | K174: User | L174: 3 | M174: 5 | N174: 5 | O174: 1
C175: 167 | E175: App | F175: AppOption6 | G175: App Option | H175: OneOfMany | I175: Hidden | J175: FALSE | K175: User | L175: 3 | M175: 5 | N175: 6 | O175: 1
C176: 168 | E176: App | F176: AppOption7 | G176: App Option | H176: OneOfMany | I176: Hidden | J176: FALSE | K176: User | L176: 3 | M176: 5 | N176: 7 | O176: 1
C177: 169 | E177: App | F177: AppOption8 | G177: App Option | H177: OneOfMany | I177: Hidden | J177: FALSE | K177: User | L177: 3 | M177: 5 | N177: 8 | O177: 1
C178: 170 | E178: App | F178: AppOption9 | G178: App Option | H178: OneOfMany | I178: Hidden | J178: FALSE | K178: User | L178: 3 | M178: 5 | N178: 9 | O178: 1
C179: 171 | E179: App | F179: AppOption10 | G179: App Option | H179: OneOfMany | I179: Hidden | J179: FALSE | K179: User | L179: 3 | M179: 5 | N179: 10 | O179: 1
C180: 172 | E180: App | F180: AppOption11 | G180: App Option | H180: OneOfMany | I180: Hidden | J180: FALSE | K180: User | L180: 3 | M180: 5 | N180: 11 | O180: 1
C181: 173 | E181: App | F181: AppOption12 | G181: App Option | H181: OneOfMany | I181: Hidden | J181: FALSE | K181: User | L181: 3 | M181: 5 | N181: 12 | O181: 1
C182: 174 | E182: App | F182: AppOption13 | G182: App Option | H182: OneOfMany | I182: Hidden | J182: FALSE | K182: User | L182: 3 | M182: 5 | N182: 13 | O182: 1
C183: 175 | E183: App | F183: AppOption14 | G183: App Option | H183: OneOfMany | I183: Hidden | J183: FALSE | K183: User | L183: 3 | M183: 5 | N183: 14 | O183: 1
C184: 176 | E184: App | F184: AppOption15 | G184: App Option | H184: OneOfMany | I184: Hidden | J184: FALSE | K184: User | L184: 3 | M184: 5 | N184: 15 | O184: 1
C185: 177 | E185: App | F185: AppOption16 | G185: App Option | H185: OneOfMany | I185: Hidden | J185: FALSE | K185: User | L185: 3 | M185: 5 | N185: 16 | O185: 1
C186: 178 | E186: App | F186: AppOption17 | G186: App Option | H186: OneOfMany | I186: Hidden | J186: FALSE | K186: User | L186: 3 | M186: 5 | N186: 17 | O186: 1
C187: 179 | E187: App | F187: AppOption18 | G187: App Option | H187: OneOfMany | I187: Hidden | J187: FALSE | K187: User | L187: 3 | M187: 5 | N187: 18 | O187: 1
C188: 180 | E188: App | F188: AppOption19 | G188: App Option | H188: OneOfMany | I188: Hidden | J188: FALSE | K188: User | L188: 3 | M188: 5 | N188: 19 | O188: 1
C189: 181 | E189: App | F189: AppOption20 | G189: App Option | H189: OneOfMany | I189: Hidden | J189: FALSE | K189: User | L189: 3 | M189: 5 | N189: 20 | O189: 1
C190: 182 | E190: App | F190: AppOption21 | G190: App Option | H190: OneOfMany | I190: Hidden | J190: FALSE | K190: User | L190: 3 | M190: 5 | N190: 21 | O190: 1
C191: 183 | E191: App | F191: AppOption22 | G191: App Option | H191: OneOfMany | I191: Hidden | J191: FALSE | K191: User | L191: 3 | M191: 5 | N191: 22 | O191: 1
C192: 184 | E192: App | F192: AppOption23 | G192: App Option | H192: OneOfMany | I192: Hidden | J192: FALSE | K192: User | L192: 3 | M192: 5 | N192: 23 | O192: 1
C193: 185 | E193: App | F193: AppOption24 | G193: App Option | H193: OneOfMany | I193: Hidden | J193: FALSE | K193: User | L193: 3 | M193: 5 | N193: 24 | O193: 1
C194: 186 | E194: App | F194: AppOption25 | G194: App Option | H194: OneOfMany | I194: Hidden | J194: FALSE | K194: User | L194: 3 | M194: 5 | N194: 25 | O194: 1
C195: 187 | L195: 0
C196: 188 | L196: 0
C197: 189 | D197: x | E197: Sheet | F197: Shape | G197: Description | H197: Action | I197: State | J197: Internal Only | K197: Called By | L197: Arg Count | M197: Group | N197: Item | O197: App Select | P197: Min | Q197: Max | R197: Row Start 1 | S197: Row End 1 | T197: Row Start 2 | U197: Row End 2 | V197: Banner End 1 | W197: Banner End 2 | X197: Adj Item Number | Y197: Other Group
C198: 190 | E198: Target | F198: StdResMin_Option1 | G198: App Option | H198: OneOfMany | I198: NotFull | J198: FALSE | K198: User | L198: =COUNTA(M198:AH198) -> 13 | M198: 6 | N198: 1 | O198: 0 | P198: =26-StdRes_Select_Min -> 26 | Q198: =26-StdRes_Select_Max -> 26 | R198: =TRes_ManualRes_BannerStart -> 469 | S198: =TRes_ManualRes_End -> 485 | T198: =TRes_Fundamental_BannerStart -> 305 | U198: =TRes_Fundamental_End -> 409 | V198: =TRes_ManualRes_BannerEnd -> 470 | W198: =TRes_Fundamental_BannerEnd -> 307 | X198: 25 | Y198: 7
C199: 191 | E199: Target | F199: StdResMin_Option2 | G199: App Option | H199: OneOfMany | I199: NotFull | J199: FALSE | K199: User | L199: 13 | M199: 6 | N199: 2 | O199: 0 | P199: 26 | Q199: 26 | R199: 469 | S199: 485 | T199: 305 | U199: 409 | V199: 470 | W199: 307 | X199: 24 | Y199: 7
C200: 192 | E200: Target | F200: StdResMin_Option3 | G200: App Option | H200: OneOfMany | I200: NotFull | J200: FALSE | K200: User | L200: 13 | M200: 6 | N200: 3 | O200: 0 | P200: 26 | Q200: 26 | R200: 469 | S200: 485 | T200: 305 | U200: 409 | V200: 470 | W200: 307 | X200: 23 | Y200: 7
C201: 193 | E201: Target | F201: StdResMin_Option4 | G201: App Option | H201: OneOfMany | I201: NotFull | J201: FALSE | K201: User | L201: 13 | M201: 6 | N201: 4 | O201: 0 | P201: 26 | Q201: 26 | R201: 469 | S201: 485 | T201: 305 | U201: 409 | V201: 470 | W201: 307 | X201: 22 | Y201: 7
C202: 194 | E202: Target | F202: StdResMin_Option5 | G202: App Option | H202: OneOfMany | I202: NotFull | J202: FALSE | K202: User | L202: 13 | M202: 6 | N202: 5 | O202: 0 | P202: 26 | Q202: 26 | R202: 469 | S202: 485 | T202: 305 | U202: 409 | V202: 470 | W202: 307 | X202: 21 | Y202: 7
C203: 195 | E203: Target | F203: StdResMin_Option6 | G203: App Option | H203: OneOfMany | I203: NotFull | J203: FALSE | K203: User | L203: 13 | M203: 6 | N203: 6 | O203: 0 | P203: 26 | Q203: 26 | R203: 469 | S203: 485 | T203: 305 | U203: 409 | V203: 470 | W203: 307 | X203: 20 | Y203: 7
C204: 196 | E204: Target | F204: StdResMin_Option7 | G204: App Option | H204: OneOfMany | I204: NotFull | J204: FALSE | K204: User | L204: 13 | M204: 6 | N204: 7 | O204: 0 | P204: 26 | Q204: 26 | R204: 469 | S204: 485 | T204: 305 | U204: 409 | V204: 470 | W204: 307 | X204: 19 | Y204: 7
... 193 more rows

Sheet Map (hidden)
M8: Resolution | W8: Image Size | AK8: Brightness | AT8: # of Matching
L9: Max: | M9: =Display_ResolutionSimple_Max -> -- x -- | Q9: =Display_Mpx_Max -> -- Mpx | V9: Max: | W9: =CONCATENATE( "W: ", Display_ImageWidth_Max, " x H: ", Display_ImageHeight_Max, " ( D: ", Display_ImageDiag_Max, " )" ) -> W: -- in x H: -- in ( D: -- in ) | AJ9: Max: | AK9: =Display_Lumens_Max -> -- lm | AO9: =Display_Nits_Max -> -- nits | AT9: Chipsets
L10: Min: | M10: =Display_ResolutionSimple_Min -> -- x -- | Q10: =Display_Mpx_Min -> -- Mpx | V10: Min: | W10: =CONCATENATE( "W: ", Display_ImageWidth_Min, " x H: ", Display_ImageHeight_Min, " ( D: ", Display_ImageDiag_Min, " )" ) -> W: -- in x H: -- in ( D: -- in ) | AJ10: Min: | AK10: =Display_Lumens_Min -> -- lm | AO10: =Display_Nits_Min -> -- nits | AT10: =Index_Chipset_Max -> 0
P14: Target Application | V14: =IF( Display_Application=0, "( No Application Selected )", Display_Application ) -> ( No Application Selected )
CD22: Target Application | CJ22: =IF( Display_Application=0, "( No Application Selected )", Display_Application ) -> ( No Application Selected )
AL48: Matching Zone Size
AM50: Apply | AP50: Top Edge | BB50: =ROW(BB50) -> 50 | BE50: 0
AM51: Defaults | AQ51: 0
AP52: =CONCATENATE( "<< ", ROUND( AppDef_MatchTol_Top*100,0), "% >>" ) -> << 0% >> | BT52: 0.45 issue
AM54: Left Edge | AP54: Nominal | AU54: Right Edge | BT54: Initialize BYPASS button
AM55: 0 | AQ55: 0.15 | AU55: 0 | BT55: fix nominal = 0
AL56: =CONCATENATE( "<< ", ROUND( AppDef_MatchTol_Left*100,0), "% >>" ) -> << 0% >> | AP56: =CONCATENATE( "<< ", ROUND( AppDef_MatchTol_Nom*100,0), "% >>" ) -> << 0% >> | AU56: =CONCATENATE( " << ", ROUND( AppDef_MatchTol_Right*100,0), "% >>" ) -> << 0% >>
AP58: Bottom Edge
AQ59: 0
AP60: =CONCATENATE( "<< ", ROUND( AppDef_MatchTol_Bottom*100,0), "% >>" ) -> << 0% >> | BT60: Initialize default button
BC62: =ROW(BC62) -> 62
AL63: • Entering a percentage value (for a
AM64: particular edge) moves the
AM65: corresponding edge of the Matching Zone
AM66: box by the prescribed percentage
AM67: (relative to the Target Zone box).
AL69: • When any of the "Top", "Bottom",
AM70: "Left", and/or "Right" Edge percentages
AM71: are set to 0%, then the "Nominal"
AM72: percentage applies to those Edges.
AL74: • Note that the Chipset Map graph
AM75: is drawn in log-log scale.
AM76: Consequently, the size of the
AM77: Matching Zone box changes in
AM78: non-linear fashion relative to the
AM79: entered percentages.
BC81: =ROW(BC81) -> 81
BB82: =ROW(BB82) -> 82
AM83: =CONCATENATE( "Ver. ", App_FullVersion ) -> Ver. [[Prod]] (Smarta2xOPENv3)
BB85: =ROW(BB85) -> 85
BB88: =ROW(BB88) -> 88
BB92: =ROW(BB92) -> 92
BB195: =ROW(BB195) -> 195

Sheet xMap (hidden)
N3: Log | Q3: Linear
H4: Label | I4: Diag | J4: Standard | K4: Col | L4: Row | M4: Pixels | N4: Mpx | O4: Lumens | Q4: Mpx | R4: Lumens
F5: -1 | G5: XPR
H7: DLP471TP | I7: 0.47 | J7: 4K | K7: 3840 | L7: 2160 | M7: =K7*L7 -> 8294400 | N7: =SetPrecision( M7/1000000 ) -> 8.294 | O7: 1500 | Q7: =F$5 * LOG(N7) -> -0.918764031 | R7: =F$5 * LOG(O7) -> -3.176091259
H8: DLP3310 | I8: 0.33 | J8: 1080p | K8: 1920 | L8: 1080 | M8: =K8*L8 -> 2073600 | N8: =SetPrecision( M8/1000000 ) -> 2.074 | O8: 500 | Q8: -0.3168087521 | R8: -2.698970004
H9: DLP230NP | I9: 0.23 | J9: 1080p | K9: 1920 | L9: 1080 | M9: =K9*L9 -> 2073600 | N9: =SetPrecision( M9/1000000 ) -> 2.074 | O9: 250 | Q9: -0.3168087521 | R9: -2.397940009
H10: DLP230KP | I10: 0.23 | J10: 720p | K10: 1280 | L10: 720 | M10: =K10*L10 -> 921600 | N10: =SetPrecision( M10/1000000 ) -> 0.922 | O10: 250 | Q10: 0.03526907895 | R10: -2.397940009
F11: -1 | G11: Keystone
H13: DLP471TP | I13: 0.47 | J13: 4K | K13: 3840 | L13: 2160 | M13: =K13*L13 -> 8294400 | N13: =SetPrecision( M13/1000000 ) -> 8.294 | O13: 1500 | Q13: =F$11 * LOG(N13) -> -0.918764031 | R13: =F$11 * LOG(O13) -> -3.176091259
H14: DLP3310 | I14: 0.33 | J14: 1080p | K14: 1920 | L14: 1080 | M14: 2073600 | N14: 2.074 | O14: 500 | Q14: -0.3168087521 | R14: -2.698970004
H15: DLP3010 | I15: 0.31 | J15: 720p | K15: 1280 | L15: 720 | M15: 921600 | N15: 0.922 | O15: 300 | Q15: 0.03526907895 | R15: -2.477121255
H16: DLP230NP | I16: 0.23 | J16: 1080p | K16: 1920 | L16: 1080 | M16: 2073600 | N16: 2.074 | O16: 250 | Q16: -0.3168087521 | R16: -2.397940009
H17: DLP230KP | I17: 0.23 | J17: 720p | K17: 1280 | L17: 720 | M17: 921600 | N17: 0.922 | O17: 250 | Q17: 0.03526907895 | R17: -2.397940009
H18: DLP230GP | I18: 0.23 | J18: qHD | K18: 960 | L18: 540 | M18: 518400 | N18: 0.518 | O18: 250 | Q18: 0.2856702403 | R18: -2.397940009
H19: DLP2010 | I19: 0.2 | J19: WVGA | K19: 854 | L19: 480 | M19: 409920 | N19: 0.41 | O19: 150 | Q19: 0.3872161433 | R19: -2.176091259
H20: DLP160CP | I20: 0.16 | J20: nHD | K20: 640 | L20: 360 | M20: 230400 | N20: 0.23 | O20: 100 | Q20: 0.638272164 | R20: -2
H21: DLP160AP | I21: 0.16 | J21: QnHD | K21: 320 | L21: 180 | M21: 57600 | N21: 0.0576 | O21: 100 | Q21: 1.239577517 | R21: -2
F22: -1 | G22: Frame Rate
H24: 60 Hz | I24: 0.47 | J24: 4K | K24: 3840 | L24: 2160 | M24: =K24*L24 -> 8294400 | N24: =SetPrecision( M24/1000000 ) -> 8.294 | O24: 1500 | Q24: =F$22 * LOG(N24) -> -0.918764031 | R24: =F$22 * LOG(O24) -> -3.176091259
H25: 60 Hz | I25: 0.47 | J25: 1080p | K25: 1920 | L25: 1080 | M25: 2073600 | N25: 2.074 | O25: 1500 | Q25: -0.3168087521 | R25: -3.176091259
H26: 60 Hz | I26: 0.33 | J26: 1080p | K26: 1920 | L26: 1080 | M26: 2073600 | N26: 2.074 | O26: 500 | Q26: -0.3168087521 | R26: -2.698970004
H27: 120 Hz | I27: 0.31 | J27: 720p | K27: 1280 | L27: 720 | M27: 921600 | N27: 0.922 | O27: 300 | Q27: 0.03526907895 | R27: -2.477121255
H28: 60 Hz | I28: 0.23 | J28: 1080p | K28: 1920 | L28: 1080 | M28: 2073600 | N28: 2.074 | O28: 250 | Q28: -0.3168087521 | R28: -2.397940009
H29: 60 Hz | I29: 0.23 | J29: 720p | K29: 1280 | L29: 720 | M29: 921600 | N29: 0.922 | O29: 250 | Q29: 0.03526907895 | R29: -2.397940009
H30: 120 Hz | I30: 0.23 | J30: qHD | K30: 960 | L30: 540 | M30: 518400 | N30: 0.518 | O30: 250 | Q30: 0.2856702403 | R30: -2.397940009
H31: 240 Hz | I31: 0.2 | J31: WVGA | K31: 854 | L31: 480 | M31: 409920 | N31: 0.41 | O31: 150 | Q31: 0.3872161433 | R31: -2.176091259
H32: 60 Hz | I32: 0.2 | J32: nHD | K32: 640 | L32: 360 | M32: 230400 | N32: 0.23 | O32: 50 | Q32: 0.638272164 | R32: -1.698970004
H33: 360 Hz | I33: 0.16 | J33: nHD | K33: 640 | L33: 360 | M33: 230400 | N33: 0.23 | O33: 100 | Q33: 0.638272164 | R33: -2 | AK33: The target zone is based solely upon resolution and lumens.
H34: 60 Hz | I34: 0.16 | J34: QnHD | K34: 320 | L34: 180 | M34: 57600 | N34: 0.0576 | O34: 100 | Q34: 1.239577517 | R34: -2 | AK34: if other chipset characteristics (such as size, power consumption, etc.)
B35: To add Chipsets, add the data to the next available row in this chipsets table and fill out columns H through O. Note this will only add chipsets to the graph on the 'Map' page. To get the chipset to appear on the 'Chipsets' page, refer to the chart on 'xChipsetFilter.' | G35: Chipsets | AK35: are inportant to your application, refer to the chipset list to
H36: DLP471TP | I36: 0.47 | J36: 4K | K36: 3840 | L36: 2160 | M36: =K36*L36 -> 8294400 | N36: =SetPrecision( M36/1000000 ) -> 8.294 | O36: 1800 | Q36: =LOG(N36) -> 0.918764031 | R36: =LOG(O36) -> 3.255272505
H37: DLP4710 | I37: 0.47 | J37: 1080p | K37: 1920 | L37: 1080 | M37: 2073600 | N37: 2.074 | O37: 1800 | Q37: 0.3168087521 | R37: 3.255272505 | AK37: further down-select to the appropriate chipsets.
H39: DLP3310 | I39: 0.33 | J39: 1080p | K39: 1920 | L39: 1080 | M39: 2073600 | N39: 2.074 | O39: 800 | Q39: 0.3168087521 | R39: 2.903089987
H40: DLP3010 | I40: 0.31 | J40: 720p | K40: 1280 | L40: 720 | M40: 921600 | N40: 0.922 | O40: 300 | Q40: -0.03526907895 | R40: 2.477121255
H41: DLP230NP | I41: 0.23 | J41: 1080p | K41: 1920 | L41: 1080 | M41: 2073600 | N41: 2.074 | O41: 450 | Q41: 0.3168087521 | R41: 2.653212514
H42: DLP230KP | I42: 0.23 | J42: 720p | K42: 1280 | L42: 720 | M42: 921600 | N42: 0.922 | O42: 450 | Q42: -0.03526907895 | R42: 2.653212514
H43: DLP230GP | I43: 0.23 | J43: qHD | K43: 960 | L43: 540 | M43: 518400 | N43: 0.518 | O43: 450 | Q43: -0.2856702403 | R43: 2.653212514
H44: DLP2010 | I44: 0.2 | J44: WVGA | K44: 854 | L44: 480 | M44: 409920 | N44: 0.41 | O44: 200 | Q44: -0.3872161433 | R44: 2.301029996
H45: DLP2000 | I45: 0.2 | J45: nHD | K45: 640 | L45: 360 | M45: 230400 | N45: 0.23 | O45: 50 | Q45: -0.638272164 | R45: 1.698970004
H46: DLP160CP | I46: 0.16 | J46: nHD | K46: 640 | L46: 360 | M46: 230400 | N46: 0.23 | O46: 120 | Q46: -0.638272164 | R46: 2.079181246
H47: DLP160AP | I47: 0.16 | J47: QnHD | K47: 320 | L47: 180 | M47: 57600 | N47: 0.0576 | O47: 120 | Q47: -1.239577517 | R47: 2.079181246
G54: Match Zone (red)
N55: =Resolved_Mpx_Min -> 0 | O55: =Resolved_Lumens_Max -> 0 | Q55: =LOG(N55) -> 
N56: =Resolved_Mpx_Max -> 0 | O56: =Resolved_Lumens_Max -> 0
N57: =Resolved_Mpx_Max -> 0 | O57: =Resolved_Lumens_Min -> 0
N58: =Resolved_Mpx_Min -> 0 | O58: =Resolved_Lumens_Min -> 0
D59: =Map_MatchZone_Option1 -> 0 | N59: =N55 -> 0 | O59: =O55 -> 0
D60: User | E60: AppDef | F60: Applied | G60: Match Tolerance Zone
B61: Default Tolerances | D61: =Value_MatchZoneTolerance -> 0.15 | E61: =AppDef_MatchTol_Nom -> 0 | F61: =IF( (Map_MatchZone_Option1=0), E61, D61 ) -> 0 | G61: UL | H61: =MIN(Resolved_Mpx_Min, Resolved_Mpx_Max) -> 0 | L61: =MAX(Resolved_Lumens_Min, Resolved_Lumens_Max) -> 0 | N61: =IF( Value_MinResTol>0, H61 * ( 1-Value_MinResTol ), 1000000 ) -> 1000000 | O61: =L61 * ( 1+Value_MaxLmTol ) -> 0 | Q61: =LOG(N61) -> 6
B62: MaxLm Tol | D62: =IF( Value_MatchZoneTolerance_MaxLm>0, Value_MatchZoneTolerance_MaxLm, Value_MatchZoneTolerance ) -> 0.15 | E62: =IF( AppDef_MatchTol_Top>0, AppDef_MatchTol_Top, AppDef_MatchTol_Nom ) -> 0 | F62: =IF( (Map_MatchZone_Option1=0), E62, D62 ) -> 0 | G62: UR | I62: =MAX(Resolved_Mpx_Min, Resolved_Mpx_Max) -> 0 | L62: =MAX(Resolved_Lumens_Min, Resolved_Lumens_Max) -> 0 | N62: =IF( Value_MaxResTol>0, I62* ( 1+Value_MaxResTol ), 1000000 ) -> 1000000 | O62: =L62 * ( 1+Value_MaxLmTol ) -> 0 | Q62: 6
B63: MinLm Tol | C63: =IF( Value_MatchZoneTolerance_MinLm<0, 0, IF( Value_MatchZoneTolerance_MinLm>=1, 0.9999, Value_MatchZoneTolerance_MinLm ) ) -> 0 | D63: =IF( AND(C63> 0,C63< 1),C63, Value_MatchZoneTolerance ) -> 0.15 | E63: =IF( AppDef_MatchTol_Bottom>0, AppDef_MatchTol_Bottom, AppDef_MatchTol_Nom ) -> 0 | F63: =IF( (Map_MatchZone_Option1=0), E63, D63 ) -> 0 | G63: LR | I63: =MAX(Resolved_Mpx_Min, Resolved_Mpx_Max) -> 0 | K63: =MIN(Resolved_Lumens_Min, Resolved_Lumens_Max) -> 0 | N63: =IF( Value_MaxResTol>0, I63* ( 1+Value_MaxResTol ), 1000000 ) -> 1000000 | O63: =K63 * ( 1-Value_MinLmTol ) -> 0 | Q63: 6
B64: MaxRes Tol | D64: =IF( Value_MatchZoneTolerance_MaxRes>0, Value_MatchZoneTolerance_MaxRes, Value_MatchZoneTolerance ) -> 0.15 | E64: =IF( AppDef_MatchTol_Right>0, AppDef_MatchTol_Right, AppDef_MatchTol_Nom ) -> 0 | F64: =IF( (Map_MatchZone_Option1=0), E64, D64 ) -> 0 | G64: LL | H64: =MIN(Resolved_Mpx_Min, Resolved_Mpx_Max) -> 0 | K64: =MIN(Resolved_Lumens_Min, Resolved_Lumens_Max) -> 0 | N64: =IF( Value_MinResTol>0, H64 * ( 1-Value_MinResTol ), 1000000 ) -> 1000000 | O64: =K64 * ( 1-Value_MinLmTol ) -> 0 | Q64: 6
B65: MinRes Tol | C65: =IF( Value_MatchZoneTolerance_MinRes<0, 0, IF( Value_MatchZoneTolerance_MinRes>=1, 0.9999, Value_MatchZoneTolerance_MinRes ) ) -> 0 | D65: =IF( AND(C65> 0,C65< 1),C65, Value_MatchZoneTolerance ) -> 0.15 | E65: =IF( AppDef_MatchTol_Left>0, AppDef_MatchTol_Left, AppDef_MatchTol_Nom ) -> 0 | F65: =IF( (Map_MatchZone_Option1=0), E65, D65 ) -> 0 | N65: =N61 -> 1000000 | O65: =O61 -> 0 | Q65: 6
G66: Resolution Tick-Marks
H67: (8K) | J67: 8K | K67: 7680 | L67: 4320 | M67: =K67*L67 -> 33177600 | N67: =SetPrecision( M67/1000000 ) -> 33.18 | O67: 0.01 | Q67: =LOG(N67) -> 1.520876382 | R67: -2
H68: DLP471TP | I68: 0.47 | J68: 4K | K68: 3840 | L68: 2160 | M68: 8294400 | N68: 8.294 | O68: =O67 -> 0.01 | Q68: 0.918764031 | R68: -2
H69: DLP230NP | I69: 0.23 | J69: 1080p | K69: 1920 | L69: 1080 | M69: 2073600 | N69: 2.074 | O69: 0.01 | Q69: 0.3168087521 | R69: -2
H70: DLP230KP | I70: 0.23 | J70: 720p | K70: 1280 | L70: 720 | M70: 921600 | N70: 0.922 | O70: 0.01 | Q70: -0.03526907895 | R70: -2
H71: DLP230GP | I71: 0.23 | J71: qHD | K71: 960 | L71: 540 | M71: 518400 | N71: 0.518 | O71: 0.01 | Q71: -0.2856702403 | R71: -2
H72: DLP2010 | I72: 0.2 | J72: WVGA | K72: 854 | L72: 480 | M72: 409920 | N72: 0.41 | O72: 0.01 | Q72: -0.3872161433 | R72: -2
H73: DLP160CP | I73: 0.16 | J73: nHD | K73: 640 | L73: 360 | M73: 230400 | N73: 0.23 | O73: 0.01 | Q73: -0.638272164 | R73: -2
H74: DLP160AP | I74: 0.16 | J74: QnHD | K74: 320 | L74: 180 | M74: 57600 | N74: 0.0576 | O74: 0.01 | Q74: -1.239577517 | R74: -2
G75: Axis Limits
H76: =MIN(Resolved_Mpx_Min, Resolved_Mpx_Max) -> 0 | L76: =MAX(Resolved_Lumens_Min, Resolved_Lumens_Max) -> 0 | N76: 1 | O76: 10000 | Q76: =LOG(N76) -> 0 | R76: 4
I77: =MAX(Resolved_Mpx_Min, Resolved_Mpx_Max) -> 0 | L77: =MAX(Resolved_Lumens_Min, Resolved_Lumens_Max) -> 0 | N77: 100 | O77: 10000 | Q77: 2 | R77: 4
I78: =MAX(Resolved_Mpx_Min, Resolved_Mpx_Max) -> 0 | K78: =MIN(Resolved_Lumens_Min, Resolved_Lumens_Max) -> 0 | N78: 100 | O78: 10 | Q78: 2 | R78: 1
H79: =MIN(Resolved_Mpx_Min, Resolved_Mpx_Max) -> 0 | K79: =MIN(Resolved_Lumens_Min, Resolved_Lumens_Max) -> 0 | N79: 1 | O79: 10 | Q79: 0 | R79: 1
H83: =MIN(Resolved_Mpx_Min, Resolved_Mpx_Max) -> 0 | L83: =MAX(Resolved_Lumens_Min, Resolved_Lumens_Max) -> 0 | N83: =IF( $F$61>0, H83 * ( 1-$F$61 ), 1000000 ) -> 1000000 | O83: =L83 * ( 1+$F$61 ) -> 0
I84: =MAX(Resolved_Mpx_Min, Resolved_Mpx_Max) -> 0 | L84: =MAX(Resolved_Lumens_Min, Resolved_Lumens_Max) -> 0 | N84: =IF( $F$61>0, I84* ( 1+$F$61 ), 1000000 ) -> 1000000 | O84: =L84 * ( 1+$F$61 ) -> 0
I85: =MAX(Resolved_Mpx_Min, Resolved_Mpx_Max) -> 0 | K85: =MIN(Resolved_Lumens_Min, Resolved_Lumens_Max) -> 0 | N85: =IF( $F$61>0, I85* ( 1+$F$61 ), 1000000 ) -> 1000000 | O85: =K85 * ( 1-$F$61 ) -> 0
H86: =MIN(Resolved_Mpx_Min, Resolved_Mpx_Max) -> 0 | K86: =MIN(Resolved_Lumens_Min, Resolved_Lumens_Max) -> 0 | N86: =IF( $F$61>0, H86 * ( 1-$F$61 ), 1000000 ) -> 1000000 | O86: =K86 * ( 1-$F$61 ) -> 0
N87: =N83 -> 1000000 | O87: =O83 -> 0
H90: =MIN(Resolved_Mpx_Min, Resolved_Mpx_Max) -> 0 | L90: =MAX(Resolved_Lumens_Min, Resolved_Lumens_Max) -> 0 | N90: 0.01 | O90: 10000 | Q90: =LOG(N90) -> -2 | R90: 4
I91: =MAX(Resolved_Mpx_Min, Resolved_Mpx_Max) -> 0 | L91: =MAX(Resolved_Lumens_Min, Resolved_Lumens_Max) -> 0 | N91: 100 | O91: 10000 | Q91: 2 | R91: 4
I92: =MAX(Resolved_Mpx_Min, Resolved_Mpx_Max) -> 0 | K92: =MIN(Resolved_Lumens_Min, Resolved_Lumens_Max) -> 0 | N92: 100 | O92: 10 | Q92: 2 | R92: 1
H93: =MIN(Resolved_Mpx_Min, Resolved_Mpx_Max) -> 0 | K93: =MIN(Resolved_Lumens_Min, Resolved_Lumens_Max) -> 0 | N93: 0.01 | O93: 10 | Q93: -2 | R93: 1
N94: =N90 -> 0.01 | O94: =O90 -> 10000 | Q94: -2 | R94: 4

Sheet Options (hidden)
M8: Resolution | W8: Image Size | AK8: Brightness | AT8: # of Matching
L9: Max: | M9: =Display_ResolutionSimple_Max -> -- x -- | Q9: =Display_Mpx_Max -> -- Mpx | V9: Max: | W9: =CONCATENATE( "W: ", Display_ImageWidth_Max, " x H: ", Display_ImageHeight_Max, " ( D: ", Display_ImageDiag_Max, " )" ) -> W: -- in x H: -- in ( D: -- in ) | AJ9: Max: | AK9: =Display_Lumens_Max -> -- lm | AO9: =Display_Nits_Max -> -- nits | AT9: Chipsets
L10: Min: | M10: =Display_ResolutionSimple_Min -> -- x -- | Q10: =Display_Mpx_Min -> -- Mpx | V10: Min: | W10: =CONCATENATE( "W: ", Display_ImageWidth_Min, " x H: ", Display_ImageHeight_Min, " ( D: ", Display_ImageDiag_Min, " )" ) -> W: -- in x H: -- in ( D: -- in ) | AJ10: Min: | AK10: =Display_Lumens_Min -> -- lm | AO10: =Display_Nits_Min -> -- nits | AT10: =Index_Chipset_Max -> 0
L13: Options
O18: Default Screen Zoom Level | Y18: 1 | AC18: ( 25% to 200% )
O20: Default "System Units" | BE20: 0
S21: inches | X21: • These are the units used for System calculations | BF21: 1
S22: feet | X22: • All calcuation results are shown in these units | BF22: 2
S23: meters | BF23: 3
O25: Default Matching Zone Tolerance | Y25: 0.15
O27: Default Print Path
U28: (if no default path is provided, the path automatically default to directory as the SmartSelect Excel file)
O30: Open PDF after printing | Y30: Yes | AC30: ( "Yes", "No" )
AM34: =CONCATENATE( "Ver. ", App_FullVersion ) -> Ver. [[Prod]] (Smarta2xOPENv3)

Sheet Chipsets (hidden)
M8: Resolution | W8: Image Size | AK8: Brightness | AT8: # of Matching
L9: Max: | M9: =Display_ResolutionSimple_Max -> -- x -- | Q9: =Display_Mpx_Max -> -- Mpx | V9: Max: | W9: =CONCATENATE( "W: ", Display_ImageWidth_Max, " x H: ", Display_ImageHeight_Max, " ( D: ", Display_ImageDiag_Max, " )" ) -> W: -- in x H: -- in ( D: -- in ) | AJ9: Max: | AK9: =Display_Lumens_Max -> -- lm | AO9: =Display_Nits_Max -> -- nits | AT9: Chipsets
L10: Min: | M10: =Display_ResolutionSimple_Min -> -- x -- | Q10: =Display_Mpx_Min -> -- Mpx | V10: Min: | W10: =CONCATENATE( "W: ", Display_ImageWidth_Min, " x H: ", Display_ImageHeight_Min, " ( D: ", Display_ImageDiag_Min, " )" ) -> W: -- in x H: -- in ( D: -- in ) | AJ10: Min: | AK10: =Display_Lumens_Min -> -- lm | AO10: =Display_Nits_Min -> -- nits | AT10: =Index_Chipset_Max -> 0
L13: Chipset Number | U13: =( (Value_ChipsetsPage-1)*5 )+1 -> 1 | AA13: =U13+1 -> 2 | AG13: =AA13+1 -> 3 | AM13: =AG13+1 -> 4 | AS13: =AM13+1 -> 5
L14: Chipset Index | U14: =IFERROR( MATCH( U13, Array_Chipset_Index, 0 ), 0 ) -> 0 | AA14: =IFERROR( MATCH( AA13, Array_Chipset_Index, 0 ), 0 ) -> 0 | AG14: =IFERROR( MATCH( AG13, Array_Chipset_Index, 0 ), 0 ) -> 0 | AM14: =IFERROR( MATCH( AM13, Array_Chipset_Index, 0 ), 0 ) -> 0 | AS14: =IFERROR( MATCH( AS13, Array_Chipset_Index, 0 ), 0 ) -> 0
L15: Chipset | U15: =IF(U$14>0,INDEX(Table_Chipsets, $BC15,U$14+2),"--") -> -- | AA15: =IF(AA$14>0,INDEX(Table_Chipsets, $BC15,AA$14+2),"--") -> -- | AG15: =IF(AG$14>0,INDEX(Table_Chipsets, $BC15,AG$14+2),"--") -> -- | AM15: =IF(AM$14>0,INDEX(Table_Chipsets, $BC15,AM$14+2),"--") -> -- | AS15: =IF(AS$14>0,INDEX(Table_Chipsets, $BC15,AS$14+2),"--") -> -- | AY15: =IF( Index_Chipset_Max>5, "…", "" ) ->  | BC15: =MATCH(L15, Array_ChipsetLables, 0 ) -> 2
L16: DMD | U16: =IF(U$14>0, IF( $BD16=1, HYPERLINK( INDEX(Table_Chipsets, $BC16+1,U$14+2), INDEX(Table_Chipsets, $BC16,U$14+2)), HYPERLINK("",INDEX(Table_Chipsets, $BC16,U$14+2))), HYPERLINK("", "--") ) -> -- | AA16: =IF(AA$14>0, IF( $BE16=1, HYPERLINK( INDEX(Table_Chipsets, $BC16+1,AA$14+2), INDEX(Table_Chipsets, $BC16,AA$14+2)), HYPERLINK("",INDEX(Table_Chipsets, $BC16,AA$14+2))), HYPERLINK("", "--") ) -> -- | AG16: =IF(AG$14>0, IF( $BF16=1, HYPERLINK( INDEX(Table_Chipsets, $BC16+1,AG$14+2), INDEX(Table_Chipsets, $BC16,AG$14+2)), HYPERLINK("",INDEX(Table_Chipsets, $BC16,AG$14+2))), HYPERLINK("", "--") ) -> -- | AM16: =IF(AM$14>0, IF( $BG16=1, HYPERLINK( INDEX(Table_Chipsets, $BC16+1,AM$14+2), INDEX(Table_Chipsets, $BC16,AM$14+2)), HYPERLINK("",INDEX(Table_Chipsets, $BC16,AM$14+2))), HYPERLINK("", "--") ) -> -- | AS16: =IF(AS$14>0, IF( $BH16=1, HYPERLINK( INDEX(Table_Chipsets, $BC16+1,AS$14+2), INDEX(Table_Chipsets, $BC16,AS$14+2)), HYPERLINK("",INDEX(Table_Chipsets, $BC16,AS$14+2))), HYPERLINK("", "--") ) -> -- | BC16: 3 | BD16: =IF( AND( U$14>0, INDEX(Table_Chipsets, $BC16+1,U$14+2)<>"--"), 1, 0 ) -> 0 | BE16: =IF( AND( AA$14>0, INDEX(Table_Chipsets, $BC16+1,AA$14+2)<>"--"), 1, 0 ) -> 0 | BF16: =IF( AND( AG$14>0, INDEX(Table_Chipsets, $BC16+1,AG$14+2)<>"--"), 1, 0 ) -> 0 | BG16: =IF( AND( AM$14>0, INDEX(Table_Chipsets, $BC16+1,AM$14+2)<>"--"), 1, 0 ) -> 0 | BH16: =IF( AND( AS$14>0, INDEX(Table_Chipsets, $BC16+1,AS$14+2)<>"--"), 1, 0 ) -> 0
L17: Micromirror Array Diagonal | U17: =IF(U$14>0,INDEX(Table_Chipsets, $BC17,U$14+2),"--") -> -- | AA17: -- | AG17: -- | AM17: -- | AS17: -- | BC17: =MATCH(L17, Array_ChipsetLables, 0 ) -> 5
L18: Display Resolution | U18: =IF(U$14>0,INDEX(Table_Chipsets, $BC18,U$14+2),"--") -> -- | AA18: -- | AG18: -- | AM18: -- | AS18: -- | BC18: =MATCH(L18, Array_ChipsetLables, 0 ) -> 9
L19: Display Standard | U19: -- | AA19: -- | AG19: -- | AM19: -- | AS19: -- | BC19: 10
L20: Micromirror Pitch | U20: -- | AA20: -- | AG20: -- | AM20: -- | AS20: -- | BC20: 11
L21: Micromirror Tilt Angle | U21: -- | AA21: -- | AG21: -- | AM21: -- | AS21: -- | BC21: 12
L22: Micromirror Orientation | U22: -- | AA22: -- | AG22: -- | AM22: -- | AS22: -- | BC22: 13
L23: Illumination Direction | U23: -- | AA23: -- | AG23: -- | AM23: -- | AS23: -- | BC23: 14
L24: DMD Package Size [ mm ] | U24: -- | AA24: -- | AG24: -- | AM24: -- | AS24: -- | BC24: 15
L25: Automotive Qualified | U25: -- | AA25: -- | AG25: -- | AM25: -- | AS25: -- | BC25: 15
L26: DMD Price & Availability | U26: =IF(U$14>0, IF( $BD26=1, HYPERLINK( INDEX(Table_Chipsets, $BC26+1,U$14+2), INDEX(Table_Chipsets, $BC26,U$14+2)), HYPERLINK("",INDEX(Table_Chipsets, $BC26,U$14+2))), HYPERLINK("", "--") ) -> -- | AA26: =IF(AA$14>0, IF( $BE26=1, HYPERLINK( INDEX(Table_Chipsets, $BC26+1,AA$14+2), INDEX(Table_Chipsets, $BC26,AA$14+2)), HYPERLINK("",INDEX(Table_Chipsets, $BC26,AA$14+2))), HYPERLINK("", "--") ) -> -- | AG26: =IF(AG$14>0, IF( $BF26=1, HYPERLINK( INDEX(Table_Chipsets, $BC26+1,AG$14+2), INDEX(Table_Chipsets, $BC26,AG$14+2)), HYPERLINK("",INDEX(Table_Chipsets, $BC26,AG$14+2))), HYPERLINK("", "--") ) -> -- | AM26: =IF(AM$14>0, IF( $BG26=1, HYPERLINK( INDEX(Table_Chipsets, $BC26+1,AM$14+2), INDEX(Table_Chipsets, $BC26,AM$14+2)), HYPERLINK("",INDEX(Table_Chipsets, $BC26,AM$14+2))), HYPERLINK("", "--") ) -> -- | AS26: =IF(AS$14>0, IF( $BH26=1, HYPERLINK( INDEX(Table_Chipsets, $BC26+1,AS$14+2), INDEX(Table_Chipsets, $BC26,AS$14+2)), HYPERLINK("",INDEX(Table_Chipsets, $BC26,AS$14+2))), HYPERLINK("", "--") ) -> -- | BC26: 17 | BD26: =IF( AND( U$14>0, INDEX(Table_Chipsets, $BC26+1,U$14+2)<>"--"), 1, 0 ) -> 0 | BE26: =IF( AND( AA$14>0, INDEX(Table_Chipsets, $BC26+1,AA$14+2)<>"--"), 1, 0 ) -> 0 | BF26: =IF( AND( AG$14>0, INDEX(Table_Chipsets, $BC26+1,AG$14+2)<>"--"), 1, 0 ) -> 0 | BG26: =IF( AND( AM$14>0, INDEX(Table_Chipsets, $BC26+1,AM$14+2)<>"--"), 1, 0 ) -> 0 | BH26: =IF( AND( AS$14>0, INDEX(Table_Chipsets, $BC26+1,AS$14+2)<>"--"), 1, 0 ) -> 0
L28: Typical Brightness | U28: =IF(U$14>0,INDEX(Table_Chipsets, $BC28,U$14+2),"--") -> -- | AA28: =IF(AA$14>0,INDEX(Table_Chipsets, $BC28,AA$14+2),"--") -> -- | AG28: =IF(AG$14>0,INDEX(Table_Chipsets, $BC28,AG$14+2),"--") -> -- | AM28: =IF(AM$14>0,INDEX(Table_Chipsets, $BC28,AM$14+2),"--") -> -- | AS28: =IF(AS$14>0,INDEX(Table_Chipsets, $BC28,AS$14+2),"--") -> -- | BC28: 21
L29: Typical Illumination Power | U29: =IF(U$14>0,INDEX(Table_Chipsets, $BC29,U$14+2),"--") -> -- | AA29: =IF(AA$14>0,INDEX(Table_Chipsets, $BC29,AA$14+2),"--") -> -- | AG29: =IF(AG$14>0,INDEX(Table_Chipsets, $BC29,AG$14+2),"--") -> -- | AM29: =IF(AM$14>0,INDEX(Table_Chipsets, $BC29,AM$14+2),"--") -> -- | AS29: =IF(AS$14>0,INDEX(Table_Chipsets, $BC29,AS$14+2),"--") -> -- | BC29: 22
L31: Controller | U31: =IF(U$14>0, IF( $BD31=1, HYPERLINK( INDEX(Table_Chipsets, $BC31+1,U$14+2), INDEX(Table_Chipsets, $BC31,U$14+2)), HYPERLINK("",INDEX(Table_Chipsets, $BC31,U$14+2))), HYPERLINK("", "--") ) -> -- | AA31: =IF(AA$14>0, IF( $BE31=1, HYPERLINK( INDEX(Table_Chipsets, $BC31+1,AA$14+2), INDEX(Table_Chipsets, $BC31,AA$14+2)), HYPERLINK("",INDEX(Table_Chipsets, $BC31,AA$14+2))), HYPERLINK("", "--") ) -> -- | AG31: =IF(AG$14>0, IF( $BF31=1, HYPERLINK( INDEX(Table_Chipsets, $BC31+1,AG$14+2), INDEX(Table_Chipsets, $BC31,AG$14+2)), HYPERLINK("",INDEX(Table_Chipsets, $BC31,AG$14+2))), HYPERLINK("", "--") ) -> -- | AM31: =IF(AM$14>0, IF( $BG31=1, HYPERLINK( INDEX(Table_Chipsets, $BC31+1,AM$14+2), INDEX(Table_Chipsets, $BC31,AM$14+2)), HYPERLINK("",INDEX(Table_Chipsets, $BC31,AM$14+2))), HYPERLINK("", "--") ) -> -- | AS31: =IF(AS$14>0, IF( $BH31=1, HYPERLINK( INDEX(Table_Chipsets, $BC31+1,AS$14+2), INDEX(Table_Chipsets, $BC31,AS$14+2)), HYPERLINK("",INDEX(Table_Chipsets, $BC31,AS$14+2))), HYPERLINK("", "--") ) -> -- | BC31: 23 | BD31: =IF( AND( U$14>0, INDEX(Table_Chipsets, $BC31+1,U$14+2)<>"--"), 1, 0 ) -> 0 | BE31: =IF( AND( AA$14>0, INDEX(Table_Chipsets, $BC31+1,AA$14+2)<>"--"), 1, 0 ) -> 0 | BF31: =IF( AND( AG$14>0, INDEX(Table_Chipsets, $BC31+1,AG$14+2)<>"--"), 1, 0 ) -> 0 | BG31: =IF( AND( AM$14>0, INDEX(Table_Chipsets, $BC31+1,AM$14+2)<>"--"), 1, 0 ) -> 0 | BH31: =IF( AND( AS$14>0, INDEX(Table_Chipsets, $BC31+1,AS$14+2)<>"--"), 1, 0 ) -> 0
L32: Frame Refresh Rate | U32: =IF(U$14>0,INDEX(Table_Chipsets, $BC32,U$14+2),"--") -> -- | AA32: =IF(AA$14>0,INDEX(Table_Chipsets, $BC32,AA$14+2),"--") -> -- | AG32: =IF(AG$14>0,INDEX(Table_Chipsets, $BC32,AG$14+2),"--") -> -- | AM32: =IF(AM$14>0,INDEX(Table_Chipsets, $BC32,AM$14+2),"--") -> -- | AS32: =IF(AS$14>0,INDEX(Table_Chipsets, $BC32,AS$14+2),"--") -> -- | BC32: 26
L33: DLP IntelliBright™ Algorithms | U33: -- | AA33: -- | AG33: -- | AM33: -- | AS33: -- | BC33: 27
L34: Keystone Correction | U34: -- | AA34: -- | AG34: -- | AM34: -- | AS34: -- | BC34: 28
L35: Controller Package Size [ mm ] | U35: -- | AA35: -- | AG35: -- | AM35: -- | AS35: -- | BC35: 29
L36: Controller Price & Availability | U36: =IF(U$14>0, IF( $BD36=1, HYPERLINK( INDEX(Table_Chipsets, $BC36+1,U$14+2), INDEX(Table_Chipsets, $BC36,U$14+2)), HYPERLINK("",INDEX(Table_Chipsets, $BC36,U$14+2))), HYPERLINK("", "--") ) -> -- | AA36: =IF(AA$14>0, IF( $BE36=1, HYPERLINK( INDEX(Table_Chipsets, $BC36+1,AA$14+2), INDEX(Table_Chipsets, $BC36,AA$14+2)), HYPERLINK("",INDEX(Table_Chipsets, $BC36,AA$14+2))), HYPERLINK("", "--") ) -> -- | AG36: =IF(AG$14>0, IF( $BF36=1, HYPERLINK( INDEX(Table_Chipsets, $BC36+1,AG$14+2), INDEX(Table_Chipsets, $BC36,AG$14+2)), HYPERLINK("",INDEX(Table_Chipsets, $BC36,AG$14+2))), HYPERLINK("", "--") ) -> -- | AM36: =IF(AM$14>0, IF( $BG36=1, HYPERLINK( INDEX(Table_Chipsets, $BC36+1,AM$14+2), INDEX(Table_Chipsets, $BC36,AM$14+2)), HYPERLINK("",INDEX(Table_Chipsets, $BC36,AM$14+2))), HYPERLINK("", "--") ) -> -- | AS36: =IF(AS$14>0, IF( $BH36=1, HYPERLINK( INDEX(Table_Chipsets, $BC36+1,AS$14+2), INDEX(Table_Chipsets, $BC36,AS$14+2)), HYPERLINK("",INDEX(Table_Chipsets, $BC36,AS$14+2))), HYPERLINK("", "--") ) -> -- | BC36: 30 | BD36: =IF( AND( U$14>0, INDEX(Table_Chipsets, $BC36+1,U$14+2)<>"--"), 1, 0 ) -> 0 | BE36: =IF( AND( AA$14>0, INDEX(Table_Chipsets, $BC36+1,AA$14+2)<>"--"), 1, 0 ) -> 0 | BF36: =IF( AND( AG$14>0, INDEX(Table_Chipsets, $BC36+1,AG$14+2)<>"--"), 1, 0 ) -> 0 | BG36: =IF( AND( AM$14>0, INDEX(Table_Chipsets, $BC36+1,AM$14+2)<>"--"), 1, 0 ) -> 0 | BH36: =IF( AND( AS$14>0, INDEX(Table_Chipsets, $BC36+1,AS$14+2)<>"--"), 1, 0 ) -> 0
L38: Power Management IC
L39: DLPA1000 ( up to 1A ) | U39: =IF(U$14>0, IF( $BD39=1, HYPERLINK( INDEX(Table_Chipsets, $BC39+1,U$14+2), INDEX(Table_Chipsets, $BC39,U$14+2)), HYPERLINK("",INDEX(Table_Chipsets, $BC39,U$14+2))), HYPERLINK("", "--") ) -> -- | AA39: =IF(AA$14>0, IF( $BE39=1, HYPERLINK( INDEX(Table_Chipsets, $BC39+1,AA$14+2), INDEX(Table_Chipsets, $BC39,AA$14+2)), HYPERLINK("",INDEX(Table_Chipsets, $BC39,AA$14+2))), HYPERLINK("", "--") ) -> -- | AG39: =IF(AG$14>0, IF( $BF39=1, HYPERLINK( INDEX(Table_Chipsets, $BC39+1,AG$14+2), INDEX(Table_Chipsets, $BC39,AG$14+2)), HYPERLINK("",INDEX(Table_Chipsets, $BC39,AG$14+2))), HYPERLINK("", "--") ) -> -- | AM39: =IF(AM$14>0, IF( $BG39=1, HYPERLINK( INDEX(Table_Chipsets, $BC39+1,AM$14+2), INDEX(Table_Chipsets, $BC39,AM$14+2)), HYPERLINK("",INDEX(Table_Chipsets, $BC39,AM$14+2))), HYPERLINK("", "--") ) -> -- | AS39: =IF(AS$14>0, IF( $BH39=1, HYPERLINK( INDEX(Table_Chipsets, $BC39+1,AS$14+2), INDEX(Table_Chipsets, $BC39,AS$14+2)), HYPERLINK("",INDEX(Table_Chipsets, $BC39,AS$14+2))), HYPERLINK("", "--") ) -> -- | BC39: =MATCH(L39, Array_ChipsetLables, 0 ) -> 36 | BD39: =IF( AND( U$14>0, INDEX(Table_Chipsets, $BC39+1,U$14+2)<>"--"), 1, 0 ) -> 0 | BE39: =IF( AND( AA$14>0, INDEX(Table_Chipsets, $BC39+1,AA$14+2)<>"--"), 1, 0 ) -> 0 | BF39: =IF( AND( AG$14>0, INDEX(Table_Chipsets, $BC39+1,AG$14+2)<>"--"), 1, 0 ) -> 0 | BG39: =IF( AND( AM$14>0, INDEX(Table_Chipsets, $BC39+1,AM$14+2)<>"--"), 1, 0 ) -> 0 | BH39: =IF( AND( AS$14>0, INDEX(Table_Chipsets, $BC39+1,AS$14+2)<>"--"), 1, 0 ) -> 0
L40: DLPA2000 ( up to 750mA ) | U40: =IF(U$14>0, IF( $BD40=1, HYPERLINK( INDEX(Table_Chipsets, $BC40+1,U$14+2), INDEX(Table_Chipsets, $BC40,U$14+2)), HYPERLINK("",INDEX(Table_Chipsets, $BC40,U$14+2))), HYPERLINK("", "--") ) -> -- | AA40: =IF(AA$14>0, IF( $BE40=1, HYPERLINK( INDEX(Table_Chipsets, $BC40+1,AA$14+2), INDEX(Table_Chipsets, $BC40,AA$14+2)), HYPERLINK("",INDEX(Table_Chipsets, $BC40,AA$14+2))), HYPERLINK("", "--") ) -> -- | AG40: =IF(AG$14>0, IF( $BF40=1, HYPERLINK( INDEX(Table_Chipsets, $BC40+1,AG$14+2), INDEX(Table_Chipsets, $BC40,AG$14+2)), HYPERLINK("",INDEX(Table_Chipsets, $BC40,AG$14+2))), HYPERLINK("", "--") ) -> -- | AM40: =IF(AM$14>0, IF( $BG40=1, HYPERLINK( INDEX(Table_Chipsets, $BC40+1,AM$14+2), INDEX(Table_Chipsets, $BC40,AM$14+2)), HYPERLINK("",INDEX(Table_Chipsets, $BC40,AM$14+2))), HYPERLINK("", "--") ) -> -- | AS40: =IF(AS$14>0, IF( $BH40=1, HYPERLINK( INDEX(Table_Chipsets, $BC40+1,AS$14+2), INDEX(Table_Chipsets, $BC40,AS$14+2)), HYPERLINK("",INDEX(Table_Chipsets, $BC40,AS$14+2))), HYPERLINK("", "--") ) -> -- | BC40: =MATCH(L40, Array_ChipsetLables, 0 ) -> 38 | BD40: =IF( AND( U$14>0, INDEX(Table_Chipsets, $BC40+1,U$14+2)<>"--"), 1, 0 ) -> 0 | BE40: =IF( AND( AA$14>0, INDEX(Table_Chipsets, $BC40+1,AA$14+2)<>"--"), 1, 0 ) -> 0 | BF40: =IF( AND( AG$14>0, INDEX(Table_Chipsets, $BC40+1,AG$14+2)<>"--"), 1, 0 ) -> 0 | BG40: =IF( AND( AM$14>0, INDEX(Table_Chipsets, $BC40+1,AM$14+2)<>"--"), 1, 0 ) -> 0 | BH40: =IF( AND( AS$14>0, INDEX(Table_Chipsets, $BC40+1,AS$14+2)<>"--"), 1, 0 ) -> 0 | BL40: =HYPERLINK("","abc") -> abc
L41: DLPA2005 ( up to 2.4A ) | U41: =IF(U$14>0, IF( $BD41=1, HYPERLINK( INDEX(Table_Chipsets, $BC41+1,U$14+2), INDEX(Table_Chipsets, $BC41,U$14+2)), HYPERLINK("",INDEX(Table_Chipsets, $BC41,U$14+2))), HYPERLINK("", "--") ) -> -- | AA41: =IF(AA$14>0, IF( $BE41=1, HYPERLINK( INDEX(Table_Chipsets, $BC41+1,AA$14+2), INDEX(Table_Chipsets, $BC41,AA$14+2)), HYPERLINK("",INDEX(Table_Chipsets, $BC41,AA$14+2))), HYPERLINK("", "--") ) -> -- | AG41: =IF(AG$14>0, IF( $BF41=1, HYPERLINK( INDEX(Table_Chipsets, $BC41+1,AG$14+2), INDEX(Table_Chipsets, $BC41,AG$14+2)), HYPERLINK("",INDEX(Table_Chipsets, $BC41,AG$14+2))), HYPERLINK("", "--") ) -> -- | AM41: =IF(AM$14>0, IF( $BG41=1, HYPERLINK( INDEX(Table_Chipsets, $BC41+1,AM$14+2), INDEX(Table_Chipsets, $BC41,AM$14+2)), HYPERLINK("",INDEX(Table_Chipsets, $BC41,AM$14+2))), HYPERLINK("", "--") ) -> -- | AS41: =IF(AS$14>0, IF( $BH41=1, HYPERLINK( INDEX(Table_Chipsets, $BC41+1,AS$14+2), INDEX(Table_Chipsets, $BC41,AS$14+2)), HYPERLINK("",INDEX(Table_Chipsets, $BC41,AS$14+2))), HYPERLINK("", "--") ) -> -- | BC41: =MATCH(L41, Array_ChipsetLables, 0 ) -> 40 | BD41: =IF( AND( U$14>0, INDEX(Table_Chipsets, $BC41+1,U$14+2)<>"--"), 1, 0 ) -> 0 | BE41: =IF( AND( AA$14>0, INDEX(Table_Chipsets, $BC41+1,AA$14+2)<>"--"), 1, 0 ) -> 0 | BF41: =IF( AND( AG$14>0, INDEX(Table_Chipsets, $BC41+1,AG$14+2)<>"--"), 1, 0 ) -> 0 | BG41: =IF( AND( AM$14>0, INDEX(Table_Chipsets, $BC41+1,AM$14+2)<>"--"), 1, 0 ) -> 0 | BH41: =IF( AND( AS$14>0, INDEX(Table_Chipsets, $BC41+1,AS$14+2)<>"--"), 1, 0 ) -> 0
L42: DLPA3000 ( up to 6A ) | U42: =IF(U$14>0, IF( $BD42=1, HYPERLINK( INDEX(Table_Chipsets, $BC42+1,U$14+2), INDEX(Table_Chipsets, $BC42,U$14+2)), HYPERLINK("",INDEX(Table_Chipsets, $BC42,U$14+2))), HYPERLINK("", "--") ) -> -- | AA42: =IF(AA$14>0, IF( $BE42=1, HYPERLINK( INDEX(Table_Chipsets, $BC42+1,AA$14+2), INDEX(Table_Chipsets, $BC42,AA$14+2)), HYPERLINK("",INDEX(Table_Chipsets, $BC42,AA$14+2))), HYPERLINK("", "--") ) -> -- | AG42: =IF(AG$14>0, IF( $BF42=1, HYPERLINK( INDEX(Table_Chipsets, $BC42+1,AG$14+2), INDEX(Table_Chipsets, $BC42,AG$14+2)), HYPERLINK("",INDEX(Table_Chipsets, $BC42,AG$14+2))), HYPERLINK("", "--") ) -> -- | AM42: =IF(AM$14>0, IF( $BG42=1, HYPERLINK( INDEX(Table_Chipsets, $BC42+1,AM$14+2), INDEX(Table_Chipsets, $BC42,AM$14+2)), HYPERLINK("",INDEX(Table_Chipsets, $BC42,AM$14+2))), HYPERLINK("", "--") ) -> -- | AS42: =IF(AS$14>0, IF( $BH42=1, HYPERLINK( INDEX(Table_Chipsets, $BC42+1,AS$14+2), INDEX(Table_Chipsets, $BC42,AS$14+2)), HYPERLINK("",INDEX(Table_Chipsets, $BC42,AS$14+2))), HYPERLINK("", "--") ) -> -- | BC42: =MATCH(L42, Array_ChipsetLables, 0 ) -> 42 | BD42: =IF( AND( U$14>0, INDEX(Table_Chipsets, $BC42+1,U$14+2)<>"--"), 1, 0 ) -> 0 | BE42: =IF( AND( AA$14>0, INDEX(Table_Chipsets, $BC42+1,AA$14+2)<>"--"), 1, 0 ) -> 0 | BF42: =IF( AND( AG$14>0, INDEX(Table_Chipsets, $BC42+1,AG$14+2)<>"--"), 1, 0 ) -> 0 | BG42: =IF( AND( AM$14>0, INDEX(Table_Chipsets, $BC42+1,AM$14+2)<>"--"), 1, 0 ) -> 0 | BH42: =IF( AND( AS$14>0, INDEX(Table_Chipsets, $BC42+1,AS$14+2)<>"--"), 1, 0 ) -> 0
L43: DLPA3005 ( up to 16A ) | U43: =IF(U$14>0, IF( $BD43=1, HYPERLINK( INDEX(Table_Chipsets, $BC43+1,U$14+2), INDEX(Table_Chipsets, $BC43,U$14+2)), HYPERLINK("",INDEX(Table_Chipsets, $BC43,U$14+2))), HYPERLINK("", "--") ) -> -- | AA43: =IF(AA$14>0, IF( $BE43=1, HYPERLINK( INDEX(Table_Chipsets, $BC43+1,AA$14+2), INDEX(Table_Chipsets, $BC43,AA$14+2)), HYPERLINK("",INDEX(Table_Chipsets, $BC43,AA$14+2))), HYPERLINK("", "--") ) -> -- | AG43: =IF(AG$14>0, IF( $BF43=1, HYPERLINK( INDEX(Table_Chipsets, $BC43+1,AG$14+2), INDEX(Table_Chipsets, $BC43,AG$14+2)), HYPERLINK("",INDEX(Table_Chipsets, $BC43,AG$14+2))), HYPERLINK("", "--") ) -> -- | AM43: =IF(AM$14>0, IF( $BG43=1, HYPERLINK( INDEX(Table_Chipsets, $BC43+1,AM$14+2), INDEX(Table_Chipsets, $BC43,AM$14+2)), HYPERLINK("",INDEX(Table_Chipsets, $BC43,AM$14+2))), HYPERLINK("", "--") ) -> -- | AS43: =IF(AS$14>0, IF( $BH43=1, HYPERLINK( INDEX(Table_Chipsets, $BC43+1,AS$14+2), INDEX(Table_Chipsets, $BC43,AS$14+2)), HYPERLINK("",INDEX(Table_Chipsets, $BC43,AS$14+2))), HYPERLINK("", "--") ) -> -- | BC43: =MATCH(L43, Array_ChipsetLables, 0 ) -> 44 | BD43: =IF( AND( U$14>0, INDEX(Table_Chipsets, $BC43+1,U$14+2)<>"--"), 1, 0 ) -> 0 | BE43: =IF( AND( AA$14>0, INDEX(Table_Chipsets, $BC43+1,AA$14+2)<>"--"), 1, 0 ) -> 0 | BF43: =IF( AND( AG$14>0, INDEX(Table_Chipsets, $BC43+1,AG$14+2)<>"--"), 1, 0 ) -> 0 | BG43: =IF( AND( AM$14>0, INDEX(Table_Chipsets, $BC43+1,AM$14+2)<>"--"), 1, 0 ) -> 0 | BH43: =IF( AND( AS$14>0, INDEX(Table_Chipsets, $BC43+1,AS$14+2)<>"--"), 1, 0 ) -> 0
L45: Evaluation Module ( EVM ) | U45: =IF(U$14>0, IF( $BD45=1, HYPERLINK( INDEX(Table_Chipsets, $BC45+1,U$14+2), INDEX(Table_Chipsets, $BC45,U$14+2)), HYPERLINK("",INDEX(Table_Chipsets, $BC45,U$14+2))), HYPERLINK("", "--") ) -> -- | AA45: =IF(AA$14>0, IF( $BE45=1, HYPERLINK( INDEX(Table_Chipsets, $BC45+1,AA$14+2), INDEX(Table_Chipsets, $BC45,AA$14+2)), HYPERLINK("",INDEX(Table_Chipsets, $BC45,AA$14+2))), HYPERLINK("", "--") ) -> -- | AG45: =IF(AG$14>0, IF( $BF45=1, HYPERLINK( INDEX(Table_Chipsets, $BC45+1,AG$14+2), INDEX(Table_Chipsets, $BC45,AG$14+2)), HYPERLINK("",INDEX(Table_Chipsets, $BC45,AG$14+2))), HYPERLINK("", "--") ) -> -- | AM45: =IF(AM$14>0, IF( $BG45=1, HYPERLINK( INDEX(Table_Chipsets, $BC45+1,AM$14+2), INDEX(Table_Chipsets, $BC45,AM$14+2)), HYPERLINK("",INDEX(Table_Chipsets, $BC45,AM$14+2))), HYPERLINK("", "--") ) -> -- | AS45: =IF(AS$14>0, IF( $BH45=1, HYPERLINK( INDEX(Table_Chipsets, $BC45+1,AS$14+2), INDEX(Table_Chipsets, $BC45,AS$14+2)), HYPERLINK("",INDEX(Table_Chipsets, $BC45,AS$14+2))), HYPERLINK("", "--") ) -> -- | BC45: =MATCH(L45, Array_ChipsetLables, 0 ) -> 32 | BD45: =IF( AND( U$14>0, INDEX(Table_Chipsets, $BC45+1,U$14+2)<>"--"), 1, 0 ) -> 0 | BE45: =IF( AND( AA$14>0, INDEX(Table_Chipsets, $BC45+1,AA$14+2)<>"--"), 1, 0 ) -> 0 | BF45: =IF( AND( AG$14>0, INDEX(Table_Chipsets, $BC45+1,AG$14+2)<>"--"), 1, 0 ) -> 0 | BG45: =IF( AND( AM$14>0, INDEX(Table_Chipsets, $BC45+1,AM$14+2)<>"--"), 1, 0 ) -> 0 | BH45: =IF( AND( AS$14>0, INDEX(Table_Chipsets, $BC45+1,AS$14+2)<>"--"), INDEX(Table_Chipsets, $BC45+1,AS$14+2), 0 ) -> 0
L46: TI Reference Design | U46: =IF(U$14>0, IF( $BD46=1, HYPERLINK( INDEX(Table_Chipsets, $BC46+1,U$14+2), INDEX(Table_Chipsets, $BC46,U$14+2)), HYPERLINK("",INDEX(Table_Chipsets, $BC46,U$14+2))), HYPERLINK("", "--") ) -> -- | AA46: =IF(AA$14>0, IF( $BE46=1, HYPERLINK( INDEX(Table_Chipsets, $BC46+1,AA$14+2), INDEX(Table_Chipsets, $BC46,AA$14+2)), HYPERLINK("",INDEX(Table_Chipsets, $BC46,AA$14+2))), HYPERLINK("", "--") ) -> -- | AG46: =IF(AG$14>0, IF( $BF46=1, HYPERLINK( INDEX(Table_Chipsets, $BC46+1,AG$14+2), INDEX(Table_Chipsets, $BC46,AG$14+2)), HYPERLINK("",INDEX(Table_Chipsets, $BC46,AG$14+2))), HYPERLINK("", "--") ) -> -- | AM46: =IF(AM$14>0, IF( $BG46=1, HYPERLINK( INDEX(Table_Chipsets, $BC46+1,AM$14+2), INDEX(Table_Chipsets, $BC46,AM$14+2)), HYPERLINK("",INDEX(Table_Chipsets, $BC46,AM$14+2))), HYPERLINK("", "--") ) -> -- | AS46: =IF(AS$14>0, IF( $BH46=1, HYPERLINK( INDEX(Table_Chipsets, $BC46+1,AS$14+2), INDEX(Table_Chipsets, $BC46,AS$14+2)), HYPERLINK("",INDEX(Table_Chipsets, $BC46,AS$14+2))), HYPERLINK("", "--") ) -> -- | BC46: =MATCH(L46, Array_ChipsetLables, 0 ) -> 34 | BD46: =IF( AND( U$14>0, INDEX(Table_Chipsets, $BC46+1,U$14+2)<>"--"), 1, 0 ) -> 0 | BE46: =IF( AND( AA$14>0, INDEX(Table_Chipsets, $BC46+1,AA$14+2)<>"--"), 1, 0 ) -> 0 | BF46: =IF( AND( AG$14>0, INDEX(Table_Chipsets, $BC46+1,AG$14+2)<>"--"), 1, 0 ) -> 0 | BG46: =IF( AND( AM$14>0, INDEX(Table_Chipsets, $BC46+1,AM$14+2)<>"--"), 1, 0 ) -> 0 | BH46: =IF( AND( AS$14>0, INDEX(Table_Chipsets, $BC46+1,AS$14+2)<>"--"), INDEX(Table_Chipsets, $BC46+1,AS$14+2), 0 ) -> 0
U48: =IF(U$14>0,INDEX(Table_Chipsets, $BC48,U$14+2),"--") -> -- | AA48: =IF(AA$14>0,INDEX(Table_Chipsets, $BC48,AA$14+2),"--") -> -- | AG48: =IF(AG$14>0,INDEX(Table_Chipsets, $BC48,AG$14+2),"--") -> -- | AM48: =IF(AM$14>0,INDEX(Table_Chipsets, $BC48,AM$14+2),"--") -> -- | AS48: =IF(AS$14>0,INDEX(Table_Chipsets, $BC48,AS$14+2),"--") -> --
U49: -- | AA49: -- | AG49: -- | AM49: -- | AS49: --
U50: -- | AA50: -- | AG50: -- | AM50: -- | AS50: --
U51: -- | AA51: -- | AG51: -- | AM51: -- | AS51: --
U52: -- | AA52: -- | AG52: -- | AM52: -- | AS52: --
U53: -- | AA53: -- | AG53: -- | AM53: -- | AS53: --
U54: -- | AA54: -- | AG54: -- | AM54: -- | AS54: --
U55: -- | AA55: -- | AG55: -- | AM55: -- | AS55: --
U56: -- | AA56: -- | AG56: -- | AM56: -- | AS56: --
U57: -- | AA57: -- | AG57: -- | AM57: -- | AS57: --
U58: -- | AA58: -- | AG58: -- | AM58: -- | AS58: --
U59: -- | AA59: -- | AG59: -- | AM59: -- | AS59: --
AH62: Chipset Page
AN64: Page | AO64: =IF(ChipsetsPageMax=0,0,IF(Value_ChipsetsPage>ChipsetsPageMax,ChipsetsPageMax,Value_ChipsetsPage)) -> 0 | AQ64: =CONCATENATE(" of ", ChipsetsPageMax ) -> of 0 | BC64: 1 | BF64: =INT((Index_Chipset_Max-1)/5)+1 -> 0
AM66: =CONCATENATE( "Ver. ", App_FullVersion ) -> Ver. [[Prod]] (Smarta2xOPENv3)
BB71: =ROW(BB71) -> 71
M72: DMD | V72: The DMD (Digital Micromirror Device), is a highly efficient and versitile spatial light modulator, suitable for use in a wide varaiety of display and imaging applications.
M75: Micromirror Array Diagonal | V75: The size of the DMD array, in inches, measured diagonally.
M77: Display Resolution | V77: The resolution of image formed (projected) by the chipset, measured by columns and rows of micromirrors.
M79: Display Standard | V79: The industry standard name associated with the display resolution.
V80: For further details, refer to the link below:
V81: =HYPERLINK("https://en.wikipedia.org/wiki/Display_resolution","https://en.wikipedia.org/wiki/Display_resolution") -> https://en.wikipedia.org/wiki/Display_resolution
M83: Micromirror Pitch | V83: The size of the individual DMD micromirrors, as measured from center-to-center, in micrometers.
M85: Micromirror Orientation | V85: Relative to the X-Y axis of the overall micromirror array, the individual micromirrors can be oriented in either a "square" or "diamond" orientation. See the diagrams in the individual DMD data sheets for further clarification.
M89: Illumination Direction | V89: The incoming illunination direction for which the DMD was designed. Will typically be either "side", "bottom", or "corner". See the individual DMD data sheets for further clarificaiton.
M92: DMD Package Size [ mm ] | V92: The X, Y, and Z (respectively) dimensions of the DMD chip. Full mechanical drawings are provided in the DMD datasheets.
M95: DMD 1ku Price | V95: Suggested Resale Price per unit (USD) for BUDGETARY USE ONLY. For higher volume price quotes, prices in local currency or delivery quotes, please contact your local Texas Instruments Sales Office or Authorized Distributor.
M99: Typical Brightness | V99: The brightness out of the projection lens (in lumens) which can typically be achieved. Estimates are based on illumination technology available as of the publication date of this document. The acutal brightness which is achieved depends upon numerous system factors, including light source selection, optical design, and software configuration.
V103: Refer to the TI DLP® System Design: Brightness Requirements and Tradeoffs application note to learn more.
V104: more. | Y104: =HYPERLINK("https://www.ti.com/lit/pdf/dlpa068","( click here to download )") -> ( click here to download )
M106: Typical Illumination Power | V106: The illumination power consumption which can typically be achieved. Estimates are based on illumination technology available as of the publication date of this document. The power consuption depends upon many system design factors, and can be adjusted to meet end-product power consumption constraints.
V109: Refer to the TI DLP® Pico™ System Design: Optical Module Specifications application note to learn more.
V110: =HYPERLINK("https://www.ti.com/lit/pdf/dlpa078","( click here to download )") -> ( click here to download )
M112: Controller | V112: Every DLP Chipset consists of a specific DMD (DMDxxxx), an Controller (DLPCxxxx), and a Power Management IC (DLPAxxxx).
M115: Frame Refresh Rate | V115: The maximum frame refresh rate which is supported by the DLP Chipset.
M117: DLP IntelliBright™ Algorithms | V117: A suite of image processing algorithms contained within the DLPC34xx family of DLP controllers.
V118: Refer to the TI DLP® Pico™ System Design: Optical Module Specifications application note to learn more.
V119: =HYPERLINK("https://www.ti.com/lit/pdf/dlpa078","( click here to download )") -> ( click here to download )
M121: Keystone Correction | V121: An image processing algorithm which compensates for a "keystone effect" which can occur with projected images. For further details, refer to the link below:
V123: =HYPERLINK("https://en.wikipedia.org/wiki/Keystone_effect","https://en.wikipedia.org/wiki/Keystone_effect") -> https://en.wikipedia.org/wiki/Keystone_effect
M125: Controller Package Size [ mm ] | V125: The X, Y, and Z (respectively) dimensions of the controller chip. Full mechanical drawings are provided at in the controller datasheets.
M128: Controller 1ku Price | V128: Suggested Resale Price per unit (USD) for BUDGETARY USE ONLY. For higher volume price quotes, prices in local currency or delivery quotes, please contact your local Texas Instruments Sales Office or Authorized Distributor.
M132: Evaluation Module ( EVM ) | V132: Evaluation Modules (EVMs) are off-the-shelf hardware/software/opto-mechanical platforms which enable rapid prototyping with the designated DLP chipset.
M135: TI Reference Design | V135: TI Reference Designs are provide a starting-point for developing design solutions
M138: DLPAxxxx Support | V138: Every DLP Chipset consists of a specific DMD (DMDxxxx), an Controller (DLPCxxxx), and a Power Management IC (DLPAxxxx).
BB141: =ROW(BB141) -> 141
N144: Important Notice
BB146: =ROW(BB146) -> 146
N147: The products and services of Texas Instruments Incorporated and its subsidiaries described herein are sold subject to TI’s standard terms and conditions of sale. Customers are advised to obtain the most current and complete information about TI products and services before placing orders. TI assumes no liability for applications assistance, customer’s applications or product designs, software performance, or infringement of patents. The publication of information regarding any other company’s products or services does not constitute TI’s approval, warranty or endorsement thereof.
BB249: =ROW(BB249) -> 249

Sheet xChipsetFilter (hidden)
E6: =Value_MaxResTol -> 0 | F6: Resolved Mpx Max | G6: =Resolved_Mpx_Max -> 0 | H6: 0 | I6: 0 | J6: 0 | K6: 0 | L6: 0 | M6: 0 | N6: 0 | O6: 0 | P6: 0 | Q6: 0
E7: 0 | F7: DMD Mpixels | G7: =G30*G31/1000000 -> 0.0576 | H7: =H30*H31/1000000 -> 0.2304 | I7: 0.2304 | J7: 0.40992 | K7: 0.5184 | L7: 0.9216 | M7: 2.0736 | N7: 0.9216 | O7: 2.0736 | P7: 2.0736 | Q7: 8.2944
E8: =Value_MinResTol -> 0 | F8: Resolved Mpx Min | G8: =Resolved_Mpx_Min -> 0 | H8: 0 | I8: 0 | J8: 0 | K8: 0 | L8: 0 | M8: 0 | N8: 0 | O8: 0 | P8: 0 | Q8: 0
F9: Mpixels Filter | G9: =IF($E7=0, ToleranceRange(G7, G8, G6, Value_MaxResTol, Value_MinResTol ), ToleranceRange(G7, G8, 1000000, 0 ) ) -> FALSE | H9: =IF($E7=0, ToleranceRange(H7, H8, H6, Value_MaxResTol, Value_MinResTol ), ToleranceRange(H7, H8, 1000000, 0 ) ) -> FALSE | I9: =IF($E7=0, ToleranceRange(I7, I8, I6, Value_MaxResTol, Value_MinResTol ), ToleranceRange(I7, I8, 1000000, 0 ) ) -> FALSE | J9: =IF($E7=0, ToleranceRange(J7, J8, J6, Value_MaxResTol, Value_MinResTol ), ToleranceRange(J7, J8, 1000000, 0 ) ) -> FALSE | K9: =IF($E7=0, ToleranceRange(K7, K8, K6, Value_MaxResTol, Value_MinResTol ), ToleranceRange(K7, K8, 1000000, 0 ) ) -> FALSE | L9: =IF($E7=0, ToleranceRange(L7, L8, L6, Value_MaxResTol, Value_MinResTol ), ToleranceRange(L7, L8, 1000000, 0 ) ) -> FALSE | M9: =IF($E7=0, ToleranceRange(M7, M8, M6, Value_MaxResTol, Value_MinResTol ), ToleranceRange(M7, M8, 1000000, 0 ) ) -> FALSE | N9: =IF($E7=0, ToleranceRange(N7, N8, N6, Value_MaxResTol, Value_MinResTol ), ToleranceRange(N7, N8, 1000000, 0 ) ) -> FALSE | O9: =IF($E7=0, ToleranceRange(O7, O8, O6, Value_MaxResTol, Value_MinResTol ), ToleranceRange(O7, O8, 1000000, 0 ) ) -> FALSE | P9: =IF($E7=0, ToleranceRange(P7, P8, P6, Value_MaxResTol, Value_MinResTol ), ToleranceRange(P7, P8, 1000000, 0 ) ) -> FALSE | Q9: =IF($E7=0, ToleranceRange(Q7, Q8, Q6, Value_MaxResTol, Value_MinResTol ), ToleranceRange(Q7, Q8, 1000000, 0 ) ) -> FALSE
E11: =Value_MaxLmTol -> 0 | F11: User Max Lumens | G11: =Resolved_Lumens_Max -> 0 | H11: 0 | I11: 0 | J11: 0 | K11: 0 | L11: 0 | M11: 0 | N11: 0 | O11: 0 | P11: 0 | Q11: 0
E12: 0 | F12: DMD Max Lumens | G12: =G43 -> 120 | H12: =H43 -> 120 | I12: 50 | J12: 200 | K12: 450 | L12: 450 | M12: 450 | N12: 300 | O12: 800 | P12: 1800 | Q12: 1800
E13: =Value_MinLmTol -> 0 | F13: User Min Lumens | G13: =Resolved_Lumens_Min -> 0 | H13: =Resolved_Lumens_Min -> 0 | I13: 0 | J13: 0 | K13: 0 | L13: 0 | M13: 0 | N13: 0 | O13: 0 | P13: 0 | Q13: 0
F14: Lumens Filter | G14: =IF( $E12=0, ToleranceRange(G12, G13, G11, Value_MaxLmTol, Value_MinLmTol ), ToleranceRange(G12, 0, G11, Value_MaxLmTol, Value_MinLmTol ) ) -> FALSE | H14: =IF( $E12=0, ToleranceRange(H12, H13, H11, Value_MaxLmTol, Value_MinLmTol ), ToleranceRange(H12, 0, H11, Value_MaxLmTol, Value_MinLmTol ) ) -> FALSE | I14: =IF( $E12=0, ToleranceRange(I12, I13, I11, Value_MaxLmTol, Value_MinLmTol ), ToleranceRange(I12, 0, I11, Value_MaxLmTol, Value_MinLmTol ) ) -> FALSE | J14: =IF( $E12=0, ToleranceRange(J12, J13, J11, Value_MaxLmTol, Value_MinLmTol ), ToleranceRange(J12, 0, J11, Value_MaxLmTol, Value_MinLmTol ) ) -> FALSE | K14: =IF( $E12=0, ToleranceRange(K12, K13, K11, Value_MaxLmTol, Value_MinLmTol ), ToleranceRange(K12, 0, K11, Value_MaxLmTol, Value_MinLmTol ) ) -> FALSE | L14: =IF( $E12=0, ToleranceRange(L12, L13, L11, Value_MaxLmTol, Value_MinLmTol ), ToleranceRange(L12, 0, L11, Value_MaxLmTol, Value_MinLmTol ) ) -> FALSE | M14: =IF( $E12=0, ToleranceRange(M12, M13, M11, Value_MaxLmTol, Value_MinLmTol ), ToleranceRange(M12, 0, M11, Value_MaxLmTol, Value_MinLmTol ) ) -> FALSE | N14: =IF( $E12=0, ToleranceRange(N12, N13, N11, Value_MaxLmTol, Value_MinLmTol ), ToleranceRange(N12, 0, N11, Value_MaxLmTol, Value_MinLmTol ) ) -> FALSE | O14: =IF( $E12=0, ToleranceRange(O12, O13, O11, Value_MaxLmTol, Value_MinLmTol ), ToleranceRange(O12, 0, O11, Value_MaxLmTol, Value_MinLmTol ) ) -> FALSE | P14: =IF( $E12=0, ToleranceRange(P12, P13, P11, Value_MaxLmTol, Value_MinLmTol ), ToleranceRange(P12, 0, P11, Value_MaxLmTol, Value_MinLmTol ) ) -> FALSE | Q14: =IF( $E12=0, ToleranceRange(Q12, Q13, Q11, Value_MaxLmTol, Value_MinLmTol ), ToleranceRange(Q12, 0, Q11, Value_MaxLmTol, Value_MinLmTol ) ) -> FALSE
F16: OMM Min Lumens | G16: -- | H16: -- | I16: 20 | J16: 20 | K16: 20 | L16: 20 | M16: 20 | N16: 20 | O16: 20 | P16: 20 | Q16: 20
F17: OMM Max Lumens | G17: -- | H17: -- | I17: 30 | J17: 30 | K17: 30 | L17: 30 | M17: 30 | N17: 30 | O17: 30 | P17: 30 | Q17: 30
E19: =Value_MatchZoneTolerance -> 0.15 | F19: Mpixels Filter | G19: =G9 -> FALSE | H19: =H9 -> FALSE | I19: FALSE | J19: FALSE | K19: FALSE | L19: FALSE | M19: FALSE | N19: FALSE | O19: FALSE | P19: FALSE | Q19: FALSE
F20: Lumens Filter | G20: =G14 -> FALSE | H20: =H14 -> FALSE | I20: FALSE | J20: FALSE | K20: FALSE | L20: FALSE | M20: FALSE | N20: FALSE | O20: FALSE | P20: FALSE | Q20: FALSE
A21: If chipsets are added in the future, the range in cell E23 must be increased to include the new columns | F21: Net Filter | G21: =IF( AND(G19,G20), 1, 0 ) -> 0 | H21: =IF( AND(H19,H20), 1, 0 ) -> 0 | I21: 0 | J21: 0 | K21: 0 | L21: 0 | M21: 0 | N21: 0 | O21: =IF( AND(O19,O20), 1, 0 ) -> 0 | P21: =IF( AND(P19,P20), 1, 0 ) -> 0 | Q21: 0
F22: Count | G22: =IF( ISNUMBER(F22), F22+G21, G21 ) -> 0 | H22: =IF( ISNUMBER(G22), G22+H21, H21 ) -> 0 | I22: 0 | J22: 0 | K22: 0 | L22: 0 | M22: 0 | N22: 0 | O22: 0 | P22: =IF( ISNUMBER(O22),O22+ P21, P21 ) -> 0 | Q22: =IF( ISNUMBER(P22), P22+Q21, Q21 ) -> 0
E23: =MAX(F22:Q23) -> 0 | F23: Index | G23: =IF(E22=G22, 0, G22 ) -> 0 | H23: =IF(F22=H22, 0, H22 ) -> 0 | I23: =IF(G22=I22, 0, I22 ) -> 0 | J23: 0 | K23: 0 | L23: 0 | M23: 0 | N23: 0 | O23: =IF(M22=O22, 0, O22 ) -> 0 | P23: =IF(N22=P22, 0, P22 ) -> 0 | Q23: =IF(O22=Q22, 0, Q22 ) -> 0
G24: 1 | H24: 2 | I24: 3 | J24: 4 | K24: 5 | L24: 6 | M24: 7 | N24: 8 | O24: 9 | P24: 10 | Q24: 11
E25: 1 | T25: ***To add chipsets in the future, add a column to this chart, fill out the listed information in rows 26-69, and auto fill the formulas in rows 6-23 | U25: Adding to this chart will include the chipset in the selection algorithm so it will appear on the 'Chipsets' page if it fits the criteria | V25: To include the chipset in the graph on the 'Map' page, see 'xMap'
E26: =OFFSET(E26,-1,0)+1 -> 2 | F26: Chipset | G26: 0.16 QnHD | H26: 0.16 nHD | I26: 0.2 nHD | J26: 0.2 WVGA | K26: 0.23 qHD | L26: 0.23 720p | M26: 0.23 1080p | N26: 0.3 720p | O26: 0.33 1080p | P26: 0.47 1080p | Q26: 0.47 4K
E27: =OFFSET(E27,-1,0)+1 -> 3 | F27: DMD | G27: DLP160AP | H27: DLP160CP | I27: DLP2000 | J27: DLP2010 | K27: DLP230GP | L27: DLP230KP | M27: DLP230NP | N27: DLP3010 | O27: DLP3310 | P27: DLP4710 | Q27: DLP471TP
E28: 4 | F28: DMD Part Number Hyperlink | G28: https://www.ti.com/product/DLP160AP | H28: https://www.ti.com/product/DLP160CP | I28: https://www.ti.com/product/DLP2000 | J28: https://www.ti.com/product/DLP2010 | K28: https://www.ti.com/product/DLP230GP | L28: https://www.ti.com/product/DLP230KP | M28: https://www.ti.com/product/DLP230NP | N28: https://www.ti.com/product/DLP3010 | O28: https://www.ti.com/product/DLP3310 | P28: https://www.ti.com/product/DLP4710 | Q28: https://www.ti.com/product/DLP471TP
E29: 5 | F29: Micromirror Array Diagonal | G29: 0.16" | H29: 0.16" | I29: 0.20" | J29: 0.20" | K29: 0.23" | L29: 0.23" | M29: 0.23" | N29: 0.31" | O29: 0.33" | P29: 0.47" | Q29: 0.47"
E30: 6 | F30: xColumns | G30: 320 | H30: 640 | I30: 640 | J30: 854 | K30: 960 | L30: 1280 | M30: 1920 | N30: 1280 | O30: 1920 | P30: 1920 | Q30: 3840
E31: 7 | F31: xRows | G31: 180 | H31: 360 | I31: 360 | J31: 480 | K31: 540 | L31: 720 | M31: 1080 | N31: 720 | O31: 1080 | P31: 1080 | Q31: 2160
E32: 8 | F32: xStandard | G32: QnHD | H32: nHD | I32: nHD | J32: WVGA | K32: qHD | L32: 720p | M32: 1080p | N32: 720p | O32: 1080p | P32: 1080p | Q32: 4K
E33: 9 | F33: Display Resolution | G33: 320 x 180 | H33: 640 x 360 | I33: 640 x 360 | J33: 854 x 480 | K33: 960 x 540 | L33: 1280 x 720 | M33: 1920 x 1080 | N33: 1280 x 720 | O33: 1920 x 1080 | P33: 1920 x 1080 | Q33: 3840 x 2160
E34: 10 | F34: Display Standard | G34: QnHD | H34: nHD | I34: nHD | J34: WVGA | K34: qHD | L34: 720p | M34: 1080p | N34: 720p | O34: 1080p | P34: 1080p | Q34: 4K
E35: 11 | F35: Micromirror Pitch | G35: 5.4µm | H35: 5.4µm | I35: 7.6µm | J35: 5.4µm | K35: 5.4µm | L35: 5.4µm | M35: 5.4µm | N35: 5.4µm | O35: 5.4µm | P35: 5.4µm | Q35: 5.4µm
E36: 12 | F36: Micromirror Tilt Angle | G36: 17° | H36: 17° | I36: 17° | J36: 17° | K36: 17° | L36: 17° | M36: 17° | N36: 17° | O36: 17° | P36: 17° | Q36: 17°
E37: 13 | F37: Micromirror Orientation | G37: Square | H37: Square | I37: Square | J37: Square | K37: Square | L37: Square | M37: Square | N37: Square | O37: Square | P37: Square | Q37: Square
E38: 14 | F38: Illumination Direction | G38: Side | H38: Side | I38: Corner | J38: Side | K38: Side | L38: Side | M38: Side | N38: Side | O38: Side | P38: Bottom | Q38: Bottom
E39: 15 | F39: DMD Package Size [ mm ] | G39: 13.4 x 4.9 x 3.2 | H39: 13.4 x 4.9 x 3.2 | I39: 14.1 x 5.0 x 3.6 | J39: 15.9 x 5.3 x 3.58 | K39: 16.8 x 5.9 x 3.6 | L39: 16.8 x 5.9 x 3.6 | M39: 16.8 x 5.9 x 3.6 | N39: 18.2 x 7.0 x 3.8 | O39: 19.3 x 7.2 x 3.8 | P39: 24.5 x 11.0 x 3.8 | Q39: 24.7 x 17.0 x 4.1
E40: 16 | F40: Automotive Qualified | G40: No | H40: No | I40: No | J40: No | K40: No | L40: No | M40: No | N40: No | O40: No | P40: No | Q40: No
E41: 17 | F41: DMD Price & Availability | G41: Order now | H41: Order now | I41: Order now | J41: Order now | K41: Order now | L41: Order now | M41: Order now | N41: Order now | O41: Order now | P41: Order now | Q41: Order now
E42: 18 | F42: TI.com ordering hyperlink | G42: https://www.ti.com/product/DLP160AP#order-quality | H42: https://www.ti.com/product/DLP160CP#order-quality | I42: https://www.ti.com/product/DLP2000#order-quality | J42: https://www.ti.com/product/DLP2010#order-quality | K42: https://www.ti.com/product/DLP230GP#order-quality | L42: https://www.ti.com/product/DLP230KP#order-quality | M42: https://www.ti.com/product/DLP230NP#order-quality | N42: https://www.ti.com/product/DLP3010#order-quality | O42: https://www.ti.com/product/DLP3310#order-quality | P42: https://www.ti.com/product/DLP4710#order-quality | Q42: https://www.ti.com/product/DLP471TP#order-quality
E43: 19 | F43: xLumens | G43: 120 | H43: 120 | I43: 50 | J43: 200 | K43: 450 | L43: 450 | M43: 450 | N43: 300 | O43: 800 | P43: 1800 | Q43: 1800
E44: 20 | F44: xWatts | G44: 5 | H44: 5 | I44: 5 | J44: 15 | K44: 25 | L44: 25 | M44: 25 | N44: 25 | O44: 50 | P44: 150 | Q44: 150
E45: 21 | F45: Typical Brightness | G45: Up to 75 lm | H45: Up to 75 lm | I45: Up to 50 lm | J45: Up to 150 lm | K45: Up to 250 lm | L45: Up to 250 lm | M45: Up to 250 lm | N45: Up to 300 lm | O45: Up to 500 lm | P45: Up to 1500 lm | Q45: Up to 1500 lm
E46: 22 | F46: Typical Illumination Power | G46: Up to 5W | H46: Up to 5W | I46: Up to 5W | J46: Up to 15W | K46: Up to 25W | L46: Up to 25W | M46: Up to 25W | N46: Up to 25W | O46: Up to 50W | P46: Up to 150W | Q46: Up to 150W
E47: 23 | F47: Controller | G47: DLPC3420 | H47: DLPC3421 | I47: DLPC2607 | J47: DLPC3430/5 | K47: DLPC3432 | L47: DLPC3434 | M47: DLPC3436 | N47: DLPC3433/8 | O47: 2x DLPC3437 | P47: 2x DLPC3439 | Q47: DLPC6540
E48: 24 | F48: Controller Hyperlink | G48: https://www.ti.com/product/DLPC3420 | H48: https://www.ti.com/product/DLPC3421 | I48: https://www.ti.com/product/DLPC2607 | J48: https://www.ti.com/product/DLPC3430 | K48: https://www.ti.com/product/DLPC3432 | L48: https://www.ti.com/product/DLPC3434 | M48: https://www.ti.com/product/DLPC3436 | N48: https://www.ti.com/product/DLPC3433 | O48: https://www.ti.com/product/DLPC3437 | P48: https://www.ti.com/product/DLPC3439 | Q48: https://www.ti.com/product/DLPC6540
E49: 25 | F49: xFrame Rate | G49: 60 | H49: 360 | I49: 60 | J49: 240 | K49: 120 | L49: 60 | M49: 60 | N49: 120 | O49: 60 | P49: 60 | Q49: 60
E50: 26 | F50: Frame Refresh Rate | G50: Up to 60Hz | H50: Up to 360Hz | I50: Up to 60Hz | J50: Up to 240Hz | K50: Up to 120Hz | L50: Up to 60Hz | M50: Up to 60Hz | N50: Up to 120Hz | O50: Up to 60Hz | P50: Up to 60Hz | Q50: Up to 60Hz
E51: 27 | F51: DLP IntelliBright™ Algorithms | G51: Yes | H51: Yes | I51: -- | J51: Yes | K51: Yes | L51: Yes | M51: Yes | N51: Yes | O51: Yes | P51: Yes | Q51: --
E52: 28 | F52: Keystone Correction | G52: 1D Vertical | H52: 1D Vertical | I52: -- | J52: 1D Vertical | K52: 1D Vertical | L52: 1D Vertical | M52: 1D Vertical | N52: 1D Vertical | O52: 1D Vertical | P52: -- | Q52: 1D Vertical
E53: 29 | F53: Controller Package Size [ mm ] | G53: 7 x 7 | H53: 7 x 7 | I53: 7 x 7 | J53: 7x7, 13x13 | K53: 7 x 7 | L53: 7 x 7 | M53: 7 x 7 | N53: 7 x 7, 13 x 13 | O53: 13 x 13 | P53: 13 x 13 | Q53: 31 x 31
E54: 30 | F54: Controller Price & Availability | G54: Order now | H54: Order now | I54: Order now | J54: Order now | K54: Order now | L54: Order now | M54: Order now | N54: Order now | O54: Order now | P54: Order now | Q54: Order now
E55: 31 | F55: TI.com ordering hyperlink | G55: https://www.ti.com/product/DLPC3420#order-quality | H55: https://www.ti.com/product/DLPC3421#order-quality | I55: https://www.ti.com/product/DLPC2607#order-quality | J55: https://www.ti.com/product/DLPC3430#order-quality | K55: https://www.ti.com/product/DLPC3432#order-quality | L55: https://www.ti.com/product/DLPC3434#order-quality | M55: https://www.ti.com/product/DLPC3436#order-quality | N55: https://www.ti.com/product/DLPC3433#order-quality | O55: https://www.ti.com/product/DLPC3437#order-quality | P55: https://www.ti.com/product/DLPC3439#order-quality | Q55: https://www.ti.com/product/DLPC6540#order-quality
E56: 32 | F56: Evaluation Module ( EVM ) | G56: -- | H56: -- | I56: Order now | J56: -- | K56: -- | L56: -- | M56: Order now | N56: Order now | O56: -- | P56: Order now | Q56: Order now
E57: 33 | F57: EVM Hyperlink | G57: -- | H57: -- | I57: https://www.ti.com/tool/DLPDLCR2000EVM | J57: -- | K57: -- | L57: -- | M57: https://www.ti.com/tool/DLPDLCR230NPEVM | N57: https://www.ti.com/tool/DLPDLCR3010EVM-G2 | O57: -- | P57: https://www.ti.com/tool/DLPDLCR4710EVM-G2 | Q57: https://www.ti.com/tool/DLPDLCR4710EVM-G2
E58: 34 | F58: TI Reference Design | G58: -- | H58: -- | I58: TIDA-01473 | J58: TIDA-00325 | K58: TIDA-080002 | L58: -- | M58: -- | N58: TIDA-01571 | O58: TIDA-080000 | P58: TIDA-01226 | Q58: --
E59: 35 | F59: TI Ref Dsgn Hyperlink | G59: -- | H59: -- | I59: https://www.ti.com/tool/TIDA-01473?keyMatch=TIDA-01473 | J59: https://www.ti.com/tool/TIDA-00325?keyMatch=TIDA-00325 | K59: https://www.ti.com/tool/TIDA-080002?keyMatch=TIDA-080002 | L59: -- | M59: -- | N59: https://www.ti.com/tool/TIDA-01571?keyMatch=TIDA-01571 | O59: https://www.ti.com/tool/TIDA-080000?keyMatch=TIDA-080000 | P59: https://www.ti.com/tool/TIDA-01226?keyMatch=TIDA-01226 | Q59: --
E60: 36 | F60: DLPA1000 ( up to 1A ) | G60: -- | H60: -- | I60: Supported | J60: -- | K60: -- | L60: -- | M60: -- | N60: -- | O60: -- | P60: -- | Q60: --
E61: 37 | F61: Hyperlink | G61: -- | H61: -- | I61: https://www.ti.com/product/DLPA1000 | J61: -- | K61: -- | L61: -- | M61: -- | N61: -- | O61: -- | P61: -- | Q61: --
E62: 38 | F62: DLPA2000 ( up to 750mA ) | G62: Supported | H62: Supported | I62: -- | J62: Supported | K62: Supported | L62: Supported | M62: Supported | N62: Supported | O62: -- | P62: -- | Q62: --
E63: 39 | F63: Hyperlink | G63: https://www.ti.com/product/DLPA2000 | H63: https://www.ti.com/product/DLPA2000 | I63: -- | J63: https://www.ti.com/product/DLPA2000 | K63: https://www.ti.com/product/DLPA2000 | L63: https://www.ti.com/product/DLPA2000 | M63: https://www.ti.com/product/DLPA2000 | N63: https://www.ti.com/product/DLPA2000 | O63: -- | P63: -- | Q63: --
E64: 40 | F64: DLPA2005 ( up to 2.4A ) | G64: Supported | H64: Supported | I64: -- | J64: Supported | K64: Supported | L64: Supported | M64: Supported | N64: Supported | O64: -- | P64: -- | Q64: --
E65: 41 | F65: Hyperlink | G65: https://www.ti.com/product/DLPA2005 | H65: https://www.ti.com/product/DLPA2005 | I65: -- | J65: https://www.ti.com/product/DLPA2005 | K65: https://www.ti.com/product/DLPA2005 | L65: https://www.ti.com/product/DLPA2005 | M65: https://www.ti.com/product/DLPA2005 | N65: https://www.ti.com/product/DLPA2005 | O65: -- | P65: -- | Q65: --
E66: 42 | F66: DLPA3000 ( up to 6A ) | G66: -- | H66: -- | I66: -- | J66: Supported | K66: Supported | L66: Supported | M66: Supported | N66: Supported | O66: Supported | P66: Supported | Q66: --
E67: 43 | F67: Hyperlink | G67: -- | H67: -- | I67: -- | J67: https://www.ti.com/product/DLPA3000 | K67: https://www.ti.com/product/DLPA3000 | L67: https://www.ti.com/product/DLPA3000 | M67: https://www.ti.com/product/DLPA3000 | N67: https://www.ti.com/product/DLPA3000 | O67: https://www.ti.com/product/DLPA3000 | P67: https://www.ti.com/product/DLPA3000 | Q67: --
E68: 44 | F68: DLPA3005 ( up to 16A ) | G68: -- | H68: -- | I68: -- | J68: -- | K68: -- | L68: -- | M68: -- | N68: Supported | O68: Supported | P68: Supported | Q68: Supported
E69: 45 | F69: Hyperlink | G69: -- | H69: -- | I69: -- | J69: -- | K69: -- | L69: -- | M69: -- | N69: https://www.ti.com/product/DLPA3000 | O69: https://www.ti.com/product/DLPA3005 | P69: https://www.ti.com/product/DLPA3005 | Q69: https://www.ti.com/product/DLPA3005
E70: 46

Sheet Engines (hidden)
M8: Resolution | W8: Image Size | AK8: Brightness | AT8: # of Matching
L9: Max: | M9: =Display_ResolutionSimple_Max -> -- x -- | Q9: =Display_Mpx_Max -> -- Mpx | V9: Max: | W9: =CONCATENATE( "W: ", Display_ImageWidth_Max, " x H: ", Display_ImageHeight_Max, " ( D: ", Display_ImageDiag_Max, " )" ) -> W: -- in x H: -- in ( D: -- in ) | AJ9: Max: | AK9: =Display_Lumens_Max -> -- lm | AO9: =Display_Nits_Max -> -- nits | AT9: Chipsets
L10: Min: | M10: =Display_ResolutionSimple_Min -> -- x -- | Q10: =Display_Mpx_Min -> -- Mpx | V10: Min: | W10: =CONCATENATE( "W: ", Display_ImageWidth_Min, " x H: ", Display_ImageHeight_Min, " ( D: ", Display_ImageDiag_Min, " )" ) -> W: -- in x H: -- in ( D: -- in ) | AJ10: Min: | AK10: =Display_Lumens_Min -> -- lm | AO10: =Display_Nits_Min -> -- nits | AT10: =Index_Chipset_Max -> 0
L14: Chipset Number | T14: =( (Value_EnginesPage-1)*4 )+1 -> 1 | AB14: =T14+1 -> 2 | AJ14: =AB14+1 -> 3 | AR14: =AJ14+1 -> 4
L15: Chipset Index | T15: =IFERROR( MATCH( T14, Array_Engines_Index, 0 ), 0 ) -> 0 | AB15: =IFERROR( MATCH( AB14, Array_Engines_Index, 0 ), 0 ) -> 0 | AJ15: =IFERROR( MATCH( AJ14, Array_Engines_Index, 0 ), 0 ) -> 0 | AR15: =IFERROR( MATCH( AR14, Array_Engines_Index, 0 ), 0 ) -> 0
L16: =IF(T$15>0,INDEX(#NAME?, $BC16,2),"--") -> -- | T16: =IF(T$15>0,INDEX(Table_Engines, $BC16,T$15+3),"--") -> -- | AB16: =IF(AB$15>0,INDEX(Table_Engines, $BC16,AB$15+3),"--") -> -- | AJ16: =IF(AJ$15>0,INDEX(Table_Engines, $BC16,AJ$15+3),"--") -> -- | AR16: =IF(AR$15>0,INDEX(Table_Engines, $BC16,AR$15+3),"--") -> -- | BC16: 2
L17: Manufacture | T17: =IF(T$15>0,INDEX(Table_Engines, $BC17,T$15+4),"--") -> -- | AB17: =IF(AB$15>0,INDEX(Table_Engines, $BC17,AB$15+3),"--") -> -- | AJ17: =IF(AJ$15>0,INDEX(Table_Engines, $BC17,AJ$15+3),"--") -> -- | AR17: =IF(AR$15>0,INDEX(Table_Engines, $BC17,AR$15+3),"--") -> -- | BC17: =MATCH(L17, Array_EngineLables, 0 ) -> 4
L18: Module Model Number | T18: =IF(T$15>0,INDEX(Table_Engines, $BC18,T$15+3),"--") -> -- | AB18: =IF(AB$15>0,INDEX(Table_Engines, $BC18,AB$15+3),"--") -> -- | AJ18: =IF(AJ$15>0,INDEX(Table_Engines, $BC18,AJ$15+3),"--") -> -- | AR18: =IF(AR$15>0,INDEX(Table_Engines, $BC18,AR$15+3),"--") -> -- | BC18: 3
L19: Max Lumens | T19: =IF(T$15>0, CONCATENATE( INDEX(Table_Engines, $BC19,T$15+3), " lm"),"--") -> -- | AB19: =IF(AB$15>0, CONCATENATE( INDEX(Table_Engines, $BC19,AB$15+3), " lm"),"--") -> -- | AJ19: =IF(AJ$15>0, CONCATENATE( INDEX(Table_Engines, $BC19,AJ$15+3), " lm"),"--") -> -- | AR19: =IF(AR$15>0, CONCATENATE( INDEX(Table_Engines, $BC19,AR$15+3), " lm"),"--") -> -- | BC19: 5
L20: Min Lumens | T20: =IF(T$15>0, CONCATENATE( INDEX(Table_Engines, $BC20,T$15+3), " lm"),"--") -> -- | AB20: =IF(AB$15>0, CONCATENATE( INDEX(Table_Engines, $BC20,AB$15+3), " lm"),"--") -> -- | AJ20: =IF(AJ$15>0, CONCATENATE( INDEX(Table_Engines, $BC20,AJ$15+3), " lm"),"--") -> -- | AR20: =IF(AR$15>0, CONCATENATE( INDEX(Table_Engines, $BC20,AR$15+3), " lm"),"--") -> -- | BC20: 6
L21: Illumination Light Source | T21: =IF(T$15>0,INDEX(Table_Engines, $BC21,T$15+3),"--") -> -- | AB21: =IF(AB$15>0,INDEX(Table_Engines, $BC21,AB$15+3),"--") -> -- | AJ21: =IF(AJ$15>0,INDEX(Table_Engines, $BC21,AJ$15+3),"--") -> -- | AR21: =IF(AR$15>0,INDEX(Table_Engines, $BC21,AR$15+3),"--") -> -- | BC21: 7
L22: Optical Offset | T22: =IF(T$15>0,INDEX(Table_Engines, $BC22,T$15+3),"--") -> -- | AB22: =IF(AB$15>0,INDEX(Table_Engines, $BC22,AB$15+3),"--") -> -- | AJ22: =IF(AJ$15>0,INDEX(Table_Engines, $BC22,AJ$15+3),"--") -> -- | AR22: =IF(AR$15>0,INDEX(Table_Engines, $BC22,AR$15+3),"--") -> -- | BC22: 8
L23: Throw Ratio | T23: =IF(T$15>0,INDEX(Table_Engines, $BC23,T$15+3),"--") -> -- | AB23: =IF(AB$15>0,INDEX(Table_Engines, $BC23,AB$15+3),"--") -> -- | AJ23: =IF(AJ$15>0,INDEX(Table_Engines, $BC23,AJ$15+3),"--") -> -- | AR23: =IF(AR$15>0,INDEX(Table_Engines, $BC23,AR$15+3),"--") -> -- | BC23: 9
L25: Flash Memory Included? | T25: =IF(T$15>0,INDEX(Table_Engines, $BC25,T$15+3),"--") -> -- | AB25: =IF(AB$15>0,INDEX(Table_Engines, $BC25,AB$15+3),"--") -> -- | AJ25: =IF(AJ$15>0,INDEX(Table_Engines, $BC25,AJ$15+3),"--") -> -- | AR25: =IF(AR$15>0,INDEX(Table_Engines, $BC25,AR$15+3),"--") -> -- | BC25: =MATCH(L25, Array_EngineLables, 0 ) -> 10
L26: Model # w/ Electronics | T26: =IF(T$15>0,INDEX(Table_Engines, $BC26,T$15+3),"--") -> -- | AB26: =IF(AB$15>0,INDEX(Table_Engines, $BC26,AB$15+3),"--") -> -- | AJ26: =IF(AJ$15>0,INDEX(Table_Engines, $BC26,AJ$15+3),"--") -> -- | AR26: =IF(AR$15>0,INDEX(Table_Engines, $BC26,AR$15+3),"--") -> -- | BC26: =MATCH(L26, Array_EngineLables, 0 ) -> 11
L27: Additional Features | T27: =IF(T$15>0,INDEX(Table_Engines, $BC27,T$15+3),"--") -> -- | AB27: =IF(AB$15>0,INDEX(Table_Engines, $BC27,AB$15+3),"--") -> -- | AJ27: =IF(AJ$15>0,INDEX(Table_Engines, $BC27,AJ$15+3),"--") -> -- | AR27: =IF(AR$15>0,INDEX(Table_Engines, $BC27,AR$15+3),"--") -> -- | BC27: =MATCH(L27, Array_EngineLables, 0 ) -> 18
L29: High-Vol Orders Only? | T29: =IF(T$15>0,INDEX(Table_Engines, $BC29,T$15+3),"--") -> -- | AB29: =IF(AB$15>0,INDEX(Table_Engines, $BC29,AB$15+3),"--") -> -- | AJ29: =IF(AJ$15>0,INDEX(Table_Engines, $BC29,AJ$15+3),"--") -> -- | AR29: =IF(AR$15>0,INDEX(Table_Engines, $BC29,AR$15+3),"--") -> -- | BC29: =MATCH(L29, Array_EngineLables, 0 ) -> 12
L30: Low-Vol Orders Accepted? | T30: =IF(T$15>0,INDEX(Table_Engines, $BC30,T$15+3),"--") -> -- | AB30: =IF(AB$15>0,INDEX(Table_Engines, $BC30,AB$15+3),"--") -> -- | AJ30: =IF(AJ$15>0,INDEX(Table_Engines, $BC30,AJ$15+3),"--") -> -- | AR30: =IF(AR$15>0,INDEX(Table_Engines, $BC30,AR$15+3),"--") -> -- | BC30: =MATCH(L30, Array_EngineLables, 0 ) -> 13
L31: Single-Unit Orders Accepted? | T31: =IF(T$15>0,INDEX(Table_Engines, $BC31,T$15+3),"--") -> -- | AB31: =IF(AB$15>0,INDEX(Table_Engines, $BC31,AB$15+3),"--") -> -- | AJ31: =IF(AJ$15>0,INDEX(Table_Engines, $BC31,AJ$15+3),"--") -> -- | AR31: =IF(AR$15>0,INDEX(Table_Engines, $BC31,AR$15+3),"--") -> -- | BC31: =MATCH(L31, Array_EngineLables, 0 ) -> 14
L33: Company Website | T33: =IF(T$15>0, IF( $BD33=1, HYPERLINK( INDEX(Table_Engines, $BC33+1,T$15+3), INDEX(Table_Engines, $BC33,T$15+3)), HYPERLINK("",INDEX(Table_Engines, $BC33,T$15+3))), HYPERLINK("", "--") ) -> -- | AB33: =IF(AB$15>0, IF( $BE33=1, HYPERLINK( INDEX(Table_Engines, $BC33+1,AB$15+3), INDEX(Table_Engines, $BC33,AB$15+3)), HYPERLINK("",INDEX(Table_Engines, $BC33,AB$15+3))), HYPERLINK("", "--") ) -> -- | AJ33: =IF(AJ$15>0, IF( $BF33=1, HYPERLINK( INDEX(Table_Engines, $BC33+1,AJ$15+3), INDEX(Table_Engines, $BC33,AJ$15+3)), HYPERLINK("",INDEX(Table_Engines, $BC33,AJ$15+3))), HYPERLINK("", "--") ) -> -- | AR33: =IF(AR$15>0, IF( $BG33=1, HYPERLINK( INDEX(Table_Engines, $BC33+1,AR$15+3), INDEX(Table_Engines, $BC33,AR$15+3)), HYPERLINK("",INDEX(Table_Engines, $BC33,AR$15+3))), HYPERLINK("", "--") ) -> -- | BC33: =MATCH(L33, Array_EngineLables, 0 ) -> 15 | BD33: =IF( AND( T$15>0, INDEX(Table_Engines, $BC33+1,T$15+2)<>"--"), 1, 0 ) -> 0 | BE33: =IF( AND( AB$15>0, INDEX(Table_Engines, $BC33+1,AB$15+2)<>"--"), 1, 0 ) -> 0 | BF33: =IF( AND( AJ$15>0, INDEX(Table_Engines, $BC33+1,AJ$15+2)<>"--"), 1, 0 ) -> 0 | BG33: =IF( AND( AR$15>0, INDEX(Table_Engines, $BC33+1,AR$15+2)<>"--"), 1, 0 ) -> 0 | BL33: =HYPERLINK("","abc") -> abc
L34: Compay Location | T34: =IF(T$15>0,INDEX(Table_Engines, $BC34,T$15+3),"--") -> -- | AB34: =IF(AB$15>0,INDEX(Table_Engines, $BC34,AB$15+3),"--") -> -- | AJ34: =IF(AJ$15>0,INDEX(Table_Engines, $BC34,AJ$15+3),"--") -> -- | AR34: =IF(AR$15>0,INDEX(Table_Engines, $BC34,AR$15+3),"--") -> -- | BC34: 17
L36: =IF(T$15>0,INDEX(#NAME?, $BC36,2),"--") -> -- | U36: =IF(T$15>0,INDEX(#NAME?, $BC36,T$15+2),"--") -> -- | AA36: =IF(AB$15>0,INDEX(#NAME?, $BC36,AB$15+2),"--") -> -- | AG36: =IF(AJ$15>0,INDEX(#NAME?, $BC36,AJ$15+2),"--") -> -- | AM36: =IF(AR$15>0,INDEX(#NAME?, $BC36,AR$15+2),"--") -> -- | AS36: =IF(#REF!>0,INDEX(#NAME?, $BC36,#REF!+2),"--") ->  | BC36: 33
L37: -- | U37: -- | AA37: -- | AG37: -- | AM37: -- | AS37: =IF(#REF!>0,INDEX(#NAME?, $BC37,#REF!+2),"--") ->  | BC37: 34
L38: -- | U38: -- | AA38: -- | AG38: -- | AM38: -- | AS38: =IF(#REF!>0,INDEX(#NAME?, $BC38,#REF!+2),"--") ->  | BC38: 35
L39: -- | U39: -- | AA39: -- | AG39: -- | AM39: -- | AS39: =IF(#REF!>0,INDEX(#NAME?, $BC39,#REF!+2),"--") ->  | BC39: 36
L40: -- | U40: -- | AA40: -- | AG40: -- | AM40: -- | AS40: =IF(#REF!>0,INDEX(#NAME?, $BC40,#REF!+2),"--") ->  | BC40: 37
L41: -- | U41: -- | AA41: -- | AG41: -- | AM41: -- | AS41: =IF(#REF!>0,INDEX(#NAME?, $BC41,#REF!+2),"--") ->  | BC41: 38
L42: -- | U42: -- | AA42: -- | AG42: -- | AM42: -- | AS42: =IF(#REF!>0,INDEX(#NAME?, $BC42,#REF!+2),"--") ->  | BC42: 39
L43: -- | U43: -- | AA43: -- | AG43: -- | AM43: -- | AS43: =IF(#REF!>0,INDEX(#NAME?, $BC43,#REF!+2),"--") ->  | BC43: 40
L44: -- | U44: -- | AA44: -- | AG44: -- | AM44: -- | AS44: =IF(#REF!>0,INDEX(#NAME?, $BC44,#REF!+2),"--") ->  | BC44: 41
L45: -- | U45: -- | AA45: -- | AG45: -- | AM45: -- | AS45: =IF(#REF!>0,INDEX(#NAME?, $BC45,#REF!+2),"--") ->  | BC45: 42
L46: -- | U46: -- | AA46: -- | AG46: -- | AM46: -- | AS46: =IF(#REF!>0,INDEX(#NAME?, $BC46,#REF!+2),"--") ->  | BC46: 43
L47: -- | U47: -- | AA47: -- | AG47: -- | AM47: -- | AS47: =IF(#REF!>0,INDEX(#NAME?, $BC47,#REF!+2),"--") ->  | BC47: 44
T49: Additional Optical Engine information can be found here . . . . . . . . . . . . . . . . . . . . . . . . . . . . . . | AK49: https://www.ti.com/tool/DLP-OMM-SEARCH
BC51: Reset engines scroller to 1 whenever the chipset changes
W53: Throw Ratio Filter | AI53: Chipset: | AL53: =BF55 -> -- | BC53: 3 | BE53: =IFERROR( MATCH( Value_EnginesDMD, Array_Chipset_Index, 0 ), 0 ) -> 0 | BL53: ignore lumens | BM53: 1
BF55: =IF(BE53>0,CONCATENATE( INDEX(Table_Chipsets, $BC53,$BE53+2), " ( ", INDEX(Table_Chipsets, $BC53+2,$BE53+2), " ", INDEX(Table_Chipsets, $BC53+5,$BE53+2), " - ", INDEX(Table_Chipsets, $BC53+6,$BE53+2), " )" ),"--") -> --
Y56: ≤ 0.4 | AB56: =IF(xOMM!B14> 0, CONCATENATE( "( qty ",xOMM!B14, " )" ), "( -- )" ) -> ( -- ) | AP56: =IF(Index_Chipset_Max=0,0,IF(Value_EnginesDMD>Index_Chipset_Max,Index_Chipset_Max,Value_EnginesDMD)) -> 0 | AR56: =CONCATENATE( " of ", Index_Chipset_Max ) -> of 0 | BC56: 0
BF57: =IF(BC$53>0,INDEX(Table_Chipsets, $BC53,$BE53+2),"--") -> DMD
Y58: 0.5 - 0.8 | AB58: =IF(xOMM!B15> 0, CONCATENATE( "( qty ",xOMM!B15, " )" ), "( -- )" ) -> ( -- ) | BC58: 0
Y60: 0.9 - 1.2 | AB60: =IF(xOMM!B16> 0, CONCATENATE( "( qty ",xOMM!B16, " )" ), "( -- )" ) -> ( -- ) | AJ60: Optical Engine Page | BC60: 0
BH61: 1
Y62: 1.3 - 1.6 | AB62: =IF(xOMM!B17> 0, CONCATENATE( "( qty ",xOMM!B17, " )" ), "( -- )" ) -> ( -- ) | BC62: 0
AP63: =IF( INT((Index_Engines_Max-1)/4)+1=0,0,IF(Value_EnginesPage> INT((Index_Engines_Max-1)/4)+1, INT((Index_Engines_Max-1)/4)+1,Value_EnginesPage)) -> 0 | AR63: =CONCATENATE(" of ", INT((Index_Engines_Max-1)/4)+1 ) -> of 0
Y64: ≥ 1.7 | AB64: =IF(xOMM!B18> 0, CONCATENATE( "( qty ",xOMM!B18, " )" ), "( -- )" ) -> ( -- ) | BC64: 0 | BH64: 1
Y66: ≥ 3.0 | AB66: =IF(xOMM!B19> 0, CONCATENATE( "( qty ",xOMM!B19, " )" ), "( -- )" ) -> ( -- ) | BC66: 0
AN67: =CONCATENATE( "Ver. ", App_FullVersion ) -> Ver. [[Prod]] (Smarta2xOPENv3)
U71: Additional Optical Engine information can be found here . . . . . . . . . . . . . . . . . . . . . . . . . . . . . . | AL71: https://www.ti.com/tool/DLP-OMM-SEARCH
BB76: =ROW(BB76) -> 76
M77: Optical Module | U77: An optical module is a compact assembly that includes a digital micromirror device (DMD), an illumination source, optics and associated mechanics. Some modules also inlcude electronics for driving the DMD.
M80: Manufacture | U80: Manufacture of the optical engine/module
M82: Module Model Number | U82: The part/model number to use when ordering an optical module from the manufacture.
M84: Min/Max Lumens | U84: Lumens refers to the amount of light, that is emitted from the projection lens when the illumination source is run at peak output and an entirely white image is displayed (i.e. all DLP micromirrors are in the “on” position, and the light source is being driven for maximum output). Note that in this table there are pre-set lumens ranges that the modules are categorized into. Please contact the manufacture for details regarding the specific capability of their modules.
U89: =CONCATENATE( "For further details, refer to ", HYPERLINK("https://en.wikipedia.org/wiki/Lumen_(unit)","https://en.wikipedia.org/wiki/Lumen_(unit)"), "." ) -> For further details, refer to https://en.wikipedia.org/wiki/Lumen_(unit).
M91: Illumination Light Source | U91: The type of illumination source used in the module (i.e., LED, laser, etc.)
M93: Optical Offset | U93: Offset describes the path of the projected light once it exits the projection lens. 0% offset describes an optical module that sends light equally up and down after it exits the projection lens. 100% offset describes an optical module that sends the top of the image up and keeps the bottom of the image coincident with the projection lens axis.
U97: =CONCATENATE( "For further details, refer to ", HYPERLINK("https://www.projectorcentral.com/Understanding-Lens-Offset-and-Lens-Shift.htm","https://www.projectorcentral.com/Understanding-Lens-Offset-and-Lens-Shift.htm"), "." ) -> For further details, refer to https://www.projectorcentral.com/Understanding-Lens-Offset-and-Lens-Shift.htm.
M99: Throw Ratio | U99: Throw ratio describes how large of a projected image an optical module creates when the projector is a given distance from the projection surface. I t is defined as the ratio of D (the distance from the final optical element to the projection surface) to W (width of projected image). Note that in this table there are pre-set throw ratio ranges that the modules are categorized into. Please contact the manufacture for details regarding the specific capability of their modules.
M106: Flash Memory Included? | U106: The flash memory board is a small board typically attached to either the module itself or the flex cable connecting the DMD and DLP controller. DLP image processing settings specific to the optical module are stored in the flash memory and are used by the DLP controller during configuration of the system.
M110: Model # w/ Electronics | U110: Separate drive electronics (containing the appropriate DLP controller that is required to supply video to the optical module) can also be sourced from independent 3rd party companies or custom built using TI reference designs.
M114: High-Vol Orders Only? | U114: Some optical module manufactures only accept high-volume (i.e., production) order quantities.
M116: Low-Vol Orders Accepted? | U116: Some optical module manufactures will accept low-volume order quantities.
M118: Single-Unit Orders Accepted? | U118: Some optical module manufactures will accept single-unit orders.
BB120: =ROW(BB120) -> 120
N123: Disclaimer
N126: Certain information and resources (including links to non-TI sites) may be provided by a third-party partner, and is included here merely for your convenience. TI is not the provider of, and is not responsible for, the content of such information and resources, and you should evaluate them carefully for your intended uses and on your own behalf. The inclusion of such information and resources here does not imply endorsement of any third-party company by TI, and shall not be construed as a warranty or representation regarding the suitability of any third-party products or services, either alone or in combination with any TI product or service.

Sheet xOMM (hidden)
C4: =Engines!BF57 -> DMD | D4: Selected DMD | F4: =$C4 -> DMD | G4: =$C4 -> DMD | H4: DMD | I4: DMD | J4: DMD | K4: DMD | L4: DMD | M4: DMD | N4: DMD | O4: DMD | P4: DMD | Q4: DMD | R4: DMD | S4: DMD | T4: DMD | U4: DMD | V4: DMD | W4: DMD | X4: DMD | Y4: DMD | Z4: DMD | AA4: DMD | AB4: DMD | AC4: DMD | AD4: DMD | AE4: DMD | AF4: DMD | AG4: DMD | AH4: DMD | AI4: DMD | AJ4: DMD | AK4: DMD | AL4: DMD | AM4: DMD | AN4: DMD | AO4: DMD | AP4: DMD | AQ4: DMD | AR4: DMD | AS4: DMD | AT4: DMD | AU4: DMD | AV4: DMD | AW4: DMD | AX4: DMD | AY4: DMD | AZ4: DMD | BA4: DMD | BB4: DMD | BC4: DMD | BD4: DMD | BE4: DMD | BF4: DMD | BG4: DMD | BH4: DMD | BI4: DMD | BJ4: DMD | BK4: DMD | BL4: DMD | BM4: DMD | BN4: DMD | BO4: DMD | BP4: DMD | BQ4: DMD | BR4: DMD | BS4: =$C4 -> DMD | BT4: DMD | BU4: DMD | BV4: DMD | BW4: DMD | BX4: DMD | BY4: DMD | BZ4: DMD | CA4: DMD | CB4: DMD | CC4: DMD | CD4: DMD | CE4: DMD | CF4: DMD | CG4: DMD | CH4: DMD | CI4: DMD | CJ4: DMD | CK4: DMD | CL4: DMD | CM4: DMD | CN4: DMD | CO4: DMD | CP4: DMD | CQ4: DMD | CR4: DMD | CS4: DMD | CT4: DMD | CU4: DMD | CV4: DMD | CW4: DMD | CX4: DMD | CY4: DMD | CZ4: DMD | DA4: DMD | DB4: DMD | DC4: DMD | DD4: DMD | DE4: DMD | DF4: DMD | DG4: DMD | DH4: DMD | DI4: DMD | DJ4: DMD | DK4: DMD | DL4: DMD | DM4: DMD | DN4: DMD | DO4: DMD | DP4: DMD | DQ4: DMD | DR4: DMD | DS4: DMD | DT4: DMD | DU4: DMD | DV4: DMD | DW4: DMD | DX4: DMD | DY4: DMD | DZ4: DMD | EA4: DMD | EB4: DMD | EC4: DMD | ED4: DMD | EE4: =$C4 -> DMD | EF4: DMD | EG4: DMD | EH4: DMD | EI4: DMD | EJ4: DMD | EK4: DMD | EL4: DMD | EM4: DMD | EN4: DMD | EO4: DMD | EP4: DMD | EQ4: DMD | ER4: DMD | ES4: DMD | ET4: DMD | EU4: DMD | EV4: DMD | EW4: DMD | EX4: DMD | EY4: DMD | EZ4: DMD | FA4: DMD | FB4: DMD | FC4: DMD | FD4: DMD | FE4: DMD | FF4: DMD | FG4: DMD | FH4: DMD | FI4: DMD
D5: Module DMD | F5: =F26 -> DLP2000 | G5: =G26 -> DLP2000 | H5: DLP2000 | I5: DLP2000 | J5: DLP2000 | K5: DLP2000 | L5: DLP2010 | M5: DLP2010 | N5: DLP2010 | O5: =O26 -> DLP2010 | P5: =P26 -> DLP2010 | Q5: DLP2010 | R5: DLP2010 | S5: DLP2010 | T5: DLP2010 | U5: DLP2010 | V5: DLP2010 | W5: DLP2010 | X5: DLP2010 | Y5: DLP2010 | Z5: DLP2010 | AA5: DLP2010 | AB5: DLP2010 | AC5: DLP2010 | AD5: DLP2010 | AE5: DLP2010 | AF5: DLP2010 | AG5: DLP2010 | AH5: DLP2010 | AI5: DLP2010 | AJ5: DLP2010 | AK5: DLP2010 | AL5: DLP2010 | AM5: DLP2010 | AN5: DLP2010 | AO5: DLP2010 | AP5: DLP2010 | AQ5: DLP230GP | AR5: DLP230GP | AS5: DLP230GP | AT5: DLP230GP | AU5: DLP230GP | AV5: DLP230GP | AW5: DLP230GP | AX5: DLP230GP | AY5: DLP230GP | AZ5: DLP230GP | BA5: DLP230GP | BB5: DLP230GP | BC5: DLP230GP | BD5: DLP230GP | BE5: DLP230GP | BF5: DLP230KP | BG5: DLP230KP | BH5: DLP230KP | BI5: DLP230KP | BJ5: DLP230KP | BK5: DLP230KP | BL5: DLP3010 | BM5: DLP3010 | BN5: DLP3010 | BO5: DLP3010 | BP5: DLP3010 | BQ5: DLP3010 | BR5: DLP3010 | BS5: DLP3010 | BT5: DLP3010 | BU5: DLP3010 | BV5: DLP3010 | BW5: DLP3010 | BX5: DLP3010 | BY5: DLP3010 | BZ5: DLP3010 | CA5: DLP3010 | CB5: =CB26 -> DLP3010 | CC5: DLP3010 | CD5: DLP4500 | CE5: DLP4500 | CF5: DLP4500 | CG5: DLP4501 | CH5: DLP4501 | CI5: DLP4501 | CJ5: DLP4501 | CK5: DLP4501 | CL5: DLP230NP | CM5: DLP230NP | CN5: DLP230NP | CO5: DLP230NP | CP5: DLP230NP | CQ5: DLP230NP | CR5: DLP230NP | CS5: DLP230NP | CT5: DLP230NP | CU5: DLP230NP | CV5: DLP230NP | CW5: DLP230NP | CX5: DLP230NP | CY5: DLP230NP | CZ5: DLP3310 | DA5: DLP3310 | DB5: DLP3310 | DC5: DLP3310 | DD5: DLP3310 | DE5: DLP3310 | DF5: DLP3310 | DG5: DLP3310 | DH5: DLP3310 | DI5: DLP3310 | DJ5: DLP3310 | DK5: DLP4710 | DL5: DLP4710 | DM5: DLP4710 | DN5: DLP4710 | DO5: DLP4710 | DP5: DLP4710 | DQ5: DLP4710 | DR5: DLP4710 | DS5: DLP4710 | DT5: DLP4710 | DU5: DLP4710 | DV5: DLP4710 | DW5: DLP4710 | DX5: DLP4710 | DY5: DLP4710 | DZ5: DLP4710 | EA5: DLP4710 | EB5: DLP4710 | EC5: DLP4710 | ED5: DLP4710 | EE5: DLP4710 | EF5: DLP4710 | EG5: DLP4710 | EH5: DLP4710 | EI5: DLP4710 | EJ5: DLP4710 | EK5: DLP4710 | EL5: DLP470TE | EM5: DLP470TE | EN5: =EN26 -> DLP470TP | EO5: DLP470TP | EP5: DLP470TP | EQ5: DLP470TP | ER5: DLP470TP | ES5: DLP470TP | ET5: DLP470TP | EU5: DLP470TP | EV5: DLP470TP | EW5: DLP470TP | EX5: DLP470TP | EY5: DLP470TP | EZ5: DLP470TP | FA5: DLP471TP | FB5: DLP471TP | FC5: DLP471TP | FD5: DLP471TP | FE5: DLP471TP | FF5: DLP471TP | FG5: DLP471TP | FH5: DLP471TP | FI5: DLP471TP
C6: 1 | D6: Match | F6: =IF(F4=F5, $C6, 0 ) -> 0 | G6: =IF(G4=G5, $C6, 0 ) -> 0 | H6: 0 | I6: 0 | J6: 0 | K6: 0 | L6: 0 | M6: 0 | N6: 0 | O6: 0 | P6: 0 | Q6: 0 | R6: 0 | S6: 0 | T6: 0 | U6: 0 | V6: 0 | W6: 0 | X6: 0 | Y6: 0 | Z6: 0 | AA6: 0 | AB6: 0 | AC6: 0 | AD6: 0 | AE6: 0 | AF6: 0 | AG6: 0 | AH6: 0 | AI6: 0 | AJ6: 0 | AK6: 0 | AL6: 0 | AM6: 0 | AN6: 0 | AO6: 0 | AP6: 0 | AQ6: 0 | AR6: 0 | AS6: 0 | AT6: 0 | AU6: 0 | AV6: 0 | AW6: 0 | AX6: 0 | AY6: 0 | AZ6: 0 | BA6: 0 | BB6: 0 | BC6: 0 | BD6: 0 | BE6: 0 | BF6: 0 | BG6: 0 | BH6: 0 | BI6: 0 | BJ6: 0 | BK6: 0 | BL6: 0 | BM6: 0 | BN6: 0 | BO6: 0 | BP6: 0 | BQ6: 0 | BR6: 0 | BS6: =IF(BS4=BS5, $C6, 0 ) -> 0 | BT6: 0 | BU6: 0 | BV6: 0 | BW6: 0 | BX6: 0 | BY6: 0 | BZ6: 0 | CA6: 0 | CB6: 0 | CC6: 0 | CD6: 0 | CE6: 0 | CF6: 0 | CG6: 0 | CH6: 0 | CI6: 0 | CJ6: 0 | CK6: 0 | CL6: 0 | CM6: 0 | CN6: 0 | CO6: 0 | CP6: 0 | CQ6: 0 | CR6: 0 | CS6: 0 | CT6: 0 | CU6: 0 | CV6: 0 | CW6: 0 | CX6: 0 | CY6: 0 | CZ6: 0 | DA6: 0 | DB6: 0 | DC6: 0 | DD6: 0 | DE6: 0 | DF6: 0 | DG6: 0 | DH6: 0 | DI6: 0 | DJ6: 0 | DK6: 0 | DL6: 0 | DM6: 0 | DN6: 0 | DO6: 0 | DP6: 0 | DQ6: 0 | DR6: 0 | DS6: 0 | DT6: 0 | DU6: 0 | DV6: 0 | DW6: 0 | DX6: 0 | DY6: 0 | DZ6: 0 | EA6: 0 | EB6: 0 | EC6: 0 | ED6: 0 | EE6: =IF(EE4=EE5, $C6, 0 ) -> 0 | EF6: 0 | EG6: 0 | EH6: 0 | EI6: 0 | EJ6: 0 | EK6: 0 | EL6: 0 | EM6: 0 | EN6: 0 | EO6: 0 | EP6: 0 | EQ6: 0 | ER6: 0 | ES6: 0 | ET6: 0 | EU6: 0 | EV6: 0 | EW6: 0 | EX6: 0 | EY6: 0 | EZ6: 0 | FA6: 0 | FB6: 0 | FC6: 0 | FD6: 0 | FE6: 0 | FF6: 0 | FG6: 0 | FH6: 0 | FI6: 0
